Workbook

Sheet BP
D1: БЕЗ ФОРМУЛ!!!
R4: стр. | S4: 1 | T4: 1
D5: РЕЗЮМЕ ПРОЕКТА
C7: ФИНАНСОВЫЕ ПАРАМЕТРЫ И РЕЗУЛЬТАТЫ
C9: Старт проекта | H9: 2022-01-01
C11: Горизонт расчетов | H11: 2027-12-01
C13: Инвестиционная фаза Проекта | H13: 2022-01-01 | J13: 2022-07-01
C15: Операционная фаза Проекта | H15: 2022-01-01 | J15: 2027-12-01
C17: Капитальные затраты Проекта составляют в тыс.руб.: | J17: 100000
C18: в том числе
C19: Работы по созданию онлайн сервиса - 1 | J19: 10000
C20: Работы по созданию онлайн сервиса - 2 | J20: 10000
C21: Работы по созданию онлайн сервиса - 3 | J21: 10000
C22: Работы по созданию онлайн сервиса - 4 | J22: 10000
C23: Работы по созданию онлайн сервиса - 5 | J23: 10000
C24: Работы по созданию онлайн сервиса - 6 | J24: 10000
C25: Работы по созданию онлайн сервиса - 7 | J25: 10000
C26: Работы по созданию онлайн сервиса - 8 | J26: 10000
C27: Работы по созданию онлайн сервиса - 9 | J27: 10000
C28: Работы по созданию онлайн сервиса - 10 | J28: 10000
L30: 2021 | M30: 2022 | N30: 2023 | O30: 2024 | P30: 2025 | Q30: 2026
J31: итого | L31: 1 год | M31: 2 год | N31: 3 год | O31: 4 год | P31: 5 год | Q31: 6 год
C32: Финансовый поток проекта, тыс.руб. | J32: 429953.6064 | L32: -126473.7809 | M32: -9246.041902 | N32: 34679.96466 | O32: 97489.22387 | P32: 179470.648 | Q32: 254033.5926
C34: Внутренняя норма доходности (IRR): | J34: 0.4378235534
C35: Окупаемость без учета финансирования (PBP): | J35: 4.083333333 | K35: лет
C37: Кассовый разрыв проекта | J37: 136529.3668 | K37: тыс.руб.
C39: Размер необходимого финансирования: | J39: 160000 | K39: тыс.руб.
C40: в том числе источники
C41: 1 Кредит Банка | J41: 128000 | K41: тыс.руб.
C42: 2 Собственные средства учредителя | J42: 32000 | K42: тыс.руб.
L43: 2021 | M43: 2022 | N43: 2023 | O43: 2024 | P43: 2025 | Q43: 2026
J44: итого | L44: 1 год | M44: 2 год | N44: 3 год | O44: 4 год | P44: 5 год | Q44: 6 год
C45: Итоговый Финпоток проекта, тыс.руб. | J45: 394234.1706 | L45: 24566.21912 | M45: -24566.21912 | N45: 0 | O45: 53766.96708 | P45: 147956.5739 | Q45: 192510.6296
C47: Средневзвеш. стоимость капитала (WACC): | J47: 0.09073883761
C48: Окупаемость с уч. финансирования (DPBP): | J48: 5.416666667 | K48: лет
L49: 2021 | M49: 2022 | N49: 2023
J50: итого | L50: 1 год | M50: 2 год | N50: 3 год | O50: 4 год | P50: 5 год | Q50: 6 год
C51: Приведенная ст-сть NPV(WACC), тыс.руб. | J51: 238984.1752 | L51: -115952.3953 | M51: -7771.669132 | N51: 26724.9139 | O51: 68876.88602 | P51: 116249.0855 | Q51: 150857.3543
C53: Дисконтированная рентабельность инвестиций (ROI): | J53: 1.360892955
R63: стр. | S63: 2 | T63: 2
D65: ФИНАНСОВЫЙ АНАЛИЗ
I66: 44562 | J66: 44927 | K66: 45292 | L66: 45658 | M66: 46023 | N66: 46388 | O66: 46753 | P66: 47119 | Q66: 47484 | R66: 47849 | S66: 48214
C67: БЮДЖЕТ ДОХОДОВ В НАТУРАЛЬНЫХ ЕДИНИЦАХ | I67: 44926 | J67: 45291 | K67: 45657 | L67: 46022 | M67: 46387 | N67: 46752 | O67: 47118 | P67: 47483 | Q67: 47848 | R67: 48213 | S67: 48579
J68: 2 год | K68: 3 год | L68: 4 год
C69: в количестве штук | H69: итого | I69: 2021 | J69: 2022 | K69: 2023 | L69: 2024 | M69: 2025 | N69: 2026
C71: Продажа аппаратов | H71: 46830 | I71: 1366.4 | J71: 3719.6 | K71: 6800 | L71: 9224 | M71: 11648 | N71: 14072
C73: Продажа годовых подписок на онлайн сервис | H73: 80783.2095 | I73: 364.0945 | J73: 2314.748333 | K73: 7239.266667 | L73: 14070.35 | M73: 22941.63333 | N73: 33853.11667
C93: БЮДЖЕТ ДОХОДОВ В ТЫС.РУБ.
H95: итого | I95: 2021 | J95: 2022 | K95: 2023 | L95: 2024 | M95: 2025 | N95: 2026
C97: Бюджет доходов | H97: 802781.5707 | I97: 6647.8615 | J97: 28406.07548 | K97: 76251.96605 | L97: 139659.1584 | M97: 223221.7234 | N97: 328594.7858
C98: в т.ч.
C99: Продажа аппаратов | H99: 166694.8918 | I99: 4099.2 | J99: 11716.74 | K99: 22491 | L99: 32033.799 | M99: 42474.6504 | N99: 53879.50244
C100: Продажа годовых подписок на онлайн сервис | H100: 636086.6789 | I100: 2548.6615 | J100: 16689.33548 | K100: 53760.96605 | L100: 107625.3594 | M100: 180747.073 | N100: 274715.2834
R128: стр. | S128: 3 | T128: 3
C131: ПРОГНОЗНАЯ СЕБЕСТОИМОСТЬ ПРОДАЖ В ТЫС.РУБ.
H133: итого | I133: 2021 | J133: 2022 | K133: 2023 | L133: 2024 | M133: 2025 | N133: 2026
C135: Себестоимость | H135: 59454.51142 | I135: 1462.048 | J135: 4178.9706 | K135: 8021.79 | L135: 11425.38831 | M135: 15149.29198 | N135: 19217.02254
C136: в т.ч.
C137: Продажа аппаратов | H137: 59454.51142 | I137: 1462.048 | J137: 4178.9706 | K137: 8021.79 | L137: 11425.38831 | M137: 15149.29198 | N137: 19217.02254
C138: Продажа годовых подписок на онлайн сервис | H138: 0 | I138: 0 | J138: 0 | K138: 0 | L138: 0 | M138: 0 | N138: 0
C159: БЮДЖЕТ ЗАКУПОК МАТЕРИАЛОВ И КОМПЛЕКТУЮЩИХ
C160: В РАЗРЕЗЕ АППАРАТОВ, В ТЫС.РУБ.
H162: итого | I162: 2021 | J162: 2022 | K162: 2023 | L162: 2024 | M162: 2025 | N162: 2026
C164: План закупок в разрезе интерактивных блоков | H164: 57865.83374 | I164: 0 | J164: 4319.1834 | K164: 8151.070583 | L164: 11566.92985 | M164: 15303.99736 | N164: 18524.65255
C165: в т.ч.
C166: с/ст ингредиент 1.1 | H166: 27040.10922 | I166: 0 | J166: 2018.31 | K166: 3808.911488 | L166: 5405.107404 | M166: 7151.400634 | N166: 8656.379698
C167: с/ст ингредиент 1.2 | H167: 21632.08738 | I167: 0 | J167: 1614.648 | K167: 3047.12919 | L167: 4324.085924 | M167: 5721.120507 | N167: 6925.103758
C168: с/ст ингредиент 1.3 | H168: 5408.021845 | I168: 0 | J168: 403.662 | K168: 761.7822975 | L168: 1081.021481 | M168: 1430.280127 | N168: 1731.27594
C169: с/ст ингредиент 1.4 | H169: 2704.010922 | I169: 0 | J169: 201.831 | K169: 380.8911488 | L169: 540.5107404 | M169: 715.1400634 | N169: 865.6379698
C170: с/ст ингредиент 1.5 | H170: 1081.604369 | I170: 0 | J170: 80.7324 | K170: 152.3564595 | L170: 216.2042962 | M170: 286.0560254 | N170: 346.2551879
C174: БЮДЖЕТ ПЕРЕМЕННЫХ ПРЯМЫХ РАСХОДОВ В РАЗРЕЗЕ АППАРАТОВ, В ТЫС.РУБ.
H176: итого | I176: 2021 | J176: 2022 | K176: 2023 | L176: 2024 | M176: 2025 | N176: 2026
C178: План прямых расходов по аппаратам | H178: 13007.65535 | I178: 0 | J178: 937.3392 | K178: 1799.28 | L178: 2562.70392 | M178: 3397.972032 | N178: 4310.360195
C179: в т.ч.
C180: Командировочные и представительские расходы | H180: 4877.870755 | I180: 0 | J180: 351.5022 | K180: 674.73 | L180: 961.01397 | M180: 1274.239512 | N180: 1616.385073
C181: Расходы на текущий ремонт и обслуживание оборудования | H181: 6503.827674 | I181: 0 | J181: 468.6696 | K181: 899.64 | L181: 1281.35196 | M181: 1698.986016 | N181: 2155.180098
C182: Прочие материальные расходы | H182: 1625.956918 | I182: 0 | J182: 117.1674 | K182: 224.91 | L182: 320.33799 | M182: 424.746504 | N182: 538.7950244
C185: БЮДЖЕТ ПЕРЕМЕННЫХ ПРЯМЫХ РАСХОДОВ В РАЗРЕЗЕ ПОДПИСОК НА СЕРВИС, В ТЫС.РУБ.
H187: итого | I187: 2021 | J187: 2022 | K187: 2023 | L187: 2024 | M187: 2025 | N187: 2026
C189: План прямых расходов по подпискам | H189: 15838.45043 | I189: 0 | J189: 417.2333871 | K189: 1344.024151 | L189: 2690.633985 | M189: 4518.676826 | N189: 6867.882085
C190: в т.ч.
C191: Консультационные расходы | H191: 6335.380174 | I191: 0 | J191: 166.8933548 | K191: 537.6096605 | L191: 1076.253594 | M191: 1807.47073 | N191: 2747.152834
C192: Представительские расходы | H192: 6335.380174 | I192: 0 | J192: 166.8933548 | K192: 537.6096605 | L192: 1076.253594 | M192: 1807.47073 | N192: 2747.152834
C193: Прочие прямые расходы на подписки | H193: 3167.690087 | I193: 0 | J193: 83.44667742 | K193: 268.8048302 | L193: 538.1267971 | M193: 903.7353651 | N193: 1373.576417
C196: БЮДЖЕТ ПЕРЕМЕННЫХ ОБЩИХ РАСХОДОВ, В ТЫС.РУБ.
H198: итого | I198: 2021 | J198: 2022 | K198: 2023 | L198: 2024 | M198: 2025 | N198: 2026
C200: План общих переменных расходов | H200: 47768.02255 | I200: 0 | J200: 1704.364529 | K200: 4575.117963 | L200: 8379.549505 | M200: 13393.30341 | N200: 19715.68715
C201: в т.ч.
C202: Маркетинговые расходы | H202: 23884.01128 | I202: 0 | J202: 852.1822645 | K202: 2287.558981 | L202: 4189.774752 | M202: 6696.651703 | N202: 9857.843575
C203: Расходы на иннновации и модернизацию | H203: 15922.67418 | I203: 0 | J203: 568.1215097 | K203: 1525.039321 | L203: 2793.183168 | M203: 4464.434469 | N203: 6571.895717
C204: Прочие переменные расходы | H204: 7961.337092 | I204: 0 | J204: 284.0607548 | K204: 762.5196605 | L204: 1396.591584 | M204: 2232.217234 | N204: 3285.947858
C207: ИТОГО БЮДЖЕТ ПЕРЕМЕННЫХ РАСХОДОВ, В ТЫС.РУБ.
H209: итого | I209: 2021 | J209: 2022 | K209: 2023 | L209: 2024 | M209: 2025 | N209: 2026
C211: План переменных расходов | H211: 76614.12833 | I211: 0 | J211: 3058.937116 | K211: 7718.422114 | L211: 13632.88741 | M211: 21309.95226 | N211: 30893.92943
C212: в т.ч.
C213: Командировочные и представительские расходы | H213: 11213.25093 | I213: 0 | J213: 518.3955548 | K213: 1212.33966 | L213: 2037.267564 | M213: 3081.710242 | N213: 4363.537907
C214: Консультационные расходы | H214: 6335.380174 | I214: 0 | J214: 166.8933548 | K214: 537.6096605 | L214: 1076.253594 | M214: 1807.47073 | N214: 2747.152834
C215: Расходы на текущий ремонт и обслуживание оборудования | H215: 6503.827674 | I215: 0 | J215: 468.6696 | K215: 899.64 | L215: 1281.35196 | M215: 1698.986016 | N215: 2155.180098
C216: Прочие материальные расходы | H216: 1625.956918 | I216: 0 | J216: 117.1674 | K216: 224.91 | L216: 320.33799 | M216: 424.746504 | N216: 538.7950244
C217: Прочие прямые расходы на подписки | H217: 3167.690087 | I217: 0 | J217: 83.44667742 | K217: 268.8048302 | L217: 538.1267971 | M217: 903.7353651 | N217: 1373.576417
C218: Маркетинговые расходы | H218: 23884.01128 | I218: 0 | J218: 852.1822645 | K218: 2287.558981 | L218: 4189.774752 | M218: 6696.651703 | N218: 9857.843575
C219: Расходы на иннновации и модернизацию | H219: 15922.67418 | I219: 0 | J219: 568.1215097 | K219: 1525.039321 | L219: 2793.183168 | M219: 4464.434469 | N219: 6571.895717
C220: Прочие переменные расходы | H220: 7961.337092 | I220: 0 | J220: 284.0607548 | K220: 762.5196605 | L220: 1396.591584 | M220: 2232.217234 | N220: 3285.947858
C241: ИТОГО БЮДЖЕТ ПОСТОЯННЫХ РАСХОДОВ, В ТЫС.РУБ.
H243: итого | I243: 2021 | J243: 2022 | K243: 2023 | L243: 2024 | M243: 2025 | N243: 2026
C245: План постоянных расходов | H245: 262512.1274 | I245: 0 | J245: 48788.0088 | K245: 50559.23306 | L245: 52413.66882 | M245: 54356.76985 | N245: 56394.44684
C246: в т.ч.
C247: ФОТ, вкл. НДФЛ | H247: 196206.5466 | I247: 0 | J247: 36956.4 | K247: 38065.092 | L247: 39207.04476 | M247: 40383.2561 | N247: 41594.75379
C248: Соцсборы с ФОТ | H248: 27861.32962 | I248: 0 | J248: 5247.8088 | K248: 5405.243064 | L248: 5567.400356 | M248: 5734.422367 | N248: 5906.455038
C249: Расходы на текущий ремонт и обслуживание производства | H249: 6759.570555 | I249: 0 | J249: 1248 | K249: 1297.92 | L249: 1349.8368 | M249: 1403.830272 | N249: 1459.983483
C250: Аренда офиса | H250: 24176.196 | I250: 0 | J250: 3960 | K250: 4356 | L250: 4791.6 | M250: 5270.76 | N250: 5797.836
C251: Расходы на персонал | H251: 2088.688613 | I251: 0 | J251: 378 | K251: 396.9 | L251: 416.745 | M251: 437.58225 | N251: 459.4613625
C252: Услуги связи | H252: 1236.483614 | I252: 0 | J252: 242.4 | K252: 244.824 | L252: 247.27224 | M252: 249.7449624 | N252: 252.242412
C253: Расходы на создание рекламной продукции | H253: 0 | I253: 0 | J253: 0 | K253: 0 | L253: 0 | M253: 0 | N253: 0
C254: Канцелярские и хозрасходы | H254: 1273.949031 | I254: 0 | J254: 244.8 | K254: 249.696 | L254: 254.68992 | M254: 259.7837184 | N254: 264.9793928
C255: Банковские расходы | H255: 656.2091861 | I255: 0 | J255: 123.6 | K255: 127.308 | L255: 131.12724 | M255: 135.0610572 | N255: 139.1128889
C256: Юридические расходы | H256: 1044.344306 | I256: 0 | J256: 189 | K256: 198.45 | L256: 208.3725 | M256: 218.791125 | N256: 229.7306813
C257: Расходы на сайт | H257: 1208.8098 | I257: 0 | J257: 198 | K257: 217.8 | L257: 239.58 | M257: 263.538 | N257: 289.8918
R285: стр. | S285: 4 | T285: 4
D287: ФИНАНСОВЫЙ АНАЛИЗ
C289: ПРОГНОЗНЫЙ ОТЧЕТ О ФИНАНСОВЫХ РЕЗУЛЬТАТАХ
E291: в тыс.руб. | H291: итого | I291: 2021 | J291: 2022 | K291: 2023 | L291: 2024 | M291: 2025 | N291: 2026
C292: Выручка | H292: 668984.6423 | I292: 5539.884583 | J292: 23671.72957 | K292: 63543.30504 | L292: 116382.632 | M292: 186018.1029 | N292: 273828.9882
C293: в т.ч.
C294: Продажа аппаратов | H294: 138912.4099 | I294: 3416 | J294: 9763.95 | K294: 18742.5 | L294: 26694.8325 | M294: 35395.542 | N294: 44899.58537
C295: Продажа годовых подписок на онлайн сервис | H295: 530072.2324 | I295: 2123.884583 | J295: 13907.77957 | K295: 44800.80504 | L295: 89687.79951 | M295: 150622.5609 | N295: 228929.4028
C296: Себестоимость | H296: 49545.42619 | I296: 1218.373333 | J296: 3482.4755 | K296: 6684.825 | L296: 9521.156925 | M296: 12624.40998 | N296: 16014.18545
C297: Валовая прибыль | H297: 619439.2161 | I297: 4321.51125 | J297: 20189.25407 | K297: 56858.48004 | L297: 106861.4751 | M297: 173393.6929 | N297: 257814.8028
C298: Рентабельность продаж | H298: 0.9259393668 | I298: 0.7800724338 | J298: 0.8528846196 | K298: 0.8947989092 | L298: 0.9181909125 | M298: 0.9321334333 | N298: 0.941517567
C299: Начисление прямых расходов | H299: 24364.7986 | I299: 326.3771146 | J299: 1128.810489 | K299: 2619.420126 | L299: 4377.781588 | M299: 6597.207381 | N299: 9315.2019
C300: Прибыль от коммерческой деятельности | H300: 595074.4175 | I300: 3995.134135 | J300: 19060.44358 | K300: 54239.05991 | L300: 102483.6935 | M300: 166796.4855 | N300: 248499.6009
C301: Рентабельность коммерческой деятельности | H301: 0.8895188019 | I301: 0.7211583699 | J301: 0.805198603 | K301: 0.8535763111 | L301: 0.8805754925 | M301: 0.8966680282 | N301: 0.9074992479
C302: Начисление переменных расходов | H302: 40139.07854 | I302: 332.393075 | J302: 1420.303774 | K302: 3812.598302 | L302: 6982.957921 | M302: 11161.08617 | N302: 16429.73929
C303: Маржинальная прибыль | H303: 554935.3389 | I303: 3662.74106 | J303: 17640.13981 | K303: 50426.46161 | L303: 95500.73558 | M303: 155635.3993 | N303: 232069.8616
C304: Рентабельность до постоянных расходов | H304: 0.8295188019 | I304: 0.6611583699 | J304: 0.745198603 | K304: 0.7935763111 | L304: 0.8205754925 | M304: 0.8366680282 | N304: 0.8474992479
C305: Начисление постоянных расходов | H305: 311594.5397 | I305: 51351.05333 | J305: 48371.3088 | K305: 50124.96806 | L305: 51960.91941 | M305: 53884.55813 | N305: 55901.73199
C307: EBITDA | H307: 243340.7992 | I307: -47688.31227 | J307: -30731.16899 | K307: 301.4935466 | L307: 43539.81617 | M307: 101750.8412 | N307: 176168.1296
C308: Рентабельность операционной деятельности | H308: 0.3637464657 | I308: -8.608177942 | J308: -1.298222376 | K308: 0.004744694133 | L308: 0.3741092242 | M308: 0.5469942959 | N308: 0.643350913
C309: начисление %% по кредиту за период | H309: 35719.43571 | I309: 8960 | J309: 8849.224243 | K309: 8387.228668 | L309: 5374.834655 | M309: 3069.62963 | N309: 1078.518519
C310: Начисление налога на имущество | H310: 2523.003472 | I310: 400.6076389 | J310: 549.4791667 | K310: 486.9791667 | L310: 424.4791667 | M310: 361.9791667 | N310: 299.4791667
C311: Налог на прибыль | H311: 31422.44978 | I311: 0 | J311: 0 | K311: 0 | L311: 0 | M311: 0 | N311: 31422.44978
C312: Амортизация | H312: 47986.11111 | I312: 6319.444444 | J312: 8333.333333 | K312: 8333.333333 | L312: 8333.333333 | M312: 8333.333333 | N312: 8333.333333
C313: Чистая прибыль | H313: 125689.7991 | I313: -63368.36436 | J313: -48463.20574 | K313: -16906.04762 | L313: 29407.16902 | M313: 89985.89906 | N313: 135034.3488
C314: Рентабельность проекта | H314: 0.1878814418 | I314: -11.43857122 | J314: -2.047303117 | K314: -0.2660555288 | L314: 0.2526766108 | M314: 0.4837480744 | N314: 0.4931338704
R321: стр. | S321: 5 | T321: 5
D323: ФИНАНСОВЫЙ АНАЛИЗ
C325: ПРОГНОЗНЫЙ ОТЧЕТ О ДВИЖЕНИИ ДЕНЕЖНЫХ СРЕДСТВ
E327: в тыс.руб. | H327: итого | I327: 2021 | J327: 2022 | K327: 2023 | L327: 2024 | M327: 2025 | N327: 2026
C328: Поступление ДС | H328: 1099456.352 | I328: 13526.8 | J328: 48199.13 | K328: 110498.3418 | L328: 193282.2603 | M328: 300315.8517 | N328: 433633.9685
C329: в т.ч.
C330: в т.ч. | H330: 0 | I330: 0 | J330: 0 | K330: 0 | L330: 0 | M330: 0 | N330: 0
C331: Продажа аппаратов | H331: 165372.6641 | I331: 3962 | J331: 11529.07 | K331: 22229.34 | L331: 31809.9915 | M331: 42229.92847 | N331: 53612.33417
C332: Продажа годовых подписок на онлайн сервис | H332: 934083.6881 | I332: 9564.8 | J332: 36670.06 | K332: 88269.0018 | L332: 161472.2688 | M332: 258085.9232 | N332: 380021.6343
C333: Оплаты за комплектующие и проч. с/ст ингредиенты | H333: 59327.96689 | I333: 1550.419368 | J333: 4273.399485 | K333: 8100.374727 | L333: 11517.42371 | M333: 15249.87745 | N333: 18636.47215
C334: Оплата прямых расходов | H334: 29194.12481 | I334: 387.1249375 | J334: 1348.379477 | K334: 3134.669371 | L334: 5245.952258 | M334: 7908.573034 | N334: 11169.42573
C335: Оплата переменных расходов | H335: 47644.20201 | I335: 382.8284367 | J335: 1664.551106 | K335: 4492.802337 | L335: 8280.717243 | M335: 13265.90416 | N335: 19557.39872
C336: Оплата постоянных расходов | H336: 315859.13 | I336: 53359.38667 | J336: 48785.72547 | K336: 50556.8569 | L336: 52411.19599 | M336: 54354.19638 | N336: 56391.76856
C337: Оплата НДС по операционной деят-ти | H337: 102834.0416 | I337: -1413.119506 | J337: 2823.6372 | K337: 9046.694636 | L337: 17913.26806 | M337: 29704.67345 | N337: 44758.88779
C338: Финпоток по операционной деятельности | H338: 544596.8869 | I338: -40739.8399 | J338: -10696.56274 | K338: 35166.94383 | L338: 97913.70304 | M338: 179832.6272 | N338: 283120.0155
C339: Возмещение ндс по капзатратам | H339: 16666.66667 | I339: 14666.66667 | J339: 2000 | K339: 0 | L339: 0 | M339: 0 | N339: 0
C340: Оплата капитальных затрат | H340: 100000 | I340: 100000 | J340: 0 | K340: 0 | L340: 0 | M340: 0 | N340: 0
C341: Оплата налога на имущество | H341: 2523.003472 | I341: 400.6076389 | J341: 549.4791667 | K341: 486.9791667 | L341: 424.4791667 | M341: 361.9791667 | N341: 299.4791667
C342: Оплата налога на прибыль | H342: 28786.94377 | I342: 0 | J342: 0 | K342: 0 | L342: 0 | M342: 0 | N342: 28786.94377
C343: Финпоток проекта (по осн. деят-ти) | H343: 429953.6064 | I343: -126473.7809 | J343: -9246.041902 | K343: 34679.96466 | L343: 97489.22387 | M343: 179470.648 | N343: 254033.5926
C344: Поступления кредитных средств за период | H344: 17577.44168 | I344: 0 | J344: 7654.637592 | K344: 8819.281499 | L344: 1103.522594 | M344: 0 | N344: 0
C345: Объем возврата кредитных средств за период | H345: 17577.44168 | I345: 0 | J345: 0 | K345: 6652.784192 | L345: 10924.65749 | M345: 0 | N345: 0
C346: Оплата %% по кредиту | H346: 1746.10238 | I346: 0 | J346: 0 | K346: 1350.165675 | L346: 395.936705 | M346: 0 | N346: 0
C347: Финпоток по финансовой деятельности | H347: -1746.10238 | I347: 0 | J347: 7654.637592 | K347: 816.3316318 | L347: -10217.0716 | M347: 0 | N347: 0
C348: Поступление финансирования от Банка | H348: 128000 | I348: 128000 | J348: 0 | K348: 0 | L348: 0 | M348: 0 | N348: 0
C349: Поступление финансирования от Учредителя | H349: 32000 | I349: 32000 | J349: 0 | K349: 0 | L349: 0 | M349: 0 | N349: 0
C350: Возврат кредита Банку | H350: 128000 | I350: 0 | J350: 14222.22222 | K350: 28444.44444 | L350: 28444.44444 | M350: 28444.44444 | N350: 28444.44444
C351: Оплата %% по кредиту Банка | H351: 33973.33333 | I351: 8960 | J351: 8752.592593 | K351: 7051.851852 | L351: 5060.740741 | M351: 3069.62963 | N351: 1078.518519
C352: Возврат инвестиций Учредителю | H352: 32000 | I352: 0 | J352: 0 | K352: 0 | L352: 0 | M352: 0 | N352: 32000
C353: Финпоток по инвестиционной деятельности | H353: -33973.33333 | I353: 151040 | J353: -22974.81481 | K353: -35496.2963 | L353: -33505.18519 | M353: -31514.07407 | N353: -61522.96296
C355: Финпоток | H355: 394234.1706 | I355: 24566.21912 | J355: -24566.21912 | K355: 0 | L355: 53766.96708 | M355: 147956.5739 | N355: 192510.6296
C356: Финпоток накопительным итогом | H356: 394234.1706 | I356: 24566.21912 | J356: 0 | K356: 0 | L356: 53766.96708 | M356: 201723.541 | N356: 394234.1706
R364: стр. | S364: 6 | T364: 6
D366: ФИНАНСОВЫЙ АНАЛИЗ
C368: ПРОГНОЗНЫЙ БАЛАНС ПРОЕКТА
E370: в тыс.руб. | H370: итого | I370: 2021 | J370: 2022 | K370: 2023 | L370: 2024 | M370: 2025 | N370: 2026
C371: АКТИВЫ | H371: 430903.6206 | I371: 103822.8328 | J371: 69227.79429 | K371: 61263.85478 | L371: 107039.2473 | M371: 247036.131 | N371: 430903.6206
C372: в т.ч.
C373: Капитальные затраты на балансе | H373: 35347.22222 | I373: 77013.88889 | J373: 68680.55556 | K373: 60347.22222 | L373: 52013.88889 | M373: 43680.55556 | N373: 35347.22222
C374: Остаток ДС на конец периода | H374: 394234.1706 | I374: 24566.21912 | J374: 0 | K374: 0 | L374: 53766.96708 | M374: 201723.541 | N374: 394234.1706
C375: Дебиторская задолженность | H375: 1322.227699 | I375: 137.2 | J375: 324.87 | K375: 586.53 | L375: 810.3375 | M375: 1055.059425 | N375: 1322.227699
C376: Авансы выданные | H376: -1.490116119e-11 | I376: 0 | J376: 0 | K376: 0 | L376: 0 | M376: 0 | N376: 0
C377: Запасы готовой продукции | H377: -1.490116119e-11 | I377: 31.56722917 | J377: 66.5205625 | K377: 98.74862812 | L377: 134.0331989 | M377: 172.5993552 | N377: -1.490116119e-11
C378: Запасы комплектующих | H378: 1.490116119e-11 | I378: 73.95750833 | J378: 155.848175 | K378: 231.3539288 | L378: 314.0206374 | M378: 404.3756322 | N378: 1.490116119e-11
C379: Дебиторская задолженность по ндс | H379: 0 | I379: 2000 | J379: 0 | K379: 0 | L379: 0 | M379: 0 | N379: 0
C381: ПАССИВЫ | H381: 132950.2449 | I381: 103822.8328 | J381: 69227.79429 | K381: 61263.85478 | L381: 107039.2473 | M381: 247036.131 | N381: 430903.6206
C382: в т.ч.
C383: Капитал (чистая прибыль накопит. итогом) | H383: 125689.7991 | I383: -63368.36436 | J383: -111831.5701 | K383: -128737.6177 | L383: -99330.4487 | M383: -9344.549638 | N383: 125689.7991
C384: Остаток задолженности перед Банком на конец периода | H384: 0 | I384: 128000 | J384: 113777.7778 | K384: 85333.33333 | L384: 56888.88889 | M384: 28444.44444 | N384: 0
C385: Кред. задолж-сть по инвестициям Учредителя | H385: 0 | I385: 32000 | J385: 32000 | K385: 32000 | L385: 32000 | M385: 32000 | N385: 0
C386: Кредиторская задолженнсоть по с/ст | H386: 126.5445365 | I386: 38.25831664 | J386: 84.04223158 | K386: 134.7380875 | L386: 184.244227 | M386: 238.3641351 | N386: 126.5445365
C387: Авансы полученные | H387: 43.63351406 | I387: 7016.1385 | J387: 26996.86302 | K387: 61504.89877 | L387: 115351.8081 | M387: 192690.6583 | N387: 297997.0092
C388: Кредиторская задолженнсоть по прямым расходам | H388: 43.63351406 | I388: 4.5276 | J388: 10.72071 | K388: 19.35549 | L388: 26.7411375 | M388: 34.81696102 | N388: 43.63351406
C389: Кредиторская задолженнсоть по переменным расходам | H389: 522.6922353 | I389: 16.04325333 | J389: 55.85667617 | K389: 138.1723021 | L389: 237.0045636 | M389: 364.4038092 | N389: 522.6922353
C390: Кредиторская задолженность по оплате НДС | H390: 3817.718506 | I390: 57.89610431 | J390: 322.2180654 | K390: 905.0039874 | L390: 1615.543379 | M390: 2539.953838 | N390: 3817.718506
C391: Кредиторская задолженность по постоянным расходам | H391: 70.71741977 | I391: 58.33333333 | J391: 60.61666667 | K391: 62.99283333 | L391: 65.46566167 | M391: 68.03913928 | N391: 70.71741977
... 5 more rows

Sheet MAIN
AA1: 0 | AB1: 1 | AC1: 2 | AD1: 3 | AE1: 4 | AF1: 5 | AG1: 6 | AH1: 7 | AI1: 8 | AJ1: 9 | AK1: 10 | AL1: 11 | AM1: 12
C2: * | D2: Финансовая модель
C3: * | D3: Проект: разработка онлайн сервиса
C4: * | D4: Главная панель
C5: * | D5: Баз. сценарий | N5: БЕЗ ФОРМУЛ!!!
D6: * | E6: Ключевые условия | R6: * | S6: Ключевые результаты | AB6: 2022-01-01 | AC6: 2023-01-01 | AD6: 2024-01-01 | AE6: 2025-01-01 | AF6: 2026-01-01 | AG6: 2027-01-01 | AH6: 2028-01-01 | AI6: 2029-01-01 | AJ6: 2030-01-01 | AK6: 2031-01-01 | AL6: 2032-01-01 | AM6: 2033-01-01
AB7: 2022-12-31 | AC7: 2023-12-31 | AD7: 2024-12-31 | AE7: 2025-12-31 | AF7: 2026-12-31 | AG7: 2027-12-31 | AH7: 2028-12-31 | AI7: 2029-12-31 | AJ7: 2030-12-31 | AK7: 2031-12-31 | AL7: 2032-12-31 | AM7: 2033-12-31
E8: * | F8: показатель | J8: * | K8: ед.изм. | M8: * | N8: значение | T8: показатель | V8: ед.изм. | X8: * | Y8: итого | AA8: старт | AB8: 1 год | AC8: 2 год | AD8: 3 год | AE8: 4 год | AF8: 5 год | AG8: 6 год | AH8: 7 год | AI8: 8 год | AJ8: 9 год | AK8: 10 год | AL8: 11 год | AM8: 12 год
E11: * | F11: месяц старта проекта | K11: месяц | M11: * | N11: 2022-01-01 | O11: ^ | T11: Финпоток проекта (по осн. деят-ти) | V11: руб. | Y11: 429953606.4 | AB11: -126473780.9 | AC11: -9246041.902 | AD11: 34679964.66 | AE11: 97489223.87 | AF11: 179470648 | AG11: 254033592.6 | AH11: 0 | AI11: 0 | AJ11: 0 | AK11: 0 | AL11: 0 | AM11: 0
E13: * | F13: горизонт расчетов | K13: кол-во лет | M13: * | N13: 2027-12-01 | O13: ^ | R13: * | T13: IRR проекта | V13: % | Y13: 0.4378235534
E15: * | F15: Срок капитальных затрат | K15: кол-во мес | N15: 7 | T15: PBP - простой срок окупаемости проекта | V15: кол-во лет | Y15: 4.083333333
T17: CFADS | V17: руб. | Y17: 125689799.1 | AB17: 0 | AC17: 0 | AD17: 0 | AE17: 0 | AF17: 0 | AG17: 125689799.1 | AH17: 0 | AI17: 0 | AJ17: 0 | AK17: 0 | AL17: 0 | AM17: 0
F19: режим налогообложения | K19: вып.спис. | M19: * | N19: ОСНО | O19: ^ | T19: Оплата капитальных затрат | Y19: 100000000 | AB19: 100000000 | AC19: 0 | AD19: 0 | AE19: 0 | AF19: 0 | AG19: 0 | AH19: 0 | AI19: 0 | AJ19: 0 | AK19: 0 | AL19: 0 | AM19: 0
E21: * | F21: ставка НДС | K21: % | M21: * | N21: 0.2 | T21: Кассовый разрыв проекта | V21: руб. | Y21: 136529366.8
E23: * | F23: ставка НДС для финмодели | K23: % | N23: 0.2 | R23: * | T23: Общий размер инвестиций | V23: руб. | X23: * | Y23: 160000000
E26: * | F26: Участие Банка | K26: % | M26: * | N26: 0.8 | T26: Поступление финансирования от Банка | V26: руб. | Y26: 128000000 | AA26: 128000000 | AB26: 0 | AC26: 0 | AD26: 0 | AE26: 0 | AF26: 0 | AG26: 0 | AH26: 0 | AI26: 0 | AJ26: 0 | AK26: 0 | AL26: 0 | AM26: 0
E28: * | F28: Размер кредита от Банка | K28: руб. | N28: 128000000 | T28: Возврат кредита Банку | V28: руб. | Y28: 128000000 | AA28: 0 | AB28: 0 | AC28: 14222222.22 | AD28: 28444444.44 | AE28: 28444444.44 | AF28: 28444444.44 | AG28: 28444444.44 | AH28: 0 | AI28: 0 | AJ28: 0 | AK28: 0 | AL28: 0 | AM28: 0
E30: * | F30: Участие Учредителя в финансировании | K30: % | N30: 0.2 | T30: Оплата %% по кредиту Банка | V30: руб. | Y30: 33973333.33 | AA30: 0 | AB30: 8960000 | AC30: 8752592.593 | AD30: 7051851.852 | AE30: 5060740.741 | AF30: 3069629.63 | AG30: 1078518.519 | AH30: 0 | AI30: 0 | AJ30: 0 | AK30: 0 | AL30: 0 | AM30: 0
E32: * | F32: Размер финансирования от Учредителя | K32: руб. | N32: 32000000 | T32: Финпоток проекта с учетом кредита Банка | V32: руб. | Y32: 395980273 | AA32: 128000000 | AB32: -135433780.9 | AC32: -32220856.72 | AD32: -816331.6318 | AE32: 63984038.69 | AF32: 147956573.9 | AG32: 224510629.6 | AH32: 0 | AI32: 0 | AJ32: 0 | AK32: 0 | AL32: 0 | AM32: 0
E34: * | F34: Стоимость капитала Учредителя | K34: %г | M34: * | N34: 0.12
F37: Условия кредита Банка: | T37: Кассовый разрыв проекта с уч. Банка | Y37: 47608356.51
E39: * | F39: Ставка по кредиту Банка | K39: %г | M39: * | N39: 0.07 | T39: Поступление финансирования от Учредителя | V39: руб. | Y39: 32000000 | AA39: 32000000 | AB39: 0 | AC39: 0 | AD39: 0 | AE39: 0 | AF39: 0 | AG39: 0 | AH39: 0 | AI39: 0 | AJ39: 0 | AK39: 0 | AL39: 0 | AM39: 0
E41: * | F41: Срок кредита Банка | K41: кол-во лет | M41: * | N41: 6 | T41: Финпоток проекта с учетом всех инвестиций | V41: руб. | Y41: 427980273 | AA41: 160000000 | AB41: -135433780.9 | AC41: -32220856.72 | AD41: -816331.6318 | AE41: 63984038.69 | AF41: 147956573.9 | AG41: 224510629.6 | AH41: 0 | AI41: 0 | AJ41: 0 | AK41: 0 | AL41: 0 | AM41: 0
E43: * | F43: Срок "каникул" на возврат кредита | K43: кол-во мес | M43: * | N43: 18
E46: * | F46: месяц ввода в экспл. производства аппаратов | K46: месяц | N46: 2022-07-01 | T46: Кассовый разрыв проекта с уч. всех инвестиций | Y46: 15608356.51
E48: * | F48: Целевой рынок в кол-ве подписчиков | K48: подписчики | M48: * | N48: 200000 | R48: * | T48: Ставка кредита на пополнение оборотных средств, %г | V48: % | X48: * | Y48: 0.1
E50: * | F50: Продажи аппаратов в 1й мес | K50: шт/мес | M50: * | N50: 100 | R50: * | T50: LTV (кредитное плечо) | V50: % | Y50: 0.08888162741
E52: * | F52: Прирост продаж аппаратов | K52: шт | M52: * | N52: 60 | T52: Финпоток проекта с уч. кред. плеча | V52: руб. | Y52: 428207504 | AB52: -126473780.9 | AC52: -1591404.31 | AD52: 35496296.3 | AE52: 87272152.27 | AF52: 179470648 | AG52: 254033592.6 | AH52: 0 | AI52: 0 | AJ52: 0 | AK52: 0 | AL52: 0 | AM52: 0
E54: * | F54: Частота прироста продаж аппаратов | K54: кол-во мес | M54: * | N54: 3 | O54: ^ | R54: * | T54: IRR проекта с учетом кредитного плеча | V54: % | Y54: 0.4445160071
E57: * | F57: Стоимость продажи аппаратов | K57: руб. | M57: * | N57: 3000 | R57: * | T57: Ставка дисконтирования инвесторов, %г | V57: % | X57: * | Y57: 0.12
E59: * | F59: Стоимость годовой подписки на онлайн сервис | K59: руб. | M59: * | N59: 7000 | R59: * | T59: коэффициент дисконтирования | V59: руб. | AA59: 1 | AB59: 1.12 | AC59: 1.2544 | AD59: 1.404928 | AE59: 1.57351936 | AF59: 1.762341683 | AG59: 1.973822685 | AH59: 2.210681407 | AI59: 2.475963176 | AJ59: 2.773078757 | AK59: 3.105848208 | AL59: 3.478549993 | AM59: 3.895975993
E61: * | F61: Ежег. индексация стоим-сти аппаратов | K61: % | M61: * | N61: 0.05 | R61: * | T61: NPV проекта | V61: руб. | Y61: 196884560.8 | AB61: -112923018.6 | AC61: -7370887.996 | AD61: 24684513.84 | AE61: 61956164.22 | AF61: 101836465.5 | AG61: 128701323.8 | AH61: 0 | AI61: 0 | AJ61: 0 | AK61: 0 | AL61: 0 | AM61: 0
E63: * | F63: Ежег. индексац. стоим-сти подписки на сервис | K63: % | M63: * | N63: 0.03 | R63: * | T63: NPV проекта с учетом плеча | V63: руб. | Y63: 197074706 | AB63: -112923018.6 | AC63: -1268657.773 | AD63: 25265562.57 | AE63: 55463030.51 | AF63: 101836465.5 | AG63: 128701323.8 | AH63: 0 | AI63: 0 | AJ63: 0 | AK63: 0 | AL63: 0 | AM63: 0
E66: * | F66: Ежег. индексация себ.ст-сти аппаратов | K66: % | M66: * | N66: 0.05 | R66: * | T66: Итоговые результаты
E68: * | F68: Коэфф. сезонности спроса на онлайн сервис | J68: 1 | K68: коэф% | M68: * | N68: 0.5 | T68: Выручка | V68: руб. | Y68: 668984642.3 | AB68: 5539884.583 | AC68: 23671729.57 | AD68: 63543305.04 | AE68: 116382632 | AF68: 186018102.9 | AG68: 273828988.2 | AH68: 0 | AI68: 0 | AJ68: 0 | AK68: 0 | AL68: 0 | AM68: 0
F70: Коэфф. сезонности спроса на онлайн сервис | J70: 2 | K70: коэф% | M70: * | N70: 0.7 | T70: Чистая прибыль | V70: руб. | Y70: 125689799.1 | AB70: -63368364.36 | AC70: -48463205.74 | AD70: -16906047.62 | AE70: 29407169.02 | AF70: 89985899.06 | AG70: 135034348.8 | AH70: 0 | AI70: 0 | AJ70: 0 | AK70: 0 | AL70: 0 | AM70: 0
F72: Коэфф. сезонности спроса на онлайн сервис | J72: 3 | K72: коэф% | M72: * | N72: 0.8 | T72: Финпоток до возврата инвестиций Учредителю | V72: руб. | Y72: 426234170.6 | AA72: 160000000 | AB72: -135433780.9 | AC72: -24566219.12 | AD72: 0 | AE72: 53766967.08 | AF72: 147956573.9 | AG72: 224510629.6 | AH72: 0 | AI72: 0 | AJ72: 0 | AK72: 0 | AL72: 0 | AM72: 0
F74: Коэфф. сезонности спроса на онлайн сервис | J74: 4 | K74: коэф% | M74: * | N74: 1 | T74: Капитал (чистая прибыль накопит. итогом) | V74: руб. | Y74: 0 | AB74: -63368364.36 | AC74: -111831570.1 | AD74: -128737617.7 | AE74: -99330448.7 | AF74: -9344549.638 | AG74: 125689799.1 | AH74: 0 | AI74: 0 | AJ74: 0 | AK74: 0 | AL74: 0 | AM74: 0
F76: Коэфф. сезонности спроса на онлайн сервис | J76: 5 | K76: коэф% | M76: * | N76: 0.85 | T76: Финпоток до возвр. инв-ций Учредителю нак. итогом | V76: руб. | Y76: 0 | AB76: 24566219.12 | AC76: 0 | AD76: 0 | AE76: 53766967.08 | AF76: 201723541 | AG76: 426234170.6 | AH76: 0 | AI76: 0 | AJ76: 0 | AK76: 0 | AL76: 0 | AM76: 0
F78: Коэфф. сезонности спроса на онлайн сервис | J78: 6 | K78: коэф% | M78: * | N78: 1 | T78: Free Cash Flow (FCF) до возврата инвестиций Учредителю | V78: руб. | Y78: 125689799.1 | AB78: 0 | AC78: 0 | AD78: 0 | AE78: 0 | AF78: 0 | AG78: 125689799.1 | AH78: 0 | AI78: 0 | AJ78: 0 | AK78: 0 | AL78: 0 | AM78: 0
F80: Коэфф. сезонности спроса на онлайн сервис | J80: 7 | K80: коэф% | M80: * | N80: 1 | T80: Возврат инвестиций Учредителю | V80: руб. | Y80: 32000000 | AB80: 0 | AC80: 0 | AD80: 0 | AE80: 0 | AF80: 0 | AG80: 32000000 | AH80: 0 | AI80: 0 | AJ80: 0 | AK80: 0 | AL80: 0 | AM80: 0
F82: Коэфф. сезонности спроса на онлайн сервис | J82: 8 | K82: коэф% | M82: * | N82: 1 | T82: Финпоток | V82: руб. | Y82: 394234170.6 | AA82: 160000000 | AB82: -135433780.9 | AC82: -24566219.12 | AD82: 0 | AE82: 53766967.08 | AF82: 147956573.9 | AG82: 192510629.6 | AH82: 0 | AI82: 0 | AJ82: 0 | AK82: 0 | AL82: 0 | AM82: 0
F84: Коэфф. сезонности спроса на онлайн сервис | J84: 9 | K84: коэф% | M84: * | N84: 0.9 | T84: Остаток ДС на конец периода | V84: руб. | Y84: 0 | AB84: 24566219.12 | AC84: 0 | AD84: 0 | AE84: 53766967.08 | AF84: 201723541 | AG84: 394234170.6 | AH84: 0 | AI84: 0 | AJ84: 0 | AK84: 0 | AL84: 0 | AM84: 0
F86: Коэфф. сезонности спроса на онлайн сервис | J86: 10 | K86: коэф% | M86: * | N86: 0.85 | T86: Free Cash Flow (FCF) | V86: руб. | Y86: 93689799.13 | AB86: 0 | AC86: 0 | AD86: 0 | AE86: 0 | AF86: 0 | AG86: 93689799.13 | AH86: 0 | AI86: 0 | AJ86: 0 | AK86: 0 | AL86: 0 | AM86: 0
F88: Коэфф. сезонности спроса на онлайн сервис | J88: 11 | K88: коэф% | M88: * | N88: 0.8 | R88: * | T88: DFCF | V88: руб. | Y88: 47466167.98 | AB88: 0 | AC88: 0 | AD88: 0 | AE88: 0 | AF88: 0 | AG88: 47466167.98 | AH88: 0 | AI88: 0 | AJ88: 0 | AK88: 0 | AL88: 0 | AM88: 0
F90: Коэфф. сезонности спроса на онлайн сервис | J90: 12 | K90: коэф% | M90: * | N90: 0.7 | T90: DPBP | V90: кол-во лет | Y90: 5.416666667
F92: Ежегодные корректирующие продажи коэффициенты: | R92: * | T92: средневзвешенная ставка капитала | V92: % | Y92: 0.08177763255 | AB92: 0.08 | AC92: 0.5730366017 | AD92: 0.8670684177 | AE92: 20.67516326 | AF92: 8.164896986 | AG92: -0.06380192245 | AH92: 0 | AI92: 0 | AJ92: 0 | AK92: 0 | AL92: 0 | AM92: 0
F94: год: | I94: 2021 | K94: коэф% | M94: * | N94: 0.5 | R94: * | T94: DSCR | V94: коэф | Y94: 1.578427308 | AB94: 1 | AC94: 1 | AD94: 1 | AE94: 1 | AF94: 1 | AG94: 4.173455159 | AH94: 0 | AI94: 0 | AJ94: 0 | AK94: 0 | AL94: 0 | AM94: 0
F96: год: | I96: 2022 | K96: коэф% | M96: * | N96: 0.7 | R96: * | T96: WACC | V96: % | Y96: 0.09073883761
F98: год: | I98: 2023 | K98: коэф% | M98: * | N98: 0.85 | R98: * | T98: NPV(WACC) | V98: руб. | Y98: 238984175.2 | AB98: -115952395.3 | AC98: -7771669.132 | AD98: 26724913.9 | AE98: 68876886.02 | AF98: 116249085.5 | AG98: 150857354.3 | AH98: 0 | AI98: 0 | AJ98: 0 | AK98: 0 | AL98: 0 | AM98: 0
F100: год: | I100: 2024 | K100: коэф% | M100: * | N100: 1 | R100: * | T100: ROI | V100: % | Y100: 1.360892955
F102: год: | I102: 2025 | K102: коэф% | M102: * | N102: 1
F104: год: | I104: 2026 | K104: коэф% | M104: * | N104: 1
F106: год: | I106: 2027 | K106: коэф% | M106: * | N106: 1
F108: год: | I108: 2028 | K108: коэф% | M108: * | N108: 1
F110: год: | I110: 2029 | K110: коэф% | M110: * | N110: 1
E114: * | F114: Оборачиваемость ДЗ по аппаратам | K114: дни | M114: * | N114: 10
E116: * | F116: Оборач-сть готовой продукции в продажах | K116: дни | M116: * | N116: 7
E118: * | F118: Произв. оборачив-сть по аппаратам | K118: дни | M118: * | N118: 15
E120: * | F120: Оборач-сть кредиторской задолженности | K120: дни | M120: * | N120: 7
F123: Себестоимость 1-ого аппарата:
E124: * | F124: с/ст ингредиент 1.1 | K124: шт/блок | M124: * | N124: 1
E125: * | F125: с/ст ингредиент 1.2 | K125: шт/блок | M125: * | N125: 1
E126: * | F126: с/ст ингредиент 1.3 | K126: шт/блок | M126: * | N126: 1
E127: * | F127: с/ст ингредиент 1.4 | K127: шт/блок | M127: * | N127: 1
E128: * | F128: с/ст ингредиент 1.5 | K128: шт/блок | M128: * | N128: 1
F129: стоимость комплектующих/ингредиентов:
F130: с/ст ингредиент 1.1 | K130: руб./шт | M130: * | N130: 500
F131: с/ст ингредиент 1.2 | K131: руб./шт | M131: * | N131: 400
F132: с/ст ингредиент 1.3 | K132: руб./шт | M132: * | N132: 100
F133: с/ст ингредиент 1.4 | K133: руб./шт | M133: * | N133: 50
F134: с/ст ингредиент 1.5 | K134: руб./шт | M134: * | N134: 20
F135: Себестоимость 1-ого аппарата:
F136: с/ст ингредиент 1.1 | K136: руб./блок | N136: 500
F137: с/ст ингредиент 1.2 | K137: руб./блок | N137: 400
F138: с/ст ингредиент 1.3 | K138: руб./блок | N138: 100
F139: с/ст ингредиент 1.4 | K139: руб./блок | N139: 50
F140: с/ст ингредиент 1.5 | K140: руб./блок | N140: 20
F141: Себестоимость годовой подписки на онлайн сервис:
E142: * | F142: с/ст ингредиент 2.1 | K142: шт/ подписка | M142: *
E143: * | F143: с/ст ингредиент 2.2 | K143: шт/ подписка | M143: *
E144: * | F144: с/ст ингредиент 2.3 | K144: шт/ подписка | M144: *
E145: * | F145: с/ст ингредиент 2.4 | K145: шт/ подписка | M145: *
E146: * | F146: с/ст ингредиент 2.5 | K146: шт/ подписка | M146: *
F147: стоимость с/ст ингредиентов:
F148: с/ст ингредиент 2.1 | K148: руб./шт | M148: *
F149: с/ст ингредиент 2.2 | K149: руб./шт | M149: *
F150: с/ст ингредиент 2.3 | K150: руб./шт | M150: *
F151: с/ст ингредиент 2.4 | K151: руб./шт | M151: *
F152: с/ст ингредиент 2.5 | K152: руб./шт | M152: *
F153: Себестоимость годовой подписки на онлайн сервис:
F154: с/ст ингредиент 2.1 | K154: руб./ подписка | N154: 0
F155: с/ст ингредиент 2.2 | K155: руб./ подписка | N155: 0
F156: с/ст ингредиент 2.3 | K156: руб./ подписка | N156: 0
F157: с/ст ингредиент 2.4 | K157: руб./ подписка | N157: 0
F158: с/ст ингредиент 2.5 | K158: руб./ подписка | N158: 0
F160: Прямые переменные расходы при пр-ве аппаратов
E161: * | F161: % в продажах команд. и представ. расх-ов | K161: % | M161: * | N161: 0.03
E162: * | F162: % в продажах расх-ов на ТО и рем-нт оборуд. | K162: % | M162: * | N162: 0.04
E163: * | F163: % в продажах прочих материал. расх-ов | K163: % | M163: * | N163: 0.01
F165: Прямые переменные расходы при реализации подписок
E166: * | F166: % в продажах консультац. расх-ов | K166: % | M166: * | N166: 0.01
E167: * | F167: % в продажах представительских расх-ов | K167: % | M167: * | N167: 0.01
E168: * | F168: % в продажах проч. прям. расх-ов на подписки | K168: % | M168: * | N168: 0.005
F170: Общие переменные расходы
E171: * | F171: % в продажах маркетинговых расх-ов | K171: % | M171: * | N171: 0.03
E172: * | F172: % в продажах расх-ов на инновации | K172: % | M172: * | N172: 0.02
E173: * | F173: % в продажах прочих переменных расх-ов | K173: % | M173: * | N173: 0.01
F175: Постоянные расходы
E176: * | F176: Расходы на текущий ремонт и обслуживание производства | K176: руб./мес. | M176: * | N176: 100000
E177: * | F177: Аренда офиса | K177: руб./мес. | M177: * | N177: 300000
E178: * | F178: Расходы на персонал | K178: руб./мес. | M178: * | N178: 30000
E179: * | F179: Услуги связи | K179: руб./мес. | M179: * | N179: 20000
E180: * | F180: Расходы на создание рекламной продукции | K180: руб. всего | M180: * | N180: 10000000
E181: * | F181: Канцелярские и хозрасходы | K181: руб./мес. | M181: * | N181: 20000
E182: * | F182: Банковские расходы | K182: руб./мес. | M182: * | N182: 10000
E183: * | F183: Юридические расходы | K183: руб./мес. | M183: * | N183: 15000
E184: * | F184: Расходы на сайт | K184: руб./мес. | M184: * | N184: 15000

Sheet sens
O1: 1 | P1: =O1+1 -> 2 | Q1: =P1+1 -> 3 | R1: 4 | S1: 5
D2: =MAIN!$D$2 -> Финансовая модель
D3: =MAIN!$D$3 -> Проект: разработка онлайн сервиса
F5: * | G5: Анализ чувствительности
K7: БЕЗ ФОРМУЛ!!! | O7: сценарии
K8: =MAIN!$F$8 -> показатель | O8: пессимистич. | P8: умеренно пессим. | Q8: базовый | R8: умеренно оптимист. | S8: оптимистич.
H12: Анализ чувствительности к изменению стоимости аппаратов | O12: 1 | P12: 2 | Q12: 3 | R12: 4 | S12: 5
K15: Изменение стоимости интерактивных блоков | N15: * | O15: -0.2 | P15: -0.07 | Q15: 0 | R15: 0.07 | S15: 0.2
K16: Стоимость интерактивных блоков | O16: =$Q16*(1+O15) -> 2400 | P16: =$Q16*(1+P15) -> 2790 | Q16: =MAIN!$N$57 -> 3000 | R16: =$Q16*(1+R15) -> 3210 | S16: =$Q16*(1+S15) -> 3600
Q17: 3000
K18: Результат:
K20: Изменение финансового потока | O20: =IF($Q21=0,0,(O21-$Q21)/$Q21) -> -0.1610601715 | P20: =IF($Q21=0,0,(P21-$Q21)/$Q21) -> -0.1335989811 | Q20: =IF($Q21=0,0,(Q21-$Q21)/$Q21) -> 0 | R20: =IF($Q21=0,0,(R21-$Q21)/$Q21) -> -0.1040014095 | S20: =IF($Q21=0,0,(S21-$Q21)/$Q21) -> -0.07649227287
K21: =MAIN!$T$11 -> Финпоток проекта (по осн. деят-ти) | O21: 360705204.8 | P21: 372512242.6 | Q21: =SUMIFS(MAIN!$Y:$Y,MAIN!$T:$T,$K21) -> 429953606.4 | R21: 385237825.3 | S21: 397065477.8
K22: Изменение IRR проекта | O22: =O23-$Q23 -> -0.07860975243 | P22: =P23-$Q23 -> -0.06734741551 | Q22: =Q23-$Q23 -> 0 | R22: =R23-$Q23 -> -0.05523772552 | S22: =S23-$Q23 -> -0.04400925521
K23: IRR проекта | O23: 0.359213801 | P23: 0.3704761379 | Q23: =SUMIFS(MAIN!$Y:$Y,MAIN!$T:$T,$K23) -> 0.4378235534 | R23: 0.3825858279 | S23: 0.3938142982
K24: Изменение выручки | O24: =IF($Q25=0,0,(O25-$Q25)/$Q25) -> -0.1288477525 | P24: =IF($Q25=0,0,(P25-$Q25)/$Q25) -> -0.1029244997 | Q24: =IF($Q25=0,0,(Q25-$Q25)/$Q25) -> 0 | R24: =IF($Q25=0,0,(R25-$Q25)/$Q25) -> -0.07500715046 | S24: =IF($Q25=0,0,(S25-$Q25)/$Q25) -> -0.04908389762
K25: =MAIN!$T$68 -> Выручка | O25: 582787474.6 | P25: 600129732.7 | Q25: =SUMIFS(MAIN!$Y:$Y,MAIN!$T:$T,$K25) -> 668984642.3 | R25: 618806010.5 | S25: 636148268.6
K26: Изменение чистой прибыли | O26: =IF($Q27=0,0,(O27-$Q27)/$Q27) -> -0.5052889707 | P26: =IF($Q27=0,0,(P27-$Q27)/$Q27) -> -0.4066580474 | Q26: =IF($Q27=0,0,(Q27-$Q27)/$Q27) -> 0 | R26: =IF($Q27=0,0,(R27-$Q27)/$Q27) -> -0.3007682746 | S26: =IF($Q27=0,0,(S27-$Q27)/$Q27) -> -0.2027933993
K27: =MAIN!$T$70 -> Чистая прибыль | O27: 62180129.9 | P27: 74577030.84 | Q27: =SUMIFS(MAIN!$Y:$Y,MAIN!$T:$T,$K27) -> 125689799.1 | R27: 87886295.11 | S27: 100200737.5
K28: Изменение NPV(WACC) | O28: =IF($Q29=0,0,(O29-$Q29)/$Q29) -> -0.1608704292 | P28: =IF($Q29=0,0,(P29-$Q29)/$Q29) -> -0.1365395199 | Q28: =IF($Q29=0,0,(Q29-$Q29)/$Q29) -> 0 | R28: =IF($Q29=0,0,(R29-$Q29)/$Q29) -> -0.1098496678 | S28: =IF($Q29=0,0,(S29-$Q29)/$Q29) -> -0.08465825588
K29: =MAIN!$T$98 -> NPV(WACC) | O29: 200538688.4 | P29: 206353390.7 | Q29: =SUMIFS(MAIN!$Y:$Y,MAIN!$T:$T,$K29) -> 238984175.2 | R29: 212731843 | S29: 218752191.8
K30: Изменение PBP | O30: =IF($Q31=0,0,(O31-$Q31)/$Q31) -> 0.08163265306 | P30: =IF($Q31=0,0,(P31-$Q31)/$Q31) -> 0.08163265306 | Q30: =IF($Q31=0,0,(Q31-$Q31)/$Q31) -> 0 | R30: =IF($Q31=0,0,(R31-$Q31)/$Q31) -> 0.0612244898 | S30: =IF($Q31=0,0,(S31-$Q31)/$Q31) -> 0.0612244898
K31: =MAIN!$T$15 -> PBP - простой срок окупаемости проекта | O31: 4.416666667 | P31: 4.416666667 | Q31: =SUMIFS(MAIN!$Y:$Y,MAIN!$T:$T,$K31) -> 4.083333333 | R31: 4.333333333 | S31: 4.333333333
K32: Изменение DPBP | O32: =IF($Q33=0,0,(O33-$Q33)/$Q33) -> 0.07692307692 | P32: =IF($Q33=0,0,(P33-$Q33)/$Q33) -> 0.06153846154 | Q32: =IF($Q33=0,0,(Q33-$Q33)/$Q33) -> 0 | R32: =IF($Q33=0,0,(R33-$Q33)/$Q33) -> 0.04615384615 | S32: =IF($Q33=0,0,(S33-$Q33)/$Q33) -> 0.03076923077
K33: =MAIN!$T$90 -> DPBP | O33: 5.833333333 | P33: 5.75 | Q33: =SUMIFS(MAIN!$Y:$Y,MAIN!$T:$T,$K33) -> 5.416666667 | R33: 5.666666667 | S33: 5.583333333
K34: Изменение ROI | O34: =O35-$Q35 -> -0.3461037891 | P34: -0.3002773641 | Q34: 0 | R34: -0.248679188 | S34: -0.198632765
K35: =MAIN!$T$100 -> ROI | O35: 1.014789166 | P35: 1.060615591 | Q35: =SUMIFS(MAIN!$Y:$Y,MAIN!$T:$T,$K35) -> 1.360892955 | R35: 1.112213767 | S35: 1.16226019
H86: Анализ чувствительности к изменению постоянных расходов | O86: 1 | P86: 2 | Q86: 3 | R86: 4 | S86: 5
K89: Изменение постоянных расходов (без ФОТ и соцсборов) | N89: * | O89: 0.2 | P89: 0.07 | Q89: 0 | R89: -0.07 | S89: -0.2
K90: Уровень постоянных расходов | O90: =$Q90*(1+O89) -> 60274732.14 | P90: =$Q90*(1+P89) -> 53744969.49 | Q90: =Reports!$E$18-Calc!$W$898-Calc!$W$952-Calc!$W$967 -> 50228943.45 | R90: =$Q90*(1+R89) -> 46712917.41 | S90: =$Q90*(1+S89) -> 40183154.76
Q91: 0
K92: Результат:
K94: Изменение финансового потока | O94: =IF($Q95=0,0,(O95-$Q95)/$Q95) -> -0.1370045341 | P94: =IF($Q95=0,0,(P95-$Q95)/$Q95) -> -0.1252288757 | Q94: =IF($Q95=0,0,(Q95-$Q95)/$Q95) -> 0 | R94: =IF($Q95=0,0,(R95-$Q95)/$Q95) -> -0.1124220754 | S94: =IF($Q95=0,0,(S95-$Q95)/$Q95) -> -0.1005513734
K95: =MAIN!$T$11 -> Финпоток проекта (по осн. деят-ти) | O95: 371048012.8 | P95: 376110999.6 | Q95: =SUMIFS(MAIN!$Y:$Y,MAIN!$T:$T,$K95) -> 429953606.4 | R95: 381617329.6 | S95: 386721180.8
K96: Изменение IRR проекта | O96: =O97-$Q97 -> -0.07432927882 | P96: =P97-$Q97 -> -0.06596792003 | Q96: =Q97-$Q97 -> 0 | R96: =R97-$Q97 -> -0.05662535051 | S96: =S97-$Q97 -> -0.04781680214
K97: IRR проекта | O97: 0.3634942746 | P97: 0.3718556334 | Q97: =SUMIFS(MAIN!$Y:$Y,MAIN!$T:$T,$K97) -> 0.4378235534 | R97: 0.3811982029 | S97: 0.3900067513
K98: Изменение выручки | O98: =IF($Q99=0,0,(O99-$Q99)/$Q99) -> -0.08896582507 | P98: =IF($Q99=0,0,(P99-$Q99)/$Q99) -> -0.08896582507 | Q98: =IF($Q99=0,0,(Q99-$Q99)/$Q99) -> 0 | R98: =IF($Q99=0,0,(R99-$Q99)/$Q99) -> -0.08896582507 | S98: =IF($Q99=0,0,(S99-$Q99)/$Q99) -> -0.08896582507
K99: =MAIN!$T$68 -> Выручка | O99: 609467871.6 | P99: 609467871.6 | Q99: =SUMIFS(MAIN!$Y:$Y,MAIN!$T:$T,$K99) -> 668984642.3 | R99: 609467871.6 | S99: 609467871.6
K100: Изменение чистой прибыли | O100: =IF($Q101=0,0,(O101-$Q101)/$Q101) -> -0.4250264339 | P100: =IF($Q101=0,0,(P101-$Q101)/$Q101) -> -0.3785992162 | Q100: =IF($Q101=0,0,(Q101-$Q101)/$Q101) -> 0 | R100: =IF($Q101=0,0,(R101-$Q101)/$Q101) -> -0.3288438413 | S100: =IF($Q101=0,0,(S101-$Q101)/$Q101) -> -0.2830085508
K101: =MAIN!$T$70 -> Чистая прибыль | O101: 72268312.03 | P101: 78103739.69 | Q101: =SUMIFS(MAIN!$Y:$Y,MAIN!$T:$T,$K101) -> 125689799.1 | R101: 84357482.77 | S101: 90118511.22
K102: Изменение NPV(WACC) | O102: =IF($Q103=0,0,(O103-$Q103)/$Q103) -> -0.1422568466 | P102: =IF($Q103=0,0,(P103-$Q103)/$Q103) -> -0.1300321915 | Q102: =IF($Q103=0,0,(Q103-$Q103)/$Q103) -> 0 | R102: =IF($Q103=0,0,(R103-$Q103)/$Q103) -> -0.1165497942 | S102: =IF($Q103=0,0,(S103-$Q103)/$Q103) -> -0.1040177666
K103: =MAIN!$T$98 -> NPV(WACC) | O103: 204987040.1 | P103: 207908539.2 | Q103: =SUMIFS(MAIN!$Y:$Y,MAIN!$T:$T,$K103) -> 238984175.2 | R103: 211130618.8 | S103: 214125575.1
K104: Изменение PBP | O104: =IF($Q105=0,0,(O105-$Q105)/$Q105) -> 0.08163265306 | P104: =IF($Q105=0,0,(P105-$Q105)/$Q105) -> 0.0612244898 | Q104: =IF($Q105=0,0,(Q105-$Q105)/$Q105) -> 0 | R104: =IF($Q105=0,0,(R105-$Q105)/$Q105) -> 0.0612244898 | S104: =IF($Q105=0,0,(S105-$Q105)/$Q105) -> 0.0612244898
K105: =MAIN!$T$15 -> PBP - простой срок окупаемости проекта | O105: 4.416666667 | P105: 4.333333333 | Q105: =SUMIFS(MAIN!$Y:$Y,MAIN!$T:$T,$K105) -> 4.083333333 | R105: 4.333333333 | S105: 4.333333333
K106: Изменение DPBP | O106: =IF($Q107=0,0,(O107-$Q107)/$Q107) -> 0.06153846154 | P106: =IF($Q107=0,0,(P107-$Q107)/$Q107) -> 0.06153846154 | Q106: =IF($Q107=0,0,(Q107-$Q107)/$Q107) -> 0 | R106: =IF($Q107=0,0,(R107-$Q107)/$Q107) -> 0.04615384615 | S106: =IF($Q107=0,0,(S107-$Q107)/$Q107) -> 0.04615384615
K107: =MAIN!$T$90 -> DPBP | O107: 5.75 | P107: 5.75 | Q107: =SUMIFS(MAIN!$Y:$Y,MAIN!$T:$T,$K107) -> 5.416666667 | R107: 5.666666667 | S107: 5.666666667
K108: Изменение ROI | O108: =O109-$Q109 -> -0.3277441048 | P108: -0.2938056851 | Q108: 0 | R108: -0.2554449099 | S108: -0.2183956465
K109: =MAIN!$T$100 -> ROI | O109: 1.03314885 | P109: 1.06708727 | Q109: =SUMIFS(MAIN!$Y:$Y,MAIN!$T:$T,$K109) -> 1.360892955 | R109: 1.105448045 | S109: 1.142497309

Sheet CAPEX
AA1: 1 | AB1: 2 | AC1: 3 | AD1: 4 | AE1: 5 | AF1: 6 | AG1: 7 | AH1: 8 | AI1: 9 | AJ1: 10 | AK1: 11 | AL1: 12 | AM1: 13 | AN1: 14 | AO1: 15 | AP1: 16 | AQ1: 17 | AR1: 18 | AS1: 19 | AT1: 20 | AU1: 21 | AV1: 22 | AW1: 23 | AX1: 24 | AY1: 25 | AZ1: 26 | BA1: 27 | BB1: 28 | BC1: 29 | BD1: 30 | BE1: 31 | BF1: 32 | BG1: 33 | BH1: 34 | BI1: 35 | BJ1: 36 | BK1: 37 | BL1: 38 | BM1: 39 | BN1: 40 | BO1: 41 | BP1: 42 | BQ1: 43 | BR1: 44 | BS1: 45 | BT1: 46 | BU1: 47 | BV1: 48 | BW1: 49 | BX1: 50 | BY1: 51 | BZ1: 52 | CA1: 53 | CB1: 54 | CC1: 55 | CD1: 56 | CE1: 57 | CF1: 58 | CG1: 59 | CH1: 60 | CI1: 61 | CJ1: 62 | CK1: 63 | CL1: 64 | CM1: 65 | CN1: 66 | CO1: 67 | CP1: 68 | CQ1: 69 | CR1: 70 | CS1: 71 | CT1: 72 | CU1: 73 | CV1: 74 | CW1: 75 | CX1: 76 | CY1: 77 | CZ1: 78 | DA1: 79 | DB1: 80 | DC1: 81 | DD1: 82 | DE1: 83 | DF1: 84 | DG1: 85 | DH1: 86 | DI1: 87 | DJ1: 88 | DK1: 89 | DL1: 90 | DM1: 91 | DN1: 92 | DO1: 93 | DP1: 94 | DQ1: 95 | DR1: 96 | DS1: 97 | DT1: 98 | DU1: 99 | DV1: 100 | DW1: 101 | DX1: 102 | DY1: 103 | DZ1: 104 | EA1: 105 | EB1: 106 | EC1: 107 | ED1: 108 | EE1: 109 | EF1: 110 | EG1: 111 | EH1: 112 | EI1: 113 | EJ1: 114 | EK1: 115 | EL1: 116 | EM1: 117 | EN1: 118 | EO1: 119 | EP1: 120 | EQ1: 121 | ER1: 122 | ES1: 123 | ET1: 124 | EU1: 125 | EV1: 126 | EW1: 127 | EX1: 128 | EY1: 129 | EZ1: 130 | FA1: 131 | FB1: 132 | FC1: 133 | FD1: 134 | FE1: 135 | FF1: 136 | FG1: 137 | FH1: 138 | FI1: 139 | FJ1: 140 | FK1: 141 | FL1: 142 | FM1: 143 | FN1: 144 | FO1: 145 | FP1: 146
D2: Финансовая модель
D3: Проект: разработка онлайн сервиса
F5: * | G5: Капитальные затраты проекта
K7: БЕЗ ФОРМУЛ!!! | AA7: 1-ый месяц модели
B8: коммент | H8: показатель | M8: * | N8: детализация | Q8: ед.изм. | T8: значение | W8: итого | Z8: старт | AA8: 2022-01-01 | AB8: 2022-02-01 | AC8: 2022-03-01 | AD8: 2022-04-01 | AE8: 2022-05-01 | AF8: 2022-06-01 | AG8: 2022-07-01 | AH8: 2022-08-01 | AI8: 2022-09-01 | AJ8: 2022-10-01 | AK8: 2022-11-01 | AL8: 2022-12-01 | AM8: 2023-01-01 | AN8: 2023-02-01 | AO8: 2023-03-01 | AP8: 2023-04-01 | AQ8: 2023-05-01 | AR8: 2023-06-01 | AS8: 2023-07-01 | AT8: 2023-08-01 | AU8: 2023-09-01 | AV8: 2023-10-01 | AW8: 2023-11-01 | AX8: 2023-12-01 | AY8: 2024-01-01 | AZ8: 2024-02-01 | BA8: 2024-03-01 | BB8: 2024-04-01 | BC8: 2024-05-01 | BD8: 2024-06-01 | BE8: 2024-07-01 | BF8: 2024-08-01 | BG8: 2024-09-01 | BH8: 2024-10-01 | BI8: 2024-11-01 | BJ8: 2024-12-01 | BK8: 2025-01-01 | BL8: 2025-02-01 | BM8: 2025-03-01 | BN8: 2025-04-01 | BO8: 2025-05-01 | BP8: 2025-06-01 | BQ8: 2025-07-01 | BR8: 2025-08-01 | BS8: 2025-09-01 | BT8: 2025-10-01 | BU8: 2025-11-01 | BV8: 2025-12-01 | BW8: 2026-01-01 | BX8: 2026-02-01 | BY8: 2026-03-01 | BZ8: 2026-04-01 | CA8: 2026-05-01 | CB8: 2026-06-01 | CC8: 2026-07-01 | CD8: 2026-08-01 | CE8: 2026-09-01 | CF8: 2026-10-01 | CG8: 2026-11-01 | CH8: 2026-12-01 | CI8: 2027-01-01 | CJ8: 2027-02-01 | CK8: 2027-03-01 | CL8: 2027-04-01 | CM8: 2027-05-01 | CN8: 2027-06-01 | CO8: 2027-07-01 | CP8: 2027-08-01 | CQ8: 2027-09-01 | CR8: 2027-10-01 | CS8: 2027-11-01 | CT8: 2027-12-01 | CU8: 2028-01-01 | CV8: 2028-02-01 | CW8: 2028-03-01 | CX8: 2028-04-01 | CY8: 2028-05-01 | CZ8: 2028-06-01 | DA8: 2028-07-01 | DB8: 2028-08-01 | DC8: 2028-09-01 | DD8: 2028-10-01 | DE8: 2028-11-01 | DF8: 2028-12-01 | DG8: 2029-01-01 | DH8: 2029-02-01 | DI8: 2029-03-01 | DJ8: 2029-04-01 | DK8: 2029-05-01 | DL8: 2029-06-01 | DM8: 2029-07-01 | DN8: 2029-08-01 | DO8: 2029-09-01 | DP8: 2029-10-01 | DQ8: 2029-11-01 | DR8: 2029-12-01 | DS8: 2030-01-01 | DT8: 2030-02-01 | DU8: 2030-03-01 | DV8: 2030-04-01 | DW8: 2030-05-01 | DX8: 2030-06-01 | DY8: 2030-07-01 | DZ8: 2030-08-01 | EA8: 2030-09-01 | EB8: 2030-10-01 | EC8: 2030-11-01 | ED8: 2030-12-01 | EE8: 2031-01-01 | EF8: 2031-02-01 | EG8: 2031-03-01 | EH8: 2031-04-01 | EI8: 2031-05-01 | EJ8: 2031-06-01 | EK8: 2031-07-01 | EL8: 2031-08-01 | EM8: 2031-09-01 | EN8: 2031-10-01 | EO8: 2031-11-01 | EP8: 2031-12-01 | EQ8: 2032-01-01 | ER8: 2032-02-01 | ES8: 2032-03-01 | ET8: 2032-04-01 | EU8: 2032-05-01 | EV8: 2032-06-01 | EW8: 2032-07-01 | EX8: 2032-08-01 | EY8: 2032-09-01 | EZ8: 2032-10-01 | FA8: 2032-11-01 | FB8: 2032-12-01 | FC8: 2033-01-01 | FD8: 2033-02-01 | FE8: 2033-03-01 | FF8: 2033-04-01 | FG8: 2033-05-01 | FH8: 2033-06-01 | FI8: 2033-07-01 | FJ8: 2033-08-01 | FK8: 2033-09-01 | FL8: 2033-10-01 | FM8: 2033-11-01 | FN8: 2033-12-01 | FO8: 2034-01-01 | FP8: 2034-02-01
B12: вкл. ндс | G12: * | H12: Капитальные затраты Проекта | N12: 10 | T12: 100000000 | W12: 10 | AA12: 1.25 | AB12: 1.25 | AC12: 1.95 | AD12: 1.95 | AE12: 1.2 | AF12: 1.2 | AG12: 1.2 | AH12: 0 | AI12: 0 | AJ12: 0 | AK12: 0 | AL12: 0 | AM12: 0 | AN12: 0 | AO12: 0 | AP12: 0 | AQ12: 0 | AR12: 0 | AS12: 0 | AT12: 0 | AU12: 0 | AV12: 0 | AW12: 0 | AX12: 0 | AY12: 0 | AZ12: 0 | BA12: 0 | BB12: 0 | BC12: 0 | BD12: 0 | BE12: 0 | BF12: 0 | BG12: 0 | BH12: 0 | BI12: 0 | BJ12: 0 | BK12: 0 | BL12: 0 | BM12: 0 | BN12: 0 | BO12: 0 | BP12: 0 | BQ12: 0 | BR12: 0 | BS12: 0 | BT12: 0 | BU12: 0 | BV12: 0 | BW12: 0 | BX12: 0 | BY12: 0 | BZ12: 0 | CA12: 0 | CB12: 0 | CC12: 0 | CD12: 0 | CE12: 0 | CF12: 0 | CG12: 0 | CH12: 0 | CI12: 0 | CJ12: 0 | CK12: 0 | CL12: 0 | CM12: 0 | CN12: 0 | CO12: 0 | CP12: 0 | CQ12: 0 | CR12: 0 | CS12: 0 | CT12: 0 | CU12: 0 | CV12: 0 | CW12: 0 | CX12: 0 | CY12: 0 | CZ12: 0 | DA12: 0 | DB12: 0 | DC12: 0 | DD12: 0 | DE12: 0 | DF12: 0 | DG12: 0 | DH12: 0 | DI12: 0 | DJ12: 0 | DK12: 0 | DL12: 0 | DM12: 0 | DN12: 0 | DO12: 0 | DP12: 0 | DQ12: 0 | DR12: 0 | DS12: 0 | DT12: 0 | DU12: 0 | DV12: 0 | DW12: 0 | DX12: 0 | DY12: 0 | DZ12: 0 | EA12: 0 | EB12: 0 | EC12: 0 | ED12: 0 | EE12: 0 | EF12: 0 | EG12: 0 | EH12: 0 | EI12: 0 | EJ12: 0 | EK12: 0 | EL12: 0 | EM12: 0 | EN12: 0 | EO12: 0 | EP12: 0 | EQ12: 0 | ER12: 0 | ES12: 0 | ET12: 0 | EU12: 0 | EV12: 0 | EW12: 0 | EX12: 0 | EY12: 0 | EZ12: 0 | FA12: 0 | FB12: 0 | FC12: 0 | FD12: 0 | FE12: 0 | FF12: 0 | FG12: 0 | FH12: 0 | FI12: 0 | FJ12: 0 | FK12: 0 | FL12: 0 | FM12: 0 | FN12: 0 | FO12: 0 | FP12: 0
J15: * | K15: Работы по созданию онлайн сервиса - 1 | N15: 1 | Q15: руб/% | S15: * | T15: 10000000 | W15: 1 | Y15: * | AA15: 0.5 | AB15: 0.5
J16: * | K16: Работы по созданию онлайн сервиса - 2 | N16: 2 | Q16: руб/% | S16: * | T16: 10000000 | W16: 1 | Y16: * | AA16: 0.25 | AB16: 0.25 | AC16: 0.25 | AD16: 0.25
J17: * | K17: Работы по созданию онлайн сервиса - 3 | N17: 3 | Q17: руб/% | S17: * | T17: 10000000 | W17: 1 | Y17: * | AA17: 0.25 | AB17: 0.25 | AC17: 0.25 | AD17: 0.25
J18: * | K18: Работы по созданию онлайн сервиса - 4 | N18: 4 | Q18: руб/% | S18: * | T18: 10000000 | W18: 1 | Y18: * | AA18: 0.25 | AB18: 0.25 | AC18: 0.25 | AD18: 0.25
J19: * | K19: Работы по созданию онлайн сервиса - 5 | N19: 5 | Q19: руб/% | S19: * | T19: 10000000 | W19: 1 | Y19: * | AC19: 0.2 | AD19: 0.2 | AE19: 0.2 | AF19: 0.2 | AG19: 0.2
J20: * | K20: Работы по созданию онлайн сервиса - 6 | N20: 6 | Q20: руб/% | S20: * | T20: 10000000 | W20: 1 | Y20: * | AC20: 0.2 | AD20: 0.2 | AE20: 0.2 | AF20: 0.2 | AG20: 0.2
J21: * | K21: Работы по созданию онлайн сервиса - 7 | N21: 7 | Q21: руб/% | S21: * | T21: 10000000 | W21: 1 | Y21: * | AC21: 0.2 | AD21: 0.2 | AE21: 0.2 | AF21: 0.2 | AG21: 0.2
J22: * | K22: Работы по созданию онлайн сервиса - 8 | N22: 8 | Q22: руб/% | S22: * | T22: 10000000 | W22: 1 | Y22: * | AC22: 0.2 | AD22: 0.2 | AE22: 0.2 | AF22: 0.2 | AG22: 0.2
J23: * | K23: Работы по созданию онлайн сервиса - 9 | N23: 9 | Q23: руб/% | S23: * | T23: 10000000 | W23: 1 | Y23: * | AC23: 0.2 | AD23: 0.2 | AE23: 0.2 | AF23: 0.2 | AG23: 0.2
J24: * | K24: Работы по созданию онлайн сервиса - 10 | N24: 10 | Q24: руб/% | S24: * | T24: 10000000 | W24: 1 | Y24: * | AC24: 0.2 | AD24: 0.2 | AE24: 0.2 | AF24: 0.2 | AG24: 0.2
J25: * | N25: 0 | Q25: руб/% | S25: * | W25: 0 | Y25: *
J26: * | N26: 0 | Q26: руб/% | S26: * | W26: 0 | Y26: *
J27: * | N27: 0 | Q27: руб/% | S27: * | W27: 0 | Y27: *
J28: * | N28: 0 | Q28: руб/% | S28: * | W28: 0 | Y28: *
J29: * | N29: 0 | Q29: руб/% | S29: * | W29: 0 | Y29: *
Y30: *
B32: вкл. ндс | H32: Капитальные затраты Проекта | N32: 10 | T32: 100000000 | W32: 100000000 | AA32: 12500000 | AB32: 12500000 | AC32: 19500000 | AD32: 19500000 | AE32: 12000000 | AF32: 12000000 | AG32: 12000000 | AH32: 0 | AI32: 0 | AJ32: 0 | AK32: 0 | AL32: 0 | AM32: 0 | AN32: 0 | AO32: 0 | AP32: 0 | AQ32: 0 | AR32: 0 | AS32: 0 | AT32: 0 | AU32: 0 | AV32: 0 | AW32: 0 | AX32: 0 | AY32: 0 | AZ32: 0 | BA32: 0 | BB32: 0 | BC32: 0 | BD32: 0 | BE32: 0 | BF32: 0 | BG32: 0 | BH32: 0 | BI32: 0 | BJ32: 0 | BK32: 0 | BL32: 0 | BM32: 0 | BN32: 0 | BO32: 0 | BP32: 0 | BQ32: 0 | BR32: 0 | BS32: 0 | BT32: 0 | BU32: 0 | BV32: 0 | BW32: 0 | BX32: 0 | BY32: 0 | BZ32: 0 | CA32: 0 | CB32: 0 | CC32: 0 | CD32: 0 | CE32: 0 | CF32: 0 | CG32: 0 | CH32: 0 | CI32: 0 | CJ32: 0 | CK32: 0 | CL32: 0 | CM32: 0 | CN32: 0 | CO32: 0 | CP32: 0 | CQ32: 0 | CR32: 0 | CS32: 0 | CT32: 0 | CU32: 0 | CV32: 0 | CW32: 0 | CX32: 0 | CY32: 0 | CZ32: 0 | DA32: 0 | DB32: 0 | DC32: 0 | DD32: 0 | DE32: 0 | DF32: 0 | DG32: 0 | DH32: 0 | DI32: 0 | DJ32: 0 | DK32: 0 | DL32: 0 | DM32: 0 | DN32: 0 | DO32: 0 | DP32: 0 | DQ32: 0 | DR32: 0 | DS32: 0 | DT32: 0 | DU32: 0 | DV32: 0 | DW32: 0 | DX32: 0 | DY32: 0 | DZ32: 0 | EA32: 0 | EB32: 0 | EC32: 0 | ED32: 0 | EE32: 0 | EF32: 0 | EG32: 0 | EH32: 0 | EI32: 0 | EJ32: 0 | EK32: 0 | EL32: 0 | EM32: 0 | EN32: 0 | EO32: 0 | EP32: 0 | EQ32: 0 | ER32: 0 | ES32: 0 | ET32: 0 | EU32: 0 | EV32: 0 | EW32: 0 | EX32: 0 | EY32: 0 | EZ32: 0 | FA32: 0 | FB32: 0 | FC32: 0 | FD32: 0 | FE32: 0 | FF32: 0 | FG32: 0 | FH32: 0 | FI32: 0 | FJ32: 0 | FK32: 0 | FL32: 0 | FM32: 0 | FN32: 0 | FO32: 0 | FP32: 0
K35: Работы по созданию онлайн сервиса - 1 | N35: 1 | Q35: руб. | T35: 10000000 | W35: 10000000 | AA35: 5000000 | AB35: 5000000 | AC35: 0 | AD35: 0 | AE35: 0 | AF35: 0 | AG35: 0 | AH35: 0 | AI35: 0 | AJ35: 0 | AK35: 0 | AL35: 0 | AM35: 0 | AN35: 0 | AO35: 0 | AP35: 0 | AQ35: 0 | AR35: 0 | AS35: 0 | AT35: 0 | AU35: 0 | AV35: 0 | AW35: 0 | AX35: 0 | AY35: 0 | AZ35: 0 | BA35: 0 | BB35: 0 | BC35: 0 | BD35: 0 | BE35: 0 | BF35: 0 | BG35: 0 | BH35: 0 | BI35: 0 | BJ35: 0 | BK35: 0 | BL35: 0 | BM35: 0 | BN35: 0 | BO35: 0 | BP35: 0 | BQ35: 0 | BR35: 0 | BS35: 0 | BT35: 0 | BU35: 0 | BV35: 0 | BW35: 0 | BX35: 0 | BY35: 0 | BZ35: 0 | CA35: 0 | CB35: 0 | CC35: 0 | CD35: 0 | CE35: 0 | CF35: 0 | CG35: 0 | CH35: 0 | CI35: 0 | CJ35: 0 | CK35: 0 | CL35: 0 | CM35: 0 | CN35: 0 | CO35: 0 | CP35: 0 | CQ35: 0 | CR35: 0 | CS35: 0 | CT35: 0 | CU35: 0 | CV35: 0 | CW35: 0 | CX35: 0 | CY35: 0 | CZ35: 0 | DA35: 0 | DB35: 0 | DC35: 0 | DD35: 0 | DE35: 0 | DF35: 0 | DG35: 0 | DH35: 0 | DI35: 0 | DJ35: 0 | DK35: 0 | DL35: 0 | DM35: 0 | DN35: 0 | DO35: 0 | DP35: 0 | DQ35: 0 | DR35: 0 | DS35: 0 | DT35: 0 | DU35: 0 | DV35: 0 | DW35: 0 | DX35: 0 | DY35: 0 | DZ35: 0 | EA35: 0 | EB35: 0 | EC35: 0 | ED35: 0 | EE35: 0 | EF35: 0 | EG35: 0 | EH35: 0 | EI35: 0 | EJ35: 0 | EK35: 0 | EL35: 0 | EM35: 0 | EN35: 0 | EO35: 0 | EP35: 0 | EQ35: 0 | ER35: 0 | ES35: 0 | ET35: 0 | EU35: 0 | EV35: 0 | EW35: 0 | EX35: 0 | EY35: 0 | EZ35: 0 | FA35: 0 | FB35: 0 | FC35: 0 | FD35: 0 | FE35: 0 | FF35: 0 | FG35: 0 | FH35: 0 | FI35: 0 | FJ35: 0 | FK35: 0 | FL35: 0 | FM35: 0 | FN35: 0 | FO35: 0 | FP35: 0
K36: Работы по созданию онлайн сервиса - 2 | N36: 2 | Q36: руб. | T36: 10000000 | W36: 10000000 | AA36: 2500000 | AB36: 2500000 | AC36: 2500000 | AD36: 2500000 | AE36: 0 | AF36: 0 | AG36: 0 | AH36: 0 | AI36: 0 | AJ36: 0 | AK36: 0 | AL36: 0 | AM36: 0 | AN36: 0 | AO36: 0 | AP36: 0 | AQ36: 0 | AR36: 0 | AS36: 0 | AT36: 0 | AU36: 0 | AV36: 0 | AW36: 0 | AX36: 0 | AY36: 0 | AZ36: 0 | BA36: 0 | BB36: 0 | BC36: 0 | BD36: 0 | BE36: 0 | BF36: 0 | BG36: 0 | BH36: 0 | BI36: 0 | BJ36: 0 | BK36: 0 | BL36: 0 | BM36: 0 | BN36: 0 | BO36: 0 | BP36: 0 | BQ36: 0 | BR36: 0 | BS36: 0 | BT36: 0 | BU36: 0 | BV36: 0 | BW36: 0 | BX36: 0 | BY36: 0 | BZ36: 0 | CA36: 0 | CB36: 0 | CC36: 0 | CD36: 0 | CE36: 0 | CF36: 0 | CG36: 0 | CH36: 0 | CI36: 0 | CJ36: 0 | CK36: 0 | CL36: 0 | CM36: 0 | CN36: 0 | CO36: 0 | CP36: 0 | CQ36: 0 | CR36: 0 | CS36: 0 | CT36: 0 | CU36: 0 | CV36: 0 | CW36: 0 | CX36: 0 | CY36: 0 | CZ36: 0 | DA36: 0 | DB36: 0 | DC36: 0 | DD36: 0 | DE36: 0 | DF36: 0 | DG36: 0 | DH36: 0 | DI36: 0 | DJ36: 0 | DK36: 0 | DL36: 0 | DM36: 0 | DN36: 0 | DO36: 0 | DP36: 0 | DQ36: 0 | DR36: 0 | DS36: 0 | DT36: 0 | DU36: 0 | DV36: 0 | DW36: 0 | DX36: 0 | DY36: 0 | DZ36: 0 | EA36: 0 | EB36: 0 | EC36: 0 | ED36: 0 | EE36: 0 | EF36: 0 | EG36: 0 | EH36: 0 | EI36: 0 | EJ36: 0 | EK36: 0 | EL36: 0 | EM36: 0 | EN36: 0 | EO36: 0 | EP36: 0 | EQ36: 0 | ER36: 0 | ES36: 0 | ET36: 0 | EU36: 0 | EV36: 0 | EW36: 0 | EX36: 0 | EY36: 0 | EZ36: 0 | FA36: 0 | FB36: 0 | FC36: 0 | FD36: 0 | FE36: 0 | FF36: 0 | FG36: 0 | FH36: 0 | FI36: 0 | FJ36: 0 | FK36: 0 | FL36: 0 | FM36: 0 | FN36: 0 | FO36: 0 | FP36: 0
K37: Работы по созданию онлайн сервиса - 3 | N37: 3 | Q37: руб. | T37: 10000000 | W37: 10000000 | AA37: 2500000 | AB37: 2500000 | AC37: 2500000 | AD37: 2500000 | AE37: 0 | AF37: 0 | AG37: 0 | AH37: 0 | AI37: 0 | AJ37: 0 | AK37: 0 | AL37: 0 | AM37: 0 | AN37: 0 | AO37: 0 | AP37: 0 | AQ37: 0 | AR37: 0 | AS37: 0 | AT37: 0 | AU37: 0 | AV37: 0 | AW37: 0 | AX37: 0 | AY37: 0 | AZ37: 0 | BA37: 0 | BB37: 0 | BC37: 0 | BD37: 0 | BE37: 0 | BF37: 0 | BG37: 0 | BH37: 0 | BI37: 0 | BJ37: 0 | BK37: 0 | BL37: 0 | BM37: 0 | BN37: 0 | BO37: 0 | BP37: 0 | BQ37: 0 | BR37: 0 | BS37: 0 | BT37: 0 | BU37: 0 | BV37: 0 | BW37: 0 | BX37: 0 | BY37: 0 | BZ37: 0 | CA37: 0 | CB37: 0 | CC37: 0 | CD37: 0 | CE37: 0 | CF37: 0 | CG37: 0 | CH37: 0 | CI37: 0 | CJ37: 0 | CK37: 0 | CL37: 0 | CM37: 0 | CN37: 0 | CO37: 0 | CP37: 0 | CQ37: 0 | CR37: 0 | CS37: 0 | CT37: 0 | CU37: 0 | CV37: 0 | CW37: 0 | CX37: 0 | CY37: 0 | CZ37: 0 | DA37: 0 | DB37: 0 | DC37: 0 | DD37: 0 | DE37: 0 | DF37: 0 | DG37: 0 | DH37: 0 | DI37: 0 | DJ37: 0 | DK37: 0 | DL37: 0 | DM37: 0 | DN37: 0 | DO37: 0 | DP37: 0 | DQ37: 0 | DR37: 0 | DS37: 0 | DT37: 0 | DU37: 0 | DV37: 0 | DW37: 0 | DX37: 0 | DY37: 0 | DZ37: 0 | EA37: 0 | EB37: 0 | EC37: 0 | ED37: 0 | EE37: 0 | EF37: 0 | EG37: 0 | EH37: 0 | EI37: 0 | EJ37: 0 | EK37: 0 | EL37: 0 | EM37: 0 | EN37: 0 | EO37: 0 | EP37: 0 | EQ37: 0 | ER37: 0 | ES37: 0 | ET37: 0 | EU37: 0 | EV37: 0 | EW37: 0 | EX37: 0 | EY37: 0 | EZ37: 0 | FA37: 0 | FB37: 0 | FC37: 0 | FD37: 0 | FE37: 0 | FF37: 0 | FG37: 0 | FH37: 0 | FI37: 0 | FJ37: 0 | FK37: 0 | FL37: 0 | FM37: 0 | FN37: 0 | FO37: 0 | FP37: 0
K38: Работы по созданию онлайн сервиса - 4 | N38: 4 | Q38: руб. | T38: 10000000 | W38: 10000000 | AA38: 2500000 | AB38: 2500000 | AC38: 2500000 | AD38: 2500000 | AE38: 0 | AF38: 0 | AG38: 0 | AH38: 0 | AI38: 0 | AJ38: 0 | AK38: 0 | AL38: 0 | AM38: 0 | AN38: 0 | AO38: 0 | AP38: 0 | AQ38: 0 | AR38: 0 | AS38: 0 | AT38: 0 | AU38: 0 | AV38: 0 | AW38: 0 | AX38: 0 | AY38: 0 | AZ38: 0 | BA38: 0 | BB38: 0 | BC38: 0 | BD38: 0 | BE38: 0 | BF38: 0 | BG38: 0 | BH38: 0 | BI38: 0 | BJ38: 0 | BK38: 0 | BL38: 0 | BM38: 0 | BN38: 0 | BO38: 0 | BP38: 0 | BQ38: 0 | BR38: 0 | BS38: 0 | BT38: 0 | BU38: 0 | BV38: 0 | BW38: 0 | BX38: 0 | BY38: 0 | BZ38: 0 | CA38: 0 | CB38: 0 | CC38: 0 | CD38: 0 | CE38: 0 | CF38: 0 | CG38: 0 | CH38: 0 | CI38: 0 | CJ38: 0 | CK38: 0 | CL38: 0 | CM38: 0 | CN38: 0 | CO38: 0 | CP38: 0 | CQ38: 0 | CR38: 0 | CS38: 0 | CT38: 0 | CU38: 0 | CV38: 0 | CW38: 0 | CX38: 0 | CY38: 0 | CZ38: 0 | DA38: 0 | DB38: 0 | DC38: 0 | DD38: 0 | DE38: 0 | DF38: 0 | DG38: 0 | DH38: 0 | DI38: 0 | DJ38: 0 | DK38: 0 | DL38: 0 | DM38: 0 | DN38: 0 | DO38: 0 | DP38: 0 | DQ38: 0 | DR38: 0 | DS38: 0 | DT38: 0 | DU38: 0 | DV38: 0 | DW38: 0 | DX38: 0 | DY38: 0 | DZ38: 0 | EA38: 0 | EB38: 0 | EC38: 0 | ED38: 0 | EE38: 0 | EF38: 0 | EG38: 0 | EH38: 0 | EI38: 0 | EJ38: 0 | EK38: 0 | EL38: 0 | EM38: 0 | EN38: 0 | EO38: 0 | EP38: 0 | EQ38: 0 | ER38: 0 | ES38: 0 | ET38: 0 | EU38: 0 | EV38: 0 | EW38: 0 | EX38: 0 | EY38: 0 | EZ38: 0 | FA38: 0 | FB38: 0 | FC38: 0 | FD38: 0 | FE38: 0 | FF38: 0 | FG38: 0 | FH38: 0 | FI38: 0 | FJ38: 0 | FK38: 0 | FL38: 0 | FM38: 0 | FN38: 0 | FO38: 0 | FP38: 0
K39: Работы по созданию онлайн сервиса - 5 | N39: 5 | Q39: руб. | T39: 10000000 | W39: 10000000 | AA39: 0 | AB39: 0 | AC39: 2000000 | AD39: 2000000 | AE39: 2000000 | AF39: 2000000 | AG39: 2000000 | AH39: 0 | AI39: 0 | AJ39: 0 | AK39: 0 | AL39: 0 | AM39: 0 | AN39: 0 | AO39: 0 | AP39: 0 | AQ39: 0 | AR39: 0 | AS39: 0 | AT39: 0 | AU39: 0 | AV39: 0 | AW39: 0 | AX39: 0 | AY39: 0 | AZ39: 0 | BA39: 0 | BB39: 0 | BC39: 0 | BD39: 0 | BE39: 0 | BF39: 0 | BG39: 0 | BH39: 0 | BI39: 0 | BJ39: 0 | BK39: 0 | BL39: 0 | BM39: 0 | BN39: 0 | BO39: 0 | BP39: 0 | BQ39: 0 | BR39: 0 | BS39: 0 | BT39: 0 | BU39: 0 | BV39: 0 | BW39: 0 | BX39: 0 | BY39: 0 | BZ39: 0 | CA39: 0 | CB39: 0 | CC39: 0 | CD39: 0 | CE39: 0 | CF39: 0 | CG39: 0 | CH39: 0 | CI39: 0 | CJ39: 0 | CK39: 0 | CL39: 0 | CM39: 0 | CN39: 0 | CO39: 0 | CP39: 0 | CQ39: 0 | CR39: 0 | CS39: 0 | CT39: 0 | CU39: 0 | CV39: 0 | CW39: 0 | CX39: 0 | CY39: 0 | CZ39: 0 | DA39: 0 | DB39: 0 | DC39: 0 | DD39: 0 | DE39: 0 | DF39: 0 | DG39: 0 | DH39: 0 | DI39: 0 | DJ39: 0 | DK39: 0 | DL39: 0 | DM39: 0 | DN39: 0 | DO39: 0 | DP39: 0 | DQ39: 0 | DR39: 0 | DS39: 0 | DT39: 0 | DU39: 0 | DV39: 0 | DW39: 0 | DX39: 0 | DY39: 0 | DZ39: 0 | EA39: 0 | EB39: 0 | EC39: 0 | ED39: 0 | EE39: 0 | EF39: 0 | EG39: 0 | EH39: 0 | EI39: 0 | EJ39: 0 | EK39: 0 | EL39: 0 | EM39: 0 | EN39: 0 | EO39: 0 | EP39: 0 | EQ39: 0 | ER39: 0 | ES39: 0 | ET39: 0 | EU39: 0 | EV39: 0 | EW39: 0 | EX39: 0 | EY39: 0 | EZ39: 0 | FA39: 0 | FB39: 0 | FC39: 0 | FD39: 0 | FE39: 0 | FF39: 0 | FG39: 0 | FH39: 0 | FI39: 0 | FJ39: 0 | FK39: 0 | FL39: 0 | FM39: 0 | FN39: 0 | FO39: 0 | FP39: 0
K40: Работы по созданию онлайн сервиса - 6 | N40: 6 | Q40: руб. | T40: 10000000 | W40: 10000000 | AA40: 0 | AB40: 0 | AC40: 2000000 | AD40: 2000000 | AE40: 2000000 | AF40: 2000000 | AG40: 2000000 | AH40: 0 | AI40: 0 | AJ40: 0 | AK40: 0 | AL40: 0 | AM40: 0 | AN40: 0 | AO40: 0 | AP40: 0 | AQ40: 0 | AR40: 0 | AS40: 0 | AT40: 0 | AU40: 0 | AV40: 0 | AW40: 0 | AX40: 0 | AY40: 0 | AZ40: 0 | BA40: 0 | BB40: 0 | BC40: 0 | BD40: 0 | BE40: 0 | BF40: 0 | BG40: 0 | BH40: 0 | BI40: 0 | BJ40: 0 | BK40: 0 | BL40: 0 | BM40: 0 | BN40: 0 | BO40: 0 | BP40: 0 | BQ40: 0 | BR40: 0 | BS40: 0 | BT40: 0 | BU40: 0 | BV40: 0 | BW40: 0 | BX40: 0 | BY40: 0 | BZ40: 0 | CA40: 0 | CB40: 0 | CC40: 0 | CD40: 0 | CE40: 0 | CF40: 0 | CG40: 0 | CH40: 0 | CI40: 0 | CJ40: 0 | CK40: 0 | CL40: 0 | CM40: 0 | CN40: 0 | CO40: 0 | CP40: 0 | CQ40: 0 | CR40: 0 | CS40: 0 | CT40: 0 | CU40: 0 | CV40: 0 | CW40: 0 | CX40: 0 | CY40: 0 | CZ40: 0 | DA40: 0 | DB40: 0 | DC40: 0 | DD40: 0 | DE40: 0 | DF40: 0 | DG40: 0 | DH40: 0 | DI40: 0 | DJ40: 0 | DK40: 0 | DL40: 0 | DM40: 0 | DN40: 0 | DO40: 0 | DP40: 0 | DQ40: 0 | DR40: 0 | DS40: 0 | DT40: 0 | DU40: 0 | DV40: 0 | DW40: 0 | DX40: 0 | DY40: 0 | DZ40: 0 | EA40: 0 | EB40: 0 | EC40: 0 | ED40: 0 | EE40: 0 | EF40: 0 | EG40: 0 | EH40: 0 | EI40: 0 | EJ40: 0 | EK40: 0 | EL40: 0 | EM40: 0 | EN40: 0 | EO40: 0 | EP40: 0 | EQ40: 0 | ER40: 0 | ES40: 0 | ET40: 0 | EU40: 0 | EV40: 0 | EW40: 0 | EX40: 0 | EY40: 0 | EZ40: 0 | FA40: 0 | FB40: 0 | FC40: 0 | FD40: 0 | FE40: 0 | FF40: 0 | FG40: 0 | FH40: 0 | FI40: 0 | FJ40: 0 | FK40: 0 | FL40: 0 | FM40: 0 | FN40: 0 | FO40: 0 | FP40: 0
K41: Работы по созданию онлайн сервиса - 7 | N41: 7 | Q41: руб. | T41: 10000000 | W41: 10000000 | AA41: 0 | AB41: 0 | AC41: 2000000 | AD41: 2000000 | AE41: 2000000 | AF41: 2000000 | AG41: 2000000 | AH41: 0 | AI41: 0 | AJ41: 0 | AK41: 0 | AL41: 0 | AM41: 0 | AN41: 0 | AO41: 0 | AP41: 0 | AQ41: 0 | AR41: 0 | AS41: 0 | AT41: 0 | AU41: 0 | AV41: 0 | AW41: 0 | AX41: 0 | AY41: 0 | AZ41: 0 | BA41: 0 | BB41: 0 | BC41: 0 | BD41: 0 | BE41: 0 | BF41: 0 | BG41: 0 | BH41: 0 | BI41: 0 | BJ41: 0 | BK41: 0 | BL41: 0 | BM41: 0 | BN41: 0 | BO41: 0 | BP41: 0 | BQ41: 0 | BR41: 0 | BS41: 0 | BT41: 0 | BU41: 0 | BV41: 0 | BW41: 0 | BX41: 0 | BY41: 0 | BZ41: 0 | CA41: 0 | CB41: 0 | CC41: 0 | CD41: 0 | CE41: 0 | CF41: 0 | CG41: 0 | CH41: 0 | CI41: 0 | CJ41: 0 | CK41: 0 | CL41: 0 | CM41: 0 | CN41: 0 | CO41: 0 | CP41: 0 | CQ41: 0 | CR41: 0 | CS41: 0 | CT41: 0 | CU41: 0 | CV41: 0 | CW41: 0 | CX41: 0 | CY41: 0 | CZ41: 0 | DA41: 0 | DB41: 0 | DC41: 0 | DD41: 0 | DE41: 0 | DF41: 0 | DG41: 0 | DH41: 0 | DI41: 0 | DJ41: 0 | DK41: 0 | DL41: 0 | DM41: 0 | DN41: 0 | DO41: 0 | DP41: 0 | DQ41: 0 | DR41: 0 | DS41: 0 | DT41: 0 | DU41: 0 | DV41: 0 | DW41: 0 | DX41: 0 | DY41: 0 | DZ41: 0 | EA41: 0 | EB41: 0 | EC41: 0 | ED41: 0 | EE41: 0 | EF41: 0 | EG41: 0 | EH41: 0 | EI41: 0 | EJ41: 0 | EK41: 0 | EL41: 0 | EM41: 0 | EN41: 0 | EO41: 0 | EP41: 0 | EQ41: 0 | ER41: 0 | ES41: 0 | ET41: 0 | EU41: 0 | EV41: 0 | EW41: 0 | EX41: 0 | EY41: 0 | EZ41: 0 | FA41: 0 | FB41: 0 | FC41: 0 | FD41: 0 | FE41: 0 | FF41: 0 | FG41: 0 | FH41: 0 | FI41: 0 | FJ41: 0 | FK41: 0 | FL41: 0 | FM41: 0 | FN41: 0 | FO41: 0 | FP41: 0
K42: Работы по созданию онлайн сервиса - 8 | N42: 8 | Q42: руб. | T42: 10000000 | W42: 10000000 | AA42: 0 | AB42: 0 | AC42: 2000000 | AD42: 2000000 | AE42: 2000000 | AF42: 2000000 | AG42: 2000000 | AH42: 0 | AI42: 0 | AJ42: 0 | AK42: 0 | AL42: 0 | AM42: 0 | AN42: 0 | AO42: 0 | AP42: 0 | AQ42: 0 | AR42: 0 | AS42: 0 | AT42: 0 | AU42: 0 | AV42: 0 | AW42: 0 | AX42: 0 | AY42: 0 | AZ42: 0 | BA42: 0 | BB42: 0 | BC42: 0 | BD42: 0 | BE42: 0 | BF42: 0 | BG42: 0 | BH42: 0 | BI42: 0 | BJ42: 0 | BK42: 0 | BL42: 0 | BM42: 0 | BN42: 0 | BO42: 0 | BP42: 0 | BQ42: 0 | BR42: 0 | BS42: 0 | BT42: 0 | BU42: 0 | BV42: 0 | BW42: 0 | BX42: 0 | BY42: 0 | BZ42: 0 | CA42: 0 | CB42: 0 | CC42: 0 | CD42: 0 | CE42: 0 | CF42: 0 | CG42: 0 | CH42: 0 | CI42: 0 | CJ42: 0 | CK42: 0 | CL42: 0 | CM42: 0 | CN42: 0 | CO42: 0 | CP42: 0 | CQ42: 0 | CR42: 0 | CS42: 0 | CT42: 0 | CU42: 0 | CV42: 0 | CW42: 0 | CX42: 0 | CY42: 0 | CZ42: 0 | DA42: 0 | DB42: 0 | DC42: 0 | DD42: 0 | DE42: 0 | DF42: 0 | DG42: 0 | DH42: 0 | DI42: 0 | DJ42: 0 | DK42: 0 | DL42: 0 | DM42: 0 | DN42: 0 | DO42: 0 | DP42: 0 | DQ42: 0 | DR42: 0 | DS42: 0 | DT42: 0 | DU42: 0 | DV42: 0 | DW42: 0 | DX42: 0 | DY42: 0 | DZ42: 0 | EA42: 0 | EB42: 0 | EC42: 0 | ED42: 0 | EE42: 0 | EF42: 0 | EG42: 0 | EH42: 0 | EI42: 0 | EJ42: 0 | EK42: 0 | EL42: 0 | EM42: 0 | EN42: 0 | EO42: 0 | EP42: 0 | EQ42: 0 | ER42: 0 | ES42: 0 | ET42: 0 | EU42: 0 | EV42: 0 | EW42: 0 | EX42: 0 | EY42: 0 | EZ42: 0 | FA42: 0 | FB42: 0 | FC42: 0 | FD42: 0 | FE42: 0 | FF42: 0 | FG42: 0 | FH42: 0 | FI42: 0 | FJ42: 0 | FK42: 0 | FL42: 0 | FM42: 0 | FN42: 0 | FO42: 0 | FP42: 0
K43: Работы по созданию онлайн сервиса - 9 | N43: 9 | Q43: руб. | T43: 10000000 | W43: 10000000 | AA43: 0 | AB43: 0 | AC43: 2000000 | AD43: 2000000 | AE43: 2000000 | AF43: 2000000 | AG43: 2000000 | AH43: 0 | AI43: 0 | AJ43: 0 | AK43: 0 | AL43: 0 | AM43: 0 | AN43: 0 | AO43: 0 | AP43: 0 | AQ43: 0 | AR43: 0 | AS43: 0 | AT43: 0 | AU43: 0 | AV43: 0 | AW43: 0 | AX43: 0 | AY43: 0 | AZ43: 0 | BA43: 0 | BB43: 0 | BC43: 0 | BD43: 0 | BE43: 0 | BF43: 0 | BG43: 0 | BH43: 0 | BI43: 0 | BJ43: 0 | BK43: 0 | BL43: 0 | BM43: 0 | BN43: 0 | BO43: 0 | BP43: 0 | BQ43: 0 | BR43: 0 | BS43: 0 | BT43: 0 | BU43: 0 | BV43: 0 | BW43: 0 | BX43: 0 | BY43: 0 | BZ43: 0 | CA43: 0 | CB43: 0 | CC43: 0 | CD43: 0 | CE43: 0 | CF43: 0 | CG43: 0 | CH43: 0 | CI43: 0 | CJ43: 0 | CK43: 0 | CL43: 0 | CM43: 0 | CN43: 0 | CO43: 0 | CP43: 0 | CQ43: 0 | CR43: 0 | CS43: 0 | CT43: 0 | CU43: 0 | CV43: 0 | CW43: 0 | CX43: 0 | CY43: 0 | CZ43: 0 | DA43: 0 | DB43: 0 | DC43: 0 | DD43: 0 | DE43: 0 | DF43: 0 | DG43: 0 | DH43: 0 | DI43: 0 | DJ43: 0 | DK43: 0 | DL43: 0 | DM43: 0 | DN43: 0 | DO43: 0 | DP43: 0 | DQ43: 0 | DR43: 0 | DS43: 0 | DT43: 0 | DU43: 0 | DV43: 0 | DW43: 0 | DX43: 0 | DY43: 0 | DZ43: 0 | EA43: 0 | EB43: 0 | EC43: 0 | ED43: 0 | EE43: 0 | EF43: 0 | EG43: 0 | EH43: 0 | EI43: 0 | EJ43: 0 | EK43: 0 | EL43: 0 | EM43: 0 | EN43: 0 | EO43: 0 | EP43: 0 | EQ43: 0 | ER43: 0 | ES43: 0 | ET43: 0 | EU43: 0 | EV43: 0 | EW43: 0 | EX43: 0 | EY43: 0 | EZ43: 0 | FA43: 0 | FB43: 0 | FC43: 0 | FD43: 0 | FE43: 0 | FF43: 0 | FG43: 0 | FH43: 0 | FI43: 0 | FJ43: 0 | FK43: 0 | FL43: 0 | FM43: 0 | FN43: 0 | FO43: 0 | FP43: 0
K44: Работы по созданию онлайн сервиса - 10 | N44: 10 | Q44: руб. | T44: 10000000 | W44: 10000000 | AA44: 0 | AB44: 0 | AC44: 2000000 | AD44: 2000000 | AE44: 2000000 | AF44: 2000000 | AG44: 2000000 | AH44: 0 | AI44: 0 | AJ44: 0 | AK44: 0 | AL44: 0 | AM44: 0 | AN44: 0 | AO44: 0 | AP44: 0 | AQ44: 0 | AR44: 0 | AS44: 0 | AT44: 0 | AU44: 0 | AV44: 0 | AW44: 0 | AX44: 0 | AY44: 0 | AZ44: 0 | BA44: 0 | BB44: 0 | BC44: 0 | BD44: 0 | BE44: 0 | BF44: 0 | BG44: 0 | BH44: 0 | BI44: 0 | BJ44: 0 | BK44: 0 | BL44: 0 | BM44: 0 | BN44: 0 | BO44: 0 | BP44: 0 | BQ44: 0 | BR44: 0 | BS44: 0 | BT44: 0 | BU44: 0 | BV44: 0 | BW44: 0 | BX44: 0 | BY44: 0 | BZ44: 0 | CA44: 0 | CB44: 0 | CC44: 0 | CD44: 0 | CE44: 0 | CF44: 0 | CG44: 0 | CH44: 0 | CI44: 0 | CJ44: 0 | CK44: 0 | CL44: 0 | CM44: 0 | CN44: 0 | CO44: 0 | CP44: 0 | CQ44: 0 | CR44: 0 | CS44: 0 | CT44: 0 | CU44: 0 | CV44: 0 | CW44: 0 | CX44: 0 | CY44: 0 | CZ44: 0 | DA44: 0 | DB44: 0 | DC44: 0 | DD44: 0 | DE44: 0 | DF44: 0 | DG44: 0 | DH44: 0 | DI44: 0 | DJ44: 0 | DK44: 0 | DL44: 0 | DM44: 0 | DN44: 0 | DO44: 0 | DP44: 0 | DQ44: 0 | DR44: 0 | DS44: 0 | DT44: 0 | DU44: 0 | DV44: 0 | DW44: 0 | DX44: 0 | DY44: 0 | DZ44: 0 | EA44: 0 | EB44: 0 | EC44: 0 | ED44: 0 | EE44: 0 | EF44: 0 | EG44: 0 | EH44: 0 | EI44: 0 | EJ44: 0 | EK44: 0 | EL44: 0 | EM44: 0 | EN44: 0 | EO44: 0 | EP44: 0 | EQ44: 0 | ER44: 0 | ES44: 0 | ET44: 0 | EU44: 0 | EV44: 0 | EW44: 0 | EX44: 0 | EY44: 0 | EZ44: 0 | FA44: 0 | FB44: 0 | FC44: 0 | FD44: 0 | FE44: 0 | FF44: 0 | FG44: 0 | FH44: 0 | FI44: 0 | FJ44: 0 | FK44: 0 | FL44: 0 | FM44: 0 | FN44: 0 | FO44: 0 | FP44: 0
K45: 0 | N45: 0 | Q45: руб. | T45: 0 | W45: 0 | AA45: 0 | AB45: 0 | AC45: 0 | AD45: 0 | AE45: 0 | AF45: 0 | AG45: 0 | AH45: 0 | AI45: 0 | AJ45: 0 | AK45: 0 | AL45: 0 | AM45: 0 | AN45: 0 | AO45: 0 | AP45: 0 | AQ45: 0 | AR45: 0 | AS45: 0 | AT45: 0 | AU45: 0 | AV45: 0 | AW45: 0 | AX45: 0 | AY45: 0 | AZ45: 0 | BA45: 0 | BB45: 0 | BC45: 0 | BD45: 0 | BE45: 0 | BF45: 0 | BG45: 0 | BH45: 0 | BI45: 0 | BJ45: 0 | BK45: 0 | BL45: 0 | BM45: 0 | BN45: 0 | BO45: 0 | BP45: 0 | BQ45: 0 | BR45: 0 | BS45: 0 | BT45: 0 | BU45: 0 | BV45: 0 | BW45: 0 | BX45: 0 | BY45: 0 | BZ45: 0 | CA45: 0 | CB45: 0 | CC45: 0 | CD45: 0 | CE45: 0 | CF45: 0 | CG45: 0 | CH45: 0 | CI45: 0 | CJ45: 0 | CK45: 0 | CL45: 0 | CM45: 0 | CN45: 0 | CO45: 0 | CP45: 0 | CQ45: 0 | CR45: 0 | CS45: 0 | CT45: 0 | CU45: 0 | CV45: 0 | CW45: 0 | CX45: 0 | CY45: 0 | CZ45: 0 | DA45: 0 | DB45: 0 | DC45: 0 | DD45: 0 | DE45: 0 | DF45: 0 | DG45: 0 | DH45: 0 | DI45: 0 | DJ45: 0 | DK45: 0 | DL45: 0 | DM45: 0 | DN45: 0 | DO45: 0 | DP45: 0 | DQ45: 0 | DR45: 0 | DS45: 0 | DT45: 0 | DU45: 0 | DV45: 0 | DW45: 0 | DX45: 0 | DY45: 0 | DZ45: 0 | EA45: 0 | EB45: 0 | EC45: 0 | ED45: 0 | EE45: 0 | EF45: 0 | EG45: 0 | EH45: 0 | EI45: 0 | EJ45: 0 | EK45: 0 | EL45: 0 | EM45: 0 | EN45: 0 | EO45: 0 | EP45: 0 | EQ45: 0 | ER45: 0 | ES45: 0 | ET45: 0 | EU45: 0 | EV45: 0 | EW45: 0 | EX45: 0 | EY45: 0 | EZ45: 0 | FA45: 0 | FB45: 0 | FC45: 0 | FD45: 0 | FE45: 0 | FF45: 0 | FG45: 0 | FH45: 0 | FI45: 0 | FJ45: 0 | FK45: 0 | FL45: 0 | FM45: 0 | FN45: 0 | FO45: 0 | FP45: 0
K46: 0 | N46: 0 | Q46: руб. | T46: 0 | W46: 0 | AA46: 0 | AB46: 0 | AC46: 0 | AD46: 0 | AE46: 0 | AF46: 0 | AG46: 0 | AH46: 0 | AI46: 0 | AJ46: 0 | AK46: 0 | AL46: 0 | AM46: 0 | AN46: 0 | AO46: 0 | AP46: 0 | AQ46: 0 | AR46: 0 | AS46: 0 | AT46: 0 | AU46: 0 | AV46: 0 | AW46: 0 | AX46: 0 | AY46: 0 | AZ46: 0 | BA46: 0 | BB46: 0 | BC46: 0 | BD46: 0 | BE46: 0 | BF46: 0 | BG46: 0 | BH46: 0 | BI46: 0 | BJ46: 0 | BK46: 0 | BL46: 0 | BM46: 0 | BN46: 0 | BO46: 0 | BP46: 0 | BQ46: 0 | BR46: 0 | BS46: 0 | BT46: 0 | BU46: 0 | BV46: 0 | BW46: 0 | BX46: 0 | BY46: 0 | BZ46: 0 | CA46: 0 | CB46: 0 | CC46: 0 | CD46: 0 | CE46: 0 | CF46: 0 | CG46: 0 | CH46: 0 | CI46: 0 | CJ46: 0 | CK46: 0 | CL46: 0 | CM46: 0 | CN46: 0 | CO46: 0 | CP46: 0 | CQ46: 0 | CR46: 0 | CS46: 0 | CT46: 0 | CU46: 0 | CV46: 0 | CW46: 0 | CX46: 0 | CY46: 0 | CZ46: 0 | DA46: 0 | DB46: 0 | DC46: 0 | DD46: 0 | DE46: 0 | DF46: 0 | DG46: 0 | DH46: 0 | DI46: 0 | DJ46: 0 | DK46: 0 | DL46: 0 | DM46: 0 | DN46: 0 | DO46: 0 | DP46: 0 | DQ46: 0 | DR46: 0 | DS46: 0 | DT46: 0 | DU46: 0 | DV46: 0 | DW46: 0 | DX46: 0 | DY46: 0 | DZ46: 0 | EA46: 0 | EB46: 0 | EC46: 0 | ED46: 0 | EE46: 0 | EF46: 0 | EG46: 0 | EH46: 0 | EI46: 0 | EJ46: 0 | EK46: 0 | EL46: 0 | EM46: 0 | EN46: 0 | EO46: 0 | EP46: 0 | EQ46: 0 | ER46: 0 | ES46: 0 | ET46: 0 | EU46: 0 | EV46: 0 | EW46: 0 | EX46: 0 | EY46: 0 | EZ46: 0 | FA46: 0 | FB46: 0 | FC46: 0 | FD46: 0 | FE46: 0 | FF46: 0 | FG46: 0 | FH46: 0 | FI46: 0 | FJ46: 0 | FK46: 0 | FL46: 0 | FM46: 0 | FN46: 0 | FO46: 0 | FP46: 0
K47: 0 | N47: 0 | Q47: руб. | T47: 0 | W47: 0 | AA47: 0 | AB47: 0 | AC47: 0 | AD47: 0 | AE47: 0 | AF47: 0 | AG47: 0 | AH47: 0 | AI47: 0 | AJ47: 0 | AK47: 0 | AL47: 0 | AM47: 0 | AN47: 0 | AO47: 0 | AP47: 0 | AQ47: 0 | AR47: 0 | AS47: 0 | AT47: 0 | AU47: 0 | AV47: 0 | AW47: 0 | AX47: 0 | AY47: 0 | AZ47: 0 | BA47: 0 | BB47: 0 | BC47: 0 | BD47: 0 | BE47: 0 | BF47: 0 | BG47: 0 | BH47: 0 | BI47: 0 | BJ47: 0 | BK47: 0 | BL47: 0 | BM47: 0 | BN47: 0 | BO47: 0 | BP47: 0 | BQ47: 0 | BR47: 0 | BS47: 0 | BT47: 0 | BU47: 0 | BV47: 0 | BW47: 0 | BX47: 0 | BY47: 0 | BZ47: 0 | CA47: 0 | CB47: 0 | CC47: 0 | CD47: 0 | CE47: 0 | CF47: 0 | CG47: 0 | CH47: 0 | CI47: 0 | CJ47: 0 | CK47: 0 | CL47: 0 | CM47: 0 | CN47: 0 | CO47: 0 | CP47: 0 | CQ47: 0 | CR47: 0 | CS47: 0 | CT47: 0 | CU47: 0 | CV47: 0 | CW47: 0 | CX47: 0 | CY47: 0 | CZ47: 0 | DA47: 0 | DB47: 0 | DC47: 0 | DD47: 0 | DE47: 0 | DF47: 0 | DG47: 0 | DH47: 0 | DI47: 0 | DJ47: 0 | DK47: 0 | DL47: 0 | DM47: 0 | DN47: 0 | DO47: 0 | DP47: 0 | DQ47: 0 | DR47: 0 | DS47: 0 | DT47: 0 | DU47: 0 | DV47: 0 | DW47: 0 | DX47: 0 | DY47: 0 | DZ47: 0 | EA47: 0 | EB47: 0 | EC47: 0 | ED47: 0 | EE47: 0 | EF47: 0 | EG47: 0 | EH47: 0 | EI47: 0 | EJ47: 0 | EK47: 0 | EL47: 0 | EM47: 0 | EN47: 0 | EO47: 0 | EP47: 0 | EQ47: 0 | ER47: 0 | ES47: 0 | ET47: 0 | EU47: 0 | EV47: 0 | EW47: 0 | EX47: 0 | EY47: 0 | EZ47: 0 | FA47: 0 | FB47: 0 | FC47: 0 | FD47: 0 | FE47: 0 | FF47: 0 | FG47: 0 | FH47: 0 | FI47: 0 | FJ47: 0 | FK47: 0 | FL47: 0 | FM47: 0 | FN47: 0 | FO47: 0 | FP47: 0
K48: 0 | N48: 0 | Q48: руб. | T48: 0 | W48: 0 | AA48: 0 | AB48: 0 | AC48: 0 | AD48: 0 | AE48: 0 | AF48: 0 | AG48: 0 | AH48: 0 | AI48: 0 | AJ48: 0 | AK48: 0 | AL48: 0 | AM48: 0 | AN48: 0 | AO48: 0 | AP48: 0 | AQ48: 0 | AR48: 0 | AS48: 0 | AT48: 0 | AU48: 0 | AV48: 0 | AW48: 0 | AX48: 0 | AY48: 0 | AZ48: 0 | BA48: 0 | BB48: 0 | BC48: 0 | BD48: 0 | BE48: 0 | BF48: 0 | BG48: 0 | BH48: 0 | BI48: 0 | BJ48: 0 | BK48: 0 | BL48: 0 | BM48: 0 | BN48: 0 | BO48: 0 | BP48: 0 | BQ48: 0 | BR48: 0 | BS48: 0 | BT48: 0 | BU48: 0 | BV48: 0 | BW48: 0 | BX48: 0 | BY48: 0 | BZ48: 0 | CA48: 0 | CB48: 0 | CC48: 0 | CD48: 0 | CE48: 0 | CF48: 0 | CG48: 0 | CH48: 0 | CI48: 0 | CJ48: 0 | CK48: 0 | CL48: 0 | CM48: 0 | CN48: 0 | CO48: 0 | CP48: 0 | CQ48: 0 | CR48: 0 | CS48: 0 | CT48: 0 | CU48: 0 | CV48: 0 | CW48: 0 | CX48: 0 | CY48: 0 | CZ48: 0 | DA48: 0 | DB48: 0 | DC48: 0 | DD48: 0 | DE48: 0 | DF48: 0 | DG48: 0 | DH48: 0 | DI48: 0 | DJ48: 0 | DK48: 0 | DL48: 0 | DM48: 0 | DN48: 0 | DO48: 0 | DP48: 0 | DQ48: 0 | DR48: 0 | DS48: 0 | DT48: 0 | DU48: 0 | DV48: 0 | DW48: 0 | DX48: 0 | DY48: 0 | DZ48: 0 | EA48: 0 | EB48: 0 | EC48: 0 | ED48: 0 | EE48: 0 | EF48: 0 | EG48: 0 | EH48: 0 | EI48: 0 | EJ48: 0 | EK48: 0 | EL48: 0 | EM48: 0 | EN48: 0 | EO48: 0 | EP48: 0 | EQ48: 0 | ER48: 0 | ES48: 0 | ET48: 0 | EU48: 0 | EV48: 0 | EW48: 0 | EX48: 0 | EY48: 0 | EZ48: 0 | FA48: 0 | FB48: 0 | FC48: 0 | FD48: 0 | FE48: 0 | FF48: 0 | FG48: 0 | FH48: 0 | FI48: 0 | FJ48: 0 | FK48: 0 | FL48: 0 | FM48: 0 | FN48: 0 | FO48: 0 | FP48: 0
K49: 0 | N49: 0 | Q49: руб. | T49: 0 | W49: 0 | AA49: 0 | AB49: 0 | AC49: 0 | AD49: 0 | AE49: 0 | AF49: 0 | AG49: 0 | AH49: 0 | AI49: 0 | AJ49: 0 | AK49: 0 | AL49: 0 | AM49: 0 | AN49: 0 | AO49: 0 | AP49: 0 | AQ49: 0 | AR49: 0 | AS49: 0 | AT49: 0 | AU49: 0 | AV49: 0 | AW49: 0 | AX49: 0 | AY49: 0 | AZ49: 0 | BA49: 0 | BB49: 0 | BC49: 0 | BD49: 0 | BE49: 0 | BF49: 0 | BG49: 0 | BH49: 0 | BI49: 0 | BJ49: 0 | BK49: 0 | BL49: 0 | BM49: 0 | BN49: 0 | BO49: 0 | BP49: 0 | BQ49: 0 | BR49: 0 | BS49: 0 | BT49: 0 | BU49: 0 | BV49: 0 | BW49: 0 | BX49: 0 | BY49: 0 | BZ49: 0 | CA49: 0 | CB49: 0 | CC49: 0 | CD49: 0 | CE49: 0 | CF49: 0 | CG49: 0 | CH49: 0 | CI49: 0 | CJ49: 0 | CK49: 0 | CL49: 0 | CM49: 0 | CN49: 0 | CO49: 0 | CP49: 0 | CQ49: 0 | CR49: 0 | CS49: 0 | CT49: 0 | CU49: 0 | CV49: 0 | CW49: 0 | CX49: 0 | CY49: 0 | CZ49: 0 | DA49: 0 | DB49: 0 | DC49: 0 | DD49: 0 | DE49: 0 | DF49: 0 | DG49: 0 | DH49: 0 | DI49: 0 | DJ49: 0 | DK49: 0 | DL49: 0 | DM49: 0 | DN49: 0 | DO49: 0 | DP49: 0 | DQ49: 0 | DR49: 0 | DS49: 0 | DT49: 0 | DU49: 0 | DV49: 0 | DW49: 0 | DX49: 0 | DY49: 0 | DZ49: 0 | EA49: 0 | EB49: 0 | EC49: 0 | ED49: 0 | EE49: 0 | EF49: 0 | EG49: 0 | EH49: 0 | EI49: 0 | EJ49: 0 | EK49: 0 | EL49: 0 | EM49: 0 | EN49: 0 | EO49: 0 | EP49: 0 | EQ49: 0 | ER49: 0 | ES49: 0 | ET49: 0 | EU49: 0 | EV49: 0 | EW49: 0 | EX49: 0 | EY49: 0 | EZ49: 0 | FA49: 0 | FB49: 0 | FC49: 0 | FD49: 0 | FE49: 0 | FF49: 0 | FG49: 0 | FH49: 0 | FI49: 0 | FJ49: 0 | FK49: 0 | FL49: 0 | FM49: 0 | FN49: 0 | FO49: 0 | FP49: 0
B52: вкл. ндс | H52: Капитальные затраты Проекта | N52: 10 | T52: 100000000 | W52: 1 | AA52: 0.125 | AB52: 0.125 | AC52: 0.195 | AD52: 0.195 | AE52: 0.12 | AF52: 0.12 | AG52: 0.12 | AH52: 0 | AI52: 0 | AJ52: 0 | AK52: 0 | AL52: 0 | AM52: 0 | AN52: 0 | AO52: 0 | AP52: 0 | AQ52: 0 | AR52: 0 | AS52: 0 | AT52: 0 | AU52: 0 | AV52: 0 | AW52: 0 | AX52: 0 | AY52: 0 | AZ52: 0 | BA52: 0 | BB52: 0 | BC52: 0 | BD52: 0 | BE52: 0 | BF52: 0 | BG52: 0 | BH52: 0 | BI52: 0 | BJ52: 0 | BK52: 0 | BL52: 0 | BM52: 0 | BN52: 0 | BO52: 0 | BP52: 0 | BQ52: 0 | BR52: 0 | BS52: 0 | BT52: 0 | BU52: 0 | BV52: 0 | BW52: 0 | BX52: 0 | BY52: 0 | BZ52: 0 | CA52: 0 | CB52: 0 | CC52: 0 | CD52: 0 | CE52: 0 | CF52: 0 | CG52: 0 | CH52: 0 | CI52: 0 | CJ52: 0 | CK52: 0 | CL52: 0 | CM52: 0 | CN52: 0 | CO52: 0 | CP52: 0 | CQ52: 0 | CR52: 0 | CS52: 0 | CT52: 0 | CU52: 0 | CV52: 0 | CW52: 0 | CX52: 0 | CY52: 0 | CZ52: 0 | DA52: 0 | DB52: 0 | DC52: 0 | DD52: 0 | DE52: 0 | DF52: 0 | DG52: 0 | DH52: 0 | DI52: 0 | DJ52: 0 | DK52: 0 | DL52: 0 | DM52: 0 | DN52: 0 | DO52: 0 | DP52: 0 | DQ52: 0 | DR52: 0 | DS52: 0 | DT52: 0 | DU52: 0 | DV52: 0 | DW52: 0 | DX52: 0 | DY52: 0 | DZ52: 0 | EA52: 0 | EB52: 0 | EC52: 0 | ED52: 0 | EE52: 0 | EF52: 0 | EG52: 0 | EH52: 0 | EI52: 0 | EJ52: 0 | EK52: 0 | EL52: 0 | EM52: 0 | EN52: 0 | EO52: 0 | EP52: 0 | EQ52: 0 | ER52: 0 | ES52: 0 | ET52: 0 | EU52: 0 | EV52: 0 | EW52: 0 | EX52: 0 | EY52: 0 | EZ52: 0 | FA52: 0 | FB52: 0 | FC52: 0 | FD52: 0 | FE52: 0 | FF52: 0 | FG52: 0 | FH52: 0 | FI52: 0 | FJ52: 0 | FK52: 0 | FL52: 0 | FM52: 0 | FN52: 0 | FO52: 0 | FP52: 0
K55: Работы по созданию онлайн сервиса - 1 | N55: 1 | Q55: руб/% | T55: 10000000 | W55: 0.1 | AA55: 0.05 | AB55: 0.05 | AC55: 0 | AD55: 0 | AE55: 0 | AF55: 0 | AG55: 0 | AH55: 0 | AI55: 0 | AJ55: 0 | AK55: 0 | AL55: 0 | AM55: 0 | AN55: 0 | AO55: 0 | AP55: 0 | AQ55: 0 | AR55: 0 | AS55: 0 | AT55: 0 | AU55: 0 | AV55: 0 | AW55: 0 | AX55: 0 | AY55: 0 | AZ55: 0 | BA55: 0 | BB55: 0 | BC55: 0 | BD55: 0 | BE55: 0 | BF55: 0 | BG55: 0 | BH55: 0 | BI55: 0 | BJ55: 0 | BK55: 0 | BL55: 0 | BM55: 0 | BN55: 0 | BO55: 0 | BP55: 0 | BQ55: 0 | BR55: 0 | BS55: 0 | BT55: 0 | BU55: 0 | BV55: 0 | BW55: 0 | BX55: 0 | BY55: 0 | BZ55: 0 | CA55: 0 | CB55: 0 | CC55: 0 | CD55: 0 | CE55: 0 | CF55: 0 | CG55: 0 | CH55: 0 | CI55: 0 | CJ55: 0 | CK55: 0 | CL55: 0 | CM55: 0 | CN55: 0 | CO55: 0 | CP55: 0 | CQ55: 0 | CR55: 0 | CS55: 0 | CT55: 0 | CU55: 0 | CV55: 0 | CW55: 0 | CX55: 0 | CY55: 0 | CZ55: 0 | DA55: 0 | DB55: 0 | DC55: 0 | DD55: 0 | DE55: 0 | DF55: 0 | DG55: 0 | DH55: 0 | DI55: 0 | DJ55: 0 | DK55: 0 | DL55: 0 | DM55: 0 | DN55: 0 | DO55: 0 | DP55: 0 | DQ55: 0 | DR55: 0 | DS55: 0 | DT55: 0 | DU55: 0 | DV55: 0 | DW55: 0 | DX55: 0 | DY55: 0 | DZ55: 0 | EA55: 0 | EB55: 0 | EC55: 0 | ED55: 0 | EE55: 0 | EF55: 0 | EG55: 0 | EH55: 0 | EI55: 0 | EJ55: 0 | EK55: 0 | EL55: 0 | EM55: 0 | EN55: 0 | EO55: 0 | EP55: 0 | EQ55: 0 | ER55: 0 | ES55: 0 | ET55: 0 | EU55: 0 | EV55: 0 | EW55: 0 | EX55: 0 | EY55: 0 | EZ55: 0 | FA55: 0 | FB55: 0 | FC55: 0 | FD55: 0 | FE55: 0 | FF55: 0 | FG55: 0 | FH55: 0 | FI55: 0 | FJ55: 0 | FK55: 0 | FL55: 0 | FM55: 0 | FN55: 0 | FO55: 0 | FP55: 0
K56: Работы по созданию онлайн сервиса - 2 | N56: 2 | Q56: руб/% | T56: 10000000 | W56: 0.1 | AA56: 0.025 | AB56: 0.025 | AC56: 0.025 | AD56: 0.025 | AE56: 0 | AF56: 0 | AG56: 0 | AH56: 0 | AI56: 0 | AJ56: 0 | AK56: 0 | AL56: 0 | AM56: 0 | AN56: 0 | AO56: 0 | AP56: 0 | AQ56: 0 | AR56: 0 | AS56: 0 | AT56: 0 | AU56: 0 | AV56: 0 | AW56: 0 | AX56: 0 | AY56: 0 | AZ56: 0 | BA56: 0 | BB56: 0 | BC56: 0 | BD56: 0 | BE56: 0 | BF56: 0 | BG56: 0 | BH56: 0 | BI56: 0 | BJ56: 0 | BK56: 0 | BL56: 0 | BM56: 0 | BN56: 0 | BO56: 0 | BP56: 0 | BQ56: 0 | BR56: 0 | BS56: 0 | BT56: 0 | BU56: 0 | BV56: 0 | BW56: 0 | BX56: 0 | BY56: 0 | BZ56: 0 | CA56: 0 | CB56: 0 | CC56: 0 | CD56: 0 | CE56: 0 | CF56: 0 | CG56: 0 | CH56: 0 | CI56: 0 | CJ56: 0 | CK56: 0 | CL56: 0 | CM56: 0 | CN56: 0 | CO56: 0 | CP56: 0 | CQ56: 0 | CR56: 0 | CS56: 0 | CT56: 0 | CU56: 0 | CV56: 0 | CW56: 0 | CX56: 0 | CY56: 0 | CZ56: 0 | DA56: 0 | DB56: 0 | DC56: 0 | DD56: 0 | DE56: 0 | DF56: 0 | DG56: 0 | DH56: 0 | DI56: 0 | DJ56: 0 | DK56: 0 | DL56: 0 | DM56: 0 | DN56: 0 | DO56: 0 | DP56: 0 | DQ56: 0 | DR56: 0 | DS56: 0 | DT56: 0 | DU56: 0 | DV56: 0 | DW56: 0 | DX56: 0 | DY56: 0 | DZ56: 0 | EA56: 0 | EB56: 0 | EC56: 0 | ED56: 0 | EE56: 0 | EF56: 0 | EG56: 0 | EH56: 0 | EI56: 0 | EJ56: 0 | EK56: 0 | EL56: 0 | EM56: 0 | EN56: 0 | EO56: 0 | EP56: 0 | EQ56: 0 | ER56: 0 | ES56: 0 | ET56: 0 | EU56: 0 | EV56: 0 | EW56: 0 | EX56: 0 | EY56: 0 | EZ56: 0 | FA56: 0 | FB56: 0 | FC56: 0 | FD56: 0 | FE56: 0 | FF56: 0 | FG56: 0 | FH56: 0 | FI56: 0 | FJ56: 0 | FK56: 0 | FL56: 0 | FM56: 0 | FN56: 0 | FO56: 0 | FP56: 0
K57: Работы по созданию онлайн сервиса - 3 | N57: 3 | Q57: руб/% | T57: 10000000 | W57: 0.1 | AA57: 0.025 | AB57: 0.025 | AC57: 0.025 | AD57: 0.025 | AE57: 0 | AF57: 0 | AG57: 0 | AH57: 0 | AI57: 0 | AJ57: 0 | AK57: 0 | AL57: 0 | AM57: 0 | AN57: 0 | AO57: 0 | AP57: 0 | AQ57: 0 | AR57: 0 | AS57: 0 | AT57: 0 | AU57: 0 | AV57: 0 | AW57: 0 | AX57: 0 | AY57: 0 | AZ57: 0 | BA57: 0 | BB57: 0 | BC57: 0 | BD57: 0 | BE57: 0 | BF57: 0 | BG57: 0 | BH57: 0 | BI57: 0 | BJ57: 0 | BK57: 0 | BL57: 0 | BM57: 0 | BN57: 0 | BO57: 0 | BP57: 0 | BQ57: 0 | BR57: 0 | BS57: 0 | BT57: 0 | BU57: 0 | BV57: 0 | BW57: 0 | BX57: 0 | BY57: 0 | BZ57: 0 | CA57: 0 | CB57: 0 | CC57: 0 | CD57: 0 | CE57: 0 | CF57: 0 | CG57: 0 | CH57: 0 | CI57: 0 | CJ57: 0 | CK57: 0 | CL57: 0 | CM57: 0 | CN57: 0 | CO57: 0 | CP57: 0 | CQ57: 0 | CR57: 0 | CS57: 0 | CT57: 0 | CU57: 0 | CV57: 0 | CW57: 0 | CX57: 0 | CY57: 0 | CZ57: 0 | DA57: 0 | DB57: 0 | DC57: 0 | DD57: 0 | DE57: 0 | DF57: 0 | DG57: 0 | DH57: 0 | DI57: 0 | DJ57: 0 | DK57: 0 | DL57: 0 | DM57: 0 | DN57: 0 | DO57: 0 | DP57: 0 | DQ57: 0 | DR57: 0 | DS57: 0 | DT57: 0 | DU57: 0 | DV57: 0 | DW57: 0 | DX57: 0 | DY57: 0 | DZ57: 0 | EA57: 0 | EB57: 0 | EC57: 0 | ED57: 0 | EE57: 0 | EF57: 0 | EG57: 0 | EH57: 0 | EI57: 0 | EJ57: 0 | EK57: 0 | EL57: 0 | EM57: 0 | EN57: 0 | EO57: 0 | EP57: 0 | EQ57: 0 | ER57: 0 | ES57: 0 | ET57: 0 | EU57: 0 | EV57: 0 | EW57: 0 | EX57: 0 | EY57: 0 | EZ57: 0 | FA57: 0 | FB57: 0 | FC57: 0 | FD57: 0 | FE57: 0 | FF57: 0 | FG57: 0 | FH57: 0 | FI57: 0 | FJ57: 0 | FK57: 0 | FL57: 0 | FM57: 0 | FN57: 0 | FO57: 0 | FP57: 0
K58: Работы по созданию онлайн сервиса - 4 | N58: 4 | Q58: руб/% | T58: 10000000 | W58: 0.1 | AA58: 0.025 | AB58: 0.025 | AC58: 0.025 | AD58: 0.025 | AE58: 0 | AF58: 0 | AG58: 0 | AH58: 0 | AI58: 0 | AJ58: 0 | AK58: 0 | AL58: 0 | AM58: 0 | AN58: 0 | AO58: 0 | AP58: 0 | AQ58: 0 | AR58: 0 | AS58: 0 | AT58: 0 | AU58: 0 | AV58: 0 | AW58: 0 | AX58: 0 | AY58: 0 | AZ58: 0 | BA58: 0 | BB58: 0 | BC58: 0 | BD58: 0 | BE58: 0 | BF58: 0 | BG58: 0 | BH58: 0 | BI58: 0 | BJ58: 0 | BK58: 0 | BL58: 0 | BM58: 0 | BN58: 0 | BO58: 0 | BP58: 0 | BQ58: 0 | BR58: 0 | BS58: 0 | BT58: 0 | BU58: 0 | BV58: 0 | BW58: 0 | BX58: 0 | BY58: 0 | BZ58: 0 | CA58: 0 | CB58: 0 | CC58: 0 | CD58: 0 | CE58: 0 | CF58: 0 | CG58: 0 | CH58: 0 | CI58: 0 | CJ58: 0 | CK58: 0 | CL58: 0 | CM58: 0 | CN58: 0 | CO58: 0 | CP58: 0 | CQ58: 0 | CR58: 0 | CS58: 0 | CT58: 0 | CU58: 0 | CV58: 0 | CW58: 0 | CX58: 0 | CY58: 0 | CZ58: 0 | DA58: 0 | DB58: 0 | DC58: 0 | DD58: 0 | DE58: 0 | DF58: 0 | DG58: 0 | DH58: 0 | DI58: 0 | DJ58: 0 | DK58: 0 | DL58: 0 | DM58: 0 | DN58: 0 | DO58: 0 | DP58: 0 | DQ58: 0 | DR58: 0 | DS58: 0 | DT58: 0 | DU58: 0 | DV58: 0 | DW58: 0 | DX58: 0 | DY58: 0 | DZ58: 0 | EA58: 0 | EB58: 0 | EC58: 0 | ED58: 0 | EE58: 0 | EF58: 0 | EG58: 0 | EH58: 0 | EI58: 0 | EJ58: 0 | EK58: 0 | EL58: 0 | EM58: 0 | EN58: 0 | EO58: 0 | EP58: 0 | EQ58: 0 | ER58: 0 | ES58: 0 | ET58: 0 | EU58: 0 | EV58: 0 | EW58: 0 | EX58: 0 | EY58: 0 | EZ58: 0 | FA58: 0 | FB58: 0 | FC58: 0 | FD58: 0 | FE58: 0 | FF58: 0 | FG58: 0 | FH58: 0 | FI58: 0 | FJ58: 0 | FK58: 0 | FL58: 0 | FM58: 0 | FN58: 0 | FO58: 0 | FP58: 0
K59: Работы по созданию онлайн сервиса - 5 | N59: 5 | Q59: руб/% | T59: 10000000 | W59: 0.1 | AA59: 0 | AB59: 0 | AC59: 0.02 | AD59: 0.02 | AE59: 0.02 | AF59: 0.02 | AG59: 0.02 | AH59: 0 | AI59: 0 | AJ59: 0 | AK59: 0 | AL59: 0 | AM59: 0 | AN59: 0 | AO59: 0 | AP59: 0 | AQ59: 0 | AR59: 0 | AS59: 0 | AT59: 0 | AU59: 0 | AV59: 0 | AW59: 0 | AX59: 0 | AY59: 0 | AZ59: 0 | BA59: 0 | BB59: 0 | BC59: 0 | BD59: 0 | BE59: 0 | BF59: 0 | BG59: 0 | BH59: 0 | BI59: 0 | BJ59: 0 | BK59: 0 | BL59: 0 | BM59: 0 | BN59: 0 | BO59: 0 | BP59: 0 | BQ59: 0 | BR59: 0 | BS59: 0 | BT59: 0 | BU59: 0 | BV59: 0 | BW59: 0 | BX59: 0 | BY59: 0 | BZ59: 0 | CA59: 0 | CB59: 0 | CC59: 0 | CD59: 0 | CE59: 0 | CF59: 0 | CG59: 0 | CH59: 0 | CI59: 0 | CJ59: 0 | CK59: 0 | CL59: 0 | CM59: 0 | CN59: 0 | CO59: 0 | CP59: 0 | CQ59: 0 | CR59: 0 | CS59: 0 | CT59: 0 | CU59: 0 | CV59: 0 | CW59: 0 | CX59: 0 | CY59: 0 | CZ59: 0 | DA59: 0 | DB59: 0 | DC59: 0 | DD59: 0 | DE59: 0 | DF59: 0 | DG59: 0 | DH59: 0 | DI59: 0 | DJ59: 0 | DK59: 0 | DL59: 0 | DM59: 0 | DN59: 0 | DO59: 0 | DP59: 0 | DQ59: 0 | DR59: 0 | DS59: 0 | DT59: 0 | DU59: 0 | DV59: 0 | DW59: 0 | DX59: 0 | DY59: 0 | DZ59: 0 | EA59: 0 | EB59: 0 | EC59: 0 | ED59: 0 | EE59: 0 | EF59: 0 | EG59: 0 | EH59: 0 | EI59: 0 | EJ59: 0 | EK59: 0 | EL59: 0 | EM59: 0 | EN59: 0 | EO59: 0 | EP59: 0 | EQ59: 0 | ER59: 0 | ES59: 0 | ET59: 0 | EU59: 0 | EV59: 0 | EW59: 0 | EX59: 0 | EY59: 0 | EZ59: 0 | FA59: 0 | FB59: 0 | FC59: 0 | FD59: 0 | FE59: 0 | FF59: 0 | FG59: 0 | FH59: 0 | FI59: 0 | FJ59: 0 | FK59: 0 | FL59: 0 | FM59: 0 | FN59: 0 | FO59: 0 | FP59: 0
K60: Работы по созданию онлайн сервиса - 6 | N60: 6 | Q60: руб/% | T60: 10000000 | W60: 0.1 | AA60: 0 | AB60: 0 | AC60: 0.02 | AD60: 0.02 | AE60: 0.02 | AF60: 0.02 | AG60: 0.02 | AH60: 0 | AI60: 0 | AJ60: 0 | AK60: 0 | AL60: 0 | AM60: 0 | AN60: 0 | AO60: 0 | AP60: 0 | AQ60: 0 | AR60: 0 | AS60: 0 | AT60: 0 | AU60: 0 | AV60: 0 | AW60: 0 | AX60: 0 | AY60: 0 | AZ60: 0 | BA60: 0 | BB60: 0 | BC60: 0 | BD60: 0 | BE60: 0 | BF60: 0 | BG60: 0 | BH60: 0 | BI60: 0 | BJ60: 0 | BK60: 0 | BL60: 0 | BM60: 0 | BN60: 0 | BO60: 0 | BP60: 0 | BQ60: 0 | BR60: 0 | BS60: 0 | BT60: 0 | BU60: 0 | BV60: 0 | BW60: 0 | BX60: 0 | BY60: 0 | BZ60: 0 | CA60: 0 | CB60: 0 | CC60: 0 | CD60: 0 | CE60: 0 | CF60: 0 | CG60: 0 | CH60: 0 | CI60: 0 | CJ60: 0 | CK60: 0 | CL60: 0 | CM60: 0 | CN60: 0 | CO60: 0 | CP60: 0 | CQ60: 0 | CR60: 0 | CS60: 0 | CT60: 0 | CU60: 0 | CV60: 0 | CW60: 0 | CX60: 0 | CY60: 0 | CZ60: 0 | DA60: 0 | DB60: 0 | DC60: 0 | DD60: 0 | DE60: 0 | DF60: 0 | DG60: 0 | DH60: 0 | DI60: 0 | DJ60: 0 | DK60: 0 | DL60: 0 | DM60: 0 | DN60: 0 | DO60: 0 | DP60: 0 | DQ60: 0 | DR60: 0 | DS60: 0 | DT60: 0 | DU60: 0 | DV60: 0 | DW60: 0 | DX60: 0 | DY60: 0 | DZ60: 0 | EA60: 0 | EB60: 0 | EC60: 0 | ED60: 0 | EE60: 0 | EF60: 0 | EG60: 0 | EH60: 0 | EI60: 0 | EJ60: 0 | EK60: 0 | EL60: 0 | EM60: 0 | EN60: 0 | EO60: 0 | EP60: 0 | EQ60: 0 | ER60: 0 | ES60: 0 | ET60: 0 | EU60: 0 | EV60: 0 | EW60: 0 | EX60: 0 | EY60: 0 | EZ60: 0 | FA60: 0 | FB60: 0 | FC60: 0 | FD60: 0 | FE60: 0 | FF60: 0 | FG60: 0 | FH60: 0 | FI60: 0 | FJ60: 0 | FK60: 0 | FL60: 0 | FM60: 0 | FN60: 0 | FO60: 0 | FP60: 0
K61: Работы по созданию онлайн сервиса - 7 | N61: 7 | Q61: руб/% | T61: 10000000 | W61: 0.1 | AA61: 0 | AB61: 0 | AC61: 0.02 | AD61: 0.02 | AE61: 0.02 | AF61: 0.02 | AG61: 0.02 | AH61: 0 | AI61: 0 | AJ61: 0 | AK61: 0 | AL61: 0 | AM61: 0 | AN61: 0 | AO61: 0 | AP61: 0 | AQ61: 0 | AR61: 0 | AS61: 0 | AT61: 0 | AU61: 0 | AV61: 0 | AW61: 0 | AX61: 0 | AY61: 0 | AZ61: 0 | BA61: 0 | BB61: 0 | BC61: 0 | BD61: 0 | BE61: 0 | BF61: 0 | BG61: 0 | BH61: 0 | BI61: 0 | BJ61: 0 | BK61: 0 | BL61: 0 | BM61: 0 | BN61: 0 | BO61: 0 | BP61: 0 | BQ61: 0 | BR61: 0 | BS61: 0 | BT61: 0 | BU61: 0 | BV61: 0 | BW61: 0 | BX61: 0 | BY61: 0 | BZ61: 0 | CA61: 0 | CB61: 0 | CC61: 0 | CD61: 0 | CE61: 0 | CF61: 0 | CG61: 0 | CH61: 0 | CI61: 0 | CJ61: 0 | CK61: 0 | CL61: 0 | CM61: 0 | CN61: 0 | CO61: 0 | CP61: 0 | CQ61: 0 | CR61: 0 | CS61: 0 | CT61: 0 | CU61: 0 | CV61: 0 | CW61: 0 | CX61: 0 | CY61: 0 | CZ61: 0 | DA61: 0 | DB61: 0 | DC61: 0 | DD61: 0 | DE61: 0 | DF61: 0 | DG61: 0 | DH61: 0 | DI61: 0 | DJ61: 0 | DK61: 0 | DL61: 0 | DM61: 0 | DN61: 0 | DO61: 0 | DP61: 0 | DQ61: 0 | DR61: 0 | DS61: 0 | DT61: 0 | DU61: 0 | DV61: 0 | DW61: 0 | DX61: 0 | DY61: 0 | DZ61: 0 | EA61: 0 | EB61: 0 | EC61: 0 | ED61: 0 | EE61: 0 | EF61: 0 | EG61: 0 | EH61: 0 | EI61: 0 | EJ61: 0 | EK61: 0 | EL61: 0 | EM61: 0 | EN61: 0 | EO61: 0 | EP61: 0 | EQ61: 0 | ER61: 0 | ES61: 0 | ET61: 0 | EU61: 0 | EV61: 0 | EW61: 0 | EX61: 0 | EY61: 0 | EZ61: 0 | FA61: 0 | FB61: 0 | FC61: 0 | FD61: 0 | FE61: 0 | FF61: 0 | FG61: 0 | FH61: 0 | FI61: 0 | FJ61: 0 | FK61: 0 | FL61: 0 | FM61: 0 | FN61: 0 | FO61: 0 | FP61: 0
K62: Работы по созданию онлайн сервиса - 8 | N62: 8 | Q62: руб/% | T62: 10000000 | W62: 0.1 | AA62: 0 | AB62: 0 | AC62: 0.02 | AD62: 0.02 | AE62: 0.02 | AF62: 0.02 | AG62: 0.02 | AH62: 0 | AI62: 0 | AJ62: 0 | AK62: 0 | AL62: 0 | AM62: 0 | AN62: 0 | AO62: 0 | AP62: 0 | AQ62: 0 | AR62: 0 | AS62: 0 | AT62: 0 | AU62: 0 | AV62: 0 | AW62: 0 | AX62: 0 | AY62: 0 | AZ62: 0 | BA62: 0 | BB62: 0 | BC62: 0 | BD62: 0 | BE62: 0 | BF62: 0 | BG62: 0 | BH62: 0 | BI62: 0 | BJ62: 0 | BK62: 0 | BL62: 0 | BM62: 0 | BN62: 0 | BO62: 0 | BP62: 0 | BQ62: 0 | BR62: 0 | BS62: 0 | BT62: 0 | BU62: 0 | BV62: 0 | BW62: 0 | BX62: 0 | BY62: 0 | BZ62: 0 | CA62: 0 | CB62: 0 | CC62: 0 | CD62: 0 | CE62: 0 | CF62: 0 | CG62: 0 | CH62: 0 | CI62: 0 | CJ62: 0 | CK62: 0 | CL62: 0 | CM62: 0 | CN62: 0 | CO62: 0 | CP62: 0 | CQ62: 0 | CR62: 0 | CS62: 0 | CT62: 0 | CU62: 0 | CV62: 0 | CW62: 0 | CX62: 0 | CY62: 0 | CZ62: 0 | DA62: 0 | DB62: 0 | DC62: 0 | DD62: 0 | DE62: 0 | DF62: 0 | DG62: 0 | DH62: 0 | DI62: 0 | DJ62: 0 | DK62: 0 | DL62: 0 | DM62: 0 | DN62: 0 | DO62: 0 | DP62: 0 | DQ62: 0 | DR62: 0 | DS62: 0 | DT62: 0 | DU62: 0 | DV62: 0 | DW62: 0 | DX62: 0 | DY62: 0 | DZ62: 0 | EA62: 0 | EB62: 0 | EC62: 0 | ED62: 0 | EE62: 0 | EF62: 0 | EG62: 0 | EH62: 0 | EI62: 0 | EJ62: 0 | EK62: 0 | EL62: 0 | EM62: 0 | EN62: 0 | EO62: 0 | EP62: 0 | EQ62: 0 | ER62: 0 | ES62: 0 | ET62: 0 | EU62: 0 | EV62: 0 | EW62: 0 | EX62: 0 | EY62: 0 | EZ62: 0 | FA62: 0 | FB62: 0 | FC62: 0 | FD62: 0 | FE62: 0 | FF62: 0 | FG62: 0 | FH62: 0 | FI62: 0 | FJ62: 0 | FK62: 0 | FL62: 0 | FM62: 0 | FN62: 0 | FO62: 0 | FP62: 0
K63: Работы по созданию онлайн сервиса - 9 | N63: 9 | Q63: руб/% | T63: 10000000 | W63: 0.1 | AA63: 0 | AB63: 0 | AC63: 0.02 | AD63: 0.02 | AE63: 0.02 | AF63: 0.02 | AG63: 0.02 | AH63: 0 | AI63: 0 | AJ63: 0 | AK63: 0 | AL63: 0 | AM63: 0 | AN63: 0 | AO63: 0 | AP63: 0 | AQ63: 0 | AR63: 0 | AS63: 0 | AT63: 0 | AU63: 0 | AV63: 0 | AW63: 0 | AX63: 0 | AY63: 0 | AZ63: 0 | BA63: 0 | BB63: 0 | BC63: 0 | BD63: 0 | BE63: 0 | BF63: 0 | BG63: 0 | BH63: 0 | BI63: 0 | BJ63: 0 | BK63: 0 | BL63: 0 | BM63: 0 | BN63: 0 | BO63: 0 | BP63: 0 | BQ63: 0 | BR63: 0 | BS63: 0 | BT63: 0 | BU63: 0 | BV63: 0 | BW63: 0 | BX63: 0 | BY63: 0 | BZ63: 0 | CA63: 0 | CB63: 0 | CC63: 0 | CD63: 0 | CE63: 0 | CF63: 0 | CG63: 0 | CH63: 0 | CI63: 0 | CJ63: 0 | CK63: 0 | CL63: 0 | CM63: 0 | CN63: 0 | CO63: 0 | CP63: 0 | CQ63: 0 | CR63: 0 | CS63: 0 | CT63: 0 | CU63: 0 | CV63: 0 | CW63: 0 | CX63: 0 | CY63: 0 | CZ63: 0 | DA63: 0 | DB63: 0 | DC63: 0 | DD63: 0 | DE63: 0 | DF63: 0 | DG63: 0 | DH63: 0 | DI63: 0 | DJ63: 0 | DK63: 0 | DL63: 0 | DM63: 0 | DN63: 0 | DO63: 0 | DP63: 0 | DQ63: 0 | DR63: 0 | DS63: 0 | DT63: 0 | DU63: 0 | DV63: 0 | DW63: 0 | DX63: 0 | DY63: 0 | DZ63: 0 | EA63: 0 | EB63: 0 | EC63: 0 | ED63: 0 | EE63: 0 | EF63: 0 | EG63: 0 | EH63: 0 | EI63: 0 | EJ63: 0 | EK63: 0 | EL63: 0 | EM63: 0 | EN63: 0 | EO63: 0 | EP63: 0 | EQ63: 0 | ER63: 0 | ES63: 0 | ET63: 0 | EU63: 0 | EV63: 0 | EW63: 0 | EX63: 0 | EY63: 0 | EZ63: 0 | FA63: 0 | FB63: 0 | FC63: 0 | FD63: 0 | FE63: 0 | FF63: 0 | FG63: 0 | FH63: 0 | FI63: 0 | FJ63: 0 | FK63: 0 | FL63: 0 | FM63: 0 | FN63: 0 | FO63: 0 | FP63: 0
K64: Работы по созданию онлайн сервиса - 10 | N64: 10 | Q64: руб/% | T64: 10000000 | W64: 0.1 | AA64: 0 | AB64: 0 | AC64: 0.02 | AD64: 0.02 | AE64: 0.02 | AF64: 0.02 | AG64: 0.02 | AH64: 0 | AI64: 0 | AJ64: 0 | AK64: 0 | AL64: 0 | AM64: 0 | AN64: 0 | AO64: 0 | AP64: 0 | AQ64: 0 | AR64: 0 | AS64: 0 | AT64: 0 | AU64: 0 | AV64: 0 | AW64: 0 | AX64: 0 | AY64: 0 | AZ64: 0 | BA64: 0 | BB64: 0 | BC64: 0 | BD64: 0 | BE64: 0 | BF64: 0 | BG64: 0 | BH64: 0 | BI64: 0 | BJ64: 0 | BK64: 0 | BL64: 0 | BM64: 0 | BN64: 0 | BO64: 0 | BP64: 0 | BQ64: 0 | BR64: 0 | BS64: 0 | BT64: 0 | BU64: 0 | BV64: 0 | BW64: 0 | BX64: 0 | BY64: 0 | BZ64: 0 | CA64: 0 | CB64: 0 | CC64: 0 | CD64: 0 | CE64: 0 | CF64: 0 | CG64: 0 | CH64: 0 | CI64: 0 | CJ64: 0 | CK64: 0 | CL64: 0 | CM64: 0 | CN64: 0 | CO64: 0 | CP64: 0 | CQ64: 0 | CR64: 0 | CS64: 0 | CT64: 0 | CU64: 0 | CV64: 0 | CW64: 0 | CX64: 0 | CY64: 0 | CZ64: 0 | DA64: 0 | DB64: 0 | DC64: 0 | DD64: 0 | DE64: 0 | DF64: 0 | DG64: 0 | DH64: 0 | DI64: 0 | DJ64: 0 | DK64: 0 | DL64: 0 | DM64: 0 | DN64: 0 | DO64: 0 | DP64: 0 | DQ64: 0 | DR64: 0 | DS64: 0 | DT64: 0 | DU64: 0 | DV64: 0 | DW64: 0 | DX64: 0 | DY64: 0 | DZ64: 0 | EA64: 0 | EB64: 0 | EC64: 0 | ED64: 0 | EE64: 0 | EF64: 0 | EG64: 0 | EH64: 0 | EI64: 0 | EJ64: 0 | EK64: 0 | EL64: 0 | EM64: 0 | EN64: 0 | EO64: 0 | EP64: 0 | EQ64: 0 | ER64: 0 | ES64: 0 | ET64: 0 | EU64: 0 | EV64: 0 | EW64: 0 | EX64: 0 | EY64: 0 | EZ64: 0 | FA64: 0 | FB64: 0 | FC64: 0 | FD64: 0 | FE64: 0 | FF64: 0 | FG64: 0 | FH64: 0 | FI64: 0 | FJ64: 0 | FK64: 0 | FL64: 0 | FM64: 0 | FN64: 0 | FO64: 0 | FP64: 0
K65: 0 | N65: 0 | Q65: руб/% | T65: 0 | W65: 0 | AA65: 0 | AB65: 0 | AC65: 0 | AD65: 0 | AE65: 0 | AF65: 0 | AG65: 0 | AH65: 0 | AI65: 0 | AJ65: 0 | AK65: 0 | AL65: 0 | AM65: 0 | AN65: 0 | AO65: 0 | AP65: 0 | AQ65: 0 | AR65: 0 | AS65: 0 | AT65: 0 | AU65: 0 | AV65: 0 | AW65: 0 | AX65: 0 | AY65: 0 | AZ65: 0 | BA65: 0 | BB65: 0 | BC65: 0 | BD65: 0 | BE65: 0 | BF65: 0 | BG65: 0 | BH65: 0 | BI65: 0 | BJ65: 0 | BK65: 0 | BL65: 0 | BM65: 0 | BN65: 0 | BO65: 0 | BP65: 0 | BQ65: 0 | BR65: 0 | BS65: 0 | BT65: 0 | BU65: 0 | BV65: 0 | BW65: 0 | BX65: 0 | BY65: 0 | BZ65: 0 | CA65: 0 | CB65: 0 | CC65: 0 | CD65: 0 | CE65: 0 | CF65: 0 | CG65: 0 | CH65: 0 | CI65: 0 | CJ65: 0 | CK65: 0 | CL65: 0 | CM65: 0 | CN65: 0 | CO65: 0 | CP65: 0 | CQ65: 0 | CR65: 0 | CS65: 0 | CT65: 0 | CU65: 0 | CV65: 0 | CW65: 0 | CX65: 0 | CY65: 0 | CZ65: 0 | DA65: 0 | DB65: 0 | DC65: 0 | DD65: 0 | DE65: 0 | DF65: 0 | DG65: 0 | DH65: 0 | DI65: 0 | DJ65: 0 | DK65: 0 | DL65: 0 | DM65: 0 | DN65: 0 | DO65: 0 | DP65: 0 | DQ65: 0 | DR65: 0 | DS65: 0 | DT65: 0 | DU65: 0 | DV65: 0 | DW65: 0 | DX65: 0 | DY65: 0 | DZ65: 0 | EA65: 0 | EB65: 0 | EC65: 0 | ED65: 0 | EE65: 0 | EF65: 0 | EG65: 0 | EH65: 0 | EI65: 0 | EJ65: 0 | EK65: 0 | EL65: 0 | EM65: 0 | EN65: 0 | EO65: 0 | EP65: 0 | EQ65: 0 | ER65: 0 | ES65: 0 | ET65: 0 | EU65: 0 | EV65: 0 | EW65: 0 | EX65: 0 | EY65: 0 | EZ65: 0 | FA65: 0 | FB65: 0 | FC65: 0 | FD65: 0 | FE65: 0 | FF65: 0 | FG65: 0 | FH65: 0 | FI65: 0 | FJ65: 0 | FK65: 0 | FL65: 0 | FM65: 0 | FN65: 0 | FO65: 0 | FP65: 0
K66: 0 | N66: 0 | Q66: руб/% | T66: 0 | W66: 0 | AA66: 0 | AB66: 0 | AC66: 0 | AD66: 0 | AE66: 0 | AF66: 0 | AG66: 0 | AH66: 0 | AI66: 0 | AJ66: 0 | AK66: 0 | AL66: 0 | AM66: 0 | AN66: 0 | AO66: 0 | AP66: 0 | AQ66: 0 | AR66: 0 | AS66: 0 | AT66: 0 | AU66: 0 | AV66: 0 | AW66: 0 | AX66: 0 | AY66: 0 | AZ66: 0 | BA66: 0 | BB66: 0 | BC66: 0 | BD66: 0 | BE66: 0 | BF66: 0 | BG66: 0 | BH66: 0 | BI66: 0 | BJ66: 0 | BK66: 0 | BL66: 0 | BM66: 0 | BN66: 0 | BO66: 0 | BP66: 0 | BQ66: 0 | BR66: 0 | BS66: 0 | BT66: 0 | BU66: 0 | BV66: 0 | BW66: 0 | BX66: 0 | BY66: 0 | BZ66: 0 | CA66: 0 | CB66: 0 | CC66: 0 | CD66: 0 | CE66: 0 | CF66: 0 | CG66: 0 | CH66: 0 | CI66: 0 | CJ66: 0 | CK66: 0 | CL66: 0 | CM66: 0 | CN66: 0 | CO66: 0 | CP66: 0 | CQ66: 0 | CR66: 0 | CS66: 0 | CT66: 0 | CU66: 0 | CV66: 0 | CW66: 0 | CX66: 0 | CY66: 0 | CZ66: 0 | DA66: 0 | DB66: 0 | DC66: 0 | DD66: 0 | DE66: 0 | DF66: 0 | DG66: 0 | DH66: 0 | DI66: 0 | DJ66: 0 | DK66: 0 | DL66: 0 | DM66: 0 | DN66: 0 | DO66: 0 | DP66: 0 | DQ66: 0 | DR66: 0 | DS66: 0 | DT66: 0 | DU66: 0 | DV66: 0 | DW66: 0 | DX66: 0 | DY66: 0 | DZ66: 0 | EA66: 0 | EB66: 0 | EC66: 0 | ED66: 0 | EE66: 0 | EF66: 0 | EG66: 0 | EH66: 0 | EI66: 0 | EJ66: 0 | EK66: 0 | EL66: 0 | EM66: 0 | EN66: 0 | EO66: 0 | EP66: 0 | EQ66: 0 | ER66: 0 | ES66: 0 | ET66: 0 | EU66: 0 | EV66: 0 | EW66: 0 | EX66: 0 | EY66: 0 | EZ66: 0 | FA66: 0 | FB66: 0 | FC66: 0 | FD66: 0 | FE66: 0 | FF66: 0 | FG66: 0 | FH66: 0 | FI66: 0 | FJ66: 0 | FK66: 0 | FL66: 0 | FM66: 0 | FN66: 0 | FO66: 0 | FP66: 0
K67: 0 | N67: 0 | Q67: руб/% | T67: 0 | W67: 0 | AA67: 0 | AB67: 0 | AC67: 0 | AD67: 0 | AE67: 0 | AF67: 0 | AG67: 0 | AH67: 0 | AI67: 0 | AJ67: 0 | AK67: 0 | AL67: 0 | AM67: 0 | AN67: 0 | AO67: 0 | AP67: 0 | AQ67: 0 | AR67: 0 | AS67: 0 | AT67: 0 | AU67: 0 | AV67: 0 | AW67: 0 | AX67: 0 | AY67: 0 | AZ67: 0 | BA67: 0 | BB67: 0 | BC67: 0 | BD67: 0 | BE67: 0 | BF67: 0 | BG67: 0 | BH67: 0 | BI67: 0 | BJ67: 0 | BK67: 0 | BL67: 0 | BM67: 0 | BN67: 0 | BO67: 0 | BP67: 0 | BQ67: 0 | BR67: 0 | BS67: 0 | BT67: 0 | BU67: 0 | BV67: 0 | BW67: 0 | BX67: 0 | BY67: 0 | BZ67: 0 | CA67: 0 | CB67: 0 | CC67: 0 | CD67: 0 | CE67: 0 | CF67: 0 | CG67: 0 | CH67: 0 | CI67: 0 | CJ67: 0 | CK67: 0 | CL67: 0 | CM67: 0 | CN67: 0 | CO67: 0 | CP67: 0 | CQ67: 0 | CR67: 0 | CS67: 0 | CT67: 0 | CU67: 0 | CV67: 0 | CW67: 0 | CX67: 0 | CY67: 0 | CZ67: 0 | DA67: 0 | DB67: 0 | DC67: 0 | DD67: 0 | DE67: 0 | DF67: 0 | DG67: 0 | DH67: 0 | DI67: 0 | DJ67: 0 | DK67: 0 | DL67: 0 | DM67: 0 | DN67: 0 | DO67: 0 | DP67: 0 | DQ67: 0 | DR67: 0 | DS67: 0 | DT67: 0 | DU67: 0 | DV67: 0 | DW67: 0 | DX67: 0 | DY67: 0 | DZ67: 0 | EA67: 0 | EB67: 0 | EC67: 0 | ED67: 0 | EE67: 0 | EF67: 0 | EG67: 0 | EH67: 0 | EI67: 0 | EJ67: 0 | EK67: 0 | EL67: 0 | EM67: 0 | EN67: 0 | EO67: 0 | EP67: 0 | EQ67: 0 | ER67: 0 | ES67: 0 | ET67: 0 | EU67: 0 | EV67: 0 | EW67: 0 | EX67: 0 | EY67: 0 | EZ67: 0 | FA67: 0 | FB67: 0 | FC67: 0 | FD67: 0 | FE67: 0 | FF67: 0 | FG67: 0 | FH67: 0 | FI67: 0 | FJ67: 0 | FK67: 0 | FL67: 0 | FM67: 0 | FN67: 0 | FO67: 0 | FP67: 0
K68: 0 | N68: 0 | Q68: руб/% | T68: 0 | W68: 0 | AA68: 0 | AB68: 0 | AC68: 0 | AD68: 0 | AE68: 0 | AF68: 0 | AG68: 0 | AH68: 0 | AI68: 0 | AJ68: 0 | AK68: 0 | AL68: 0 | AM68: 0 | AN68: 0 | AO68: 0 | AP68: 0 | AQ68: 0 | AR68: 0 | AS68: 0 | AT68: 0 | AU68: 0 | AV68: 0 | AW68: 0 | AX68: 0 | AY68: 0 | AZ68: 0 | BA68: 0 | BB68: 0 | BC68: 0 | BD68: 0 | BE68: 0 | BF68: 0 | BG68: 0 | BH68: 0 | BI68: 0 | BJ68: 0 | BK68: 0 | BL68: 0 | BM68: 0 | BN68: 0 | BO68: 0 | BP68: 0 | BQ68: 0 | BR68: 0 | BS68: 0 | BT68: 0 | BU68: 0 | BV68: 0 | BW68: 0 | BX68: 0 | BY68: 0 | BZ68: 0 | CA68: 0 | CB68: 0 | CC68: 0 | CD68: 0 | CE68: 0 | CF68: 0 | CG68: 0 | CH68: 0 | CI68: 0 | CJ68: 0 | CK68: 0 | CL68: 0 | CM68: 0 | CN68: 0 | CO68: 0 | CP68: 0 | CQ68: 0 | CR68: 0 | CS68: 0 | CT68: 0 | CU68: 0 | CV68: 0 | CW68: 0 | CX68: 0 | CY68: 0 | CZ68: 0 | DA68: 0 | DB68: 0 | DC68: 0 | DD68: 0 | DE68: 0 | DF68: 0 | DG68: 0 | DH68: 0 | DI68: 0 | DJ68: 0 | DK68: 0 | DL68: 0 | DM68: 0 | DN68: 0 | DO68: 0 | DP68: 0 | DQ68: 0 | DR68: 0 | DS68: 0 | DT68: 0 | DU68: 0 | DV68: 0 | DW68: 0 | DX68: 0 | DY68: 0 | DZ68: 0 | EA68: 0 | EB68: 0 | EC68: 0 | ED68: 0 | EE68: 0 | EF68: 0 | EG68: 0 | EH68: 0 | EI68: 0 | EJ68: 0 | EK68: 0 | EL68: 0 | EM68: 0 | EN68: 0 | EO68: 0 | EP68: 0 | EQ68: 0 | ER68: 0 | ES68: 0 | ET68: 0 | EU68: 0 | EV68: 0 | EW68: 0 | EX68: 0 | EY68: 0 | EZ68: 0 | FA68: 0 | FB68: 0 | FC68: 0 | FD68: 0 | FE68: 0 | FF68: 0 | FG68: 0 | FH68: 0 | FI68: 0 | FJ68: 0 | FK68: 0 | FL68: 0 | FM68: 0 | FN68: 0 | FO68: 0 | FP68: 0
K69: 0 | N69: 0 | Q69: руб/% | T69: 0 | W69: 0 | AA69: 0 | AB69: 0 | AC69: 0 | AD69: 0 | AE69: 0 | AF69: 0 | AG69: 0 | AH69: 0 | AI69: 0 | AJ69: 0 | AK69: 0 | AL69: 0 | AM69: 0 | AN69: 0 | AO69: 0 | AP69: 0 | AQ69: 0 | AR69: 0 | AS69: 0 | AT69: 0 | AU69: 0 | AV69: 0 | AW69: 0 | AX69: 0 | AY69: 0 | AZ69: 0 | BA69: 0 | BB69: 0 | BC69: 0 | BD69: 0 | BE69: 0 | BF69: 0 | BG69: 0 | BH69: 0 | BI69: 0 | BJ69: 0 | BK69: 0 | BL69: 0 | BM69: 0 | BN69: 0 | BO69: 0 | BP69: 0 | BQ69: 0 | BR69: 0 | BS69: 0 | BT69: 0 | BU69: 0 | BV69: 0 | BW69: 0 | BX69: 0 | BY69: 0 | BZ69: 0 | CA69: 0 | CB69: 0 | CC69: 0 | CD69: 0 | CE69: 0 | CF69: 0 | CG69: 0 | CH69: 0 | CI69: 0 | CJ69: 0 | CK69: 0 | CL69: 0 | CM69: 0 | CN69: 0 | CO69: 0 | CP69: 0 | CQ69: 0 | CR69: 0 | CS69: 0 | CT69: 0 | CU69: 0 | CV69: 0 | CW69: 0 | CX69: 0 | CY69: 0 | CZ69: 0 | DA69: 0 | DB69: 0 | DC69: 0 | DD69: 0 | DE69: 0 | DF69: 0 | DG69: 0 | DH69: 0 | DI69: 0 | DJ69: 0 | DK69: 0 | DL69: 0 | DM69: 0 | DN69: 0 | DO69: 0 | DP69: 0 | DQ69: 0 | DR69: 0 | DS69: 0 | DT69: 0 | DU69: 0 | DV69: 0 | DW69: 0 | DX69: 0 | DY69: 0 | DZ69: 0 | EA69: 0 | EB69: 0 | EC69: 0 | ED69: 0 | EE69: 0 | EF69: 0 | EG69: 0 | EH69: 0 | EI69: 0 | EJ69: 0 | EK69: 0 | EL69: 0 | EM69: 0 | EN69: 0 | EO69: 0 | EP69: 0 | EQ69: 0 | ER69: 0 | ES69: 0 | ET69: 0 | EU69: 0 | EV69: 0 | EW69: 0 | EX69: 0 | EY69: 0 | EZ69: 0 | FA69: 0 | FB69: 0 | FC69: 0 | FD69: 0 | FE69: 0 | FF69: 0 | FG69: 0 | FH69: 0 | FI69: 0 | FJ69: 0 | FK69: 0 | FL69: 0 | FM69: 0 | FN69: 0 | FO69: 0 | FP69: 0
B72: вкл. ндс | H72: Капитальные затраты Проекта | N72: 10 | T72: 100000000 | W72: 100000000 | AA72: 12500000 | AB72: 12500000 | AC72: 19500000 | AD72: 19500000 | AE72: 12000000 | AF72: 12000000 | AG72: 12000000 | AH72: 0 | AI72: 0 | AJ72: 0 | AK72: 0 | AL72: 0 | AM72: 0 | AN72: 0 | AO72: 0 | AP72: 0 | AQ72: 0 | AR72: 0 | AS72: 0 | AT72: 0 | AU72: 0 | AV72: 0 | AW72: 0 | AX72: 0 | AY72: 0 | AZ72: 0 | BA72: 0 | BB72: 0 | BC72: 0 | BD72: 0 | BE72: 0 | BF72: 0 | BG72: 0 | BH72: 0 | BI72: 0 | BJ72: 0 | BK72: 0 | BL72: 0 | BM72: 0 | BN72: 0 | BO72: 0 | BP72: 0 | BQ72: 0 | BR72: 0 | BS72: 0 | BT72: 0 | BU72: 0 | BV72: 0 | BW72: 0 | BX72: 0 | BY72: 0 | BZ72: 0 | CA72: 0 | CB72: 0 | CC72: 0 | CD72: 0 | CE72: 0 | CF72: 0 | CG72: 0 | CH72: 0 | CI72: 0 | CJ72: 0 | CK72: 0 | CL72: 0 | CM72: 0 | CN72: 0 | CO72: 0 | CP72: 0 | CQ72: 0 | CR72: 0 | CS72: 0 | CT72: 0 | CU72: 0 | CV72: 0 | CW72: 0 | CX72: 0 | CY72: 0 | CZ72: 0 | DA72: 0 | DB72: 0 | DC72: 0 | DD72: 0 | DE72: 0 | DF72: 0 | DG72: 0 | DH72: 0 | DI72: 0 | DJ72: 0 | DK72: 0 | DL72: 0 | DM72: 0 | DN72: 0 | DO72: 0 | DP72: 0 | DQ72: 0 | DR72: 0 | DS72: 0 | DT72: 0 | DU72: 0 | DV72: 0 | DW72: 0 | DX72: 0 | DY72: 0 | DZ72: 0 | EA72: 0 | EB72: 0 | EC72: 0 | ED72: 0 | EE72: 0 | EF72: 0 | EG72: 0 | EH72: 0 | EI72: 0 | EJ72: 0 | EK72: 0 | EL72: 0 | EM72: 0 | EN72: 0 | EO72: 0 | EP72: 0 | EQ72: 0 | ER72: 0 | ES72: 0 | ET72: 0 | EU72: 0 | EV72: 0 | EW72: 0 | EX72: 0 | EY72: 0 | EZ72: 0 | FA72: 0 | FB72: 0 | FC72: 0 | FD72: 0 | FE72: 0 | FF72: 0 | FG72: 0 | FH72: 0 | FI72: 0 | FJ72: 0 | FK72: 0 | FL72: 0 | FM72: 0 | FN72: 0 | FO72: 0 | FP72: 0
K75: Работы по созданию онлайн сервиса - 1 | N75: 1 | Q75: руб. | T75: 10000000 | W75: 10000000 | AA75: 5000000 | AB75: 5000000 | AC75: 0 | AD75: 0 | AE75: 0 | AF75: 0 | AG75: 0 | AH75: 0 | AI75: 0 | AJ75: 0 | AK75: 0 | AL75: 0 | AM75: 0 | AN75: 0 | AO75: 0 | AP75: 0 | AQ75: 0 | AR75: 0 | AS75: 0 | AT75: 0 | AU75: 0 | AV75: 0 | AW75: 0 | AX75: 0 | AY75: 0 | AZ75: 0 | BA75: 0 | BB75: 0 | BC75: 0 | BD75: 0 | BE75: 0 | BF75: 0 | BG75: 0 | BH75: 0 | BI75: 0 | BJ75: 0 | BK75: 0 | BL75: 0 | BM75: 0 | BN75: 0 | BO75: 0 | BP75: 0 | BQ75: 0 | BR75: 0 | BS75: 0 | BT75: 0 | BU75: 0 | BV75: 0 | BW75: 0 | BX75: 0 | BY75: 0 | BZ75: 0 | CA75: 0 | CB75: 0 | CC75: 0 | CD75: 0 | CE75: 0 | CF75: 0 | CG75: 0 | CH75: 0 | CI75: 0 | CJ75: 0 | CK75: 0 | CL75: 0 | CM75: 0 | CN75: 0 | CO75: 0 | CP75: 0 | CQ75: 0 | CR75: 0 | CS75: 0 | CT75: 0 | CU75: 0 | CV75: 0 | CW75: 0 | CX75: 0 | CY75: 0 | CZ75: 0 | DA75: 0 | DB75: 0 | DC75: 0 | DD75: 0 | DE75: 0 | DF75: 0 | DG75: 0 | DH75: 0 | DI75: 0 | DJ75: 0 | DK75: 0 | DL75: 0 | DM75: 0 | DN75: 0 | DO75: 0 | DP75: 0 | DQ75: 0 | DR75: 0 | DS75: 0 | DT75: 0 | DU75: 0 | DV75: 0 | DW75: 0 | DX75: 0 | DY75: 0 | DZ75: 0 | EA75: 0 | EB75: 0 | EC75: 0 | ED75: 0 | EE75: 0 | EF75: 0 | EG75: 0 | EH75: 0 | EI75: 0 | EJ75: 0 | EK75: 0 | EL75: 0 | EM75: 0 | EN75: 0 | EO75: 0 | EP75: 0 | EQ75: 0 | ER75: 0 | ES75: 0 | ET75: 0 | EU75: 0 | EV75: 0 | EW75: 0 | EX75: 0 | EY75: 0 | EZ75: 0 | FA75: 0 | FB75: 0 | FC75: 0 | FD75: 0 | FE75: 0 | FF75: 0 | FG75: 0 | FH75: 0 | FI75: 0 | FJ75: 0 | FK75: 0 | FL75: 0 | FM75: 0 | FN75: 0 | FO75: 0 | FP75: 0
K76: Работы по созданию онлайн сервиса - 2 | N76: 2 | Q76: руб. | T76: 10000000 | W76: 10000000 | AA76: 2500000 | AB76: 2500000 | AC76: 2500000 | AD76: 2500000 | AE76: 0 | AF76: 0 | AG76: 0 | AH76: 0 | AI76: 0 | AJ76: 0 | AK76: 0 | AL76: 0 | AM76: 0 | AN76: 0 | AO76: 0 | AP76: 0 | AQ76: 0 | AR76: 0 | AS76: 0 | AT76: 0 | AU76: 0 | AV76: 0 | AW76: 0 | AX76: 0 | AY76: 0 | AZ76: 0 | BA76: 0 | BB76: 0 | BC76: 0 | BD76: 0 | BE76: 0 | BF76: 0 | BG76: 0 | BH76: 0 | BI76: 0 | BJ76: 0 | BK76: 0 | BL76: 0 | BM76: 0 | BN76: 0 | BO76: 0 | BP76: 0 | BQ76: 0 | BR76: 0 | BS76: 0 | BT76: 0 | BU76: 0 | BV76: 0 | BW76: 0 | BX76: 0 | BY76: 0 | BZ76: 0 | CA76: 0 | CB76: 0 | CC76: 0 | CD76: 0 | CE76: 0 | CF76: 0 | CG76: 0 | CH76: 0 | CI76: 0 | CJ76: 0 | CK76: 0 | CL76: 0 | CM76: 0 | CN76: 0 | CO76: 0 | CP76: 0 | CQ76: 0 | CR76: 0 | CS76: 0 | CT76: 0 | CU76: 0 | CV76: 0 | CW76: 0 | CX76: 0 | CY76: 0 | CZ76: 0 | DA76: 0 | DB76: 0 | DC76: 0 | DD76: 0 | DE76: 0 | DF76: 0 | DG76: 0 | DH76: 0 | DI76: 0 | DJ76: 0 | DK76: 0 | DL76: 0 | DM76: 0 | DN76: 0 | DO76: 0 | DP76: 0 | DQ76: 0 | DR76: 0 | DS76: 0 | DT76: 0 | DU76: 0 | DV76: 0 | DW76: 0 | DX76: 0 | DY76: 0 | DZ76: 0 | EA76: 0 | EB76: 0 | EC76: 0 | ED76: 0 | EE76: 0 | EF76: 0 | EG76: 0 | EH76: 0 | EI76: 0 | EJ76: 0 | EK76: 0 | EL76: 0 | EM76: 0 | EN76: 0 | EO76: 0 | EP76: 0 | EQ76: 0 | ER76: 0 | ES76: 0 | ET76: 0 | EU76: 0 | EV76: 0 | EW76: 0 | EX76: 0 | EY76: 0 | EZ76: 0 | FA76: 0 | FB76: 0 | FC76: 0 | FD76: 0 | FE76: 0 | FF76: 0 | FG76: 0 | FH76: 0 | FI76: 0 | FJ76: 0 | FK76: 0 | FL76: 0 | FM76: 0 | FN76: 0 | FO76: 0 | FP76: 0
K77: Работы по созданию онлайн сервиса - 3 | N77: 3 | Q77: руб. | T77: 10000000 | W77: 10000000 | AA77: 2500000 | AB77: 2500000 | AC77: 2500000 | AD77: 2500000 | AE77: 0 | AF77: 0 | AG77: 0 | AH77: 0 | AI77: 0 | AJ77: 0 | AK77: 0 | AL77: 0 | AM77: 0 | AN77: 0 | AO77: 0 | AP77: 0 | AQ77: 0 | AR77: 0 | AS77: 0 | AT77: 0 | AU77: 0 | AV77: 0 | AW77: 0 | AX77: 0 | AY77: 0 | AZ77: 0 | BA77: 0 | BB77: 0 | BC77: 0 | BD77: 0 | BE77: 0 | BF77: 0 | BG77: 0 | BH77: 0 | BI77: 0 | BJ77: 0 | BK77: 0 | BL77: 0 | BM77: 0 | BN77: 0 | BO77: 0 | BP77: 0 | BQ77: 0 | BR77: 0 | BS77: 0 | BT77: 0 | BU77: 0 | BV77: 0 | BW77: 0 | BX77: 0 | BY77: 0 | BZ77: 0 | CA77: 0 | CB77: 0 | CC77: 0 | CD77: 0 | CE77: 0 | CF77: 0 | CG77: 0 | CH77: 0 | CI77: 0 | CJ77: 0 | CK77: 0 | CL77: 0 | CM77: 0 | CN77: 0 | CO77: 0 | CP77: 0 | CQ77: 0 | CR77: 0 | CS77: 0 | CT77: 0 | CU77: 0 | CV77: 0 | CW77: 0 | CX77: 0 | CY77: 0 | CZ77: 0 | DA77: 0 | DB77: 0 | DC77: 0 | DD77: 0 | DE77: 0 | DF77: 0 | DG77: 0 | DH77: 0 | DI77: 0 | DJ77: 0 | DK77: 0 | DL77: 0 | DM77: 0 | DN77: 0 | DO77: 0 | DP77: 0 | DQ77: 0 | DR77: 0 | DS77: 0 | DT77: 0 | DU77: 0 | DV77: 0 | DW77: 0 | DX77: 0 | DY77: 0 | DZ77: 0 | EA77: 0 | EB77: 0 | EC77: 0 | ED77: 0 | EE77: 0 | EF77: 0 | EG77: 0 | EH77: 0 | EI77: 0 | EJ77: 0 | EK77: 0 | EL77: 0 | EM77: 0 | EN77: 0 | EO77: 0 | EP77: 0 | EQ77: 0 | ER77: 0 | ES77: 0 | ET77: 0 | EU77: 0 | EV77: 0 | EW77: 0 | EX77: 0 | EY77: 0 | EZ77: 0 | FA77: 0 | FB77: 0 | FC77: 0 | FD77: 0 | FE77: 0 | FF77: 0 | FG77: 0 | FH77: 0 | FI77: 0 | FJ77: 0 | FK77: 0 | FL77: 0 | FM77: 0 | FN77: 0 | FO77: 0 | FP77: 0
K78: Работы по созданию онлайн сервиса - 4 | N78: 4 | Q78: руб. | T78: 10000000 | W78: 10000000 | AA78: 2500000 | AB78: 2500000 | AC78: 2500000 | AD78: 2500000 | AE78: 0 | AF78: 0 | AG78: 0 | AH78: 0 | AI78: 0 | AJ78: 0 | AK78: 0 | AL78: 0 | AM78: 0 | AN78: 0 | AO78: 0 | AP78: 0 | AQ78: 0 | AR78: 0 | AS78: 0 | AT78: 0 | AU78: 0 | AV78: 0 | AW78: 0 | AX78: 0 | AY78: 0 | AZ78: 0 | BA78: 0 | BB78: 0 | BC78: 0 | BD78: 0 | BE78: 0 | BF78: 0 | BG78: 0 | BH78: 0 | BI78: 0 | BJ78: 0 | BK78: 0 | BL78: 0 | BM78: 0 | BN78: 0 | BO78: 0 | BP78: 0 | BQ78: 0 | BR78: 0 | BS78: 0 | BT78: 0 | BU78: 0 | BV78: 0 | BW78: 0 | BX78: 0 | BY78: 0 | BZ78: 0 | CA78: 0 | CB78: 0 | CC78: 0 | CD78: 0 | CE78: 0 | CF78: 0 | CG78: 0 | CH78: 0 | CI78: 0 | CJ78: 0 | CK78: 0 | CL78: 0 | CM78: 0 | CN78: 0 | CO78: 0 | CP78: 0 | CQ78: 0 | CR78: 0 | CS78: 0 | CT78: 0 | CU78: 0 | CV78: 0 | CW78: 0 | CX78: 0 | CY78: 0 | CZ78: 0 | DA78: 0 | DB78: 0 | DC78: 0 | DD78: 0 | DE78: 0 | DF78: 0 | DG78: 0 | DH78: 0 | DI78: 0 | DJ78: 0 | DK78: 0 | DL78: 0 | DM78: 0 | DN78: 0 | DO78: 0 | DP78: 0 | DQ78: 0 | DR78: 0 | DS78: 0 | DT78: 0 | DU78: 0 | DV78: 0 | DW78: 0 | DX78: 0 | DY78: 0 | DZ78: 0 | EA78: 0 | EB78: 0 | EC78: 0 | ED78: 0 | EE78: 0 | EF78: 0 | EG78: 0 | EH78: 0 | EI78: 0 | EJ78: 0 | EK78: 0 | EL78: 0 | EM78: 0 | EN78: 0 | EO78: 0 | EP78: 0 | EQ78: 0 | ER78: 0 | ES78: 0 | ET78: 0 | EU78: 0 | EV78: 0 | EW78: 0 | EX78: 0 | EY78: 0 | EZ78: 0 | FA78: 0 | FB78: 0 | FC78: 0 | FD78: 0 | FE78: 0 | FF78: 0 | FG78: 0 | FH78: 0 | FI78: 0 | FJ78: 0 | FK78: 0 | FL78: 0 | FM78: 0 | FN78: 0 | FO78: 0 | FP78: 0
K79: Работы по созданию онлайн сервиса - 5 | N79: 5 | Q79: руб. | T79: 10000000 | W79: 10000000 | AA79: 0 | AB79: 0 | AC79: 2000000 | AD79: 2000000 | AE79: 2000000 | AF79: 2000000 | AG79: 2000000 | AH79: 0 | AI79: 0 | AJ79: 0 | AK79: 0 | AL79: 0 | AM79: 0 | AN79: 0 | AO79: 0 | AP79: 0 | AQ79: 0 | AR79: 0 | AS79: 0 | AT79: 0 | AU79: 0 | AV79: 0 | AW79: 0 | AX79: 0 | AY79: 0 | AZ79: 0 | BA79: 0 | BB79: 0 | BC79: 0 | BD79: 0 | BE79: 0 | BF79: 0 | BG79: 0 | BH79: 0 | BI79: 0 | BJ79: 0 | BK79: 0 | BL79: 0 | BM79: 0 | BN79: 0 | BO79: 0 | BP79: 0 | BQ79: 0 | BR79: 0 | BS79: 0 | BT79: 0 | BU79: 0 | BV79: 0 | BW79: 0 | BX79: 0 | BY79: 0 | BZ79: 0 | CA79: 0 | CB79: 0 | CC79: 0 | CD79: 0 | CE79: 0 | CF79: 0 | CG79: 0 | CH79: 0 | CI79: 0 | CJ79: 0 | CK79: 0 | CL79: 0 | CM79: 0 | CN79: 0 | CO79: 0 | CP79: 0 | CQ79: 0 | CR79: 0 | CS79: 0 | CT79: 0 | CU79: 0 | CV79: 0 | CW79: 0 | CX79: 0 | CY79: 0 | CZ79: 0 | DA79: 0 | DB79: 0 | DC79: 0 | DD79: 0 | DE79: 0 | DF79: 0 | DG79: 0 | DH79: 0 | DI79: 0 | DJ79: 0 | DK79: 0 | DL79: 0 | DM79: 0 | DN79: 0 | DO79: 0 | DP79: 0 | DQ79: 0 | DR79: 0 | DS79: 0 | DT79: 0 | DU79: 0 | DV79: 0 | DW79: 0 | DX79: 0 | DY79: 0 | DZ79: 0 | EA79: 0 | EB79: 0 | EC79: 0 | ED79: 0 | EE79: 0 | EF79: 0 | EG79: 0 | EH79: 0 | EI79: 0 | EJ79: 0 | EK79: 0 | EL79: 0 | EM79: 0 | EN79: 0 | EO79: 0 | EP79: 0 | EQ79: 0 | ER79: 0 | ES79: 0 | ET79: 0 | EU79: 0 | EV79: 0 | EW79: 0 | EX79: 0 | EY79: 0 | EZ79: 0 | FA79: 0 | FB79: 0 | FC79: 0 | FD79: 0 | FE79: 0 | FF79: 0 | FG79: 0 | FH79: 0 | FI79: 0 | FJ79: 0 | FK79: 0 | FL79: 0 | FM79: 0 | FN79: 0 | FO79: 0 | FP79: 0
K80: Работы по созданию онлайн сервиса - 6 | N80: 6 | Q80: руб. | T80: 10000000 | W80: 10000000 | AA80: 0 | AB80: 0 | AC80: 2000000 | AD80: 2000000 | AE80: 2000000 | AF80: 2000000 | AG80: 2000000 | AH80: 0 | AI80: 0 | AJ80: 0 | AK80: 0 | AL80: 0 | AM80: 0 | AN80: 0 | AO80: 0 | AP80: 0 | AQ80: 0 | AR80: 0 | AS80: 0 | AT80: 0 | AU80: 0 | AV80: 0 | AW80: 0 | AX80: 0 | AY80: 0 | AZ80: 0 | BA80: 0 | BB80: 0 | BC80: 0 | BD80: 0 | BE80: 0 | BF80: 0 | BG80: 0 | BH80: 0 | BI80: 0 | BJ80: 0 | BK80: 0 | BL80: 0 | BM80: 0 | BN80: 0 | BO80: 0 | BP80: 0 | BQ80: 0 | BR80: 0 | BS80: 0 | BT80: 0 | BU80: 0 | BV80: 0 | BW80: 0 | BX80: 0 | BY80: 0 | BZ80: 0 | CA80: 0 | CB80: 0 | CC80: 0 | CD80: 0 | CE80: 0 | CF80: 0 | CG80: 0 | CH80: 0 | CI80: 0 | CJ80: 0 | CK80: 0 | CL80: 0 | CM80: 0 | CN80: 0 | CO80: 0 | CP80: 0 | CQ80: 0 | CR80: 0 | CS80: 0 | CT80: 0 | CU80: 0 | CV80: 0 | CW80: 0 | CX80: 0 | CY80: 0 | CZ80: 0 | DA80: 0 | DB80: 0 | DC80: 0 | DD80: 0 | DE80: 0 | DF80: 0 | DG80: 0 | DH80: 0 | DI80: 0 | DJ80: 0 | DK80: 0 | DL80: 0 | DM80: 0 | DN80: 0 | DO80: 0 | DP80: 0 | DQ80: 0 | DR80: 0 | DS80: 0 | DT80: 0 | DU80: 0 | DV80: 0 | DW80: 0 | DX80: 0 | DY80: 0 | DZ80: 0 | EA80: 0 | EB80: 0 | EC80: 0 | ED80: 0 | EE80: 0 | EF80: 0 | EG80: 0 | EH80: 0 | EI80: 0 | EJ80: 0 | EK80: 0 | EL80: 0 | EM80: 0 | EN80: 0 | EO80: 0 | EP80: 0 | EQ80: 0 | ER80: 0 | ES80: 0 | ET80: 0 | EU80: 0 | EV80: 0 | EW80: 0 | EX80: 0 | EY80: 0 | EZ80: 0 | FA80: 0 | FB80: 0 | FC80: 0 | FD80: 0 | FE80: 0 | FF80: 0 | FG80: 0 | FH80: 0 | FI80: 0 | FJ80: 0 | FK80: 0 | FL80: 0 | FM80: 0 | FN80: 0 | FO80: 0 | FP80: 0
K81: Работы по созданию онлайн сервиса - 7 | N81: 7 | Q81: руб. | T81: 10000000 | W81: 10000000 | AA81: 0 | AB81: 0 | AC81: 2000000 | AD81: 2000000 | AE81: 2000000 | AF81: 2000000 | AG81: 2000000 | AH81: 0 | AI81: 0 | AJ81: 0 | AK81: 0 | AL81: 0 | AM81: 0 | AN81: 0 | AO81: 0 | AP81: 0 | AQ81: 0 | AR81: 0 | AS81: 0 | AT81: 0 | AU81: 0 | AV81: 0 | AW81: 0 | AX81: 0 | AY81: 0 | AZ81: 0 | BA81: 0 | BB81: 0 | BC81: 0 | BD81: 0 | BE81: 0 | BF81: 0 | BG81: 0 | BH81: 0 | BI81: 0 | BJ81: 0 | BK81: 0 | BL81: 0 | BM81: 0 | BN81: 0 | BO81: 0 | BP81: 0 | BQ81: 0 | BR81: 0 | BS81: 0 | BT81: 0 | BU81: 0 | BV81: 0 | BW81: 0 | BX81: 0 | BY81: 0 | BZ81: 0 | CA81: 0 | CB81: 0 | CC81: 0 | CD81: 0 | CE81: 0 | CF81: 0 | CG81: 0 | CH81: 0 | CI81: 0 | CJ81: 0 | CK81: 0 | CL81: 0 | CM81: 0 | CN81: 0 | CO81: 0 | CP81: 0 | CQ81: 0 | CR81: 0 | CS81: 0 | CT81: 0 | CU81: 0 | CV81: 0 | CW81: 0 | CX81: 0 | CY81: 0 | CZ81: 0 | DA81: 0 | DB81: 0 | DC81: 0 | DD81: 0 | DE81: 0 | DF81: 0 | DG81: 0 | DH81: 0 | DI81: 0 | DJ81: 0 | DK81: 0 | DL81: 0 | DM81: 0 | DN81: 0 | DO81: 0 | DP81: 0 | DQ81: 0 | DR81: 0 | DS81: 0 | DT81: 0 | DU81: 0 | DV81: 0 | DW81: 0 | DX81: 0 | DY81: 0 | DZ81: 0 | EA81: 0 | EB81: 0 | EC81: 0 | ED81: 0 | EE81: 0 | EF81: 0 | EG81: 0 | EH81: 0 | EI81: 0 | EJ81: 0 | EK81: 0 | EL81: 0 | EM81: 0 | EN81: 0 | EO81: 0 | EP81: 0 | EQ81: 0 | ER81: 0 | ES81: 0 | ET81: 0 | EU81: 0 | EV81: 0 | EW81: 0 | EX81: 0 | EY81: 0 | EZ81: 0 | FA81: 0 | FB81: 0 | FC81: 0 | FD81: 0 | FE81: 0 | FF81: 0 | FG81: 0 | FH81: 0 | FI81: 0 | FJ81: 0 | FK81: 0 | FL81: 0 | FM81: 0 | FN81: 0 | FO81: 0 | FP81: 0
K82: Работы по созданию онлайн сервиса - 8 | N82: 8 | Q82: руб. | T82: 10000000 | W82: 10000000 | AA82: 0 | AB82: 0 | AC82: 2000000 | AD82: 2000000 | AE82: 2000000 | AF82: 2000000 | AG82: 2000000 | AH82: 0 | AI82: 0 | AJ82: 0 | AK82: 0 | AL82: 0 | AM82: 0 | AN82: 0 | AO82: 0 | AP82: 0 | AQ82: 0 | AR82: 0 | AS82: 0 | AT82: 0 | AU82: 0 | AV82: 0 | AW82: 0 | AX82: 0 | AY82: 0 | AZ82: 0 | BA82: 0 | BB82: 0 | BC82: 0 | BD82: 0 | BE82: 0 | BF82: 0 | BG82: 0 | BH82: 0 | BI82: 0 | BJ82: 0 | BK82: 0 | BL82: 0 | BM82: 0 | BN82: 0 | BO82: 0 | BP82: 0 | BQ82: 0 | BR82: 0 | BS82: 0 | BT82: 0 | BU82: 0 | BV82: 0 | BW82: 0 | BX82: 0 | BY82: 0 | BZ82: 0 | CA82: 0 | CB82: 0 | CC82: 0 | CD82: 0 | CE82: 0 | CF82: 0 | CG82: 0 | CH82: 0 | CI82: 0 | CJ82: 0 | CK82: 0 | CL82: 0 | CM82: 0 | CN82: 0 | CO82: 0 | CP82: 0 | CQ82: 0 | CR82: 0 | CS82: 0 | CT82: 0 | CU82: 0 | CV82: 0 | CW82: 0 | CX82: 0 | CY82: 0 | CZ82: 0 | DA82: 0 | DB82: 0 | DC82: 0 | DD82: 0 | DE82: 0 | DF82: 0 | DG82: 0 | DH82: 0 | DI82: 0 | DJ82: 0 | DK82: 0 | DL82: 0 | DM82: 0 | DN82: 0 | DO82: 0 | DP82: 0 | DQ82: 0 | DR82: 0 | DS82: 0 | DT82: 0 | DU82: 0 | DV82: 0 | DW82: 0 | DX82: 0 | DY82: 0 | DZ82: 0 | EA82: 0 | EB82: 0 | EC82: 0 | ED82: 0 | EE82: 0 | EF82: 0 | EG82: 0 | EH82: 0 | EI82: 0 | EJ82: 0 | EK82: 0 | EL82: 0 | EM82: 0 | EN82: 0 | EO82: 0 | EP82: 0 | EQ82: 0 | ER82: 0 | ES82: 0 | ET82: 0 | EU82: 0 | EV82: 0 | EW82: 0 | EX82: 0 | EY82: 0 | EZ82: 0 | FA82: 0 | FB82: 0 | FC82: 0 | FD82: 0 | FE82: 0 | FF82: 0 | FG82: 0 | FH82: 0 | FI82: 0 | FJ82: 0 | FK82: 0 | FL82: 0 | FM82: 0 | FN82: 0 | FO82: 0 | FP82: 0
K83: Работы по созданию онлайн сервиса - 9 | N83: 9 | Q83: руб. | T83: 10000000 | W83: 10000000 | AA83: 0 | AB83: 0 | AC83: 2000000 | AD83: 2000000 | AE83: 2000000 | AF83: 2000000 | AG83: 2000000 | AH83: 0 | AI83: 0 | AJ83: 0 | AK83: 0 | AL83: 0 | AM83: 0 | AN83: 0 | AO83: 0 | AP83: 0 | AQ83: 0 | AR83: 0 | AS83: 0 | AT83: 0 | AU83: 0 | AV83: 0 | AW83: 0 | AX83: 0 | AY83: 0 | AZ83: 0 | BA83: 0 | BB83: 0 | BC83: 0 | BD83: 0 | BE83: 0 | BF83: 0 | BG83: 0 | BH83: 0 | BI83: 0 | BJ83: 0 | BK83: 0 | BL83: 0 | BM83: 0 | BN83: 0 | BO83: 0 | BP83: 0 | BQ83: 0 | BR83: 0 | BS83: 0 | BT83: 0 | BU83: 0 | BV83: 0 | BW83: 0 | BX83: 0 | BY83: 0 | BZ83: 0 | CA83: 0 | CB83: 0 | CC83: 0 | CD83: 0 | CE83: 0 | CF83: 0 | CG83: 0 | CH83: 0 | CI83: 0 | CJ83: 0 | CK83: 0 | CL83: 0 | CM83: 0 | CN83: 0 | CO83: 0 | CP83: 0 | CQ83: 0 | CR83: 0 | CS83: 0 | CT83: 0 | CU83: 0 | CV83: 0 | CW83: 0 | CX83: 0 | CY83: 0 | CZ83: 0 | DA83: 0 | DB83: 0 | DC83: 0 | DD83: 0 | DE83: 0 | DF83: 0 | DG83: 0 | DH83: 0 | DI83: 0 | DJ83: 0 | DK83: 0 | DL83: 0 | DM83: 0 | DN83: 0 | DO83: 0 | DP83: 0 | DQ83: 0 | DR83: 0 | DS83: 0 | DT83: 0 | DU83: 0 | DV83: 0 | DW83: 0 | DX83: 0 | DY83: 0 | DZ83: 0 | EA83: 0 | EB83: 0 | EC83: 0 | ED83: 0 | EE83: 0 | EF83: 0 | EG83: 0 | EH83: 0 | EI83: 0 | EJ83: 0 | EK83: 0 | EL83: 0 | EM83: 0 | EN83: 0 | EO83: 0 | EP83: 0 | EQ83: 0 | ER83: 0 | ES83: 0 | ET83: 0 | EU83: 0 | EV83: 0 | EW83: 0 | EX83: 0 | EY83: 0 | EZ83: 0 | FA83: 0 | FB83: 0 | FC83: 0 | FD83: 0 | FE83: 0 | FF83: 0 | FG83: 0 | FH83: 0 | FI83: 0 | FJ83: 0 | FK83: 0 | FL83: 0 | FM83: 0 | FN83: 0 | FO83: 0 | FP83: 0
K84: Работы по созданию онлайн сервиса - 10 | N84: 10 | Q84: руб. | T84: 10000000 | W84: 10000000 | AA84: 0 | AB84: 0 | AC84: 2000000 | AD84: 2000000 | AE84: 2000000 | AF84: 2000000 | AG84: 2000000 | AH84: 0 | AI84: 0 | AJ84: 0 | AK84: 0 | AL84: 0 | AM84: 0 | AN84: 0 | AO84: 0 | AP84: 0 | AQ84: 0 | AR84: 0 | AS84: 0 | AT84: 0 | AU84: 0 | AV84: 0 | AW84: 0 | AX84: 0 | AY84: 0 | AZ84: 0 | BA84: 0 | BB84: 0 | BC84: 0 | BD84: 0 | BE84: 0 | BF84: 0 | BG84: 0 | BH84: 0 | BI84: 0 | BJ84: 0 | BK84: 0 | BL84: 0 | BM84: 0 | BN84: 0 | BO84: 0 | BP84: 0 | BQ84: 0 | BR84: 0 | BS84: 0 | BT84: 0 | BU84: 0 | BV84: 0 | BW84: 0 | BX84: 0 | BY84: 0 | BZ84: 0 | CA84: 0 | CB84: 0 | CC84: 0 | CD84: 0 | CE84: 0 | CF84: 0 | CG84: 0 | CH84: 0 | CI84: 0 | CJ84: 0 | CK84: 0 | CL84: 0 | CM84: 0 | CN84: 0 | CO84: 0 | CP84: 0 | CQ84: 0 | CR84: 0 | CS84: 0 | CT84: 0 | CU84: 0 | CV84: 0 | CW84: 0 | CX84: 0 | CY84: 0 | CZ84: 0 | DA84: 0 | DB84: 0 | DC84: 0 | DD84: 0 | DE84: 0 | DF84: 0 | DG84: 0 | DH84: 0 | DI84: 0 | DJ84: 0 | DK84: 0 | DL84: 0 | DM84: 0 | DN84: 0 | DO84: 0 | DP84: 0 | DQ84: 0 | DR84: 0 | DS84: 0 | DT84: 0 | DU84: 0 | DV84: 0 | DW84: 0 | DX84: 0 | DY84: 0 | DZ84: 0 | EA84: 0 | EB84: 0 | EC84: 0 | ED84: 0 | EE84: 0 | EF84: 0 | EG84: 0 | EH84: 0 | EI84: 0 | EJ84: 0 | EK84: 0 | EL84: 0 | EM84: 0 | EN84: 0 | EO84: 0 | EP84: 0 | EQ84: 0 | ER84: 0 | ES84: 0 | ET84: 0 | EU84: 0 | EV84: 0 | EW84: 0 | EX84: 0 | EY84: 0 | EZ84: 0 | FA84: 0 | FB84: 0 | FC84: 0 | FD84: 0 | FE84: 0 | FF84: 0 | FG84: 0 | FH84: 0 | FI84: 0 | FJ84: 0 | FK84: 0 | FL84: 0 | FM84: 0 | FN84: 0 | FO84: 0 | FP84: 0
K85: 0 | N85: 0 | Q85: руб. | T85: 0 | W85: 0 | AA85: 0 | AB85: 0 | AC85: 0 | AD85: 0 | AE85: 0 | AF85: 0 | AG85: 0 | AH85: 0 | AI85: 0 | AJ85: 0 | AK85: 0 | AL85: 0 | AM85: 0 | AN85: 0 | AO85: 0 | AP85: 0 | AQ85: 0 | AR85: 0 | AS85: 0 | AT85: 0 | AU85: 0 | AV85: 0 | AW85: 0 | AX85: 0 | AY85: 0 | AZ85: 0 | BA85: 0 | BB85: 0 | BC85: 0 | BD85: 0 | BE85: 0 | BF85: 0 | BG85: 0 | BH85: 0 | BI85: 0 | BJ85: 0 | BK85: 0 | BL85: 0 | BM85: 0 | BN85: 0 | BO85: 0 | BP85: 0 | BQ85: 0 | BR85: 0 | BS85: 0 | BT85: 0 | BU85: 0 | BV85: 0 | BW85: 0 | BX85: 0 | BY85: 0 | BZ85: 0 | CA85: 0 | CB85: 0 | CC85: 0 | CD85: 0 | CE85: 0 | CF85: 0 | CG85: 0 | CH85: 0 | CI85: 0 | CJ85: 0 | CK85: 0 | CL85: 0 | CM85: 0 | CN85: 0 | CO85: 0 | CP85: 0 | CQ85: 0 | CR85: 0 | CS85: 0 | CT85: 0 | CU85: 0 | CV85: 0 | CW85: 0 | CX85: 0 | CY85: 0 | CZ85: 0 | DA85: 0 | DB85: 0 | DC85: 0 | DD85: 0 | DE85: 0 | DF85: 0 | DG85: 0 | DH85: 0 | DI85: 0 | DJ85: 0 | DK85: 0 | DL85: 0 | DM85: 0 | DN85: 0 | DO85: 0 | DP85: 0 | DQ85: 0 | DR85: 0 | DS85: 0 | DT85: 0 | DU85: 0 | DV85: 0 | DW85: 0 | DX85: 0 | DY85: 0 | DZ85: 0 | EA85: 0 | EB85: 0 | EC85: 0 | ED85: 0 | EE85: 0 | EF85: 0 | EG85: 0 | EH85: 0 | EI85: 0 | EJ85: 0 | EK85: 0 | EL85: 0 | EM85: 0 | EN85: 0 | EO85: 0 | EP85: 0 | EQ85: 0 | ER85: 0 | ES85: 0 | ET85: 0 | EU85: 0 | EV85: 0 | EW85: 0 | EX85: 0 | EY85: 0 | EZ85: 0 | FA85: 0 | FB85: 0 | FC85: 0 | FD85: 0 | FE85: 0 | FF85: 0 | FG85: 0 | FH85: 0 | FI85: 0 | FJ85: 0 | FK85: 0 | FL85: 0 | FM85: 0 | FN85: 0 | FO85: 0 | FP85: 0
K86: 0 | N86: 0 | Q86: руб. | T86: 0 | W86: 0 | AA86: 0 | AB86: 0 | AC86: 0 | AD86: 0 | AE86: 0 | AF86: 0 | AG86: 0 | AH86: 0 | AI86: 0 | AJ86: 0 | AK86: 0 | AL86: 0 | AM86: 0 | AN86: 0 | AO86: 0 | AP86: 0 | AQ86: 0 | AR86: 0 | AS86: 0 | AT86: 0 | AU86: 0 | AV86: 0 | AW86: 0 | AX86: 0 | AY86: 0 | AZ86: 0 | BA86: 0 | BB86: 0 | BC86: 0 | BD86: 0 | BE86: 0 | BF86: 0 | BG86: 0 | BH86: 0 | BI86: 0 | BJ86: 0 | BK86: 0 | BL86: 0 | BM86: 0 | BN86: 0 | BO86: 0 | BP86: 0 | BQ86: 0 | BR86: 0 | BS86: 0 | BT86: 0 | BU86: 0 | BV86: 0 | BW86: 0 | BX86: 0 | BY86: 0 | BZ86: 0 | CA86: 0 | CB86: 0 | CC86: 0 | CD86: 0 | CE86: 0 | CF86: 0 | CG86: 0 | CH86: 0 | CI86: 0 | CJ86: 0 | CK86: 0 | CL86: 0 | CM86: 0 | CN86: 0 | CO86: 0 | CP86: 0 | CQ86: 0 | CR86: 0 | CS86: 0 | CT86: 0 | CU86: 0 | CV86: 0 | CW86: 0 | CX86: 0 | CY86: 0 | CZ86: 0 | DA86: 0 | DB86: 0 | DC86: 0 | DD86: 0 | DE86: 0 | DF86: 0 | DG86: 0 | DH86: 0 | DI86: 0 | DJ86: 0 | DK86: 0 | DL86: 0 | DM86: 0 | DN86: 0 | DO86: 0 | DP86: 0 | DQ86: 0 | DR86: 0 | DS86: 0 | DT86: 0 | DU86: 0 | DV86: 0 | DW86: 0 | DX86: 0 | DY86: 0 | DZ86: 0 | EA86: 0 | EB86: 0 | EC86: 0 | ED86: 0 | EE86: 0 | EF86: 0 | EG86: 0 | EH86: 0 | EI86: 0 | EJ86: 0 | EK86: 0 | EL86: 0 | EM86: 0 | EN86: 0 | EO86: 0 | EP86: 0 | EQ86: 0 | ER86: 0 | ES86: 0 | ET86: 0 | EU86: 0 | EV86: 0 | EW86: 0 | EX86: 0 | EY86: 0 | EZ86: 0 | FA86: 0 | FB86: 0 | FC86: 0 | FD86: 0 | FE86: 0 | FF86: 0 | FG86: 0 | FH86: 0 | FI86: 0 | FJ86: 0 | FK86: 0 | FL86: 0 | FM86: 0 | FN86: 0 | FO86: 0 | FP86: 0
K87: 0 | N87: 0 | Q87: руб. | T87: 0 | W87: 0 | AA87: 0 | AB87: 0 | AC87: 0 | AD87: 0 | AE87: 0 | AF87: 0 | AG87: 0 | AH87: 0 | AI87: 0 | AJ87: 0 | AK87: 0 | AL87: 0 | AM87: 0 | AN87: 0 | AO87: 0 | AP87: 0 | AQ87: 0 | AR87: 0 | AS87: 0 | AT87: 0 | AU87: 0 | AV87: 0 | AW87: 0 | AX87: 0 | AY87: 0 | AZ87: 0 | BA87: 0 | BB87: 0 | BC87: 0 | BD87: 0 | BE87: 0 | BF87: 0 | BG87: 0 | BH87: 0 | BI87: 0 | BJ87: 0 | BK87: 0 | BL87: 0 | BM87: 0 | BN87: 0 | BO87: 0 | BP87: 0 | BQ87: 0 | BR87: 0 | BS87: 0 | BT87: 0 | BU87: 0 | BV87: 0 | BW87: 0 | BX87: 0 | BY87: 0 | BZ87: 0 | CA87: 0 | CB87: 0 | CC87: 0 | CD87: 0 | CE87: 0 | CF87: 0 | CG87: 0 | CH87: 0 | CI87: 0 | CJ87: 0 | CK87: 0 | CL87: 0 | CM87: 0 | CN87: 0 | CO87: 0 | CP87: 0 | CQ87: 0 | CR87: 0 | CS87: 0 | CT87: 0 | CU87: 0 | CV87: 0 | CW87: 0 | CX87: 0 | CY87: 0 | CZ87: 0 | DA87: 0 | DB87: 0 | DC87: 0 | DD87: 0 | DE87: 0 | DF87: 0 | DG87: 0 | DH87: 0 | DI87: 0 | DJ87: 0 | DK87: 0 | DL87: 0 | DM87: 0 | DN87: 0 | DO87: 0 | DP87: 0 | DQ87: 0 | DR87: 0 | DS87: 0 | DT87: 0 | DU87: 0 | DV87: 0 | DW87: 0 | DX87: 0 | DY87: 0 | DZ87: 0 | EA87: 0 | EB87: 0 | EC87: 0 | ED87: 0 | EE87: 0 | EF87: 0 | EG87: 0 | EH87: 0 | EI87: 0 | EJ87: 0 | EK87: 0 | EL87: 0 | EM87: 0 | EN87: 0 | EO87: 0 | EP87: 0 | EQ87: 0 | ER87: 0 | ES87: 0 | ET87: 0 | EU87: 0 | EV87: 0 | EW87: 0 | EX87: 0 | EY87: 0 | EZ87: 0 | FA87: 0 | FB87: 0 | FC87: 0 | FD87: 0 | FE87: 0 | FF87: 0 | FG87: 0 | FH87: 0 | FI87: 0 | FJ87: 0 | FK87: 0 | FL87: 0 | FM87: 0 | FN87: 0 | FO87: 0 | FP87: 0
K88: 0 | N88: 0 | Q88: руб. | T88: 0 | W88: 0 | AA88: 0 | AB88: 0 | AC88: 0 | AD88: 0 | AE88: 0 | AF88: 0 | AG88: 0 | AH88: 0 | AI88: 0 | AJ88: 0 | AK88: 0 | AL88: 0 | AM88: 0 | AN88: 0 | AO88: 0 | AP88: 0 | AQ88: 0 | AR88: 0 | AS88: 0 | AT88: 0 | AU88: 0 | AV88: 0 | AW88: 0 | AX88: 0 | AY88: 0 | AZ88: 0 | BA88: 0 | BB88: 0 | BC88: 0 | BD88: 0 | BE88: 0 | BF88: 0 | BG88: 0 | BH88: 0 | BI88: 0 | BJ88: 0 | BK88: 0 | BL88: 0 | BM88: 0 | BN88: 0 | BO88: 0 | BP88: 0 | BQ88: 0 | BR88: 0 | BS88: 0 | BT88: 0 | BU88: 0 | BV88: 0 | BW88: 0 | BX88: 0 | BY88: 0 | BZ88: 0 | CA88: 0 | CB88: 0 | CC88: 0 | CD88: 0 | CE88: 0 | CF88: 0 | CG88: 0 | CH88: 0 | CI88: 0 | CJ88: 0 | CK88: 0 | CL88: 0 | CM88: 0 | CN88: 0 | CO88: 0 | CP88: 0 | CQ88: 0 | CR88: 0 | CS88: 0 | CT88: 0 | CU88: 0 | CV88: 0 | CW88: 0 | CX88: 0 | CY88: 0 | CZ88: 0 | DA88: 0 | DB88: 0 | DC88: 0 | DD88: 0 | DE88: 0 | DF88: 0 | DG88: 0 | DH88: 0 | DI88: 0 | DJ88: 0 | DK88: 0 | DL88: 0 | DM88: 0 | DN88: 0 | DO88: 0 | DP88: 0 | DQ88: 0 | DR88: 0 | DS88: 0 | DT88: 0 | DU88: 0 | DV88: 0 | DW88: 0 | DX88: 0 | DY88: 0 | DZ88: 0 | EA88: 0 | EB88: 0 | EC88: 0 | ED88: 0 | EE88: 0 | EF88: 0 | EG88: 0 | EH88: 0 | EI88: 0 | EJ88: 0 | EK88: 0 | EL88: 0 | EM88: 0 | EN88: 0 | EO88: 0 | EP88: 0 | EQ88: 0 | ER88: 0 | ES88: 0 | ET88: 0 | EU88: 0 | EV88: 0 | EW88: 0 | EX88: 0 | EY88: 0 | EZ88: 0 | FA88: 0 | FB88: 0 | FC88: 0 | FD88: 0 | FE88: 0 | FF88: 0 | FG88: 0 | FH88: 0 | FI88: 0 | FJ88: 0 | FK88: 0 | FL88: 0 | FM88: 0 | FN88: 0 | FO88: 0 | FP88: 0
K89: 0 | N89: 0 | Q89: руб. | T89: 0 | W89: 0 | AA89: 0 | AB89: 0 | AC89: 0 | AD89: 0 | AE89: 0 | AF89: 0 | AG89: 0 | AH89: 0 | AI89: 0 | AJ89: 0 | AK89: 0 | AL89: 0 | AM89: 0 | AN89: 0 | AO89: 0 | AP89: 0 | AQ89: 0 | AR89: 0 | AS89: 0 | AT89: 0 | AU89: 0 | AV89: 0 | AW89: 0 | AX89: 0 | AY89: 0 | AZ89: 0 | BA89: 0 | BB89: 0 | BC89: 0 | BD89: 0 | BE89: 0 | BF89: 0 | BG89: 0 | BH89: 0 | BI89: 0 | BJ89: 0 | BK89: 0 | BL89: 0 | BM89: 0 | BN89: 0 | BO89: 0 | BP89: 0 | BQ89: 0 | BR89: 0 | BS89: 0 | BT89: 0 | BU89: 0 | BV89: 0 | BW89: 0 | BX89: 0 | BY89: 0 | BZ89: 0 | CA89: 0 | CB89: 0 | CC89: 0 | CD89: 0 | CE89: 0 | CF89: 0 | CG89: 0 | CH89: 0 | CI89: 0 | CJ89: 0 | CK89: 0 | CL89: 0 | CM89: 0 | CN89: 0 | CO89: 0 | CP89: 0 | CQ89: 0 | CR89: 0 | CS89: 0 | CT89: 0 | CU89: 0 | CV89: 0 | CW89: 0 | CX89: 0 | CY89: 0 | CZ89: 0 | DA89: 0 | DB89: 0 | DC89: 0 | DD89: 0 | DE89: 0 | DF89: 0 | DG89: 0 | DH89: 0 | DI89: 0 | DJ89: 0 | DK89: 0 | DL89: 0 | DM89: 0 | DN89: 0 | DO89: 0 | DP89: 0 | DQ89: 0 | DR89: 0 | DS89: 0 | DT89: 0 | DU89: 0 | DV89: 0 | DW89: 0 | DX89: 0 | DY89: 0 | DZ89: 0 | EA89: 0 | EB89: 0 | EC89: 0 | ED89: 0 | EE89: 0 | EF89: 0 | EG89: 0 | EH89: 0 | EI89: 0 | EJ89: 0 | EK89: 0 | EL89: 0 | EM89: 0 | EN89: 0 | EO89: 0 | EP89: 0 | EQ89: 0 | ER89: 0 | ES89: 0 | ET89: 0 | EU89: 0 | EV89: 0 | EW89: 0 | EX89: 0 | EY89: 0 | EZ89: 0 | FA89: 0 | FB89: 0 | FC89: 0 | FD89: 0 | FE89: 0 | FF89: 0 | FG89: 0 | FH89: 0 | FI89: 0 | FJ89: 0 | FK89: 0 | FL89: 0 | FM89: 0 | FN89: 0 | FO89: 0 | FP89: 0
G92: * | H92: Месяц / Индикатор старта Проекта | T92: 2022-01-01 | W92: 1 | AA92: 1 | AB92: 0 | AC92: 0 | AD92: 0 | AE92: 0 | AF92: 0 | AG92: 0 | AH92: 0 | AI92: 0 | AJ92: 0 | AK92: 0 | AL92: 0 | AM92: 0 | AN92: 0 | AO92: 0 | AP92: 0 | AQ92: 0 | AR92: 0 | AS92: 0 | AT92: 0 | AU92: 0 | AV92: 0 | AW92: 0 | AX92: 0 | AY92: 0 | AZ92: 0 | BA92: 0 | BB92: 0 | BC92: 0 | BD92: 0 | BE92: 0 | BF92: 0 | BG92: 0 | BH92: 0 | BI92: 0 | BJ92: 0 | BK92: 0 | BL92: 0 | BM92: 0 | BN92: 0 | BO92: 0 | BP92: 0 | BQ92: 0 | BR92: 0 | BS92: 0 | BT92: 0 | BU92: 0 | BV92: 0 | BW92: 0 | BX92: 0 | BY92: 0 | BZ92: 0 | CA92: 0 | CB92: 0 | CC92: 0 | CD92: 0 | CE92: 0 | CF92: 0 | CG92: 0 | CH92: 0 | CI92: 0 | CJ92: 0 | CK92: 0 | CL92: 0 | CM92: 0 | CN92: 0 | CO92: 0 | CP92: 0 | CQ92: 0 | CR92: 0 | CS92: 0 | CT92: 0 | CU92: 0 | CV92: 0 | CW92: 0 | CX92: 0 | CY92: 0 | CZ92: 0 | DA92: 0 | DB92: 0 | DC92: 0 | DD92: 0 | DE92: 0 | DF92: 0 | DG92: 0 | DH92: 0 | DI92: 0 | DJ92: 0 | DK92: 0 | DL92: 0 | DM92: 0 | DN92: 0 | DO92: 0 | DP92: 0 | DQ92: 0 | DR92: 0 | DS92: 0 | DT92: 0 | DU92: 0 | DV92: 0 | DW92: 0 | DX92: 0 | DY92: 0 | DZ92: 0 | EA92: 0 | EB92: 0 | EC92: 0 | ED92: 0 | EE92: 0 | EF92: 0 | EG92: 0 | EH92: 0 | EI92: 0 | EJ92: 0 | EK92: 0 | EL92: 0 | EM92: 0 | EN92: 0 | EO92: 0 | EP92: 0 | EQ92: 0 | ER92: 0 | ES92: 0 | ET92: 0 | EU92: 0 | EV92: 0 | EW92: 0 | EX92: 0 | EY92: 0 | EZ92: 0 | FA92: 0 | FB92: 0 | FC92: 0 | FD92: 0 | FE92: 0 | FF92: 0 | FG92: 0 | FH92: 0 | FI92: 0 | FJ92: 0 | FK92: 0 | FL92: 0 | FM92: 0 | FN92: 0 | FO92: 0 | FP92: 0
G95: * | H95: Месяц / Индикатор ввода в эксплуатацию производства | T95: 2022-07-01 | W95: 1 | AA95: 0 | AB95: 0 | AC95: 0 | AD95: 0 | AE95: 0 | AF95: 0 | AG95: 1 | AH95: 0 | AI95: 0 | AJ95: 0 | AK95: 0 | AL95: 0 | AM95: 0 | AN95: 0 | AO95: 0 | AP95: 0 | AQ95: 0 | AR95: 0 | AS95: 0 | AT95: 0 | AU95: 0 | AV95: 0 | AW95: 0 | AX95: 0 | AY95: 0 | AZ95: 0 | BA95: 0 | BB95: 0 | BC95: 0 | BD95: 0 | BE95: 0 | BF95: 0 | BG95: 0 | BH95: 0 | BI95: 0 | BJ95: 0 | BK95: 0 | BL95: 0 | BM95: 0 | BN95: 0 | BO95: 0 | BP95: 0 | BQ95: 0 | BR95: 0 | BS95: 0 | BT95: 0 | BU95: 0 | BV95: 0 | BW95: 0 | BX95: 0 | BY95: 0 | BZ95: 0 | CA95: 0 | CB95: 0 | CC95: 0 | CD95: 0 | CE95: 0 | CF95: 0 | CG95: 0 | CH95: 0 | CI95: 0 | CJ95: 0 | CK95: 0 | CL95: 0 | CM95: 0 | CN95: 0 | CO95: 0 | CP95: 0 | CQ95: 0 | CR95: 0 | CS95: 0 | CT95: 0 | CU95: 0 | CV95: 0 | CW95: 0 | CX95: 0 | CY95: 0 | CZ95: 0 | DA95: 0 | DB95: 0 | DC95: 0 | DD95: 0 | DE95: 0 | DF95: 0 | DG95: 0 | DH95: 0 | DI95: 0 | DJ95: 0 | DK95: 0 | DL95: 0 | DM95: 0 | DN95: 0 | DO95: 0 | DP95: 0 | DQ95: 0 | DR95: 0 | DS95: 0 | DT95: 0 | DU95: 0 | DV95: 0 | DW95: 0 | DX95: 0 | DY95: 0 | DZ95: 0 | EA95: 0 | EB95: 0 | EC95: 0 | ED95: 0 | EE95: 0 | EF95: 0 | EG95: 0 | EH95: 0 | EI95: 0 | EJ95: 0 | EK95: 0 | EL95: 0 | EM95: 0 | EN95: 0 | EO95: 0 | EP95: 0 | EQ95: 0 | ER95: 0 | ES95: 0 | ET95: 0 | EU95: 0 | EV95: 0 | EW95: 0 | EX95: 0 | EY95: 0 | EZ95: 0 | FA95: 0 | FB95: 0 | FC95: 0 | FD95: 0 | FE95: 0 | FF95: 0 | FG95: 0 | FH95: 0 | FI95: 0 | FJ95: 0 | FK95: 0 | FL95: 0 | FM95: 0 | FN95: 0 | FO95: 0 | FP95: 0
G98: * | H98: Количество месяцев создания производства | W98: 7 | AA98: 1 | AB98: 1 | AC98: 1 | AD98: 1 | AE98: 1 | AF98: 1 | AG98: 1 | AH98: 0 | AI98: 0 | AJ98: 0 | AK98: 0 | AL98: 0 | AM98: 0 | AN98: 0 | AO98: 0 | AP98: 0 | AQ98: 0 | AR98: 0 | AS98: 0 | AT98: 0 | AU98: 0 | AV98: 0 | AW98: 0 | AX98: 0 | AY98: 0 | AZ98: 0 | BA98: 0 | BB98: 0 | BC98: 0 | BD98: 0 | BE98: 0 | BF98: 0 | BG98: 0 | BH98: 0 | BI98: 0 | BJ98: 0 | BK98: 0 | BL98: 0 | BM98: 0 | BN98: 0 | BO98: 0 | BP98: 0 | BQ98: 0 | BR98: 0 | BS98: 0 | BT98: 0 | BU98: 0 | BV98: 0 | BW98: 0 | BX98: 0 | BY98: 0 | BZ98: 0 | CA98: 0 | CB98: 0 | CC98: 0 | CD98: 0 | CE98: 0 | CF98: 0 | CG98: 0 | CH98: 0 | CI98: 0 | CJ98: 0 | CK98: 0 | CL98: 0 | CM98: 0 | CN98: 0 | CO98: 0 | CP98: 0 | CQ98: 0 | CR98: 0 | CS98: 0 | CT98: 0 | CU98: 0 | CV98: 0 | CW98: 0 | CX98: 0 | CY98: 0 | CZ98: 0 | DA98: 0 | DB98: 0 | DC98: 0 | DD98: 0 | DE98: 0 | DF98: 0 | DG98: 0 | DH98: 0 | DI98: 0 | DJ98: 0 | DK98: 0 | DL98: 0 | DM98: 0 | DN98: 0 | DO98: 0 | DP98: 0 | DQ98: 0 | DR98: 0 | DS98: 0 | DT98: 0 | DU98: 0 | DV98: 0 | DW98: 0 | DX98: 0 | DY98: 0 | DZ98: 0 | EA98: 0 | EB98: 0 | EC98: 0 | ED98: 0 | EE98: 0 | EF98: 0 | EG98: 0 | EH98: 0 | EI98: 0 | EJ98: 0 | EK98: 0 | EL98: 0 | EM98: 0 | EN98: 0 | EO98: 0 | EP98: 0 | EQ98: 0 | ER98: 0 | ES98: 0 | ET98: 0 | EU98: 0 | EV98: 0 | EW98: 0 | EX98: 0 | EY98: 0 | EZ98: 0 | FA98: 0 | FB98: 0 | FC98: 0 | FD98: 0 | FE98: 0 | FF98: 0 | FG98: 0 | FH98: 0 | FI98: 0 | FJ98: 0 | FK98: 0 | FL98: 0 | FM98: 0 | FN98: 0 | FO98: 0 | FP98: 0

Sheet HR
Z1: 1 | AA1: 2 | AB1: 3 | AC1: 4 | AD1: 5 | AE1: 6 | AF1: 7 | AG1: 8 | AH1: 9 | AI1: 10 | AJ1: 11 | AK1: 12
D2: Финансовая модель
D3: Проект: разработка онлайн сервиса
F5: * | G5: Штатное расписание
K7: БЕЗ ФОРМУЛ!!! | Z7: сезонность
B8: коммент | H8: показатель | M8: * | N8: месяц старта | P8: * | Q8: кол-во чел | T8: з/п в месяц | W8: индексация | Z8: 2020-01-01 | AA8: 2020-02-01 | AB8: 2020-03-01 | AC8: 2020-04-01 | AD8: 2020-05-01 | AE8: 2020-06-01 | AF8: 2020-07-01 | AG8: 2020-08-01 | AH8: 2020-09-01 | AI8: 2020-10-01 | AJ8: 2020-11-01 | AK8: 2020-12-01
B12: вкл. ндфл | G12: * | H12: Штатное расписание | Q12: 26 | T12: 2990000
J15: * | K15: Производственный персонал | M15: * | O15: ^ | P15: * | S15: * | V15: * | Y15: *
J16: * | K16: Руководитель подразделения инноваций | M16: * | N16: 2022-01-01 | O16: ^ | P16: * | Q16: 1 | S16: * | T16: 280000 | V16: * | W16: 0.03 | Y16: * | Z16: 1 | AA16: 1 | AB16: 1 | AC16: 1 | AD16: 1 | AE16: 1 | AF16: 1 | AG16: 1 | AH16: 1 | AI16: 1 | AJ16: 1 | AK16: 1
J17: * | K17: Главный инженер | M17: * | N17: 2022-01-01 | O17: ^ | P17: * | Q17: 1 | S17: * | T17: 170000 | V17: * | W17: 0.03 | Y17: * | Z17: 1 | AA17: 1 | AB17: 1 | AC17: 1 | AD17: 1 | AE17: 1 | AF17: 1 | AG17: 1 | AH17: 1 | AI17: 1 | AJ17: 1 | AK17: 1
J18: * | K18: Программист | M18: * | N18: 2022-01-01 | O18: ^ | P18: * | Q18: 1 | S18: * | T18: 70000 | V18: * | W18: 0.03 | Y18: * | Z18: 1 | AA18: 1 | AB18: 1 | AC18: 1 | AD18: 1 | AE18: 1 | AF18: 1 | AG18: 1 | AH18: 1 | AI18: 1 | AJ18: 1 | AK18: 1
J19: * | K19: Программист | M19: * | N19: 2022-08-01 | O19: ^ | P19: * | Q19: 1 | S19: * | T19: 70000 | V19: * | W19: 0.03 | Y19: * | Z19: 1 | AA19: 1 | AB19: 1 | AC19: 1 | AD19: 1 | AE19: 1 | AF19: 1 | AG19: 1 | AH19: 1 | AI19: 1 | AJ19: 1 | AK19: 1
J20: * | K20: ВЕБ-Программист | M20: * | N20: 2022-01-01 | O20: ^ | P20: * | Q20: 1 | S20: * | T20: 115000 | V20: * | W20: 0.03 | Y20: * | Z20: 1 | AA20: 1 | AB20: 1 | AC20: 1 | AD20: 1 | AE20: 1 | AF20: 1 | AG20: 1 | AH20: 1 | AI20: 1 | AJ20: 1 | AK20: 1
J21: * | K21: Дизайнер приложений | M21: * | N21: 2022-01-01 | O21: ^ | P21: * | Q21: 1 | S21: * | T21: 70000 | V21: * | W21: 0.03 | Y21: * | Z21: 1 | AA21: 1 | AB21: 1 | AC21: 1 | AD21: 1 | AE21: 1 | AF21: 1 | AG21: 1 | AH21: 1 | AI21: 1 | AJ21: 1 | AK21: 1
J22: * | K22: Системный администратор | M22: * | N22: 2022-01-01 | O22: ^ | P22: * | Q22: 1 | S22: * | T22: 115000 | V22: * | W22: 0.03 | Y22: * | Z22: 1 | AA22: 1 | AB22: 1 | AC22: 1 | AD22: 1 | AE22: 1 | AF22: 1 | AG22: 1 | AH22: 1 | AI22: 1 | AJ22: 1 | AK22: 1
J23: * | K23: Администратор базы дынных | M23: * | N23: 2022-01-01 | O23: ^ | P23: * | Q23: 1 | S23: * | T23: 115000 | V23: * | W23: 0.03 | Y23: * | Z23: 1 | AA23: 1 | AB23: 1 | AC23: 1 | AD23: 1 | AE23: 1 | AF23: 1 | AG23: 1 | AH23: 1 | AI23: 1 | AJ23: 1 | AK23: 1
J24: * | K24: Инженер-конструктор | M24: * | N24: 2022-01-01 | O24: ^ | P24: * | Q24: 1 | S24: * | T24: 115000 | V24: * | W24: 0.03 | Y24: * | Z24: 1 | AA24: 1 | AB24: 1 | AC24: 1 | AD24: 1 | AE24: 1 | AF24: 1 | AG24: 1 | AH24: 1 | AI24: 1 | AJ24: 1 | AK24: 1
J25: * | K25: Инженер | M25: * | N25: 2022-01-01 | O25: ^ | P25: * | Q25: 1 | S25: * | T25: 115000 | V25: * | W25: 0.03 | Y25: * | Z25: 1 | AA25: 1 | AB25: 1 | AC25: 1 | AD25: 1 | AE25: 1 | AF25: 1 | AG25: 1 | AH25: 1 | AI25: 1 | AJ25: 1 | AK25: 1
J26: * | K26: Сборщик-электронщик | M26: * | N26: 2022-01-01 | O26: ^ | P26: * | Q26: 1 | S26: * | T26: 90000 | V26: * | W26: 0.03 | Y26: * | Z26: 1 | AA26: 1 | AB26: 1 | AC26: 1 | AD26: 1 | AE26: 1 | AF26: 1 | AG26: 1 | AH26: 1 | AI26: 1 | AJ26: 1 | AK26: 1
J27: * | K27: Электронщик-схематехник | M27: * | N27: 2022-01-01 | O27: ^ | P27: * | Q27: 1 | S27: * | T27: 110000 | V27: * | W27: 0.03 | Y27: * | Z27: 1 | AA27: 1 | AB27: 1 | AC27: 1 | AD27: 1 | AE27: 1 | AF27: 1 | AG27: 1 | AH27: 1 | AI27: 1 | AJ27: 1 | AK27: 1
J28: * | K28: Тестировщик | M28: * | N28: 2022-01-01 | O28: ^ | P28: * | Q28: 1 | S28: * | T28: 70000 | V28: * | W28: 0.03 | Y28: * | Z28: 1 | AA28: 1 | AB28: 1 | AC28: 1 | AD28: 1 | AE28: 1 | AF28: 1 | AG28: 1 | AH28: 1 | AI28: 1 | AJ28: 1 | AK28: 1
J29: * | K29: Тестировщик | M29: * | N29: 2022-08-01 | O29: ^ | P29: * | Q29: 1 | S29: * | T29: 70000 | V29: * | W29: 0.03 | Y29: * | Z29: 1 | AA29: 1 | AB29: 1 | AC29: 1 | AD29: 1 | AE29: 1 | AF29: 1 | AG29: 1 | AH29: 1 | AI29: 1 | AJ29: 1 | AK29: 1
J30: * | K30: Сборщики | M30: * | N30: 2022-01-01 | O30: ^ | P30: * | Q30: 1 | S30: * | T30: 70000 | V30: * | W30: 0.03 | Y30: * | Z30: 1 | AA30: 1 | AB30: 1 | AC30: 1 | AD30: 1 | AE30: 1 | AF30: 1 | AG30: 1 | AH30: 1 | AI30: 1 | AJ30: 1 | AK30: 1
J31: * | K31: Сборщики | M31: * | N31: 2022-08-01 | O31: ^ | P31: * | Q31: 2 | S31: * | T31: 70000 | V31: * | W31: 0.03 | Y31: * | Z31: 1 | AA31: 1 | AB31: 1 | AC31: 1 | AD31: 1 | AE31: 1 | AF31: 1 | AG31: 1 | AH31: 1 | AI31: 1 | AJ31: 1 | AK31: 1
J32: * | K32: Установщик | M32: * | N32: 2022-08-01 | O32: ^ | P32: * | Q32: 2 | S32: * | T32: 55000 | V32: * | W32: 0.03 | Y32: * | Z32: 1 | AA32: 1 | AB32: 1 | AC32: 1 | AD32: 1 | AE32: 1 | AF32: 1 | AG32: 1 | AH32: 1 | AI32: 1 | AJ32: 1 | AK32: 1
J33: * | K33: Административный персонал | M33: * | O33: ^ | P33: * | S33: * | V33: * | Y33: *
J34: * | K34: Генеральный директор | M34: * | N34: 2022-01-01 | O34: ^ | P34: * | Q34: 1 | S34: * | T34: 350000 | V34: * | W34: 0.03 | Y34: * | Z34: 1 | AA34: 1 | AB34: 1 | AC34: 1 | AD34: 1 | AE34: 1 | AF34: 1 | AG34: 1 | AH34: 1 | AI34: 1 | AJ34: 1 | AK34: 1
J35: * | K35: Главный бухгалтер | M35: * | N35: 2022-01-01 | O35: ^ | P35: * | Q35: 1 | S35: * | T35: 130000 | V35: * | W35: 0.03 | Y35: * | Z35: 1 | AA35: 1 | AB35: 1 | AC35: 1 | AD35: 1 | AE35: 1 | AF35: 1 | AG35: 1 | AH35: 1 | AI35: 1 | AJ35: 1 | AK35: 1
J36: * | K36: Бухгалтер | M36: * | N36: 2022-08-01 | O36: ^ | P36: * | Q36: 1 | S36: * | T36: 70000 | V36: * | W36: 0.03 | Y36: * | Z36: 1 | AA36: 1 | AB36: 1 | AC36: 1 | AD36: 1 | AE36: 1 | AF36: 1 | AG36: 1 | AH36: 1 | AI36: 1 | AJ36: 1 | AK36: 1
J37: * | K37: Ассистент по работе с клиентами | M37: * | N37: 2022-01-01 | O37: ^ | P37: * | Q37: 1 | S37: * | T37: 120000 | V37: * | W37: 0.03 | Y37: * | Z37: 1 | AA37: 1 | AB37: 1 | AC37: 1 | AD37: 1 | AE37: 1 | AF37: 1 | AG37: 1 | AH37: 1 | AI37: 1 | AJ37: 1 | AK37: 1
J38: * | K38: Руководитель отдела продаж | M38: * | N38: 2022-01-01 | O38: ^ | P38: * | Q38: 1 | S38: * | T38: 180000 | V38: * | W38: 0.03 | Y38: * | Z38: 1 | AA38: 1 | AB38: 1 | AC38: 1 | AD38: 1 | AE38: 1 | AF38: 1 | AG38: 1 | AH38: 1 | AI38: 1 | AJ38: 1 | AK38: 1
J39: * | K39: Бизнес-ассистент | M39: * | N39: 2022-01-01 | O39: ^ | P39: * | Q39: 1 | S39: * | T39: 75000 | V39: * | W39: 0.03 | Y39: * | Z39: 1 | AA39: 1 | AB39: 1 | AC39: 1 | AD39: 1 | AE39: 1 | AF39: 1 | AG39: 1 | AH39: 1 | AI39: 1 | AJ39: 1 | AK39: 1
J40: * | K40: Руководитель отдела маркетинга | M40: * | N40: 2022-01-01 | O40: ^ | P40: * | Q40: 1 | S40: * | T40: 170000 | V40: * | W40: 0.03 | Y40: * | Z40: 1 | AA40: 1 | AB40: 1 | AC40: 1 | AD40: 1 | AE40: 1 | AF40: 1 | AG40: 1 | AH40: 1 | AI40: 1 | AJ40: 1 | AK40: 1
J41: * | M41: * | O41: ^ | P41: * | S41: * | V41: * | Y41: *
J42: * | M42: * | O42: ^ | P42: * | S42: * | V42: * | Y42: *
Y43: *

Sheet Reports
C1: Ключевые отчеты проекта, период: год | E1: БЕЗ ФОРМУЛ!!!
C2: в рублях | E2: ИТОГО | G2: 1 год | H2: 2 год | I2: 3 год | J2: 4 год | K2: 5 год | L2: 6 год | M2: 7 год | N2: 8 год | O2: 9 год | P2: 10 год | Q2: 11 год | R2: 12 год
B3: PL | C3: Выручка | E3: 668984642.3 | G3: 5539884.583 | H3: 23671729.57 | I3: 63543305.04 | J3: 116382632 | K3: 186018102.9 | L3: 273828988.2 | M3: 0 | N3: 0 | O3: 0 | P3: 0 | Q3: 0 | R3: 0
C4: в т.ч.
C5: Продажа аппаратов | E5: 138912409.9 | G5: 3416000 | H5: 9763950 | I5: 18742500 | J5: 26694832.5 | K5: 35395542 | L5: 44899585.37 | M5: 0 | N5: 0 | O5: 0 | P5: 0 | Q5: 0 | R5: 0
C6: Продажа годовых подписок на онлайн сервис | E6: 530072232.4 | G6: 2123884.583 | H6: 13907779.57 | I6: 44800805.04 | J6: 89687799.51 | K6: 150622560.9 | L6: 228929402.8 | M6: 0 | N6: 0 | O6: 0 | P6: 0 | Q6: 0 | R6: 0
C8: прочее | E8: 0 | G8: 0 | H8: 0 | I8: 0 | J8: 0 | K8: 0 | L8: 0 | M8: 0 | N8: 0 | O8: 0 | P8: 0 | Q8: 0 | R8: 0
C9: Себестоимость | E9: 49545426.19 | G9: 1218373.333 | H9: 3482475.5 | I9: 6684825 | J9: 9521156.925 | K9: 12624409.98 | L9: 16014185.45 | M9: 0 | N9: 0 | O9: 0 | P9: 0 | Q9: 0 | R9: 0
C10: Валовая прибыль | E10: 619439216.1 | G10: 4321511.25 | H10: 20189254.07 | I10: 56858480.04 | J10: 106861475.1 | K10: 173393692.9 | L10: 257814802.8 | M10: 0 | N10: 0 | O10: 0 | P10: 0 | Q10: 0 | R10: 0
C11: Рентабельность продаж | E11: 0.9259393668 | G11: 0.7800724338 | H11: 0.8528846196 | I11: 0.8947989092 | J11: 0.9181909125 | K11: 0.9321334333 | L11: 0.941517567 | M11: 0 | N11: 0 | O11: 0 | P11: 0 | Q11: 0 | R11: 0
C12: Начисление прямых расходов | E12: 24364798.6 | G12: 326377.1146 | H12: 1128810.489 | I12: 2619420.126 | J12: 4377781.588 | K12: 6597207.381 | L12: 9315201.9 | M12: 0 | N12: 0 | O12: 0 | P12: 0 | Q12: 0 | R12: 0
C13: Прибыль от коммерческой деятельности | E13: 595074417.5 | G13: 3995134.135 | H13: 19060443.58 | I13: 54239059.91 | J13: 102483693.5 | K13: 166796485.5 | L13: 248499600.9 | M13: 0 | N13: 0 | O13: 0 | P13: 0 | Q13: 0 | R13: 0
C14: Рентабельность коммерческой деятельности | E14: 0.8895188019 | G14: 0.7211583699 | H14: 0.805198603 | I14: 0.8535763111 | J14: 0.8805754925 | K14: 0.8966680282 | L14: 0.9074992479 | M14: 0 | N14: 0 | O14: 0 | P14: 0 | Q14: 0 | R14: 0
C15: Начисление переменных расходов | E15: 40139078.54 | G15: 332393.075 | H15: 1420303.774 | I15: 3812598.302 | J15: 6982957.921 | K15: 11161086.17 | L15: 16429739.29 | M15: 0 | N15: 0 | O15: 0 | P15: 0 | Q15: 0 | R15: 0
C16: Маржинальная прибыль | E16: 554935338.9 | G16: 3662741.06 | H16: 17640139.81 | I16: 50426461.61 | J16: 95500735.58 | K16: 155635399.3 | L16: 232069861.6 | M16: 0 | N16: 0 | O16: 0 | P16: 0 | Q16: 0 | R16: 0
C17: Рентабельность до постоянных расходов | E17: 0.8295188019 | G17: 0.6611583699 | H17: 0.745198603 | I17: 0.7935763111 | J17: 0.8205754925 | K17: 0.8366680282 | L17: 0.8474992479 | M17: 0 | N17: 0 | O17: 0 | P17: 0 | Q17: 0 | R17: 0
C18: Начисление постоянных расходов | E18: 311594539.7 | G18: 51351053.33 | H18: 48371308.8 | I18: 50124968.06 | J18: 51960919.41 | K18: 53884558.13 | L18: 55901731.99 | M18: 0 | N18: 0 | O18: 0 | P18: 0 | Q18: 0 | R18: 0
C20: EBITDA | E20: 243340799.2 | G20: -47688312.27 | H20: -30731168.99 | I20: 301493.5466 | J20: 43539816.17 | K20: 101750841.2 | L20: 176168129.6 | M20: 0 | N20: 0 | O20: 0 | P20: 0 | Q20: 0 | R20: 0
C21: Рентабельность операционной деятельности | E21: 0.3637464657 | G21: -8.608177942 | H21: -1.298222376 | I21: 0.004744694133 | J21: 0.3741092242 | K21: 0.5469942959 | L21: 0.643350913 | M21: 0 | N21: 0 | O21: 0 | P21: 0 | Q21: 0 | R21: 0
C22: начисление %% по кредиту за период | E22: 35719435.71 | G22: 8960000 | H22: 8849224.243 | I22: 8387228.668 | J22: 5374834.655 | K22: 3069629.63 | L22: 1078518.519 | M22: 0 | N22: 0 | O22: 0 | P22: 0 | Q22: 0 | R22: 0
C23: Начисление налога на имущество | E23: 2523003.472 | G23: 400607.6389 | H23: 549479.1667 | I23: 486979.1667 | J23: 424479.1667 | K23: 361979.1667 | L23: 299479.1667 | M23: 0 | N23: 0 | O23: 0 | P23: 0 | Q23: 0 | R23: 0
C24: Налог на прибыль | E24: 31422449.78 | G24: 0 | H24: 0 | I24: 0 | J24: 0 | K24: 0 | L24: 31422449.78 | M24: 0 | N24: 0 | O24: 0 | P24: 0 | Q24: 0 | R24: 0
C25: Амортизация | E25: 47986111.11 | G25: 6319444.444 | H25: 8333333.333 | I25: 8333333.333 | J25: 8333333.333 | K25: 8333333.333 | L25: 8333333.333 | M25: 0 | N25: 0 | O25: 0 | P25: 0 | Q25: 0 | R25: 0
C26: Чистая прибыль | E26: 125689799.1 | G26: -63368364.36 | H26: -48463205.74 | I26: -16906047.62 | J26: 29407169.02 | K26: 89985899.06 | L26: 135034348.8 | M26: 0 | N26: 0 | O26: 0 | P26: 0 | Q26: 0 | R26: 0
B28: CF | C28: Поступление ДС | E28: 1099456352 | G28: 13526800 | H28: 48199130 | I28: 110498341.8 | J28: 193282260.3 | K28: 300315851.7 | L28: 433633968.5 | M28: 0 | N28: 0 | O28: 0 | P28: 0 | Q28: 0 | R28: 0
C29: в т.ч.
C30: Продажа аппаратов | E30: 165372664.1 | G30: 3962000 | H30: 11529070 | I30: 22229340 | J30: 31809991.5 | K30: 42229928.47 | L30: 53612334.17 | M30: 0 | N30: 0 | O30: 0 | P30: 0 | Q30: 0 | R30: 0
C31: Продажа годовых подписок на онлайн сервис | E31: 934083688.1 | G31: 9564800 | H31: 36670060 | I31: 88269001.8 | J31: 161472268.8 | K31: 258085923.2 | L31: 380021634.3 | M31: 0 | N31: 0 | O31: 0 | P31: 0 | Q31: 0 | R31: 0
C33: прочее | E33: 0 | G33: 0 | H33: 0 | I33: 0 | J33: 0 | K33: 0 | L33: 0 | M33: 0 | N33: 0 | O33: 0 | P33: 0 | Q33: 0 | R33: 0
C34: Оплаты за комплектующие и проч. с/ст ингредиенты | E34: 59327966.89 | G34: 1550419.368 | H34: 4273399.485 | I34: 8100374.727 | J34: 11517423.71 | K34: 15249877.45 | L34: 18636472.15 | M34: 0 | N34: 0 | O34: 0 | P34: 0 | Q34: 0 | R34: 0
C35: Оплата прямых расходов | E35: 29194124.81 | G35: 387124.9375 | H35: 1348379.477 | I35: 3134669.371 | J35: 5245952.258 | K35: 7908573.034 | L35: 11169425.73 | M35: 0 | N35: 0 | O35: 0 | P35: 0 | Q35: 0 | R35: 0
C36: Оплата переменных расходов | E36: 47644202.01 | G36: 382828.4367 | H36: 1664551.106 | I36: 4492802.337 | J36: 8280717.243 | K36: 13265904.16 | L36: 19557398.72 | M36: 0 | N36: 0 | O36: 0 | P36: 0 | Q36: 0 | R36: 0
C37: Оплата постоянных расходов | E37: 315859130 | G37: 53359386.67 | H37: 48785725.47 | I37: 50556856.9 | J37: 52411195.99 | K37: 54354196.38 | L37: 56391768.56 | M37: 0 | N37: 0 | O37: 0 | P37: 0 | Q37: 0 | R37: 0
C38: Оплата НДС по операционной деят-ти | E38: 102834041.6 | G38: -1413119.506 | H38: 2823637.2 | I38: 9046694.636 | J38: 17913268.06 | K38: 29704673.45 | L38: 44758887.79 | M38: 0 | N38: 0 | O38: 0 | P38: 0 | Q38: 0 | R38: 0
C40: Финпоток по операционной деятельности | E40: 544596886.9 | G40: -40739839.9 | H40: -10696562.74 | I40: 35166943.83 | J40: 97913703.04 | K40: 179832627.2 | L40: 283120015.5 | M40: 0 | N40: 0 | O40: 0 | P40: 0 | Q40: 0 | R40: 0
C41: Возмещение ндс по капзатратам | E41: 16666666.67 | G41: 14666666.67 | H41: 2000000 | I41: 0 | J41: 0 | K41: 0 | L41: 0 | M41: 0 | N41: 0 | O41: 0 | P41: 0 | Q41: 0 | R41: 0
C42: Оплата капитальных затрат | E42: 100000000 | G42: 100000000 | H42: 0 | I42: 0 | J42: 0 | K42: 0 | L42: 0 | M42: 0 | N42: 0 | O42: 0 | P42: 0 | Q42: 0 | R42: 0
C43: Оплата налога на имущество | E43: 2523003.472 | G43: 400607.6389 | H43: 549479.1667 | I43: 486979.1667 | J43: 424479.1667 | K43: 361979.1667 | L43: 299479.1667 | M43: 0 | N43: 0 | O43: 0 | P43: 0 | Q43: 0 | R43: 0
C44: Оплата налога на прибыль | E44: 28786943.77 | G44: 0 | H44: 0 | I44: 0 | J44: 0 | K44: 0 | L44: 28786943.77 | M44: 0 | N44: 0 | O44: 0 | P44: 0 | Q44: 0 | R44: 0
C45: Финпоток проекта (по осн. деят-ти) | E45: 429953606.4 | G45: -126473780.9 | H45: -9246041.902 | I45: 34679964.66 | J45: 97489223.87 | K45: 179470648 | L45: 254033592.6 | M45: 0 | N45: 0 | O45: 0 | P45: 0 | Q45: 0 | R45: 0
C46: Поступления кредитных средств за период | E46: 17577441.68 | G46: 0 | H46: 7654637.592 | I46: 8819281.499 | J46: 1103522.594 | K46: 0 | L46: 0 | M46: 0 | N46: 0 | O46: 0 | P46: 0 | Q46: 0 | R46: 0
C47: Объем возврата кредитных средств за период | E47: 17577441.68 | G47: 0 | H47: 0 | I47: 6652784.192 | J47: 10924657.49 | K47: 0 | L47: 0 | M47: 0 | N47: 0 | O47: 0 | P47: 0 | Q47: 0 | R47: 0
C48: Оплата %% по кредиту | E48: 1746102.38 | G48: 0 | H48: 0 | I48: 1350165.675 | J48: 395936.705 | K48: 0 | L48: 0 | M48: 0 | N48: 0 | O48: 0 | P48: 0 | Q48: 0 | R48: 0
C49: Финпоток по финансовой деятельности | E49: -1746102.38 | G49: 0 | H49: 7654637.592 | I49: 816331.6318 | J49: -10217071.6 | K49: 0 | L49: 0 | M49: 0 | N49: 0 | O49: 0 | P49: 0 | Q49: 0 | R49: 0
C50: Поступление финансирования от Банка | E50: 128000000 | G50: 128000000 | H50: 0 | I50: 0 | J50: 0 | K50: 0 | L50: 0 | M50: 0 | N50: 0 | O50: 0 | P50: 0 | Q50: 0 | R50: 0
C51: Поступление финансирования от Учредителя | E51: 32000000 | G51: 32000000 | H51: 0 | I51: 0 | J51: 0 | K51: 0 | L51: 0 | M51: 0 | N51: 0 | O51: 0 | P51: 0 | Q51: 0 | R51: 0
C52: Возврат кредита Банку | E52: 128000000 | G52: 0 | H52: 14222222.22 | I52: 28444444.44 | J52: 28444444.44 | K52: 28444444.44 | L52: 28444444.44 | M52: 0 | N52: 0 | O52: 0 | P52: 0 | Q52: 0 | R52: 0
C53: Оплата %% по кредиту Банка | E53: 33973333.33 | G53: 8960000 | H53: 8752592.593 | I53: 7051851.852 | J53: 5060740.741 | K53: 3069629.63 | L53: 1078518.519 | M53: 0 | N53: 0 | O53: 0 | P53: 0 | Q53: 0 | R53: 0
C54: Возврат инвестиций Учредителю | E54: 32000000 | G54: 0 | H54: 0 | I54: 0 | J54: 0 | K54: 0 | L54: 32000000 | M54: 0 | N54: 0 | O54: 0 | P54: 0 | Q54: 0 | R54: 0
C55: Финпоток по инвестиционной деятельности | E55: -33973333.33 | G55: 151040000 | H55: -22974814.81 | I55: -35496296.3 | J55: -33505185.19 | K55: -31514074.07 | L55: -61522962.96 | M55: 0 | N55: 0 | O55: 0 | P55: 0 | Q55: 0 | R55: 0
C57: Финпоток | E57: 394234170.6 | G57: 24566219.12 | H57: -24566219.12 | I57: 0 | J57: 53766967.08 | K57: 147956573.9 | L57: 192510629.6 | M57: 0 | N57: 0 | O57: 0 | P57: 0 | Q57: 0 | R57: 0
C58: Финпоток накопительным итогом | E58: 394234170.6 | G58: 24566219.12 | H58: 0 | I58: 0 | J58: 53766967.08 | K58: 201723541 | L58: 394234170.6 | M58: 394234170.6 | N58: 394234170.6 | O58: 394234170.6 | P58: 394234170.6 | Q58: 394234170.6 | R58: 394234170.6
B60: BS | C60: Баланс на конец периода | E60: 0 | G60: 0 | H60: 0 | I60: 0 | J60: 0 | K60: 0 | L60: 0 | M60: 0 | N60: 0 | O60: 0 | P60: 0 | Q60: 0 | R60: 0
B61: BS | C61: АКТИВЫ | E61: 430903620.6 | G61: 103822832.8 | H61: 69227794.29 | I61: 61263854.78 | J61: 107039247.3 | K61: 247036131 | L61: 430903620.6 | M61: 0 | N61: 0 | O61: 0 | P61: 0 | Q61: 0 | R61: 0
C62: в т.ч.
C63: Капитальные затраты на балансе | E63: 35347222.22 | G63: 77013888.89 | H63: 68680555.56 | I63: 60347222.22 | J63: 52013888.89 | K63: 43680555.56 | L63: 35347222.22 | M63: 0 | N63: 0 | O63: 0 | P63: 0 | Q63: 0 | R63: 0
C64: Остаток ДС на конец периода | E64: 394234170.6 | G64: 24566219.12 | H64: 0 | I64: 0 | J64: 53766967.08 | K64: 201723541 | L64: 394234170.6 | M64: 0 | N64: 0 | O64: 0 | P64: 0 | Q64: 0 | R64: 0
C65: Дебиторская задолженность | E65: 1322227.699 | G65: 137200 | H65: 324870 | I65: 586530 | J65: 810337.5 | K65: 1055059.425 | L65: 1322227.699 | M65: 0 | N65: 0 | O65: 0 | P65: 0 | Q65: 0 | R65: 0
C66: Авансы выданные | E66: -1.490116119e-08 | G66: 0 | H66: 0 | I66: 0 | J66: 0 | K66: 0 | L66: 0 | M66: 0 | N66: 0 | O66: 0 | P66: 0 | Q66: 0 | R66: 0
C67: Запасы готовой продукции | E67: -1.490116119e-08 | G67: 31567.22917 | H67: 66520.5625 | I67: 98748.62812 | J67: 134033.1989 | K67: 172599.3552 | L67: -1.490116119e-08 | M67: 0 | N67: 0 | O67: 0 | P67: 0 | Q67: 0 | R67: 0
C68: Запасы комплектующих | E68: 1.490116119e-08 | G68: 73957.50833 | H68: 155848.175 | I68: 231353.9288 | J68: 314020.6374 | K68: 404375.6322 | L68: 1.490116119e-08 | M68: 0 | N68: 0 | O68: 0 | P68: 0 | Q68: 0 | R68: 0
C69: Дебиторская задолженность по ндс | E69: 0 | G69: 2000000 | H69: 0 | I69: 0 | J69: 0 | K69: 0 | L69: 0 | M69: 0 | N69: 0 | O69: 0 | P69: 0 | Q69: 0 | R69: 0
C71: ПАССИВЫ | E71: 132950244.9 | G71: 103822832.8 | H71: 69227794.29 | I71: 61263854.78 | J71: 107039247.3 | K71: 247036131 | L71: 430903620.6 | M71: 0 | N71: 0 | O71: 0 | P71: 0 | Q71: 0 | R71: 0
C72: в т.ч.
C73: Капитал (чистая прибыль накопит. итогом) | E73: 125689799.1 | G73: -63368364.36 | H73: -111831570.1 | I73: -128737617.7 | J73: -99330448.7 | K73: -9344549.638 | L73: 125689799.1 | M73: 0 | N73: 0 | O73: 0 | P73: 0 | Q73: 0 | R73: 0
C74: Остаток задолженности перед Банком на конец периода | E74: 0 | G74: 128000000 | H74: 113777777.8 | I74: 85333333.33 | J74: 56888888.89 | K74: 28444444.44 | L74: 0 | M74: 0 | N74: 0 | O74: 0 | P74: 0 | Q74: 0 | R74: 0
C75: Кред. задолж-сть по инвестициям Учредителя | E75: 0 | G75: 32000000 | H75: 32000000 | I75: 32000000 | J75: 32000000 | K75: 32000000 | L75: 0 | M75: 0 | N75: 0 | O75: 0 | P75: 0 | Q75: 0 | R75: 0
C76: Кредиторская задолженнсоть по с/ст | E76: 126544.5365 | G76: 38258.31664 | H76: 84042.23158 | I76: 134738.0875 | J76: 184244.227 | K76: 238364.1351 | L76: 126544.5365 | M76: 0 | N76: 0 | O76: 0 | P76: 0 | Q76: 0 | R76: 0
C77: Авансы полученные | E77: 43633.51406 | G77: 7016138.5 | H77: 26996863.02 | I77: 61504898.77 | J77: 115351808.1 | K77: 192690658.3 | L77: 297997009.2 | M77: 0 | N77: 0 | O77: 0 | P77: 0 | Q77: 0 | R77: 0
C78: Кредиторская задолженнсоть по прямым расходам | E78: 43633.51406 | G78: 4527.6 | H78: 10720.71 | I78: 19355.49 | J78: 26741.1375 | K78: 34816.96102 | L78: 43633.51406 | M78: 0 | N78: 0 | O78: 0 | P78: 0 | Q78: 0 | R78: 0
C79: Кредиторская задолженнсоть по переменным расходам | E79: 522692.2353 | G79: 16043.25333 | H79: 55856.67617 | I79: 138172.3021 | J79: 237004.5636 | K79: 364403.8092 | L79: 522692.2353 | M79: 0 | N79: 0 | O79: 0 | P79: 0 | Q79: 0 | R79: 0
C80: Кредиторская задолженность по оплате НДС | E80: 3817718.506 | G80: 57896.10431 | H80: 322218.0654 | I80: 905003.9874 | J80: 1615543.379 | K80: 2539953.838 | L80: 3817718.506 | M80: 0 | N80: 0 | O80: 0 | P80: 0 | Q80: 0 | R80: 0
C81: Кредиторская задолженность по постоянным расходам | E81: 70717.41977 | G81: 58333.33333 | H81: 60616.66667 | I81: 62992.83333 | J81: 65465.66167 | K81: 68039.13928 | L81: 70717.41977 | M81: 0 | N81: 0 | O81: 0 | P81: 0 | Q81: 0 | R81: 0
C82: Кредиторская задолженность по капзатратам | E82: 0 | G82: 0 | H82: 0 | I82: 0 | J82: 0 | K82: 0 | L82: 0 | M82: 0 | N82: 0 | O82: 0 | P82: 0 | Q82: 0 | R82: 0
C83: Кредиторская задолженность по налогу на имущество | E83: 4.656612873e-10 | G83: 0 | H83: 0 | I83: -2.328306437e-10 | J83: -4.656612873e-10 | K83: 0 | L83: 4.656612873e-10 | M83: 0 | N83: 0 | O83: 0 | P83: 0 | Q83: 0 | R83: 0
C84: Кредиторская задолженность по налогу на прибыль | E84: 2635506.016 | G84: 0 | H84: 0 | I84: 0 | J84: 0 | K84: 0 | L84: 2635506.016 | M84: 0 | N84: 0 | O84: 0 | P84: 0 | Q84: 0 | R84: 0
C85: Кредитный портфель на конец периода | E85: 0 | G85: 0 | H85: 7654637.592 | I85: 9821134.899 | J85: 0 | K85: 0 | L85: 0 | M85: 0 | N85: 0 | O85: 0 | P85: 0 | Q85: 0 | R85: 0
C86: Задолженность по %% по кредиту на конец периода | E86: 0 | G86: 0 | H86: 96631.65032 | I86: 81842.79082 | J86: 0 | K86: 0 | L86: 0 | M86: 0 | N86: 0 | O86: 0 | P86: 0 | Q86: 0 | R86: 0

Sheet Reports_М
A1: контроль | C1: Ключевые отчеты проекта, период: месяц | E1: БЕЗ ФОРМУЛ!!!
C2: в рублях | E2: ИТОГО | G2: 2022-01-01 | H2: 2022-02-01 | I2: 2022-03-01 | J2: 2022-04-01 | K2: 2022-05-01 | L2: 2022-06-01 | M2: 2022-07-01 | N2: 2022-08-01 | O2: 2022-09-01 | P2: 2022-10-01 | Q2: 2022-11-01 | R2: 2022-12-01 | S2: 2023-01-01 | T2: 2023-02-01 | U2: 2023-03-01 | V2: 2023-04-01 | W2: 2023-05-01 | X2: 2023-06-01 | Y2: 2023-07-01 | Z2: 2023-08-01 | AA2: 2023-09-01 | AB2: 2023-10-01 | AC2: 2023-11-01 | AD2: 2023-12-01 | AE2: 2024-01-01 | AF2: 2024-02-01 | AG2: 2024-03-01 | AH2: 2024-04-01 | AI2: 2024-05-01 | AJ2: 2024-06-01 | AK2: 2024-07-01 | AL2: 2024-08-01 | AM2: 2024-09-01 | AN2: 2024-10-01 | AO2: 2024-11-01 | AP2: 2024-12-01 | AQ2: 2025-01-01 | AR2: 2025-02-01 | AS2: 2025-03-01 | AT2: 2025-04-01 | AU2: 2025-05-01 | AV2: 2025-06-01 | AW2: 2025-07-01 | AX2: 2025-08-01 | AY2: 2025-09-01 | AZ2: 2025-10-01 | BA2: 2025-11-01 | BB2: 2025-12-01 | BC2: 2026-01-01 | BD2: 2026-02-01 | BE2: 2026-03-01 | BF2: 2026-04-01 | BG2: 2026-05-01 | BH2: 2026-06-01 | BI2: 2026-07-01 | BJ2: 2026-08-01 | BK2: 2026-09-01 | BL2: 2026-10-01 | BM2: 2026-11-01 | BN2: 2026-12-01 | BO2: 2027-01-01 | BP2: 2027-02-01 | BQ2: 2027-03-01 | BR2: 2027-04-01 | BS2: 2027-05-01 | BT2: 2027-06-01 | BU2: 2027-07-01 | BV2: 2027-08-01 | BW2: 2027-09-01 | BX2: 2027-10-01 | BY2: 2027-11-01 | BZ2: 2027-12-01
B3: PL | C3: Выручка | E3: 668984642.3 | G3: 93454.86111 | H3: 142508.3333 | I3: 178111.1111 | J3: 365750 | K3: 338422.7778 | L3: 436255.5556 | M3: 593658.3333 | N3: 646061.1111 | O3: 623901.25 | P3: 726676.8056 | Q3: 726615.5556 | R3: 668468.8889 | S3: 700824.6753 | T3: 1041422.385 | U3: 1268914.189 | V3: 1864718.431 | W3: 1689556.918 | X3: 2132414.715 | Y3: 2432695.514 | Z3: 2599101.312 | AA3: 2473979.878 | AB3: 2586240.429 | AC3: 2554499.617 | AD3: 2327361.507 | AE3: 2185555.167 | AF3: 3206343.515 | AG3: 3855826.1 | AH3: 5315215.403 | AI3: 4756399.837 | AJ3: 5925822.292 | AK3: 6452197.986 | AL3: 6813198.681 | AM3: 6424289.375 | AN3: 6491132.419 | AO3: 6360145.011 | AP3: 5757179.254 | AQ3: 4452301.679 | AR3: 6446653.181 | AS3: 7646370.434 | AT3: 10199051.12 | AU3: 9006921.979 | AV3: 11063823.13 | AW3: 11736782.41 | AX3: 12236097.94 | AY3: 11416933.73 | AZ3: 11314039.24 | BA3: 10988467.03 | BB3: 9875190.15 | BC3: 7530409.481 | BD3: 10826748.62 | BE3: 12744594.78 | BF3: 16725846.44 | BG3: 14659700.87 | BH3: 17859483.92 | BI3: 18687414.22 | BJ3: 19333018.58 | BK3: 17922656.25 | BL3: 17572097.07 | BM3: 16972640.59 | BN3: 15183492.05 | BO3: 11487263.02 | BP3: 16441140.67 | BQ3: 19258737.01 | BR3: 25031272.47 | BS3: 21830312.08 | BT3: 26449129.06 | BU3: 27440792.43 | BV3: 28241013.56 | BW3: 26065091.32 | BX3: 25382345.65 | BY3: 24423047.8 | BZ3: 21778843.14 | CA3: 0 | CB3: 0 | CC3: 0 | CD3: 0 | CE3: 0 | CF3: 0 | CG3: 0 | CH3: 0 | CI3: 0 | CJ3: 0 | CK3: 0 | CL3: 0 | CM3: 0 | CN3: 0 | CO3: 0 | CP3: 0 | CQ3: 0 | CR3: 0 | CS3: 0 | CT3: 0 | CU3: 0 | CV3: 0 | CW3: 0 | CX3: 0 | CY3: 0 | CZ3: 0 | DA3: 0 | DB3: 0 | DC3: 0 | DD3: 0 | DE3: 0 | DF3: 0 | DG3: 0 | DH3: 0 | DI3: 0 | DJ3: 0 | DK3: 0 | DL3: 0 | DM3: 0 | DN3: 0 | DO3: 0 | DP3: 0 | DQ3: 0 | DR3: 0 | DS3: 0 | DT3: 0 | DU3: 0 | DV3: 0 | DW3: 0 | DX3: 0 | DY3: 0 | DZ3: 0 | EA3: 0 | EB3: 0 | EC3: 0 | ED3: 0 | EE3: 0 | EF3: 0 | EG3: 0 | EH3: 0 | EI3: 0 | EJ3: 0 | EK3: 0 | EL3: 0 | EM3: 0 | EN3: 0 | EO3: 0 | EP3: 0 | EQ3: 0 | ER3: 0 | ES3: 0 | ET3: 0 | EU3: 0 | EV3: 0
A4: 0 | C4: в т.ч.
C5: Продажа аппаратов | E5: 138912409.9 | G5: 87500 | H5: 122500 | I5: 140000 | J5: 280000 | K5: 238000 | L5: 280000 | M5: 385000 | N5: 385000 | O5: 346500 | P5: 416500 | Q5: 392000 | R5: 343000 | S5: 379312.5 | T5: 531037.5 | U5: 606900 | V5: 892500 | W5: 758625 | X5: 892500 | Y5: 1026375 | Z5: 1026375 | AA5: 923737.5 | AB5: 986212.5 | AC5: 928200 | AD5: 812175 | AE5: 799312.5 | AF5: 1119037.5 | AG5: 1278900 | AH5: 1764000 | AI5: 1499400 | AJ5: 1764000 | AK5: 1929375 | AL5: 1929375 | AM5: 1736437.5 | AN5: 1780537.5 | AO5: 1675800 | AP5: 1466325 | AQ5: 1186565.625 | AR5: 1661191.875 | AS5: 1898505 | AT5: 2546775 | AU5: 2164758.75 | AV5: 2546775 | AW5: 2720418.75 | AX5: 2720418.75 | AY5: 2448376.875 | AZ5: 2459953.125 | BA5: 2315250 | BB5: 2025843.75 | BC5: 1610545.781 | BD5: 2254764.094 | BE5: 2576873.25 | BF5: 3403417.5 | BG5: 2892904.875 | BH5: 3403417.5 | BI5: 3585743.438 | BJ5: 3585743.438 | BK5: 3227169.094 | BL5: 3202858.969 | BM5: 3014455.5 | BN5: 2637648.563 | BO5: 2073957.539 | BP5: 2903540.555 | BQ5: 3318332.063 | BR5: 4339357.313 | BS5: 3688453.716 | BT5: 4339357.313 | BU5: 4530799.547 | BV5: 4530799.547 | BW5: 4077719.592 | BX5: 4013905.514 | BY5: 3777793.425 | BZ5: 3305569.247 | CA5: 0 | CB5: 0 | CC5: 0 | CD5: 0 | CE5: 0 | CF5: 0 | CG5: 0 | CH5: 0 | CI5: 0 | CJ5: 0 | CK5: 0 | CL5: 0 | CM5: 0 | CN5: 0 | CO5: 0 | CP5: 0 | CQ5: 0 | CR5: 0 | CS5: 0 | CT5: 0 | CU5: 0 | CV5: 0 | CW5: 0 | CX5: 0 | CY5: 0 | CZ5: 0 | DA5: 0 | DB5: 0 | DC5: 0 | DD5: 0 | DE5: 0 | DF5: 0 | DG5: 0 | DH5: 0 | DI5: 0 | DJ5: 0 | DK5: 0 | DL5: 0 | DM5: 0 | DN5: 0 | DO5: 0 | DP5: 0 | DQ5: 0 | DR5: 0 | DS5: 0 | DT5: 0 | DU5: 0 | DV5: 0 | DW5: 0 | DX5: 0 | DY5: 0 | DZ5: 0 | EA5: 0 | EB5: 0 | EC5: 0 | ED5: 0 | EE5: 0 | EF5: 0 | EG5: 0 | EH5: 0 | EI5: 0 | EJ5: 0 | EK5: 0 | EL5: 0 | EM5: 0 | EN5: 0 | EO5: 0 | EP5: 0 | EQ5: 0 | ER5: 0 | ES5: 0 | ET5: 0 | EU5: 0 | EV5: 0
C6: Продажа годовых подписок на онлайн сервис | E6: 530072232.4 | G6: 5954.861111 | H6: 20008.33333 | I6: 38111.11111 | J6: 85750 | K6: 100422.7778 | L6: 156255.5556 | M6: 208658.3333 | N6: 261061.1111 | O6: 277401.25 | P6: 310176.8056 | Q6: 334615.5556 | R6: 325468.8889 | S6: 321512.1753 | T6: 510384.8847 | U6: 662014.1889 | V6: 972218.4306 | W6: 930931.9177 | X6: 1239914.715 | Y6: 1406320.514 | Z6: 1572726.313 | AA6: 1550242.378 | AB6: 1600027.929 | AC6: 1626299.617 | AD6: 1515186.507 | AE6: 1386242.667 | AF6: 2087306.015 | AG6: 2576926.1 | AH6: 3551215.403 | AI6: 3256999.837 | AJ6: 4161822.292 | AK6: 4522822.986 | AL6: 4883823.681 | AM6: 4687851.875 | AN6: 4710594.919 | AO6: 4684345.011 | AP6: 4290854.254 | AQ6: 3265736.054 | AR6: 4785461.306 | AS6: 5747865.434 | AT6: 7652276.12 | AU6: 6842163.229 | AV6: 8517048.127 | AW6: 9016363.659 | AX6: 9515679.191 | AY6: 8968556.852 | AZ6: 8854086.111 | BA6: 8673217.027 | BB6: 7849346.4 | BC6: 5919863.699 | BD6: 8571984.521 | BE6: 10167721.53 | BF6: 13322428.94 | BG6: 11766795.99 | BH6: 14456066.42 | BI6: 15101670.78 | BJ6: 15747275.14 | BK6: 14695487.15 | BL6: 14369238.1 | BM6: 13958185.09 | BN6: 12545843.49 | BO6: 9413305.483 | BP6: 13537600.11 | BQ6: 15940404.95 | BR6: 20691915.15 | BS6: 18141858.36 | BT6: 22109771.75 | BU6: 22909992.88 | BV6: 23710214.01 | BW6: 21987371.73 | BX6: 21368440.13 | BY6: 20645254.37 | BZ6: 18473273.89 | CA6: 0 | CB6: 0 | CC6: 0 | CD6: 0 | CE6: 0 | CF6: 0 | CG6: 0 | CH6: 0 | CI6: 0 | CJ6: 0 | CK6: 0 | CL6: 0 | CM6: 0 | CN6: 0 | CO6: 0 | CP6: 0 | CQ6: 0 | CR6: 0 | CS6: 0 | CT6: 0 | CU6: 0 | CV6: 0 | CW6: 0 | CX6: 0 | CY6: 0 | CZ6: 0 | DA6: 0 | DB6: 0 | DC6: 0 | DD6: 0 | DE6: 0 | DF6: 0 | DG6: 0 | DH6: 0 | DI6: 0 | DJ6: 0 | DK6: 0 | DL6: 0 | DM6: 0 | DN6: 0 | DO6: 0 | DP6: 0 | DQ6: 0 | DR6: 0 | DS6: 0 | DT6: 0 | DU6: 0 | DV6: 0 | DW6: 0 | DX6: 0 | DY6: 0 | DZ6: 0 | EA6: 0 | EB6: 0 | EC6: 0 | ED6: 0 | EE6: 0 | EF6: 0 | EG6: 0 | EH6: 0 | EI6: 0 | EJ6: 0 | EK6: 0 | EL6: 0 | EM6: 0 | EN6: 0 | EO6: 0 | EP6: 0 | EQ6: 0 | ER6: 0 | ES6: 0 | ET6: 0 | EU6: 0 | EV6: 0
C8: прочее | E8: 0 | G8: 0 | H8: 0 | I8: 0 | J8: 0 | K8: 0 | L8: 0 | M8: 0 | N8: 0 | O8: 0 | P8: 0 | Q8: 0 | R8: 0 | S8: 0 | T8: 0 | U8: 0 | V8: 0 | W8: 0 | X8: 0 | Y8: 0 | Z8: 0 | AA8: 0 | AB8: 0 | AC8: 0 | AD8: 0 | AE8: 0 | AF8: 0 | AG8: 0 | AH8: 0 | AI8: 0 | AJ8: 0 | AK8: 0 | AL8: 0 | AM8: 0 | AN8: 0 | AO8: 0 | AP8: 0 | AQ8: 0 | AR8: 0 | AS8: 0 | AT8: 0 | AU8: 0 | AV8: 0 | AW8: 0 | AX8: 0 | AY8: 0 | AZ8: 0 | BA8: 0 | BB8: 0 | BC8: 0 | BD8: 0 | BE8: 0 | BF8: 0 | BG8: 0 | BH8: 0 | BI8: 0 | BJ8: 0 | BK8: 0 | BL8: 0 | BM8: 0 | BN8: 0 | BO8: 0 | BP8: 0 | BQ8: 0 | BR8: 0 | BS8: 0 | BT8: 0 | BU8: 0 | BV8: 0 | BW8: 0 | BX8: 0 | BY8: 0 | BZ8: 0 | CA8: 0 | CB8: 0 | CC8: 0 | CD8: 0 | CE8: 0 | CF8: 0 | CG8: 0 | CH8: 0 | CI8: 0 | CJ8: 0 | CK8: 0 | CL8: 0 | CM8: 0 | CN8: 0 | CO8: 0 | CP8: 0 | CQ8: 0 | CR8: 0 | CS8: 0 | CT8: 0 | CU8: 0 | CV8: 0 | CW8: 0 | CX8: 0 | CY8: 0 | CZ8: 0 | DA8: 0 | DB8: 0 | DC8: 0 | DD8: 0 | DE8: 0 | DF8: 0 | DG8: 0 | DH8: 0 | DI8: 0 | DJ8: 0 | DK8: 0 | DL8: 0 | DM8: 0 | DN8: 0 | DO8: 0 | DP8: 0 | DQ8: 0 | DR8: 0 | DS8: 0 | DT8: 0 | DU8: 0 | DV8: 0 | DW8: 0 | DX8: 0 | DY8: 0 | DZ8: 0 | EA8: 0 | EB8: 0 | EC8: 0 | ED8: 0 | EE8: 0 | EF8: 0 | EG8: 0 | EH8: 0 | EI8: 0 | EJ8: 0 | EK8: 0 | EL8: 0 | EM8: 0 | EN8: 0 | EO8: 0 | EP8: 0 | EQ8: 0 | ER8: 0 | ES8: 0 | ET8: 0 | EU8: 0 | EV8: 0
C9: Себестоимость | E9: 49545426.19 | G9: 31208.33333 | H9: 43691.66667 | I9: 49933.33333 | J9: 99866.66667 | K9: 84886.66667 | L9: 99866.66667 | M9: 137316.6667 | N9: 137316.6667 | O9: 123585 | P9: 148551.6667 | Q9: 139813.3333 | R9: 122336.6667 | S9: 135288.125 | T9: 189403.375 | U9: 216461 | V9: 318325 | W9: 270576.25 | X9: 318325 | Y9: 366073.75 | Z9: 366073.75 | AA9: 329466.375 | AB9: 351749.125 | AC9: 331058 | AD9: 289675.75 | AE9: 285088.125 | AF9: 399123.375 | AG9: 456141 | AH9: 629160 | AI9: 534786 | AJ9: 629160 | AK9: 688143.75 | AL9: 688143.75 | AM9: 619329.375 | AN9: 635058.375 | AO9: 597702 | AP9: 522989.25 | AQ9: 423208.4062 | AR9: 592491.7688 | AS9: 677133.45 | AT9: 908349.75 | AU9: 772097.2875 | AV9: 908349.75 | AW9: 970282.6875 | AX9: 970282.6875 | AY9: 873254.4188 | AZ9: 877383.2812 | BA9: 825772.5 | BB9: 722550.9375 | BC9: 574427.9953 | BD9: 804199.1934 | BE9: 919084.7925 | BF9: 1213885.575 | BG9: 1031802.739 | BH9: 1213885.575 | BI9: 1278915.159 | BJ9: 1278915.159 | BK9: 1151023.643 | BL9: 1142353.032 | BM9: 1075155.795 | BN9: 940761.3206 | BO9: 739711.5223 | BP9: 1035596.131 | BQ9: 1183538.436 | BR9: 1547704.108 | BS9: 1315548.492 | BT9: 1547704.108 | BU9: 1615985.172 | BV9: 1615985.172 | BW9: 1454386.655 | BX9: 1431626.3 | BY9: 1347412.988 | BZ9: 1178986.365 | CA9: 0 | CB9: 0 | CC9: 0 | CD9: 0 | CE9: 0 | CF9: 0 | CG9: 0 | CH9: 0 | CI9: 0 | CJ9: 0 | CK9: 0 | CL9: 0 | CM9: 0 | CN9: 0 | CO9: 0 | CP9: 0 | CQ9: 0 | CR9: 0 | CS9: 0 | CT9: 0 | CU9: 0 | CV9: 0 | CW9: 0 | CX9: 0 | CY9: 0 | CZ9: 0 | DA9: 0 | DB9: 0 | DC9: 0 | DD9: 0 | DE9: 0 | DF9: 0 | DG9: 0 | DH9: 0 | DI9: 0 | DJ9: 0 | DK9: 0 | DL9: 0 | DM9: 0 | DN9: 0 | DO9: 0 | DP9: 0 | DQ9: 0 | DR9: 0 | DS9: 0 | DT9: 0 | DU9: 0 | DV9: 0 | DW9: 0 | DX9: 0 | DY9: 0 | DZ9: 0 | EA9: 0 | EB9: 0 | EC9: 0 | ED9: 0 | EE9: 0 | EF9: 0 | EG9: 0 | EH9: 0 | EI9: 0 | EJ9: 0 | EK9: 0 | EL9: 0 | EM9: 0 | EN9: 0 | EO9: 0 | EP9: 0 | EQ9: 0 | ER9: 0 | ES9: 0 | ET9: 0 | EU9: 0 | EV9: 0
A10: 0 | C10: Валовая прибыль | E10: 619439216.1 | G10: 62246.52778 | H10: 98816.66667 | I10: 128177.7778 | J10: 265883.3333 | K10: 253536.1111 | L10: 336388.8889 | M10: 456341.6667 | N10: 508744.4444 | O10: 500316.25 | P10: 578125.1389 | Q10: 586802.2222 | R10: 546132.2222 | S10: 565536.5503 | T10: 852019.0097 | U10: 1052453.189 | V10: 1546393.431 | W10: 1418980.668 | X10: 1814089.715 | Y10: 2066621.764 | Z10: 2233027.562 | AA10: 2144513.503 | AB10: 2234491.304 | AC10: 2223441.617 | AD10: 2037685.757 | AE10: 1900467.042 | AF10: 2807220.14 | AG10: 3399685.1 | AH10: 4686055.403 | AI10: 4221613.837 | AJ10: 5296662.292 | AK10: 5764054.236 | AL10: 6125054.931 | AM10: 5804960 | AN10: 5856074.044 | AO10: 5762443.011 | AP10: 5234190.004 | AQ10: 4029093.272 | AR10: 5854161.412 | AS10: 6969236.984 | AT10: 9290701.37 | AU10: 8234824.692 | AV10: 10155473.38 | AW10: 10766499.72 | AX10: 11265815.25 | AY10: 10543679.31 | AZ10: 10436655.95 | BA10: 10162694.53 | BB10: 9152639.212 | BC10: 6955981.485 | BD10: 10022549.42 | BE10: 11825509.99 | BF10: 15511960.86 | BG10: 13627898.13 | BH10: 16645598.34 | BI10: 17408499.06 | BJ10: 18054103.42 | BK10: 16771632.61 | BL10: 16429744.04 | BM10: 15897484.8 | BN10: 14242730.73 | BO10: 10747551.5 | BP10: 15405544.54 | BQ10: 18075198.57 | BR10: 23483568.36 | BS10: 20514763.59 | BT10: 24901424.96 | BU10: 25824807.26 | BV10: 26625028.39 | BW10: 24610704.67 | BX10: 23950719.35 | BY10: 23075634.81 | BZ10: 20599856.77 | CA10: 0 | CB10: 0 | CC10: 0 | CD10: 0 | CE10: 0 | CF10: 0 | CG10: 0 | CH10: 0 | CI10: 0 | CJ10: 0 | CK10: 0 | CL10: 0 | CM10: 0 | CN10: 0 | CO10: 0 | CP10: 0 | CQ10: 0 | CR10: 0 | CS10: 0 | CT10: 0 | CU10: 0 | CV10: 0 | CW10: 0 | CX10: 0 | CY10: 0 | CZ10: 0 | DA10: 0 | DB10: 0 | DC10: 0 | DD10: 0 | DE10: 0 | DF10: 0 | DG10: 0 | DH10: 0 | DI10: 0 | DJ10: 0 | DK10: 0 | DL10: 0 | DM10: 0 | DN10: 0 | DO10: 0 | DP10: 0 | DQ10: 0 | DR10: 0 | DS10: 0 | DT10: 0 | DU10: 0 | DV10: 0 | DW10: 0 | DX10: 0 | DY10: 0 | DZ10: 0 | EA10: 0 | EB10: 0 | EC10: 0 | ED10: 0 | EE10: 0 | EF10: 0 | EG10: 0 | EH10: 0 | EI10: 0 | EJ10: 0 | EK10: 0 | EL10: 0 | EM10: 0 | EN10: 0 | EO10: 0 | EP10: 0 | EQ10: 0 | ER10: 0 | ES10: 0 | ET10: 0 | EU10: 0 | EV10: 0
C11: Рентабельность продаж | E11: 0.9259393668 | G11: 0.6660598179 | H11: 0.6934097421 | I11: 0.719650655 | J11: 0.726953748 | K11: 0.7491697597 | L11: 0.7710821893 | M11: 0.7686941142 | N11: 0.7874556071 | O11: 0.8019157679 | P11: 0.7955739532 | Q11: 0.8075827963 | R11: 0.8169897377 | S11: 0.8069586735 | T11: 0.8181301096 | U11: 0.8294124206 | V11: 0.8292905809 | W11: 0.8398537231 | X11: 0.8507208763 | Y11: 0.8495192892 | Z11: 0.8591537205 | AA11: 0.8668273829 | AB11: 0.8639921018 | AC11: 0.8704020162 | AD11: 0.8755346992 | AE11: 0.8695580284 | AF11: 0.8755207067 | AG11: 0.8817008371 | AH11: 0.8816303852 | AI11: 0.8875649612 | AJ11: 0.8938273932 | AK11: 0.8933473908 | AL11: 0.898998432 | AM11: 0.9035956603 | AN11: 0.9021652411 | AO11: 0.9060238408 | AP11: 0.9091587691 | AQ11: 0.9049461522 | AR11: 0.9080931218 | AS11: 0.9114438078 | AT11: 0.9109378177 | AU11: 0.9142773425 | AV11: 0.9178991078 | AW11: 0.9173297541 | AX11: 0.9207032591 | AY11: 0.9235123511 | AZ11: 0.9224518085 | BA11: 0.9248509826 | BB11: 0.9268316937 | BC11: 0.9237188898 | BD11: 0.9257210801 | BE11: 0.9278843456 | BF11: 0.9274245653 | BG11: 0.9296163852 | BH11: 0.9320313185 | BI11: 0.9315627542 | BJ11: 0.9338481389 | BK11: 0.9357782894 | BL11: 0.9349905121 | BM11: 0.9366535932 | BN11: 0.9380405168 | BO11: 0.9356059384 | BP11: 0.9370119049 | BQ11: 0.9385453763 | BR11: 0.9381691798 | BS11: 0.9397375316 | BT11: 0.9414837402 | BU11: 0.9411101128 | BV11: 0.9427787828 | BW11: 0.9442017434 | BX11: 0.9435975571 | BY11: 0.9448302685 | BZ11: 0.9458655192 | CA11: 0 | CB11: 0 | CC11: 0 | CD11: 0 | CE11: 0 | CF11: 0 | CG11: 0 | CH11: 0 | CI11: 0 | CJ11: 0 | CK11: 0 | CL11: 0 | CM11: 0 | CN11: 0 | CO11: 0 | CP11: 0 | CQ11: 0 | CR11: 0 | CS11: 0 | CT11: 0 | CU11: 0 | CV11: 0 | CW11: 0 | CX11: 0 | CY11: 0 | CZ11: 0 | DA11: 0 | DB11: 0 | DC11: 0 | DD11: 0 | DE11: 0 | DF11: 0 | DG11: 0 | DH11: 0 | DI11: 0 | DJ11: 0 | DK11: 0 | DL11: 0 | DM11: 0 | DN11: 0 | DO11: 0 | DP11: 0 | DQ11: 0 | DR11: 0 | DS11: 0 | DT11: 0 | DU11: 0 | DV11: 0 | DW11: 0 | DX11: 0 | DY11: 0 | DZ11: 0 | EA11: 0 | EB11: 0 | EC11: 0 | ED11: 0 | EE11: 0 | EF11: 0 | EG11: 0 | EH11: 0 | EI11: 0 | EJ11: 0 | EK11: 0 | EL11: 0 | EM11: 0 | EN11: 0 | EO11: 0 | EP11: 0 | EQ11: 0 | ER11: 0 | ES11: 0 | ET11: 0 | EU11: 0 | EV11: 0
C12: Начисление прямых расходов | E12: 24364798.6 | G12: 7148.871528 | H12: 10300.20833 | I12: 12152.77778 | J12: 24543.75 | K12: 21550.56944 | L12: 26306.38889 | M12: 36016.45833 | N12: 37326.52778 | O12: 34655.03125 | P12: 41074.42014 | Q12: 39725.38889 | R12: 35576.72222 | S12: 38382.80438 | T12: 55242.62212 | U12: 65102.35472 | V12: 95705.46076 | W12: 83963.29794 | X12: 102397.8679 | Y12: 117268.0128 | Z12: 121428.1578 | AA12: 112655.0595 | AB12: 118897.6982 | AC12: 114913.4904 | AD12: 102853.6627 | AE12: 98601.06667 | AF12: 141705.6504 | AG12: 166735.1525 | AH12: 229900.3851 | AI12: 201376.9959 | AJ12: 245165.5573 | AK12: 267420.5747 | AL12: 276445.592 | AM12: 256111.2969 | AN12: 260207.873 | AO12: 251172.6253 | AP12: 224577.3564 | AQ12: 176568.6513 | AR12: 252531.8826 | AS12: 295577.0359 | AT12: 395048.903 | AU12: 344234.7807 | AV12: 416668.2032 | AW12: 443042.5915 | AX12: 455525.4798 | AY12: 420084.0713 | AZ12: 418148.4028 | BA12: 402050.4257 | BB12: 358301.16 | BC12: 276840.255 | BD12: 394680.7405 | BE12: 460342.8983 | BF12: 605334.1234 | BG12: 525602.2898 | BH12: 633675.0605 | BI12: 664401.2445 | BJ12: 680541.3534 | BK12: 625560.7064 | BL12: 615459.6701 | BM12: 590111.0673 | BN12: 524657.9722 | BO12: 401249.2402 | BP12: 570723.2472 | BQ12: 663976.6887 | BR12: 864446.4639 | BS12: 748622.7563 | BT12: 899892.8788 | BU12: 935213.7858 | BV12: 955219.3141 | BW12: 875901.8606 | BX12: 855323.4444 | BY12: 818354.8333 | BZ12: 726277.387 | CA12: 0 | CB12: 0 | CC12: 0 | CD12: 0 | CE12: 0 | CF12: 0 | CG12: 0 | CH12: 0 | CI12: 0 | CJ12: 0 | CK12: 0 | CL12: 0 | CM12: 0 | CN12: 0 | CO12: 0 | CP12: 0 | CQ12: 0 | CR12: 0 | CS12: 0 | CT12: 0 | CU12: 0 | CV12: 0 | CW12: 0 | CX12: 0 | CY12: 0 | CZ12: 0 | DA12: 0 | DB12: 0 | DC12: 0 | DD12: 0 | DE12: 0 | DF12: 0 | DG12: 0 | DH12: 0 | DI12: 0 | DJ12: 0 | DK12: 0 | DL12: 0 | DM12: 0 | DN12: 0 | DO12: 0 | DP12: 0 | DQ12: 0 | DR12: 0 | DS12: 0 | DT12: 0 | DU12: 0 | DV12: 0 | DW12: 0 | DX12: 0 | DY12: 0 | DZ12: 0 | EA12: 0 | EB12: 0 | EC12: 0 | ED12: 0 | EE12: 0 | EF12: 0 | EG12: 0 | EH12: 0 | EI12: 0 | EJ12: 0 | EK12: 0 | EL12: 0 | EM12: 0 | EN12: 0 | EO12: 0 | EP12: 0 | EQ12: 0 | ER12: 0 | ES12: 0 | ET12: 0 | EU12: 0 | EV12: 0
A13: 0 | C13: Прибыль от коммерческой деятельности | E13: 595074417.5 | G13: 55097.65625 | H13: 88516.45833 | I13: 116025 | J13: 241339.5833 | K13: 231985.5417 | L13: 310082.5 | M13: 420325.2083 | N13: 471417.9167 | O13: 465661.2188 | P13: 537050.7188 | Q13: 547076.8333 | R13: 510555.5 | S13: 527153.746 | T13: 796776.3876 | U13: 987350.8342 | V13: 1450687.97 | W13: 1335017.37 | X13: 1711691.847 | Y13: 1949353.751 | Z13: 2111599.405 | AA13: 2031858.444 | AB13: 2115593.606 | AC13: 2108528.126 | AD13: 1934832.094 | AE13: 1801865.975 | AF13: 2665514.49 | AG13: 3232949.948 | AH13: 4456155.018 | AI13: 4020236.841 | AJ13: 5051496.734 | AK13: 5496633.661 | AL13: 5848609.339 | AM13: 5548848.703 | AN13: 5595866.171 | AO13: 5511270.386 | AP13: 5009612.648 | AQ13: 3852524.621 | AR13: 5601629.529 | AS13: 6673659.948 | AT13: 8895652.467 | AU13: 7890589.911 | AV13: 9738805.174 | AW13: 10323457.13 | AX13: 10810289.77 | AY13: 10123595.24 | AZ13: 10018507.55 | BA13: 9760644.102 | BB13: 8794338.052 | BC13: 6679141.23 | BD13: 9627868.681 | BE13: 11365167.09 | BF13: 14906626.74 | BG13: 13102295.84 | BH13: 16011923.28 | BI13: 16744097.81 | BJ13: 17373562.06 | BK13: 16146071.9 | BL13: 15814284.37 | BM13: 15307373.73 | BN13: 13718072.76 | BO13: 10346302.26 | BP13: 14834821.29 | BQ13: 17411221.88 | BR13: 22619121.89 | BS13: 19766140.83 | BT13: 24001532.08 | BU13: 24889593.47 | BV13: 25669809.08 | BW13: 23734802.81 | BX13: 23095395.9 | BY13: 22257279.98 | BZ13: 19873579.38 | CA13: 0 | CB13: 0 | CC13: 0 | CD13: 0 | CE13: 0 | CF13: 0 | CG13: 0 | CH13: 0 | CI13: 0 | CJ13: 0 | CK13: 0 | CL13: 0 | CM13: 0 | CN13: 0 | CO13: 0 | CP13: 0 | CQ13: 0 | CR13: 0 | CS13: 0 | CT13: 0 | CU13: 0 | CV13: 0 | CW13: 0 | CX13: 0 | CY13: 0 | CZ13: 0 | DA13: 0 | DB13: 0 | DC13: 0 | DD13: 0 | DE13: 0 | DF13: 0 | DG13: 0 | DH13: 0 | DI13: 0 | DJ13: 0 | DK13: 0 | DL13: 0 | DM13: 0 | DN13: 0 | DO13: 0 | DP13: 0 | DQ13: 0 | DR13: 0 | DS13: 0 | DT13: 0 | DU13: 0 | DV13: 0 | DW13: 0 | DX13: 0 | DY13: 0 | DZ13: 0 | EA13: 0 | EB13: 0 | EC13: 0 | ED13: 0 | EE13: 0 | EF13: 0 | EG13: 0 | EH13: 0 | EI13: 0 | EJ13: 0 | EK13: 0 | EL13: 0 | EM13: 0 | EN13: 0 | EO13: 0 | EP13: 0 | EQ13: 0 | ER13: 0 | ES13: 0 | ET13: 0 | EU13: 0 | EV13: 0
C14: Рентабельность коммерческой деятельности | E14: 0.8895188019 | G14: 0.5895643693 | H14: 0.6211318052 | I14: 0.651419214 | J14: 0.6598484848 | K14: 0.6854903301 | L14: 0.7107817793 | M14: 0.7080254495 | N14: 0.7296800698 | O14: 0.7463700686 | P14: 0.7390503105 | Q14: 0.7529109846 | R14: 0.7637685291 | S14: 0.7521906184 | T14: 0.7650847526 | U14: 0.7781068592 | V14: 0.7779662313 | W14: 0.7901582692 | X14: 0.8027011984 | Y14: 0.8013143198 | Z14: 0.8124344344 | AA14: 0.8212914186 | AB14: 0.8180189212 | AC14: 0.8254172804 | AD14: 0.8313414519 | AE14: 0.8244431449 | AF14: 0.8313253016 | AG14: 0.8384584428 | AH14: 0.8383771268 | AI14: 0.8452268478 | AJ14: 0.8524549819 | AK14: 0.8519009605 | AL14: 0.8584234238 | AM14: 0.8637295706 | AN14: 0.8620785727 | AO14: 0.8665321901 | AP14: 0.8701505419 | AQ14: 0.8652883158 | AR14: 0.8689205658 | AS14: 0.8727879464 | AT14: 0.8722039298 | AU14: 0.8760584281 | AV14: 0.8802386898 | AW14: 0.8795815386 | AX14: 0.883475257 | AY14: 0.8867175267 | AZ14: 0.8854934425 | BA14: 0.8882625827 | BB14: 0.8905487306 | BC14: 0.8869559149 | BD14: 0.8892668541 | BE14: 0.8917637073 | BF14: 0.8912330264 | BG14: 0.8937628371 | BH14: 0.8965501666 | BI14: 0.8960093472 | BJ14: 0.898647151 | BK14: 0.9008749415 | BL14: 0.8999656845 | BM14: 0.9018852221 | BN14: 0.9034860171 | BO14: 0.9006760131 | BP14: 0.9022987875 | BQ14: 0.9040687287 | BR14: 0.9036345206 | BS14: 0.905444721 | BT14: 0.9074602048 | BU14: 0.9070289619 | BV14: 0.9089549502 | BW14: 0.9105973393 | BX14: 0.9098999842 | BY14: 0.9113227866 | BZ14: 0.9125176787 | CA14: 0 | CB14: 0 | CC14: 0 | CD14: 0 | CE14: 0 | CF14: 0 | CG14: 0 | CH14: 0 | CI14: 0 | CJ14: 0 | CK14: 0 | CL14: 0 | CM14: 0 | CN14: 0 | CO14: 0 | CP14: 0 | CQ14: 0 | CR14: 0 | CS14: 0 | CT14: 0 | CU14: 0 | CV14: 0 | CW14: 0 | CX14: 0 | CY14: 0 | CZ14: 0 | DA14: 0 | DB14: 0 | DC14: 0 | DD14: 0 | DE14: 0 | DF14: 0 | DG14: 0 | DH14: 0 | DI14: 0 | DJ14: 0 | DK14: 0 | DL14: 0 | DM14: 0 | DN14: 0 | DO14: 0 | DP14: 0 | DQ14: 0 | DR14: 0 | DS14: 0 | DT14: 0 | DU14: 0 | DV14: 0 | DW14: 0 | DX14: 0 | DY14: 0 | DZ14: 0 | EA14: 0 | EB14: 0 | EC14: 0 | ED14: 0 | EE14: 0 | EF14: 0 | EG14: 0 | EH14: 0 | EI14: 0 | EJ14: 0 | EK14: 0 | EL14: 0 | EM14: 0 | EN14: 0 | EO14: 0 | EP14: 0 | EQ14: 0 | ER14: 0 | ES14: 0 | ET14: 0 | EU14: 0 | EV14: 0
C15: Начисление переменных расходов | E15: 40139078.54 | G15: 5607.291667 | H15: 8550.5 | I15: 10686.66667 | J15: 21945 | K15: 20305.36667 | L15: 26175.33333 | M15: 35619.5 | N15: 38763.66667 | O15: 37434.075 | P15: 43600.60833 | Q15: 43596.93333 | R15: 40108.13333 | S15: 42049.48052 | T15: 62485.34308 | U15: 76134.85133 | V15: 111883.1058 | W15: 101373.4151 | X15: 127944.8829 | Y15: 145961.7308 | Z15: 155946.0788 | AA15: 148438.7927 | AB15: 155174.4257 | AC15: 153269.977 | AD15: 139641.6904 | AE15: 131133.31 | AF15: 192380.6109 | AG15: 231349.566 | AH15: 318912.9242 | AI15: 285383.9902 | AJ15: 355549.3375 | AK15: 387131.8792 | AL15: 408791.9208 | AM15: 385457.3625 | AN15: 389467.9451 | AO15: 381608.7007 | AP15: 345430.7552 | AQ15: 267138.1007 | AR15: 386799.1908 | AS15: 458782.226 | AT15: 611943.0672 | AU15: 540415.3188 | AV15: 663829.3876 | AW15: 704206.9445 | AX15: 734165.8764 | AY15: 685016.0236 | AZ15: 678842.3542 | BA15: 659308.0216 | BB15: 592511.409 | BC15: 451824.5688 | BD15: 649604.9169 | BE15: 764675.687 | BF15: 1003550.786 | BG15: 879582.052 | BH15: 1071569.035 | BI15: 1121244.853 | BJ15: 1159981.115 | BK15: 1075359.375 | BL15: 1054325.824 | BM15: 1018358.436 | BN15: 911009.523 | BO15: 689235.7813 | BP15: 986468.4401 | BQ15: 1155524.221 | BR15: 1501876.348 | BS15: 1309818.725 | BT15: 1586947.744 | BU15: 1646447.546 | BV15: 1694460.814 | BW15: 1563905.479 | BX15: 1522940.739 | BY15: 1465382.868 | BZ15: 1306730.588 | CA15: 0 | CB15: 0 | CC15: 0 | CD15: 0 | CE15: 0 | CF15: 0 | CG15: 0 | CH15: 0 | CI15: 0 | CJ15: 0 | CK15: 0 | CL15: 0 | CM15: 0 | CN15: 0 | CO15: 0 | CP15: 0 | CQ15: 0 | CR15: 0 | CS15: 0 | CT15: 0 | CU15: 0 | CV15: 0 | CW15: 0 | CX15: 0 | CY15: 0 | CZ15: 0 | DA15: 0 | DB15: 0 | DC15: 0 | DD15: 0 | DE15: 0 | DF15: 0 | DG15: 0 | DH15: 0 | DI15: 0 | DJ15: 0 | DK15: 0 | DL15: 0 | DM15: 0 | DN15: 0 | DO15: 0 | DP15: 0 | DQ15: 0 | DR15: 0 | DS15: 0 | DT15: 0 | DU15: 0 | DV15: 0 | DW15: 0 | DX15: 0 | DY15: 0 | DZ15: 0 | EA15: 0 | EB15: 0 | EC15: 0 | ED15: 0 | EE15: 0 | EF15: 0 | EG15: 0 | EH15: 0 | EI15: 0 | EJ15: 0 | EK15: 0 | EL15: 0 | EM15: 0 | EN15: 0 | EO15: 0 | EP15: 0 | EQ15: 0 | ER15: 0 | ES15: 0 | ET15: 0 | EU15: 0 | EV15: 0
A16: 0 | C16: Маржинальная прибыль | E16: 554935338.9 | G16: 49490.36458 | H16: 79965.95833 | I16: 105338.3333 | J16: 219394.5833 | K16: 211680.175 | L16: 283907.1667 | M16: 384705.7083 | N16: 432654.25 | O16: 428227.1437 | P16: 493450.1104 | Q16: 503479.9 | R16: 470447.3667 | S16: 485104.2654 | T16: 734291.0445 | U16: 911215.9828 | V16: 1338804.864 | W16: 1233643.955 | X16: 1583746.964 | Y16: 1803392.02 | Z16: 1955653.326 | AA16: 1883419.651 | AB16: 1960419.18 | AC16: 1955258.149 | AD16: 1795190.404 | AE16: 1670732.665 | AF16: 2473133.879 | AG16: 3001600.382 | AH16: 4137242.094 | AI16: 3734852.851 | AJ16: 4695947.397 | AK16: 5109501.782 | AL16: 5439817.418 | AM16: 5163391.341 | AN16: 5206398.226 | AO16: 5129661.685 | AP16: 4664181.893 | AQ16: 3585386.52 | AR16: 5214830.338 | AS16: 6214877.722 | AT16: 8283709.4 | AU16: 7350174.592 | AV16: 9074975.786 | AW16: 9619250.185 | AX16: 10076123.9 | AY16: 9438579.214 | AZ16: 9339665.198 | BA16: 9101336.08 | BB16: 8201826.643 | BC16: 6227316.661 | BD16: 8978263.764 | BE16: 10600491.41 | BF16: 13903075.95 | BG16: 12222713.79 | BH16: 14940354.25 | BI16: 15622852.96 | BJ16: 16213580.95 | BK16: 15070712.52 | BL16: 14759958.55 | BM16: 14289015.29 | BN16: 12807063.23 | BO16: 9657066.479 | BP16: 13848352.85 | BQ16: 16255697.66 | BR16: 21117245.55 | BS16: 18456322.11 | BT16: 22414584.33 | BU16: 23243145.93 | BV16: 23975348.26 | BW16: 22170897.33 | BX16: 21572455.16 | BY16: 20791897.11 | BZ16: 18566848.8 | CA16: 0 | CB16: 0 | CC16: 0 | CD16: 0 | CE16: 0 | CF16: 0 | CG16: 0 | CH16: 0 | CI16: 0 | CJ16: 0 | CK16: 0 | CL16: 0 | CM16: 0 | CN16: 0 | CO16: 0 | CP16: 0 | CQ16: 0 | CR16: 0 | CS16: 0 | CT16: 0 | CU16: 0 | CV16: 0 | CW16: 0 | CX16: 0 | CY16: 0 | CZ16: 0 | DA16: 0 | DB16: 0 | DC16: 0 | DD16: 0 | DE16: 0 | DF16: 0 | DG16: 0 | DH16: 0 | DI16: 0 | DJ16: 0 | DK16: 0 | DL16: 0 | DM16: 0 | DN16: 0 | DO16: 0 | DP16: 0 | DQ16: 0 | DR16: 0 | DS16: 0 | DT16: 0 | DU16: 0 | DV16: 0 | DW16: 0 | DX16: 0 | DY16: 0 | DZ16: 0 | EA16: 0 | EB16: 0 | EC16: 0 | ED16: 0 | EE16: 0 | EF16: 0 | EG16: 0 | EH16: 0 | EI16: 0 | EJ16: 0 | EK16: 0 | EL16: 0 | EM16: 0 | EN16: 0 | EO16: 0 | EP16: 0 | EQ16: 0 | ER16: 0 | ES16: 0 | ET16: 0 | EU16: 0 | EV16: 0
C17: Рентабельность до постоянных расходов | E17: 0.8295188019 | G17: 0.5295643693 | H17: 0.5611318052 | I17: 0.591419214 | J17: 0.5998484848 | K17: 0.6254903301 | L17: 0.6507817793 | M17: 0.6480254495 | N17: 0.6696800698 | O17: 0.6863700686 | P17: 0.6790503105 | Q17: 0.6929109846 | R17: 0.7037685291 | S17: 0.6921906184 | T17: 0.7050847526 | U17: 0.7181068592 | V17: 0.7179662313 | W17: 0.7301582692 | X17: 0.7427011984 | Y17: 0.7413143198 | Z17: 0.7524344344 | AA17: 0.7612914186 | AB17: 0.7580189212 | AC17: 0.7654172804 | AD17: 0.7713414519 | AE17: 0.7644431449 | AF17: 0.7713253016 | AG17: 0.7784584428 | AH17: 0.7783771268 | AI17: 0.7852268478 | AJ17: 0.7924549819 | AK17: 0.7919009605 | AL17: 0.7984234238 | AM17: 0.8037295706 | AN17: 0.8020785727 | AO17: 0.8065321901 | AP17: 0.8101505419 | AQ17: 0.8052883158 | AR17: 0.8089205658 | AS17: 0.8127879464 | AT17: 0.8122039298 | AU17: 0.8160584281 | AV17: 0.8202386898 | AW17: 0.8195815386 | AX17: 0.823475257 | AY17: 0.8267175267 | AZ17: 0.8254934425 | BA17: 0.8282625827 | BB17: 0.8305487306 | BC17: 0.8269559149 | BD17: 0.8292668541 | BE17: 0.8317637073 | BF17: 0.8312330264 | BG17: 0.8337628371 | BH17: 0.8365501666 | BI17: 0.8360093472 | BJ17: 0.838647151 | BK17: 0.8408749415 | BL17: 0.8399656845 | BM17: 0.8418852221 | BN17: 0.8434860171 | BO17: 0.8406760131 | BP17: 0.8422987875 | BQ17: 0.8440687287 | BR17: 0.8436345206 | BS17: 0.845444721 | BT17: 0.8474602048 | BU17: 0.8470289619 | BV17: 0.8489549502 | BW17: 0.8505973393 | BX17: 0.8498999842 | BY17: 0.8513227866 | BZ17: 0.8525176787 | CA17: 0 | CB17: 0 | CC17: 0 | CD17: 0 | CE17: 0 | CF17: 0 | CG17: 0 | CH17: 0 | CI17: 0 | CJ17: 0 | CK17: 0 | CL17: 0 | CM17: 0 | CN17: 0 | CO17: 0 | CP17: 0 | CQ17: 0 | CR17: 0 | CS17: 0 | CT17: 0 | CU17: 0 | CV17: 0 | CW17: 0 | CX17: 0 | CY17: 0 | CZ17: 0 | DA17: 0 | DB17: 0 | DC17: 0 | DD17: 0 | DE17: 0 | DF17: 0 | DG17: 0 | DH17: 0 | DI17: 0 | DJ17: 0 | DK17: 0 | DL17: 0 | DM17: 0 | DN17: 0 | DO17: 0 | DP17: 0 | DQ17: 0 | DR17: 0 | DS17: 0 | DT17: 0 | DU17: 0 | DV17: 0 | DW17: 0 | DX17: 0 | DY17: 0 | DZ17: 0 | EA17: 0 | EB17: 0 | EC17: 0 | ED17: 0 | EE17: 0 | EF17: 0 | EG17: 0 | EH17: 0 | EI17: 0 | EJ17: 0 | EK17: 0 | EL17: 0 | EM17: 0 | EN17: 0 | EO17: 0 | EP17: 0 | EQ17: 0 | ER17: 0 | ES17: 0 | ET17: 0 | EU17: 0 | EV17: 0
C18: Начисление постоянных расходов | E18: 311594539.7 | G18: 4754815.556 | H18: 4754815.556 | I18: 4754815.556 | J18: 4754815.556 | K18: 4754815.556 | L18: 4754815.556 | M18: 3365926.667 | N18: 3891246.667 | O18: 3891246.667 | P18: 3891246.667 | Q18: 3891246.667 | R18: 3891246.667 | S18: 4030942.4 | T18: 4030942.4 | U18: 4030942.4 | V18: 4030942.4 | W18: 4030942.4 | X18: 4030942.4 | Y18: 4030942.4 | Z18: 4030942.4 | AA18: 4030942.4 | AB18: 4030942.4 | AC18: 4030942.4 | AD18: 4030942.4 | AE18: 4177080.672 | AF18: 4177080.672 | AG18: 4177080.672 | AH18: 4177080.672 | AI18: 4177080.672 | AJ18: 4177080.672 | AK18: 4177080.672 | AL18: 4177080.672 | AM18: 4177080.672 | AN18: 4177080.672 | AO18: 4177080.672 | AP18: 4177080.672 | AQ18: 4330076.617 | AR18: 4330076.617 | AS18: 4330076.617 | AT18: 4330076.617 | AU18: 4330076.617 | AV18: 4330076.617 | AW18: 4330076.617 | AX18: 4330076.617 | AY18: 4330076.617 | AZ18: 4330076.617 | BA18: 4330076.617 | BB18: 4330076.617 | BC18: 4490379.844 | BD18: 4490379.844 | BE18: 4490379.844 | BF18: 4490379.844 | BG18: 4490379.844 | BH18: 4490379.844 | BI18: 4490379.844 | BJ18: 4490379.844 | BK18: 4490379.844 | BL18: 4490379.844 | BM18: 4490379.844 | BN18: 4490379.844 | BO18: 4658477.666 | BP18: 4658477.666 | BQ18: 4658477.666 | BR18: 4658477.666 | BS18: 4658477.666 | BT18: 4658477.666 | BU18: 4658477.666 | BV18: 4658477.666 | BW18: 4658477.666 | BX18: 4658477.666 | BY18: 4658477.666 | BZ18: 4658477.666 | CA18: 0 | CB18: 0 | CC18: 0 | CD18: 0 | CE18: 0 | CF18: 0 | CG18: 0 | CH18: 0 | CI18: 0 | CJ18: 0 | CK18: 0 | CL18: 0 | CM18: 0 | CN18: 0 | CO18: 0 | CP18: 0 | CQ18: 0 | CR18: 0 | CS18: 0 | CT18: 0 | CU18: 0 | CV18: 0 | CW18: 0 | CX18: 0 | CY18: 0 | CZ18: 0 | DA18: 0 | DB18: 0 | DC18: 0 | DD18: 0 | DE18: 0 | DF18: 0 | DG18: 0 | DH18: 0 | DI18: 0 | DJ18: 0 | DK18: 0 | DL18: 0 | DM18: 0 | DN18: 0 | DO18: 0 | DP18: 0 | DQ18: 0 | DR18: 0 | DS18: 0 | DT18: 0 | DU18: 0 | DV18: 0 | DW18: 0 | DX18: 0 | DY18: 0 | DZ18: 0 | EA18: 0 | EB18: 0 | EC18: 0 | ED18: 0 | EE18: 0 | EF18: 0 | EG18: 0 | EH18: 0 | EI18: 0 | EJ18: 0 | EK18: 0 | EL18: 0 | EM18: 0 | EN18: 0 | EO18: 0 | EP18: 0 | EQ18: 0 | ER18: 0 | ES18: 0 | ET18: 0 | EU18: 0 | EV18: 0
A20: 0 | C20: EBITDA | E20: 243340799.2 | G20: -4705325.191 | H20: -4674849.597 | I20: -4649477.222 | J20: -4535420.972 | K20: -4543135.381 | L20: -4470908.389 | M20: -2981220.958 | N20: -3458592.417 | O20: -3463019.523 | P20: -3397796.556 | Q20: -3387766.767 | R20: -3420799.3 | S20: -3545838.135 | T20: -3296651.355 | U20: -3119726.417 | V20: -2692137.536 | W20: -2797298.445 | X20: -2447195.436 | Y20: -2227550.38 | Z20: -2075289.074 | AA20: -2147522.749 | AB20: -2070523.22 | AC20: -2075684.251 | AD20: -2235751.996 | AE20: -2506348.007 | AF20: -1703946.793 | AG20: -1175480.29 | AH20: -39838.57846 | AI20: -442227.8213 | AJ20: 518866.7249 | AK20: 932421.1103 | AL20: 1262736.746 | AM20: 986310.6686 | AN20: 1029317.554 | AO20: 952581.0132 | AP20: 487101.2206 | AQ20: -744690.0969 | AR20: 884753.7212 | AS20: 1884801.105 | AT20: 3953632.783 | AU20: 3020097.975 | AV20: 4744899.169 | AW20: 5289173.568 | AX20: 5746047.28 | AY20: 5108502.597 | AZ20: 5009588.581 | BA20: 4771259.463 | BB20: 3871750.026 | BC20: 1736936.817 | BD20: 4487883.92 | BE20: 6110111.561 | BF20: 9412696.106 | BG20: 7732333.941 | BH20: 10449974.4 | BI20: 11132473.12 | BJ20: 11723201.1 | BK20: 10580332.68 | BL20: 10269578.7 | BM20: 9798635.45 | BN20: 8316683.39 | BO20: 4998588.813 | BP20: 9189875.184 | BQ20: 11597220 | BR20: 16458767.88 | BS20: 13797844.44 | BT20: 17756106.67 | BU20: 18584668.26 | BV20: 19316870.6 | BW20: 17512419.66 | BX20: 16913977.5 | BY20: 16133419.44 | BZ20: 13908371.13 | CA20: 0 | CB20: 0 | CC20: 0 | CD20: 0 | CE20: 0 | CF20: 0 | CG20: 0 | CH20: 0 | CI20: 0 | CJ20: 0 | CK20: 0 | CL20: 0 | CM20: 0 | CN20: 0 | CO20: 0 | CP20: 0 | CQ20: 0 | CR20: 0 | CS20: 0 | CT20: 0 | CU20: 0 | CV20: 0 | CW20: 0 | CX20: 0 | CY20: 0 | CZ20: 0 | DA20: 0 | DB20: 0 | DC20: 0 | DD20: 0 | DE20: 0 | DF20: 0 | DG20: 0 | DH20: 0 | DI20: 0 | DJ20: 0 | DK20: 0 | DL20: 0 | DM20: 0 | DN20: 0 | DO20: 0 | DP20: 0 | DQ20: 0 | DR20: 0 | DS20: 0 | DT20: 0 | DU20: 0 | DV20: 0 | DW20: 0 | DX20: 0 | DY20: 0 | DZ20: 0 | EA20: 0 | EB20: 0 | EC20: 0 | ED20: 0 | EE20: 0 | EF20: 0 | EG20: 0 | EH20: 0 | EI20: 0 | EJ20: 0 | EK20: 0 | EL20: 0 | EM20: 0 | EN20: 0 | EO20: 0 | EP20: 0 | EQ20: 0 | ER20: 0 | ES20: 0 | ET20: 0 | EU20: 0 | EV20: 0
C21: Рентабельность операционной деятельности | E21: 0.3637464657 | G21: -50.34864035 | H21: -32.80404372 | I21: -26.10436369 | J21: -12.40033075 | K21: -13.42443736 | L21: -10.24837009 | M21: -5.021779011 | N21: -5.353351807 | O21: -5.550589172 | P21: -4.675801581 | Q21: -4.662392294 | R21: -5.117365007 | S21: -5.059522387 | T21: -3.165527651 | U21: -2.458579504 | V21: -1.443723348 | W21: -1.655640255 | X21: -1.147617027 | Y21: -0.9156716766 | Z21: -0.7984640938 | AA21: -0.8680437412 | AB21: -0.8005919315 | AC21: -0.8125600165 | AD21: -0.9606380399 | AE21: -1.146778652 | AF21: -0.5314298936 | AG21: -0.3048582223 | AH21: -0.007495195479 | AI21: -0.09297532514 | AJ21: 0.0875602911 | AK21: 0.1445121666 | AL21: 0.1853368447 | AM21: 0.1535283688 | AN21: 0.1585728787 | AO21: 0.149773474 | AP21: 0.08460761756 | AQ21: -0.1672595773 | AR21: 0.1372423328 | AS21: 0.2464961803 | AT21: 0.387647119 | AU21: 0.3353085529 | AV21: 0.4288661446 | AW21: 0.4506493674 | AX21: 0.469598013 | AY21: 0.4474496146 | AZ21: 0.4427763132 | BA21: 0.4342061045 | BB21: 0.3920684025 | BC21: 0.2306563569 | BD21: 0.4145181605 | BE21: 0.479427684 | BF21: 0.5627635135 | BG21: 0.5274550969 | BH21: 0.5851218575 | BI21: 0.5957203595 | BJ21: 0.6063823431 | BK21: 0.5903328465 | BL21: 0.5844253341 | BM21: 0.5773194452 | BN21: 0.5477451012 | BO21: 0.4351418439 | BP21: 0.5589560584 | BQ21: 0.6021796753 | BR21: 0.6575282141 | BS21: 0.6320498026 | BT21: 0.6713304859 | BU21: 0.6772642703 | BV21: 0.6840006133 | BW21: 0.6718725611 | BX21: 0.666367787 | BY21: 0.6605817413 | BZ21: 0.6386184539 | CA21: 0 | CB21: 0 | CC21: 0 | CD21: 0 | CE21: 0 | CF21: 0 | CG21: 0 | CH21: 0 | CI21: 0 | CJ21: 0 | CK21: 0 | CL21: 0 | CM21: 0 | CN21: 0 | CO21: 0 | CP21: 0 | CQ21: 0 | CR21: 0 | CS21: 0 | CT21: 0 | CU21: 0 | CV21: 0 | CW21: 0 | CX21: 0 | CY21: 0 | CZ21: 0 | DA21: 0 | DB21: 0 | DC21: 0 | DD21: 0 | DE21: 0 | DF21: 0 | DG21: 0 | DH21: 0 | DI21: 0 | DJ21: 0 | DK21: 0 | DL21: 0 | DM21: 0 | DN21: 0 | DO21: 0 | DP21: 0 | DQ21: 0 | DR21: 0 | DS21: 0 | DT21: 0 | DU21: 0 | DV21: 0 | DW21: 0 | DX21: 0 | DY21: 0 | DZ21: 0 | EA21: 0 | EB21: 0 | EC21: 0 | ED21: 0 | EE21: 0 | EF21: 0 | EG21: 0 | EH21: 0 | EI21: 0 | EJ21: 0 | EK21: 0 | EL21: 0 | EM21: 0 | EN21: 0 | EO21: 0 | EP21: 0 | EQ21: 0 | ER21: 0 | ES21: 0 | ET21: 0 | EU21: 0 | EV21: 0
C22: начисление %% по кредиту за период | E22: 35719435.71 | G22: 746666.6667 | H22: 746666.6667 | I22: 746666.6667 | J22: 746666.6667 | K22: 746666.6667 | L22: 746666.6667 | M22: 746666.6667 | N22: 746666.6667 | O22: 746666.6667 | P22: 746666.6667 | Q22: 746666.6667 | R22: 746666.6667 | S22: 746666.6667 | T22: 746666.6667 | U22: 746666.6667 | V22: 746666.6667 | W22: 746666.6667 | X22: 746666.6667 | Y22: 746666.6667 | Z22: 732839.5062 | AA22: 719012.3457 | AB22: 707698.1057 | AC22: 721688.1079 | AD22: 741319.5108 | AE22: 759522.5014 | AF22: 764872.7754 | AG22: 766119.0203 | AH22: 752291.8598 | AI22: 739501.4507 | AJ22: 725674.2902 | AK22: 708520.1101 | AL22: 680582.5492 | AM22: 652423.224 | AN22: 633929.6926 | AO22: 610343.4646 | AP22: 593447.7291 | AQ22: 588816.5902 | AR22: 574989.4297 | AS22: 547760.8736 | AT22: 510675.1687 | AU22: 442469.1358 | AV22: 428641.9753 | AW22: 414814.8148 | AX22: 400987.6543 | AY22: 387160.4938 | AZ22: 373333.3333 | BA22: 359506.1728 | BB22: 345679.0123 | BC22: 331851.8519 | BD22: 318024.6914 | BE22: 304197.5309 | BF22: 290370.3704 | BG22: 276543.2099 | BH22: 262716.0494 | BI22: 248888.8889 | BJ22: 235061.7284 | BK22: 221234.5679 | BL22: 207407.4074 | BM22: 193580.2469 | BN22: 179753.0864 | BO22: 165925.9259 | BP22: 152098.7654 | BQ22: 138271.6049 | BR22: 124444.4444 | BS22: 110617.284 | BT22: 96790.12346 | BU22: 82962.96296 | BV22: 69135.80247 | BW22: 55308.64198 | BX22: 41481.48148 | BY22: 27654.32099 | BZ22: 13827.16049 | CA22: 0 | CB22: 0 | CC22: 0 | CD22: 0 | CE22: 0 | CF22: 0 | CG22: 0 | CH22: 0 | CI22: 0 | CJ22: 0 | CK22: 0 | CL22: 0 | CM22: 0 | CN22: 0 | CO22: 0 | CP22: 0 | CQ22: 0 | CR22: 0 | CS22: 0 | CT22: 0 | CU22: 0 | CV22: 0 | CW22: 0 | CX22: 0 | CY22: 0 | CZ22: 0 | DA22: 0 | DB22: 0 | DC22: 0 | DD22: 0 | DE22: 0 | DF22: 0 | DG22: 0 | DH22: 0 | DI22: 0 | DJ22: 0 | DK22: 0 | DL22: 0 | DM22: 0 | DN22: 0 | DO22: 0 | DP22: 0 | DQ22: 0 | DR22: 0 | DS22: 0 | DT22: 0 | DU22: 0 | DV22: 0 | DW22: 0 | DX22: 0 | DY22: 0 | DZ22: 0 | EA22: 0 | EB22: 0 | EC22: 0 | ED22: 0 | EE22: 0 | EF22: 0 | EG22: 0 | EH22: 0 | EI22: 0 | EJ22: 0 | EK22: 0 | EL22: 0 | EM22: 0 | EN22: 0 | EO22: 0 | EP22: 0 | EQ22: 0 | ER22: 0 | ES22: 0 | ET22: 0 | EU22: 0 | EV22: 0
C23: Начисление налога на имущество | E23: 2523003.472 | G23: 0 | H23: 0 | I23: 10329.86111 | J23: 20572.91667 | K23: 30729.16667 | L23: 40798.61111 | M23: 50781.25 | N23: 50347.22222 | O23: 49913.19444 | P23: 49479.16667 | Q23: 49045.13889 | R23: 48611.11111 | S23: 48177.08333 | T23: 47743.05556 | U23: 47309.02778 | V23: 46875 | W23: 46440.97222 | X23: 46006.94444 | Y23: 45572.91667 | Z23: 45138.88889 | AA23: 44704.86111 | AB23: 44270.83333 | AC23: 43836.80556 | AD23: 43402.77778 | AE23: 42968.75 | AF23: 42534.72222 | AG23: 42100.69444 | AH23: 41666.66667 | AI23: 41232.63889 | AJ23: 40798.61111 | AK23: 40364.58333 | AL23: 39930.55556 | AM23: 39496.52778 | AN23: 39062.5 | AO23: 38628.47222 | AP23: 38194.44444 | AQ23: 37760.41667 | AR23: 37326.38889 | AS23: 36892.36111 | AT23: 36458.33333 | AU23: 36024.30556 | AV23: 35590.27778 | AW23: 35156.25 | AX23: 34722.22222 | AY23: 34288.19444 | AZ23: 33854.16667 | BA23: 33420.13889 | BB23: 32986.11111 | BC23: 32552.08333 | BD23: 32118.05556 | BE23: 31684.02778 | BF23: 31250 | BG23: 30815.97222 | BH23: 30381.94444 | BI23: 29947.91667 | BJ23: 29513.88889 | BK23: 29079.86111 | BL23: 28645.83333 | BM23: 28211.80556 | BN23: 27777.77778 | BO23: 27343.75 | BP23: 26909.72222 | BQ23: 26475.69444 | BR23: 26041.66667 | BS23: 25607.63889 | BT23: 25173.61111 | BU23: 24739.58333 | BV23: 24305.55556 | BW23: 23871.52778 | BX23: 23437.5 | BY23: 23003.47222 | BZ23: 22569.44444 | CA23: 0 | CB23: 0 | CC23: 0 | CD23: 0 | CE23: 0 | CF23: 0 | CG23: 0 | CH23: 0 | CI23: 0 | CJ23: 0 | CK23: 0 | CL23: 0 | CM23: 0 | CN23: 0 | CO23: 0 | CP23: 0 | CQ23: 0 | CR23: 0 | CS23: 0 | CT23: 0 | CU23: 0 | CV23: 0 | CW23: 0 | CX23: 0 | CY23: 0 | CZ23: 0 | DA23: 0 | DB23: 0 | DC23: 0 | DD23: 0 | DE23: 0 | DF23: 0 | DG23: 0 | DH23: 0 | DI23: 0 | DJ23: 0 | DK23: 0 | DL23: 0 | DM23: 0 | DN23: 0 | DO23: 0 | DP23: 0 | DQ23: 0 | DR23: 0 | DS23: 0 | DT23: 0 | DU23: 0 | DV23: 0 | DW23: 0 | DX23: 0 | DY23: 0 | DZ23: 0 | EA23: 0 | EB23: 0 | EC23: 0 | ED23: 0 | EE23: 0 | EF23: 0 | EG23: 0 | EH23: 0 | EI23: 0 | EJ23: 0 | EK23: 0 | EL23: 0 | EM23: 0 | EN23: 0 | EO23: 0 | EP23: 0 | EQ23: 0 | ER23: 0 | ES23: 0 | ET23: 0 | EU23: 0 | EV23: 0
C24: Налог на прибыль | E24: 31422449.78 | G24: 0 | H24: 0 | I24: 0 | J24: 0 | K24: 0 | L24: 0 | M24: 0 | N24: 0 | O24: 0 | P24: 0 | Q24: 0 | R24: 0 | S24: 0 | T24: 0 | U24: 0 | V24: 0 | W24: 0 | X24: 0 | Y24: 0 | Z24: 0 | AA24: 0 | AB24: 0 | AC24: 0 | AD24: 0 | AE24: 0 | AF24: 0 | AG24: 0 | AH24: 0 | AI24: 0 | AJ24: 0 | AK24: 0 | AL24: 0 | AM24: 0 | AN24: 0 | AO24: 0 | AP24: 0 | AQ24: 0 | AR24: 0 | AS24: 0 | AT24: 0 | AU24: 0 | AV24: 0 | AW24: 0 | AX24: 0 | AY24: 0 | AZ24: 0 | BA24: 0 | BB24: 0 | BC24: 0 | BD24: 0 | BE24: 0 | BF24: 0 | BG24: 0 | BH24: 0 | BI24: 0 | BJ24: 0 | BK24: 0 | BL24: 0 | BM24: 0 | BN24: 0 | BO24: 0 | BP24: 616549.4613 | BQ24: 2147605.651 | BR24: 3122767.465 | BS24: 2593435.015 | BT24: 3387939.698 | BU24: 3556504.254 | BV24: 3705796.959 | BW24: 3347759.01 | BX24: 3230922.814 | BY24: 3077663.441 | BZ24: 2635506.016 | CA24: 0 | CB24: 0 | CC24: 0 | CD24: 0 | CE24: 0 | CF24: 0 | CG24: 0 | CH24: 0 | CI24: 0 | CJ24: 0 | CK24: 0 | CL24: 0 | CM24: 0 | CN24: 0 | CO24: 0 | CP24: 0 | CQ24: 0 | CR24: 0 | CS24: 0 | CT24: 0 | CU24: 0 | CV24: 0 | CW24: 0 | CX24: 0 | CY24: 0 | CZ24: 0 | DA24: 0 | DB24: 0 | DC24: 0 | DD24: 0 | DE24: 0 | DF24: 0 | DG24: 0 | DH24: 0 | DI24: 0 | DJ24: 0 | DK24: 0 | DL24: 0 | DM24: 0 | DN24: 0 | DO24: 0 | DP24: 0 | DQ24: 0 | DR24: 0 | DS24: 0 | DT24: 0 | DU24: 0 | DV24: 0 | DW24: 0 | DX24: 0 | DY24: 0 | DZ24: 0 | EA24: 0 | EB24: 0 | EC24: 0 | ED24: 0 | EE24: 0 | EF24: 0 | EG24: 0 | EH24: 0 | EI24: 0 | EJ24: 0 | EK24: 0 | EL24: 0 | EM24: 0 | EN24: 0 | EO24: 0 | EP24: 0 | EQ24: 0 | ER24: 0 | ES24: 0 | ET24: 0 | EU24: 0 | EV24: 0
C25: Амортизация | E25: 47986111.11 | G25: 86805.55556 | H25: 173611.1111 | I25: 309027.7778 | J25: 444444.4444 | K25: 527777.7778 | L25: 611111.1111 | M25: 694444.4444 | N25: 694444.4444 | O25: 694444.4444 | P25: 694444.4444 | Q25: 694444.4444 | R25: 694444.4444 | S25: 694444.4444 | T25: 694444.4444 | U25: 694444.4444 | V25: 694444.4444 | W25: 694444.4444 | X25: 694444.4444 | Y25: 694444.4444 | Z25: 694444.4444 | AA25: 694444.4444 | AB25: 694444.4444 | AC25: 694444.4444 | AD25: 694444.4444 | AE25: 694444.4444 | AF25: 694444.4444 | AG25: 694444.4444 | AH25: 694444.4444 | AI25: 694444.4444 | AJ25: 694444.4444 | AK25: 694444.4444 | AL25: 694444.4444 | AM25: 694444.4444 | AN25: 694444.4444 | AO25: 694444.4444 | AP25: 694444.4444 | AQ25: 694444.4444 | AR25: 694444.4444 | AS25: 694444.4444 | AT25: 694444.4444 | AU25: 694444.4444 | AV25: 694444.4444 | AW25: 694444.4444 | AX25: 694444.4444 | AY25: 694444.4444 | AZ25: 694444.4444 | BA25: 694444.4444 | BB25: 694444.4444 | BC25: 694444.4444 | BD25: 694444.4444 | BE25: 694444.4444 | BF25: 694444.4444 | BG25: 694444.4444 | BH25: 694444.4444 | BI25: 694444.4444 | BJ25: 694444.4444 | BK25: 694444.4444 | BL25: 694444.4444 | BM25: 694444.4444 | BN25: 694444.4444 | BO25: 694444.4444 | BP25: 694444.4444 | BQ25: 694444.4444 | BR25: 694444.4444 | BS25: 694444.4444 | BT25: 694444.4444 | BU25: 694444.4444 | BV25: 694444.4444 | BW25: 694444.4444 | BX25: 694444.4444 | BY25: 694444.4444 | BZ25: 694444.4444 | CA25: 0 | CB25: 0 | CC25: 0 | CD25: 0 | CE25: 0 | CF25: 0 | CG25: 0 | CH25: 0 | CI25: 0 | CJ25: 0 | CK25: 0 | CL25: 0 | CM25: 0 | CN25: 0 | CO25: 0 | CP25: 0 | CQ25: 0 | CR25: 0 | CS25: 0 | CT25: 0 | CU25: 0 | CV25: 0 | CW25: 0 | CX25: 0 | CY25: 0 | CZ25: 0 | DA25: 0 | DB25: 0 | DC25: 0 | DD25: 0 | DE25: 0 | DF25: 0 | DG25: 0 | DH25: 0 | DI25: 0 | DJ25: 0 | DK25: 0 | DL25: 0 | DM25: 0 | DN25: 0 | DO25: 0 | DP25: 0 | DQ25: 0 | DR25: 0 | DS25: 0 | DT25: 0 | DU25: 0 | DV25: 0 | DW25: 0 | DX25: 0 | DY25: 0 | DZ25: 0 | EA25: 0 | EB25: 0 | EC25: 0 | ED25: 0 | EE25: 0 | EF25: 0 | EG25: 0 | EH25: 0 | EI25: 0 | EJ25: 0 | EK25: 0 | EL25: 0 | EM25: 0 | EN25: 0 | EO25: 0 | EP25: 0 | EQ25: 0 | ER25: 0 | ES25: 0 | ET25: 0 | EU25: 0 | EV25: 0
A26: 0 | C26: Чистая прибыль | E26: 125689799.1 | G26: -5538797.413 | H26: -5595127.375 | I26: -5715501.528 | J26: -5747105 | K26: -5848308.992 | L26: -5869484.778 | M26: -4473113.319 | N26: -4950050.75 | O26: -4954043.828 | P26: -4888386.834 | Q26: -4877923.017 | R26: -4910521.522 | S26: -5035126.329 | T26: -4785505.522 | U26: -4608146.556 | V26: -4180123.647 | W26: -4284850.529 | X26: -3934313.491 | Y26: -3714234.408 | Z26: -3547711.914 | AA26: -3605684.4 | AB26: -3516936.604 | AC26: -3535653.609 | AD26: -3714918.729 | AE26: -4003283.703 | AF26: -3205798.735 | AG26: -2678144.45 | AH26: -1528241.549 | AI26: -1917406.355 | AJ26: -942050.6209 | AK26: -510908.0276 | AL26: -152220.8035 | AM26: -400053.5276 | AN26: -338119.0834 | AO26: -390835.3681 | AP26: -838985.3974 | AQ26: -2065711.548 | AR26: -422006.5418 | AS26: 605703.4258 | AT26: 2712054.837 | AU26: 1847160.089 | AV26: 3586222.471 | AW26: 4144758.059 | AX26: 4615892.959 | AY26: 3992609.464 | AZ26: 3907956.636 | BA26: 3683888.707 | BB26: 2798640.458 | BC26: 678088.4373 | BD26: 3443296.729 | BE26: 5079785.558 | BF26: 8396631.291 | BG26: 6730530.314 | BH26: 9462431.966 | BI26: 10159191.87 | BJ26: 10764181.04 | BK26: 9635573.806 | BL26: 9339081.017 | BM26: 8882398.953 | BN26: 7414708.082 | BO26: 4110874.692 | BP26: 7699872.791 | BQ26: 8590422.604 | BR26: 12491069.86 | BS26: 10373740.06 | BT26: 13551758.79 | BU26: 14226017.02 | BV26: 14823187.84 | BW26: 13391036.04 | BX26: 12923691.26 | BY26: 12310653.76 | BZ26: 10542024.07 | CA26: 0 | CB26: 0 | CC26: 0 | CD26: 0 | CE26: 0 | CF26: 0 | CG26: 0 | CH26: 0 | CI26: 0 | CJ26: 0 | CK26: 0 | CL26: 0 | CM26: 0 | CN26: 0 | CO26: 0 | CP26: 0 | CQ26: 0 | CR26: 0 | CS26: 0 | CT26: 0 | CU26: 0 | CV26: 0 | CW26: 0 | CX26: 0 | CY26: 0 | CZ26: 0 | DA26: 0 | DB26: 0 | DC26: 0 | DD26: 0 | DE26: 0 | DF26: 0 | DG26: 0 | DH26: 0 | DI26: 0 | DJ26: 0 | DK26: 0 | DL26: 0 | DM26: 0 | DN26: 0 | DO26: 0 | DP26: 0 | DQ26: 0 | DR26: 0 | DS26: 0 | DT26: 0 | DU26: 0 | DV26: 0 | DW26: 0 | DX26: 0 | DY26: 0 | DZ26: 0 | EA26: 0 | EB26: 0 | EC26: 0 | ED26: 0 | EE26: 0 | EF26: 0 | EG26: 0 | EH26: 0 | EI26: 0 | EJ26: 0 | EK26: 0 | EL26: 0 | EM26: 0 | EN26: 0 | EO26: 0 | EP26: 0 | EQ26: 0 | ER26: 0 | ES26: 0 | ET26: 0 | EU26: 0 | EV26: 0
B28: CF | C28: Поступление ДС | E28: 1099456352 | G28: 315000 | H28: 476000 | I28: 553000 | J28: 1064000 | K28: 968800 | L28: 1103200 | M28: 1498000 | N28: 1540000 | O28: 1401400 | P28: 1638000 | Q28: 1577800 | R28: 1391600 | S28: 1734845 | T28: 2388428 | U28: 2768647 | V28: 4215680 | W28: 3733982 | X28: 4276370 | Y28: 5107550 | Z28: 5161100 | AA28: 4686045 | AB28: 5068448 | AC28: 4817029 | AD28: 4241006 | AE28: 4450967.85 | AF28: 6096261.99 | AG28: 7049371.56 | AH28: 10032279.6 | AI28: 8798211.66 | AJ28: 10120479.6 | AK28: 11494843.5 | AL28: 11560993.5 | AM28: 10482069.15 | AN28: 10943677.29 | AO28: 10358428.92 | AP28: 9110757.18 | AQ28: 8263156.276 | AR28: 11221903.04 | AS28: 12947078.79 | AT28: 17880825.51 | AU28: 15571919.98 | AV28: 17987327.01 | AW28: 19908304.46 | AX28: 19977761.96 | AY28: 18088802.52 | AZ28: 18538451.36 | BA28: 17510193.59 | BB28: 15386535.8 | BC28: 13203606.8 | BD28: 17994795.33 | BE28: 20731136.52 | BF28: 28113995.98 | BG28: 24382126.68 | BH28: 28240408.63 | BI28: 30741321.77 | BJ28: 30814252.14 | BK28: 27876256.67 | BL28: 28216031.06 | BM28: 26622473.87 | BN28: 23379446.2 | BO28: 19426900.15 | BP28: 26550160.03 | BQ28: 30556361.38 | BR28: 40926435.93 | BS28: 35394980.56 | BT28: 41074484.59 | BU28: 44190267.68 | BV28: 44266844.57 | BW28: 40021392.1 | BX28: 40144542.29 | BY28: 37853519.33 | BZ28: 33228079.86 | CA28: 0 | CB28: 0 | CC28: 0 | CD28: 0 | CE28: 0 | CF28: 0 | CG28: 0 | CH28: 0 | CI28: 0 | CJ28: 0 | CK28: 0 | CL28: 0 | CM28: 0 | CN28: 0 | CO28: 0 | CP28: 0 | CQ28: 0 | CR28: 0 | CS28: 0 | CT28: 0 | CU28: 0 | CV28: 0 | CW28: 0 | CX28: 0 | CY28: 0 | CZ28: 0 | DA28: 0 | DB28: 0 | DC28: 0 | DD28: 0 | DE28: 0 | DF28: 0 | DG28: 0 | DH28: 0 | DI28: 0 | DJ28: 0 | DK28: 0 | DL28: 0 | DM28: 0 | DN28: 0 | DO28: 0 | DP28: 0 | DQ28: 0 | DR28: 0 | DS28: 0 | DT28: 0 | DU28: 0 | DV28: 0 | DW28: 0 | DX28: 0 | DY28: 0 | DZ28: 0 | EA28: 0 | EB28: 0 | EC28: 0 | ED28: 0 | EE28: 0 | EF28: 0 | EG28: 0 | EH28: 0 | EI28: 0 | EJ28: 0 | EK28: 0 | EL28: 0 | EM28: 0 | EN28: 0 | EO28: 0 | EP28: 0 | EQ28: 0 | ER28: 0 | ES28: 0 | ET28: 0 | EU28: 0 | EV28: 0
A29: 0 | C29: в т.ч.
C30: Продажа аппаратов | E30: 165372664.1 | G30: 70000 | H30: 133000 | I30: 161000 | J30: 280000 | K30: 302400 | L30: 319200 | M30: 420000 | N30: 462000 | O30: 431200 | P30: 471800 | Q30: 480200 | R30: 431200 | S30: 440650 | T30: 576555 | U30: 697935 | V30: 956760 | W30: 963900 | X30: 1017450 | Y30: 1178100 | Z30: 1231650 | AA30: 1149540 | AB30: 1158465 | AC30: 1137045 | AD30: 1021020 | AE30: 964320 | AF30: 1214955 | AG30: 1470735 | AH30: 1922760 | AI30: 1905120 | AJ30: 2010960 | AK30: 2249100 | AL30: 2315250 | AM30: 2160900 | AN30: 2119005 | AO30: 2052855 | AP30: 1843380 | AQ30: 1535782.5 | AR30: 1803579.75 | AS30: 2183280.75 | AT30: 2796822 | AU30: 2750517 | AV30: 2903323.5 | AW30: 3195045 | AX30: 3264502.5 | AY30: 3046869 | AZ30: 2947313.25 | BA30: 2836181.25 | BB30: 2546775 | BC30: 2098774.125 | BD30: 2448029.588 | BE30: 2963404.238 | BF30: 3753483.3 | BG30: 3675690.9 | BH30: 3879895.95 | BI30: 4229961.75 | BJ30: 4302892.125 | BK30: 4016032.65 | BL30: 3853154.812 | BM30: 3692707.988 | BN30: 3315901.05 | BO30: 2714225.456 | BP30: 3152415.459 | BQ30: 3816081.872 | BR30: 4798818.675 | BS30: 4686505.898 | BT30: 4946867.336 | BU30: 5360382.563 | BV30: 5436959.456 | BW30: 5074495.493 | BX30: 4842212.248 | BY30: 4627796.946 | BZ30: 4155572.768 | CA30: 0 | CB30: 0 | CC30: 0 | CD30: 0 | CE30: 0 | CF30: 0 | CG30: 0 | CH30: 0 | CI30: 0 | CJ30: 0 | CK30: 0 | CL30: 0 | CM30: 0 | CN30: 0 | CO30: 0 | CP30: 0 | CQ30: 0 | CR30: 0 | CS30: 0 | CT30: 0 | CU30: 0 | CV30: 0 | CW30: 0 | CX30: 0 | CY30: 0 | CZ30: 0 | DA30: 0 | DB30: 0 | DC30: 0 | DD30: 0 | DE30: 0 | DF30: 0 | DG30: 0 | DH30: 0 | DI30: 0 | DJ30: 0 | DK30: 0 | DL30: 0 | DM30: 0 | DN30: 0 | DO30: 0 | DP30: 0 | DQ30: 0 | DR30: 0 | DS30: 0 | DT30: 0 | DU30: 0 | DV30: 0 | DW30: 0 | DX30: 0 | DY30: 0 | DZ30: 0 | EA30: 0 | EB30: 0 | EC30: 0 | ED30: 0 | EE30: 0 | EF30: 0 | EG30: 0 | EH30: 0 | EI30: 0 | EJ30: 0 | EK30: 0 | EL30: 0 | EM30: 0 | EN30: 0 | EO30: 0 | EP30: 0 | EQ30: 0 | ER30: 0 | ES30: 0 | ET30: 0 | EU30: 0 | EV30: 0
C31: Продажа годовых подписок на онлайн сервис | E31: 934083688.1 | G31: 245000 | H31: 343000 | I31: 392000 | J31: 784000 | K31: 666400 | L31: 784000 | M31: 1078000 | N31: 1078000 | O31: 970200 | P31: 1166200 | Q31: 1097600 | R31: 960400 | S31: 1294195 | T31: 1811873 | U31: 2070712 | V31: 3258920 | W31: 2770082 | X31: 3258920 | Y31: 3929450 | Z31: 3929450 | AA31: 3536505 | AB31: 3909983 | AC31: 3679984 | AD31: 3219986 | AE31: 3486647.85 | AF31: 4881306.99 | AG31: 5578636.56 | AH31: 8109519.6 | AI31: 6893091.66 | AJ31: 8109519.6 | AK31: 9245743.5 | AL31: 9245743.5 | AM31: 8321169.15 | AN31: 8824672.29 | AO31: 8305573.92 | AP31: 7267377.18 | AQ31: 6727373.776 | AR31: 9418323.286 | AS31: 10763798.04 | AT31: 15084003.51 | AU31: 12821402.98 | AV31: 15084003.51 | AW31: 16713259.46 | AX31: 16713259.46 | AY31: 15041933.52 | AZ31: 15591138.11 | BA31: 14674012.34 | BB31: 12839760.8 | BC31: 11104832.67 | BD31: 15546765.74 | BE31: 17767732.28 | BF31: 24360512.68 | BG31: 20706435.78 | BH31: 24360512.68 | BI31: 26511360.02 | BJ31: 26511360.02 | BK31: 23860224.02 | BL31: 24362876.25 | BM31: 22929765.88 | BN31: 20063545.15 | BO31: 16712674.69 | BP31: 23397744.57 | BQ31: 26740279.51 | BR31: 36127617.25 | BS31: 30708474.66 | BT31: 36127617.25 | BU31: 38829885.12 | BV31: 38829885.12 | BW31: 34946896.61 | BX31: 35302330.04 | BY31: 33225722.39 | BZ31: 29072507.09 | CA31: 0 | CB31: 0 | CC31: 0 | CD31: 0 | CE31: 0 | CF31: 0 | CG31: 0 | CH31: 0 | CI31: 0 | CJ31: 0 | CK31: 0 | CL31: 0 | CM31: 0 | CN31: 0 | CO31: 0 | CP31: 0 | CQ31: 0 | CR31: 0 | CS31: 0 | CT31: 0 | CU31: 0 | CV31: 0 | CW31: 0 | CX31: 0 | CY31: 0 | CZ31: 0 | DA31: 0 | DB31: 0 | DC31: 0 | DD31: 0 | DE31: 0 | DF31: 0 | DG31: 0 | DH31: 0 | DI31: 0 | DJ31: 0 | DK31: 0 | DL31: 0 | DM31: 0 | DN31: 0 | DO31: 0 | DP31: 0 | DQ31: 0 | DR31: 0 | DS31: 0 | DT31: 0 | DU31: 0 | DV31: 0 | DW31: 0 | DX31: 0 | DY31: 0 | DZ31: 0 | EA31: 0 | EB31: 0 | EC31: 0 | ED31: 0 | EE31: 0 | EF31: 0 | EG31: 0 | EH31: 0 | EI31: 0 | EJ31: 0 | EK31: 0 | EL31: 0 | EM31: 0 | EN31: 0 | EO31: 0 | EP31: 0 | EQ31: 0 | ER31: 0 | ES31: 0 | ET31: 0 | EU31: 0 | EV31: 0
C33: прочее | E33: 0 | G33: 0 | H33: 0 | I33: 0 | J33: 0 | K33: 0 | L33: 0 | M33: 0 | N33: 0 | O33: 0 | P33: 0 | Q33: 0 | R33: 0 | S33: 0 | T33: 0 | U33: 0 | V33: 0 | W33: 0 | X33: 0 | Y33: 0 | Z33: 0 | AA33: 0 | AB33: 0 | AC33: 0 | AD33: 0 | AE33: 0 | AF33: 0 | AG33: 0 | AH33: 0 | AI33: 0 | AJ33: 0 | AK33: 0 | AL33: 0 | AM33: 0 | AN33: 0 | AO33: 0 | AP33: 0 | AQ33: 0 | AR33: 0 | AS33: 0 | AT33: 0 | AU33: 0 | AV33: 0 | AW33: 0 | AX33: 0 | AY33: 0 | AZ33: 0 | BA33: 0 | BB33: 0 | BC33: 0 | BD33: 0 | BE33: 0 | BF33: 0 | BG33: 0 | BH33: 0 | BI33: 0 | BJ33: 0 | BK33: 0 | BL33: 0 | BM33: 0 | BN33: 0 | BO33: 0 | BP33: 0 | BQ33: 0 | BR33: 0 | BS33: 0 | BT33: 0 | BU33: 0 | BV33: 0 | BW33: 0 | BX33: 0 | BY33: 0 | BZ33: 0 | CA33: 0 | CB33: 0 | CC33: 0 | CD33: 0 | CE33: 0 | CF33: 0 | CG33: 0 | CH33: 0 | CI33: 0 | CJ33: 0 | CK33: 0 | CL33: 0 | CM33: 0 | CN33: 0 | CO33: 0 | CP33: 0 | CQ33: 0 | CR33: 0 | CS33: 0 | CT33: 0 | CU33: 0 | CV33: 0 | CW33: 0 | CX33: 0 | CY33: 0 | CZ33: 0 | DA33: 0 | DB33: 0 | DC33: 0 | DD33: 0 | DE33: 0 | DF33: 0 | DG33: 0 | DH33: 0 | DI33: 0 | DJ33: 0 | DK33: 0 | DL33: 0 | DM33: 0 | DN33: 0 | DO33: 0 | DP33: 0 | DQ33: 0 | DR33: 0 | DS33: 0 | DT33: 0 | DU33: 0 | DV33: 0 | DW33: 0 | DX33: 0 | DY33: 0 | DZ33: 0 | EA33: 0 | EB33: 0 | EC33: 0 | ED33: 0 | EE33: 0 | EF33: 0 | EG33: 0 | EH33: 0 | EI33: 0 | EJ33: 0 | EK33: 0 | EL33: 0 | EM33: 0 | EN33: 0 | EO33: 0 | EP33: 0 | EQ33: 0 | ER33: 0 | ES33: 0 | ET33: 0 | EU33: 0 | EV33: 0
C34: Оплаты за комплектующие и проч. с/ст ингредиенты | E34: 59327966.89 | G34: 58858.91667 | H34: 67010.53333 | I34: 87602.20778 | J34: 107100.3422 | K34: 116479.4867 | L34: 140702.1467 | M34: 159286.5011 | N34: 159220.7556 | O34: 163817.9511 | P34: 168463.4156 | Q34: 159618.0376 | R34: 162259.0741 | S34: 196328.9619 | T34: 248643.6575 | U34: 312842.3824 | V34: 347532.3798 | W34: 363590.815 | X34: 405514.2175 | Y34: 430234.2759 | Z34: 419715.7568 | AA34: 410437.6442 | AB34: 402850.8983 | AC34: 374168.6923 | AD34: 361539.8033 | AE34: 417139.1968 | AF34: 519489.5475 | AG34: 634931.2322 | AH34: 689926.37 | AI34: 714827.9985 | AJ34: 780252.774 | AK34: 812055.5012 | AL34: 786172.121 | AM34: 756009.142 | AN34: 729948.8105 | AO34: 665714.5237 | AP34: 593907.5098 | AQ34: 629214.7893 | AR34: 768422.5999 | AS34: 927580.6152 | AT34: 998075.4373 | AU34: 1029540.122 | AV34: 1112555.032 | AW34: 1147277.389 | AX34: 1106565.428 | AY34: 1055257.43 | AZ34: 1010371.19 | BA34: 918635.0906 | BB34: 813928.5827 | BC34: 855405.8967 | BD34: 1040950.234 | BE34: 1247907.608 | BF34: 1335314.595 | BG34: 1373936.388 | BH34: 1476136.883 | BI34: 1513991.326 | BJ34: 1457032.636 | BK34: 1382540.525 | BL34: 1317010.935 | BM34: 1195183.428 | BN34: 1054466.994 | BO34: 1102643.078 | BP34: 1338809.574 | BQ34: 1597948.349 | BR34: 1703782.481 | BS34: 1750198.43 | BT34: 1873295.532 | BU34: 1914508.464 | BV34: 1839780.151 | BW34: 1739913.785 | BX34: 1651788.727 | BY34: 1398333.971 | BZ34: 725469.6098 | CA34: 0 | CB34: 0 | CC34: 0 | CD34: 0 | CE34: 0 | CF34: 0 | CG34: 0 | CH34: 0 | CI34: 0 | CJ34: 0 | CK34: 0 | CL34: 0 | CM34: 0 | CN34: 0 | CO34: 0 | CP34: 0 | CQ34: 0 | CR34: 0 | CS34: 0 | CT34: 0 | CU34: 0 | CV34: 0 | CW34: 0 | CX34: 0 | CY34: 0 | CZ34: 0 | DA34: 0 | DB34: 0 | DC34: 0 | DD34: 0 | DE34: 0 | DF34: 0 | DG34: 0 | DH34: 0 | DI34: 0 | DJ34: 0 | DK34: 0 | DL34: 0 | DM34: 0 | DN34: 0 | DO34: 0 | DP34: 0 | DQ34: 0 | DR34: 0 | DS34: 0 | DT34: 0 | DU34: 0 | DV34: 0 | DW34: 0 | DX34: 0 | DY34: 0 | DZ34: 0 | EA34: 0 | EB34: 0 | EC34: 0 | ED34: 0 | EE34: 0 | EF34: 0 | EG34: 0 | EH34: 0 | EI34: 0 | EJ34: 0 | EK34: 0 | EL34: 0 | EM34: 0 | EN34: 0 | EO34: 0 | EP34: 0 | EQ34: 0 | ER34: 0 | ES34: 0 | ET34: 0 | EU34: 0 | EV34: 0
C35: Оплата прямых расходов | E35: 29194124.81 | G35: 7423.645833 | H35: 11898.25 | I35: 14352.33333 | J35: 27604.5 | K35: 26415.08333 | L35: 31013.26667 | M35: 41833.75 | N35: 44791.83333 | O35: 42094.2375 | P35: 48365.30417 | Q35: 47993.86667 | R35: 43338.86667 | S35: 45580.04026 | T35: 64288.37654 | U35: 77121.44067 | V35: 111076.6329 | W35: 102523.1075 | X35: 121110.2915 | Y35: 138954.4654 | Z35: 145713.7894 | AA35: 136540.8863 | AB35: 141852.5679 | AC35: 138661.9535 | AD35: 124955.9252 | AE35: 118491.065 | AF35: 165826.4105 | AG35: 197971.998 | AH35: 269477.1421 | AI35: 245145.1151 | AJ35: 290705.9487 | AK35: 318721.7396 | AL35: 331734.7104 | AM35: 309880.3313 | AN35: 311667.3276 | AO35: 302789.6853 | AP35: 272257.8976 | AQ35: 215575.2054 | AR35: 296773.1927 | AS35: 351559.9098 | AT35: 465501.5196 | AU35: 418124.3514 | AV35: 494959.2293 | AW35: 529359.0123 | AX35: 546630.5757 | AY35: 507691.8383 | AZ35: 501625.2768 | BA35: 484370.5921 | BB35: 433781.5545 | BC35: 337690.2392 | BD35: 465113.2069 | BE35: 548159.6371 | BF35: 715490.564 | BG35: 637461.5144 | BH35: 753671.3059 | BI35: 794874.791 | BJ35: 816649.6241 | BK35: 755406.029 | BL35: 738872.4978 | BM35: 710620.2065 | BN35: 634563.4182 | BO35: 488939.8098 | BP35: 673917.4009 | BQ35: 791296.7785 | BR35: 1023858.223 | BS35: 906939.2351 | BT35: 1071279.527 | BU35: 1119729.505 | BV35: 1146263.177 | BW35: 1057062.888 | BX35: 1027230.479 | BY35: 985142.4796 | BZ35: 877766.2235 | CA35: 0 | CB35: 0 | CC35: 0 | CD35: 0 | CE35: 0 | CF35: 0 | CG35: 0 | CH35: 0 | CI35: 0 | CJ35: 0 | CK35: 0 | CL35: 0 | CM35: 0 | CN35: 0 | CO35: 0 | CP35: 0 | CQ35: 0 | CR35: 0 | CS35: 0 | CT35: 0 | CU35: 0 | CV35: 0 | CW35: 0 | CX35: 0 | CY35: 0 | CZ35: 0 | DA35: 0 | DB35: 0 | DC35: 0 | DD35: 0 | DE35: 0 | DF35: 0 | DG35: 0 | DH35: 0 | DI35: 0 | DJ35: 0 | DK35: 0 | DL35: 0 | DM35: 0 | DN35: 0 | DO35: 0 | DP35: 0 | DQ35: 0 | DR35: 0 | DS35: 0 | DT35: 0 | DU35: 0 | DV35: 0 | DW35: 0 | DX35: 0 | DY35: 0 | DZ35: 0 | EA35: 0 | EB35: 0 | EC35: 0 | ED35: 0 | EE35: 0 | EF35: 0 | EG35: 0 | EH35: 0 | EI35: 0 | EJ35: 0 | EK35: 0 | EL35: 0 | EM35: 0 | EN35: 0 | EO35: 0 | EP35: 0 | EQ35: 0 | ER35: 0 | ES35: 0 | ET35: 0 | EU35: 0 | EV35: 0
C36: Оплата переменных расходов | E36: 47644202.01 | G36: 4485.833333 | H36: 9083.316667 | I36: 11969.53333 | J36: 21830.66667 | K36: 25022.29333 | L36: 29062.41333 | M36: 38965.73333 | N36: 45258.73333 | O36: 45452.72667 | P36: 49854.11667 | Q36: 52317.79 | R36: 49525.28 | S36: 49682.83775 | T36: 66808.06668 | U36: 85902.0183 | V36: 119960.4252 | W36: 125851.9744 | X36: 142905.2724 | Y36: 167947.3378 | Z36: 183141.5553 | AA36: 181129.4657 | AB36: 183515.0577 | AC36: 184685.7519 | AD36: 173021.3431 | AE36: 160763.3242 | AF36: 206357.8127 | AG36: 262031.8972 | AH36: 347670.1657 | AI36: 355872.3618 | AJ36: 398593.0661 | AK36: 451925.2383 | AL36: 481886.2883 | AM36: 471882.6583 | AN36: 465757.3011 | AO36: 461074.1386 | AP36: 428988.0845 | AQ36: 351882.7827 | AR36: 416294.593 | AS36: 521745.4572 | AT36: 673067.3442 | AU36: 677109.4819 | AV36: 747229.6376 | AW36: 828897.3107 | AX36: 869015.479 | AY36: 841679.1695 | AZ36: 817080.2928 | BA36: 798983.359 | BB36: 737732.3358 | BC36: 598464.2187 | BD36: 700413.7611 | BE36: 871582.5163 | BF36: 1108710.904 | BG36: 1105085.956 | BH36: 1209088.049 | BI36: 1325623.496 | BJ36: 1376482.833 | BK36: 1324279.946 | BL36: 1273604.409 | BM36: 1236417.078 | BN36: 1136150.993 | BO36: 915792.4343 | BP36: 1064869.065 | BQ36: 1319006.752 | BR36: 1663710.767 | BS36: 1648605.519 | BT36: 1793485.685 | BU36: 1951937.134 | BV36: 2014147.669 | BW36: 1928908.709 | BX36: 1843914.783 | BY36: 1781482.59 | BZ36: 1631537.618 | CA36: 0 | CB36: 0 | CC36: 0 | CD36: 0 | CE36: 0 | CF36: 0 | CG36: 0 | CH36: 0 | CI36: 0 | CJ36: 0 | CK36: 0 | CL36: 0 | CM36: 0 | CN36: 0 | CO36: 0 | CP36: 0 | CQ36: 0 | CR36: 0 | CS36: 0 | CT36: 0 | CU36: 0 | CV36: 0 | CW36: 0 | CX36: 0 | CY36: 0 | CZ36: 0 | DA36: 0 | DB36: 0 | DC36: 0 | DD36: 0 | DE36: 0 | DF36: 0 | DG36: 0 | DH36: 0 | DI36: 0 | DJ36: 0 | DK36: 0 | DL36: 0 | DM36: 0 | DN36: 0 | DO36: 0 | DP36: 0 | DQ36: 0 | DR36: 0 | DS36: 0 | DT36: 0 | DU36: 0 | DV36: 0 | DW36: 0 | DX36: 0 | DY36: 0 | DZ36: 0 | EA36: 0 | EB36: 0 | EC36: 0 | ED36: 0 | EE36: 0 | EF36: 0 | EG36: 0 | EH36: 0 | EI36: 0 | EJ36: 0 | EK36: 0 | EL36: 0 | EM36: 0 | EN36: 0 | EO36: 0 | EP36: 0 | EQ36: 0 | ER36: 0 | ES36: 0 | ET36: 0 | EU36: 0 | EV36: 0
C37: Оплата постоянных расходов | E37: 315859130 | G37: 5037593.333 | H37: 5055926.667 | I37: 5035926.667 | J37: 5115926.667 | K37: 5035926.667 | L37: 5055926.667 | M37: 3429260 | N37: 3914580 | O37: 3894580 | P37: 3974580 | Q37: 3894580 | R37: 3914580 | S37: 4093884.067 | T37: 4055567.4 | U37: 4034967.4 | V37: 4116767.4 | W37: 4034967.4 | X37: 4055567.4 | Y37: 4096167.4 | Z37: 4055567.4 | AA37: 4034967.4 | AB37: 4116767.4 | AC37: 4034967.4 | AD37: 4055567.4 | AE37: 4241900.255 | AF37: 4203070.422 | AG37: 4181852.422 | AH37: 4265494.422 | AI37: 4181852.422 | AJ37: 4203070.422 | AK37: 4244276.422 | AL37: 4203070.422 | AM37: 4181852.422 | AN37: 4265494.422 | AO37: 4181852.422 | AP37: 4203070.422 | AQ37: 4396853.956 | AR37: 4357508.845 | AS37: 4335654.305 | AT37: 4421181.325 | AU37: 4335654.305 | AV37: 4357508.845 | AW37: 4399326.785 | AX37: 4357508.845 | AY37: 4335654.305 | AZ37: 4421181.325 | BA37: 4335654.305 | BB37: 4357508.845 | BC37: 4559199.542 | BD37: 4519337.266 | BE37: 4496827.09 | BF37: 4584283.196 | BG37: 4496827.09 | BH37: 4519337.266 | BI37: 4561773.019 | BJ37: 4519337.266 | BK37: 4496827.09 | BL37: 4584283.196 | BM37: 4496827.09 | BN37: 4519337.266 | BO37: 4729429.448 | BP37: 4689048.362 | BQ37: 4665862.88 | BR37: 4755293.21 | BS37: 4665862.88 | BT37: 4689048.362 | BU37: 4732107.728 | BV37: 4689048.362 | BW37: 4665862.88 | BX37: 4755293.21 | BY37: 4665862.88 | BZ37: 4689048.362 | CA37: 0 | CB37: 0 | CC37: 0 | CD37: 0 | CE37: 0 | CF37: 0 | CG37: 0 | CH37: 0 | CI37: 0 | CJ37: 0 | CK37: 0 | CL37: 0 | CM37: 0 | CN37: 0 | CO37: 0 | CP37: 0 | CQ37: 0 | CR37: 0 | CS37: 0 | CT37: 0 | CU37: 0 | CV37: 0 | CW37: 0 | CX37: 0 | CY37: 0 | CZ37: 0 | DA37: 0 | DB37: 0 | DC37: 0 | DD37: 0 | DE37: 0 | DF37: 0 | DG37: 0 | DH37: 0 | DI37: 0 | DJ37: 0 | DK37: 0 | DL37: 0 | DM37: 0 | DN37: 0 | DO37: 0 | DP37: 0 | DQ37: 0 | DR37: 0 | DS37: 0 | DT37: 0 | DU37: 0 | DV37: 0 | DW37: 0 | DX37: 0 | DY37: 0 | DZ37: 0 | EA37: 0 | EB37: 0 | EC37: 0 | ED37: 0 | EE37: 0 | EF37: 0 | EG37: 0 | EH37: 0 | EI37: 0 | EJ37: 0 | EK37: 0 | EL37: 0 | EM37: 0 | EN37: 0 | EO37: 0 | EP37: 0 | EQ37: 0 | ER37: 0 | ES37: 0 | ET37: 0 | EU37: 0 | EV37: 0
C38: Оплата НДС по операционной деят-ти | E38: 102834041.6 | G38: 0 | H38: -307766.7882 | I38: -297052.8361 | J38: -295852.3556 | K38: -265734.1944 | L38: -271496.4428 | M38: -258948.5111 | N38: 43928.21389 | O38: 54308.53333 | P38: 49436.76764 | Q38: 66842.20542 | R38: 69215.90153 | S38: 57896.10431 | T38: 54990.29434 | U38: 106419.2752 | V38: 136069.1074 | W38: 237810.8478 | X38: 205000.6409 | Y38: 276135.3804 | Z38: 326807.5761 | AA38: 360400.6439 | AB38: 339693.5173 | AC38: 360876.3272 | AD38: 361537.4853 | AE38: 322218.0654 | AF38: 282563.0243 | AG38: 447368.742 | AH38: 544994.3763 | AI38: 800697.0687 | AJ38: 697766.0726 | AK38: 895726.0669 | AL38: 987317.2752 | AM38: 1059894.83 | AN38: 995421.2569 | AO38: 1011441.479 | AP38: 1001286.379 | AQ38: 905003.9875 | AR38: 656494.9326 | AS38: 989402.7625 | AT38: 1179908.974 | AU38: 1632638.009 | AV38: 1414056.229 | AW38: 1769627.644 | AX38: 1888384.912 | AY38: 1989366.142 | AZ38: 1850681.75 | BA38: 1838977.755 | BB38: 1798724.96 | BC38: 1615543.379 | BD38: 1175093.244 | BE38: 1735253.867 | BF38: 2048637.141 | BG38: 2759472.497 | BH38: 2381217.54 | BI38: 2940699.558 | BJ38: 3088203.751 | BK38: 3219340.814 | BL38: 2977428.839 | BM38: 2924064.263 | BN38: 2839718.563 | BO38: 2539953.838 | BP38: 1850409.302 | BQ38: 2701867.582 | BR38: 3170583.16 | BS38: 4205605.1 | BT38: 3619979.099 | BU38: 4433435.964 | BV38: 4611340.246 | BW38: 4774471.64 | BX38: 4397891.982 | BY38: 4287747.724 | BZ38: 4165602.149 | CA38: 0 | CB38: 0 | CC38: 0 | CD38: 0 | CE38: 0 | CF38: 0 | CG38: 0 | CH38: 0 | CI38: 0 | CJ38: 0 | CK38: 0 | CL38: 0 | CM38: 0 | CN38: 0 | CO38: 0 | CP38: 0 | CQ38: 0 | CR38: 0 | CS38: 0 | CT38: 0 | CU38: 0 | CV38: 0 | CW38: 0 | CX38: 0 | CY38: 0 | CZ38: 0 | DA38: 0 | DB38: 0 | DC38: 0 | DD38: 0 | DE38: 0 | DF38: 0 | DG38: 0 | DH38: 0 | DI38: 0 | DJ38: 0 | DK38: 0 | DL38: 0 | DM38: 0 | DN38: 0 | DO38: 0 | DP38: 0 | DQ38: 0 | DR38: 0 | DS38: 0 | DT38: 0 | DU38: 0 | DV38: 0 | DW38: 0 | DX38: 0 | DY38: 0 | DZ38: 0 | EA38: 0 | EB38: 0 | EC38: 0 | ED38: 0 | EE38: 0 | EF38: 0 | EG38: 0 | EH38: 0 | EI38: 0 | EJ38: 0 | EK38: 0 | EL38: 0 | EM38: 0 | EN38: 0 | EO38: 0 | EP38: 0 | EQ38: 0 | ER38: 0 | ES38: 0 | ET38: 0 | EU38: 0 | EV38: 0
A40: 0 | C40: Финпоток по операционной деятельности | E40: 544596886.9 | G40: -4793361.729 | H40: -4360151.978 | I40: -4299797.905 | J40: -3912609.82 | K40: -3969309.336 | L40: -3882008.051 | M40: -1912397.473 | N40: -2667779.536 | O40: -2798853.449 | P40: -2652699.604 | Q40: -2643551.9 | R40: -2847319.122 | S40: -2708527.011 | T40: -2101869.795 | U40: -1848605.517 | V40: -615725.9453 | W40: -1130762.145 | X40: -653727.8223 | Y40: -1888.859562 | Z40: 30153.92233 | AA40: -437431.0401 | AB40: -116231.4411 | AC40: -276331.1249 | AD40: -835615.9569 | AE40: -809544.0567 | AF40: 718954.7731 | AG40: 1325215.269 | AH40: 3914717.124 | AI40: 2499816.694 | AJ40: 3750091.317 | AK40: 4772138.532 | AL40: 4770812.683 | AM40: 3702549.767 | AN40: 4175388.172 | AO40: 3735556.672 | AP40: 2611246.887 | AQ40: 1764625.554 | AR40: 4726408.873 | AS40: 5821135.741 | AT40: 10143090.91 | AU40: 7478853.713 | AV40: 9861018.036 | AW40: 11233816.32 | AX40: 11209656.72 | AY40: 9359153.634 | AZ40: 9937511.524 | BA40: 9133572.486 | BB40: 7244859.518 | BC40: 5237303.523 | BD40: 10093887.62 | BE40: 11831405.8 | BF40: 18321559.58 | BG40: 14009343.24 | BH40: 17900957.59 | BI40: 19604359.58 | BJ40: 19556546.03 | BK40: 16697862.26 | BL40: 17324831.19 | BM40: 16059361.81 | BN40: 13195208.97 | BO40: 9650141.541 | BP40: 16933106.32 | BQ40: 19480379.04 | BR40: 28609208.09 | BS40: 22217769.4 | BT40: 28027396.38 | BU40: 30038548.88 | BV40: 29966264.97 | BW40: 25855172.2 | BX40: 26468423.11 | BY40: 24734949.69 | BZ40: 21138655.9 | CA40: 0 | CB40: 0 | CC40: 0 | CD40: 0 | CE40: 0 | CF40: 0 | CG40: 0 | CH40: 0 | CI40: 0 | CJ40: 0 | CK40: 0 | CL40: 0 | CM40: 0 | CN40: 0 | CO40: 0 | CP40: 0 | CQ40: 0 | CR40: 0 | CS40: 0 | CT40: 0 | CU40: 0 | CV40: 0 | CW40: 0 | CX40: 0 | CY40: 0 | CZ40: 0 | DA40: 0 | DB40: 0 | DC40: 0 | DD40: 0 | DE40: 0 | DF40: 0 | DG40: 0 | DH40: 0 | DI40: 0 | DJ40: 0 | DK40: 0 | DL40: 0 | DM40: 0 | DN40: 0 | DO40: 0 | DP40: 0 | DQ40: 0 | DR40: 0 | DS40: 0 | DT40: 0 | DU40: 0 | DV40: 0 | DW40: 0 | DX40: 0 | DY40: 0 | DZ40: 0 | EA40: 0 | EB40: 0 | EC40: 0 | ED40: 0 | EE40: 0 | EF40: 0 | EG40: 0 | EH40: 0 | EI40: 0 | EJ40: 0 | EK40: 0 | EL40: 0 | EM40: 0 | EN40: 0 | EO40: 0 | EP40: 0 | EQ40: 0 | ER40: 0 | ES40: 0 | ET40: 0 | EU40: 0 | EV40: 0
C41: Возмещение ндс по капзатратам | E41: 16666666.67 | G41: 0 | H41: 0 | I41: 0 | J41: 0 | K41: 0 | L41: 0 | M41: 2083333.333 | N41: 2083333.333 | O41: 3250000 | P41: 3250000 | Q41: 2000000 | R41: 2000000 | S41: 2000000 | T41: 0 | U41: 0 | V41: 0 | W41: 0 | X41: 0 | Y41: 0 | Z41: 0 | AA41: 0 | AB41: 0 | AC41: 0 | AD41: 0 | AE41: 0 | AF41: 0 | AG41: 0 | AH41: 0 | AI41: 0 | AJ41: 0 | AK41: 0 | AL41: 0 | AM41: 0 | AN41: 0 | AO41: 0 | AP41: 0 | AQ41: 0 | AR41: 0 | AS41: 0 | AT41: 0 | AU41: 0 | AV41: 0 | AW41: 0 | AX41: 0 | AY41: 0 | AZ41: 0 | BA41: 0 | BB41: 0 | BC41: 0 | BD41: 0 | BE41: 0 | BF41: 0 | BG41: 0 | BH41: 0 | BI41: 0 | BJ41: 0 | BK41: 0 | BL41: 0 | BM41: 0 | BN41: 0 | BO41: 0 | BP41: 0 | BQ41: 0 | BR41: 0 | BS41: 0 | BT41: 0 | BU41: 0 | BV41: 0 | BW41: 0 | BX41: 0 | BY41: 0 | BZ41: 0 | CA41: 0 | CB41: 0 | CC41: 0 | CD41: 0 | CE41: 0 | CF41: 0 | CG41: 0 | CH41: 0 | CI41: 0 | CJ41: 0 | CK41: 0 | CL41: 0 | CM41: 0 | CN41: 0 | CO41: 0 | CP41: 0 | CQ41: 0 | CR41: 0 | CS41: 0 | CT41: 0 | CU41: 0 | CV41: 0 | CW41: 0 | CX41: 0 | CY41: 0 | CZ41: 0 | DA41: 0 | DB41: 0 | DC41: 0 | DD41: 0 | DE41: 0 | DF41: 0 | DG41: 0 | DH41: 0 | DI41: 0 | DJ41: 0 | DK41: 0 | DL41: 0 | DM41: 0 | DN41: 0 | DO41: 0 | DP41: 0 | DQ41: 0 | DR41: 0 | DS41: 0 | DT41: 0 | DU41: 0 | DV41: 0 | DW41: 0 | DX41: 0 | DY41: 0 | DZ41: 0 | EA41: 0 | EB41: 0 | EC41: 0 | ED41: 0 | EE41: 0 | EF41: 0 | EG41: 0 | EH41: 0 | EI41: 0 | EJ41: 0 | EK41: 0 | EL41: 0 | EM41: 0 | EN41: 0 | EO41: 0 | EP41: 0 | EQ41: 0 | ER41: 0 | ES41: 0 | ET41: 0 | EU41: 0 | EV41: 0
C42: Оплата капитальных затрат | E42: 100000000 | G42: 6250000 | H42: 12500000 | I42: 16000000 | J42: 19500000 | K42: 15750000 | L42: 12000000 | M42: 12000000 | N42: 6000000 | O42: 0 | P42: 0 | Q42: 0 | R42: 0 | S42: 0 | T42: 0 | U42: 0 | V42: 0 | W42: 0 | X42: 0 | Y42: 0 | Z42: 0 | AA42: 0 | AB42: 0 | AC42: 0 | AD42: 0 | AE42: 0 | AF42: 0 | AG42: 0 | AH42: 0 | AI42: 0 | AJ42: 0 | AK42: 0 | AL42: 0 | AM42: 0 | AN42: 0 | AO42: 0 | AP42: 0 | AQ42: 0 | AR42: 0 | AS42: 0 | AT42: 0 | AU42: 0 | AV42: 0 | AW42: 0 | AX42: 0 | AY42: 0 | AZ42: 0 | BA42: 0 | BB42: 0 | BC42: 0 | BD42: 0 | BE42: 0 | BF42: 0 | BG42: 0 | BH42: 0 | BI42: 0 | BJ42: 0 | BK42: 0 | BL42: 0 | BM42: 0 | BN42: 0 | BO42: 0 | BP42: 0 | BQ42: 0 | BR42: 0 | BS42: 0 | BT42: 0 | BU42: 0 | BV42: 0 | BW42: 0 | BX42: 0 | BY42: 0 | BZ42: 0 | CA42: 0 | CB42: 0 | CC42: 0 | CD42: 0 | CE42: 0 | CF42: 0 | CG42: 0 | CH42: 0 | CI42: 0 | CJ42: 0 | CK42: 0 | CL42: 0 | CM42: 0 | CN42: 0 | CO42: 0 | CP42: 0 | CQ42: 0 | CR42: 0 | CS42: 0 | CT42: 0 | CU42: 0 | CV42: 0 | CW42: 0 | CX42: 0 | CY42: 0 | CZ42: 0 | DA42: 0 | DB42: 0 | DC42: 0 | DD42: 0 | DE42: 0 | DF42: 0 | DG42: 0 | DH42: 0 | DI42: 0 | DJ42: 0 | DK42: 0 | DL42: 0 | DM42: 0 | DN42: 0 | DO42: 0 | DP42: 0 | DQ42: 0 | DR42: 0 | DS42: 0 | DT42: 0 | DU42: 0 | DV42: 0 | DW42: 0 | DX42: 0 | DY42: 0 | DZ42: 0 | EA42: 0 | EB42: 0 | EC42: 0 | ED42: 0 | EE42: 0 | EF42: 0 | EG42: 0 | EH42: 0 | EI42: 0 | EJ42: 0 | EK42: 0 | EL42: 0 | EM42: 0 | EN42: 0 | EO42: 0 | EP42: 0 | EQ42: 0 | ER42: 0 | ES42: 0 | ET42: 0 | EU42: 0 | EV42: 0
C43: Оплата налога на имущество | E43: 2523003.472 | G43: 0 | H43: 0 | I43: 10329.86111 | J43: 0 | K43: 0 | L43: 92100.69444 | M43: 0 | N43: 0 | O43: 151041.6667 | P43: 0 | Q43: 0 | R43: 147135.4167 | S43: 0 | T43: 0 | U43: 143229.1667 | V43: 0 | W43: 0 | X43: 139322.9167 | Y43: 0 | Z43: 0 | AA43: 135416.6667 | AB43: 0 | AC43: 0 | AD43: 131510.4167 | AE43: 0 | AF43: 0 | AG43: 127604.1667 | AH43: 0 | AI43: 0 | AJ43: 123697.9167 | AK43: 0 | AL43: 0 | AM43: 119791.6667 | AN43: 0 | AO43: 0 | AP43: 115885.4167 | AQ43: 0 | AR43: 0 | AS43: 111979.1667 | AT43: 0 | AU43: 0 | AV43: 108072.9167 | AW43: 0 | AX43: 0 | AY43: 104166.6667 | AZ43: 0 | BA43: 0 | BB43: 100260.4167 | BC43: 0 | BD43: 0 | BE43: 96354.16667 | BF43: 0 | BG43: 0 | BH43: 92447.91667 | BI43: 0 | BJ43: 0 | BK43: 88541.66667 | BL43: 0 | BM43: 0 | BN43: 84635.41667 | BO43: 0 | BP43: 0 | BQ43: 80729.16667 | BR43: 0 | BS43: 0 | BT43: 76822.91667 | BU43: 0 | BV43: 0 | BW43: 72916.66667 | BX43: 0 | BY43: 0 | BZ43: 69010.41667 | CA43: 0 | CB43: 0 | CC43: 0 | CD43: 0 | CE43: 0 | CF43: 0 | CG43: 0 | CH43: 0 | CI43: 0 | CJ43: 0 | CK43: 0 | CL43: 0 | CM43: 0 | CN43: 0 | CO43: 0 | CP43: 0 | CQ43: 0 | CR43: 0 | CS43: 0 | CT43: 0 | CU43: 0 | CV43: 0 | CW43: 0 | CX43: 0 | CY43: 0 | CZ43: 0 | DA43: 0 | DB43: 0 | DC43: 0 | DD43: 0 | DE43: 0 | DF43: 0 | DG43: 0 | DH43: 0 | DI43: 0 | DJ43: 0 | DK43: 0 | DL43: 0 | DM43: 0 | DN43: 0 | DO43: 0 | DP43: 0 | DQ43: 0 | DR43: 0 | DS43: 0 | DT43: 0 | DU43: 0 | DV43: 0 | DW43: 0 | DX43: 0 | DY43: 0 | DZ43: 0 | EA43: 0 | EB43: 0 | EC43: 0 | ED43: 0 | EE43: 0 | EF43: 0 | EG43: 0 | EH43: 0 | EI43: 0 | EJ43: 0 | EK43: 0 | EL43: 0 | EM43: 0 | EN43: 0 | EO43: 0 | EP43: 0 | EQ43: 0 | ER43: 0 | ES43: 0 | ET43: 0 | EU43: 0 | EV43: 0
C44: Оплата налога на прибыль | E44: 28786943.77 | G44: 0 | H44: 0 | I44: 0 | J44: 0 | K44: 0 | L44: 0 | M44: 0 | N44: 0 | O44: 0 | P44: 0 | Q44: 0 | R44: 0 | S44: 0 | T44: 0 | U44: 0 | V44: 0 | W44: 0 | X44: 0 | Y44: 0 | Z44: 0 | AA44: 0 | AB44: 0 | AC44: 0 | AD44: 0 | AE44: 0 | AF44: 0 | AG44: 0 | AH44: 0 | AI44: 0 | AJ44: 0 | AK44: 0 | AL44: 0 | AM44: 0 | AN44: 0 | AO44: 0 | AP44: 0 | AQ44: 0 | AR44: 0 | AS44: 0 | AT44: 0 | AU44: 0 | AV44: 0 | AW44: 0 | AX44: 0 | AY44: 0 | AZ44: 0 | BA44: 0 | BB44: 0 | BC44: 0 | BD44: 0 | BE44: 0 | BF44: 0 | BG44: 0 | BH44: 0 | BI44: 0 | BJ44: 0 | BK44: 0 | BL44: 0 | BM44: 0 | BN44: 0 | BO44: 0 | BP44: 0 | BQ44: 616549.4613 | BR44: 2147605.651 | BS44: 3122767.465 | BT44: 2593435.015 | BU44: 3387939.698 | BV44: 3556504.254 | BW44: 3705796.959 | BX44: 3347759.01 | BY44: 3230922.814 | BZ44: 3077663.441 | CA44: 0 | CB44: 0 | CC44: 0 | CD44: 0 | CE44: 0 | CF44: 0 | CG44: 0 | CH44: 0 | CI44: 0 | CJ44: 0 | CK44: 0 | CL44: 0 | CM44: 0 | CN44: 0 | CO44: 0 | CP44: 0 | CQ44: 0 | CR44: 0 | CS44: 0 | CT44: 0 | CU44: 0 | CV44: 0 | CW44: 0 | CX44: 0 | CY44: 0 | CZ44: 0 | DA44: 0 | DB44: 0 | DC44: 0 | DD44: 0 | DE44: 0 | DF44: 0 | DG44: 0 | DH44: 0 | DI44: 0 | DJ44: 0 | DK44: 0 | DL44: 0 | DM44: 0 | DN44: 0 | DO44: 0 | DP44: 0 | DQ44: 0 | DR44: 0 | DS44: 0 | DT44: 0 | DU44: 0 | DV44: 0 | DW44: 0 | DX44: 0 | DY44: 0 | DZ44: 0 | EA44: 0 | EB44: 0 | EC44: 0 | ED44: 0 | EE44: 0 | EF44: 0 | EG44: 0 | EH44: 0 | EI44: 0 | EJ44: 0 | EK44: 0 | EL44: 0 | EM44: 0 | EN44: 0 | EO44: 0 | EP44: 0 | EQ44: 0 | ER44: 0 | ES44: 0 | ET44: 0 | EU44: 0 | EV44: 0
A45: 0 | C45: Финпоток проекта (по осн. деят-ти) | E45: 429953606.4 | G45: -11043361.73 | H45: -16860151.98 | I45: -20310127.77 | J45: -23412609.82 | K45: -19719309.34 | L45: -15974108.75 | M45: -11829064.14 | N45: -6584446.203 | O45: 300104.8847 | P45: 597300.396 | Q45: -643551.8997 | R45: -994454.5389 | S45: -708527.0109 | T45: -2101869.795 | U45: -1991834.683 | V45: -615725.9453 | W45: -1130762.145 | X45: -793050.7389 | Y45: -1888.859562 | Z45: 30153.92233 | AA45: -572847.7068 | AB45: -116231.4411 | AC45: -276331.1249 | AD45: -967126.3736 | AE45: -809544.0567 | AF45: 718954.7731 | AG45: 1197611.102 | AH45: 3914717.124 | AI45: 2499816.694 | AJ45: 3626393.4 | AK45: 4772138.532 | AL45: 4770812.683 | AM45: 3582758.1 | AN45: 4175388.172 | AO45: 3735556.672 | AP45: 2495361.47 | AQ45: 1764625.554 | AR45: 4726408.873 | AS45: 5709156.575 | AT45: 10143090.91 | AU45: 7478853.713 | AV45: 9752945.12 | AW45: 11233816.32 | AX45: 11209656.72 | AY45: 9254986.967 | AZ45: 9937511.524 | BA45: 9133572.486 | BB45: 7144599.101 | BC45: 5237303.523 | BD45: 10093887.62 | BE45: 11735051.63 | BF45: 18321559.58 | BG45: 14009343.24 | BH45: 17808509.67 | BI45: 19604359.58 | BJ45: 19556546.03 | BK45: 16609320.6 | BL45: 17324831.19 | BM45: 16059361.81 | BN45: 13110573.55 | BO45: 9650141.541 | BP45: 16933106.32 | BQ45: 18783100.41 | BR45: 26461602.44 | BS45: 19095001.93 | BT45: 25357138.45 | BU45: 26650609.19 | BV45: 26409760.72 | BW45: 22076458.57 | BX45: 23120664.1 | BY45: 21504026.88 | BZ45: 17991982.04 | CA45: 0 | CB45: 0 | CC45: 0 | CD45: 0 | CE45: 0 | CF45: 0 | CG45: 0 | CH45: 0 | CI45: 0 | CJ45: 0 | CK45: 0 | CL45: 0 | CM45: 0 | CN45: 0 | CO45: 0 | CP45: 0 | CQ45: 0 | CR45: 0 | CS45: 0 | CT45: 0 | CU45: 0 | CV45: 0 | CW45: 0 | CX45: 0 | CY45: 0 | CZ45: 0 | DA45: 0 | DB45: 0 | DC45: 0 | DD45: 0 | DE45: 0 | DF45: 0 | DG45: 0 | DH45: 0 | DI45: 0 | DJ45: 0 | DK45: 0 | DL45: 0 | DM45: 0 | DN45: 0 | DO45: 0 | DP45: 0 | DQ45: 0 | DR45: 0 | DS45: 0 | DT45: 0 | DU45: 0 | DV45: 0 | DW45: 0 | DX45: 0 | DY45: 0 | DZ45: 0 | EA45: 0 | EB45: 0 | EC45: 0 | ED45: 0 | EE45: 0 | EF45: 0 | EG45: 0 | EH45: 0 | EI45: 0 | EJ45: 0 | EK45: 0 | EL45: 0 | EM45: 0 | EN45: 0 | EO45: 0 | EP45: 0 | EQ45: 0 | ER45: 0 | ES45: 0 | ET45: 0 | EU45: 0 | EV45: 0
C46: Поступления кредитных средств за период | E46: 17577441.68 | G46: 0 | H46: 0 | I46: 0 | J46: 0 | K46: 0 | L46: 0 | M46: 0 | N46: 0 | O46: 0 | P46: 0 | Q46: 0 | R46: 0 | S46: 0 | T46: 0 | U46: 0 | V46: 0 | W46: 0 | X46: 0 | Y46: 0 | Z46: 0 | AA46: 0 | AB46: 301550.4635 | AC46: 3338059.52 | AD46: 4015027.608 | AE46: 3843618.131 | AF46: 2301292.141 | AG46: 1808808.651 | AH46: 0 | AI46: 478948.7382 | AJ46: 0 | AK46: 0 | AL46: 0 | AM46: 0 | AN46: 0 | AO46: 0 | AP46: 386613.8384 | AQ46: 1103522.594 | AR46: 0 | AS46: 0 | AT46: 0 | AU46: 0 | AV46: 0 | AW46: 0 | AX46: 0 | AY46: 0 | AZ46: 0 | BA46: 0 | BB46: 0 | BC46: 0 | BD46: 0 | BE46: 0 | BF46: 0 | BG46: 0 | BH46: 0 | BI46: 0 | BJ46: 0 | BK46: 0 | BL46: 0 | BM46: 0 | BN46: 0 | BO46: 0 | BP46: 0 | BQ46: 0 | BR46: 0 | BS46: 0 | BT46: 0 | BU46: 0 | BV46: 0 | BW46: 0 | BX46: 0 | BY46: 0 | BZ46: 0 | CA46: 0 | CB46: 0 | CC46: 0 | CD46: 0 | CE46: 0 | CF46: 0 | CG46: 0 | CH46: 0 | CI46: 0 | CJ46: 0 | CK46: 0 | CL46: 0 | CM46: 0 | CN46: 0 | CO46: 0 | CP46: 0 | CQ46: 0 | CR46: 0 | CS46: 0 | CT46: 0 | CU46: 0 | CV46: 0 | CW46: 0 | CX46: 0 | CY46: 0 | CZ46: 0 | DA46: 0 | DB46: 0 | DC46: 0 | DD46: 0 | DE46: 0 | DF46: 0 | DG46: 0 | DH46: 0 | DI46: 0 | DJ46: 0 | DK46: 0 | DL46: 0 | DM46: 0 | DN46: 0 | DO46: 0 | DP46: 0 | DQ46: 0 | DR46: 0 | DS46: 0 | DT46: 0 | DU46: 0 | DV46: 0 | DW46: 0 | DX46: 0 | DY46: 0 | DZ46: 0 | EA46: 0 | EB46: 0 | EC46: 0 | ED46: 0 | EE46: 0 | EF46: 0 | EG46: 0 | EH46: 0 | EI46: 0 | EJ46: 0 | EK46: 0 | EL46: 0 | EM46: 0 | EN46: 0 | EO46: 0 | EP46: 0 | EQ46: 0 | ER46: 0 | ES46: 0 | ET46: 0 | EU46: 0 | EV46: 0
C47: Объем возврата кредитных средств за период | E47: 17577441.68 | G47: 0 | H47: 0 | I47: 0 | J47: 0 | K47: 0 | L47: 0 | M47: 0 | N47: 0 | O47: 0 | P47: 0 | Q47: 0 | R47: 0 | S47: 0 | T47: 0 | U47: 0 | V47: 0 | W47: 0 | X47: 0 | Y47: 0 | Z47: 0 | AA47: 0 | AB47: 0 | AC47: 0 | AD47: 0 | AE47: 0 | AF47: 0 | AG47: 0 | AH47: 354538.5759 | AI47: 0 | AJ47: 399242.3503 | AK47: 1693248.051 | AL47: 1719859.763 | AM47: 559964.5056 | AN47: 1171088.109 | AO47: 754842.8366 | AP47: 0 | AQ47: 0 | AR47: 1608167.47 | AS47: 2791025.331 | AT47: 6525464.692 | AU47: 0 | AV47: 0 | AW47: 0 | AX47: 0 | AY47: 0 | AZ47: 0 | BA47: 0 | BB47: 0 | BC47: 0 | BD47: 0 | BE47: 0 | BF47: 0 | BG47: 0 | BH47: 0 | BI47: 0 | BJ47: 0 | BK47: 0 | BL47: 0 | BM47: 0 | BN47: 0 | BO47: 0 | BP47: 0 | BQ47: 0 | BR47: 0 | BS47: 0 | BT47: 0 | BU47: 0 | BV47: 0 | BW47: 0 | BX47: 0 | BY47: 0 | BZ47: 0 | CA47: 0 | CB47: 0 | CC47: 0 | CD47: 0 | CE47: 0 | CF47: 0 | CG47: 0 | CH47: 0 | CI47: 0 | CJ47: 0 | CK47: 0 | CL47: 0 | CM47: 0 | CN47: 0 | CO47: 0 | CP47: 0 | CQ47: 0 | CR47: 0 | CS47: 0 | CT47: 0 | CU47: 0 | CV47: 0 | CW47: 0 | CX47: 0 | CY47: 0 | CZ47: 0 | DA47: 0 | DB47: 0 | DC47: 0 | DD47: 0 | DE47: 0 | DF47: 0 | DG47: 0 | DH47: 0 | DI47: 0 | DJ47: 0 | DK47: 0 | DL47: 0 | DM47: 0 | DN47: 0 | DO47: 0 | DP47: 0 | DQ47: 0 | DR47: 0 | DS47: 0 | DT47: 0 | DU47: 0 | DV47: 0 | DW47: 0 | DX47: 0 | DY47: 0 | DZ47: 0 | EA47: 0 | EB47: 0 | EC47: 0 | ED47: 0 | EE47: 0 | EF47: 0 | EG47: 0 | EH47: 0 | EI47: 0 | EJ47: 0 | EK47: 0 | EL47: 0 | EM47: 0 | EN47: 0 | EO47: 0 | EP47: 0 | EQ47: 0 | ER47: 0 | ES47: 0 | ET47: 0 | EU47: 0 | EV47: 0
C48: Оплата %% по кредиту | E48: 1746102.38 | G48: 0 | H48: 0 | I48: 0 | J48: 0 | K48: 0 | L48: 0 | M48: 0 | N48: 0 | O48: 0 | P48: 0 | Q48: 0 | R48: 0 | S48: 0 | T48: 0 | U48: 0 | V48: 0 | W48: 0 | X48: 0 | Y48: 0 | Z48: 0 | AA48: 0 | AB48: 0 | AC48: 0 | AD48: 0 | AE48: 0 | AF48: 0 | AG48: 0 | AH48: 567585.9554 | AI48: 0 | AJ48: 262212.7779 | AK48: 127779.3694 | AL48: 113668.969 | AM48: 99336.80426 | AN48: 94670.43338 | AO48: 84911.36581 | AP48: 0 | AQ48: 0 | AR48: 263920.4157 | AS48: 77637.41686 | AT48: 54378.87243 | AU48: 0 | AV48: 0 | AW48: 0 | AX48: 0 | AY48: 0 | AZ48: 0 | BA48: 0 | BB48: 0 | BC48: 0 | BD48: 0 | BE48: 0 | BF48: 0 | BG48: 0 | BH48: 0 | BI48: 0 | BJ48: 0 | BK48: 0 | BL48: 0 | BM48: 0 | BN48: 0 | BO48: 0 | BP48: 0 | BQ48: 0 | BR48: 0 | BS48: 0 | BT48: 0 | BU48: 0 | BV48: 0 | BW48: 0 | BX48: 0 | BY48: 0 | BZ48: 0 | CA48: 0 | CB48: 0 | CC48: 0 | CD48: 0 | CE48: 0 | CF48: 0 | CG48: 0 | CH48: 0 | CI48: 0 | CJ48: 0 | CK48: 0 | CL48: 0 | CM48: 0 | CN48: 0 | CO48: 0 | CP48: 0 | CQ48: 0 | CR48: 0 | CS48: 0 | CT48: 0 | CU48: 0 | CV48: 0 | CW48: 0 | CX48: 0 | CY48: 0 | CZ48: 0 | DA48: 0 | DB48: 0 | DC48: 0 | DD48: 0 | DE48: 0 | DF48: 0 | DG48: 0 | DH48: 0 | DI48: 0 | DJ48: 0 | DK48: 0 | DL48: 0 | DM48: 0 | DN48: 0 | DO48: 0 | DP48: 0 | DQ48: 0 | DR48: 0 | DS48: 0 | DT48: 0 | DU48: 0 | DV48: 0 | DW48: 0 | DX48: 0 | DY48: 0 | DZ48: 0 | EA48: 0 | EB48: 0 | EC48: 0 | ED48: 0 | EE48: 0 | EF48: 0 | EG48: 0 | EH48: 0 | EI48: 0 | EJ48: 0 | EK48: 0 | EL48: 0 | EM48: 0 | EN48: 0 | EO48: 0 | EP48: 0 | EQ48: 0 | ER48: 0 | ES48: 0 | ET48: 0 | EU48: 0 | EV48: 0
A49: 0 | C49: Финпоток по финансовой деятельности | E49: -1746102.38 | G49: 0 | H49: 0 | I49: 0 | J49: 0 | K49: 0 | L49: 0 | M49: 0 | N49: 0 | O49: 0 | P49: 0 | Q49: 0 | R49: 0 | S49: 0 | T49: 0 | U49: 0 | V49: 0 | W49: 0 | X49: 0 | Y49: 0 | Z49: 0 | AA49: 0 | AB49: 301550.4635 | AC49: 3338059.52 | AD49: 4015027.608 | AE49: 3843618.131 | AF49: 2301292.141 | AG49: 1808808.651 | AH49: -922124.5313 | AI49: 478948.7382 | AJ49: -661455.1283 | AK49: -1821027.421 | AL49: -1833528.732 | AM49: -659301.3098 | AN49: -1265758.542 | AO49: -839754.2024 | AP49: 386613.8384 | AQ49: 1103522.594 | AR49: -1872087.885 | AS49: -2868662.748 | AT49: -6579843.565 | AU49: 0 | AV49: 0 | AW49: 0 | AX49: 0 | AY49: 0 | AZ49: 0 | BA49: 0 | BB49: 0 | BC49: 0 | BD49: 0 | BE49: 0 | BF49: 0 | BG49: 0 | BH49: 0 | BI49: 0 | BJ49: 0 | BK49: 0 | BL49: 0 | BM49: 0 | BN49: 0 | BO49: 0 | BP49: 0 | BQ49: 0 | BR49: 0 | BS49: 0 | BT49: 0 | BU49: 0 | BV49: 0 | BW49: 0 | BX49: 0 | BY49: 0 | BZ49: 0 | CA49: 0 | CB49: 0 | CC49: 0 | CD49: 0 | CE49: 0 | CF49: 0 | CG49: 0 | CH49: 0 | CI49: 0 | CJ49: 0 | CK49: 0 | CL49: 0 | CM49: 0 | CN49: 0 | CO49: 0 | CP49: 0 | CQ49: 0 | CR49: 0 | CS49: 0 | CT49: 0 | CU49: 0 | CV49: 0 | CW49: 0 | CX49: 0 | CY49: 0 | CZ49: 0 | DA49: 0 | DB49: 0 | DC49: 0 | DD49: 0 | DE49: 0 | DF49: 0 | DG49: 0 | DH49: 0 | DI49: 0 | DJ49: 0 | DK49: 0 | DL49: 0 | DM49: 0 | DN49: 0 | DO49: 0 | DP49: 0 | DQ49: 0 | DR49: 0 | DS49: 0 | DT49: 0 | DU49: 0 | DV49: 0 | DW49: 0 | DX49: 0 | DY49: 0 | DZ49: 0 | EA49: 0 | EB49: 0 | EC49: 0 | ED49: 0 | EE49: 0 | EF49: 0 | EG49: 0 | EH49: 0 | EI49: 0 | EJ49: 0 | EK49: 0 | EL49: 0 | EM49: 0 | EN49: 0 | EO49: 0 | EP49: 0 | EQ49: 0 | ER49: 0 | ES49: 0 | ET49: 0 | EU49: 0 | EV49: 0
C50: Поступление финансирования от Банка | E50: 128000000 | G50: 128000000 | H50: 0 | I50: 0 | J50: 0 | K50: 0 | L50: 0 | M50: 0 | N50: 0 | O50: 0 | P50: 0 | Q50: 0 | R50: 0 | S50: 0 | T50: 0 | U50: 0 | V50: 0 | W50: 0 | X50: 0 | Y50: 0 | Z50: 0 | AA50: 0 | AB50: 0 | AC50: 0 | AD50: 0 | AE50: 0 | AF50: 0 | AG50: 0 | AH50: 0 | AI50: 0 | AJ50: 0 | AK50: 0 | AL50: 0 | AM50: 0 | AN50: 0 | AO50: 0 | AP50: 0 | AQ50: 0 | AR50: 0 | AS50: 0 | AT50: 0 | AU50: 0 | AV50: 0 | AW50: 0 | AX50: 0 | AY50: 0 | AZ50: 0 | BA50: 0 | BB50: 0 | BC50: 0 | BD50: 0 | BE50: 0 | BF50: 0 | BG50: 0 | BH50: 0 | BI50: 0 | BJ50: 0 | BK50: 0 | BL50: 0 | BM50: 0 | BN50: 0 | BO50: 0 | BP50: 0 | BQ50: 0 | BR50: 0 | BS50: 0 | BT50: 0 | BU50: 0 | BV50: 0 | BW50: 0 | BX50: 0 | BY50: 0 | BZ50: 0 | CA50: 0 | CB50: 0 | CC50: 0 | CD50: 0 | CE50: 0 | CF50: 0 | CG50: 0 | CH50: 0 | CI50: 0 | CJ50: 0 | CK50: 0 | CL50: 0 | CM50: 0 | CN50: 0 | CO50: 0 | CP50: 0 | CQ50: 0 | CR50: 0 | CS50: 0 | CT50: 0 | CU50: 0 | CV50: 0 | CW50: 0 | CX50: 0 | CY50: 0 | CZ50: 0 | DA50: 0 | DB50: 0 | DC50: 0 | DD50: 0 | DE50: 0 | DF50: 0 | DG50: 0 | DH50: 0 | DI50: 0 | DJ50: 0 | DK50: 0 | DL50: 0 | DM50: 0 | DN50: 0 | DO50: 0 | DP50: 0 | DQ50: 0 | DR50: 0 | DS50: 0 | DT50: 0 | DU50: 0 | DV50: 0 | DW50: 0 | DX50: 0 | DY50: 0 | DZ50: 0 | EA50: 0 | EB50: 0 | EC50: 0 | ED50: 0 | EE50: 0 | EF50: 0 | EG50: 0 | EH50: 0 | EI50: 0 | EJ50: 0 | EK50: 0 | EL50: 0 | EM50: 0 | EN50: 0 | EO50: 0 | EP50: 0 | EQ50: 0 | ER50: 0 | ES50: 0 | ET50: 0 | EU50: 0 | EV50: 0
C51: Поступление финансирования от Учредителя | E51: 32000000 | G51: 32000000 | H51: 0 | I51: 0 | J51: 0 | K51: 0 | L51: 0 | M51: 0 | N51: 0 | O51: 0 | P51: 0 | Q51: 0 | R51: 0 | S51: 0 | T51: 0 | U51: 0 | V51: 0 | W51: 0 | X51: 0 | Y51: 0 | Z51: 0 | AA51: 0 | AB51: 0 | AC51: 0 | AD51: 0 | AE51: 0 | AF51: 0 | AG51: 0 | AH51: 0 | AI51: 0 | AJ51: 0 | AK51: 0 | AL51: 0 | AM51: 0 | AN51: 0 | AO51: 0 | AP51: 0 | AQ51: 0 | AR51: 0 | AS51: 0 | AT51: 0 | AU51: 0 | AV51: 0 | AW51: 0 | AX51: 0 | AY51: 0 | AZ51: 0 | BA51: 0 | BB51: 0 | BC51: 0 | BD51: 0 | BE51: 0 | BF51: 0 | BG51: 0 | BH51: 0 | BI51: 0 | BJ51: 0 | BK51: 0 | BL51: 0 | BM51: 0 | BN51: 0 | BO51: 0 | BP51: 0 | BQ51: 0 | BR51: 0 | BS51: 0 | BT51: 0 | BU51: 0 | BV51: 0 | BW51: 0 | BX51: 0 | BY51: 0 | BZ51: 0 | CA51: 0 | CB51: 0 | CC51: 0 | CD51: 0 | CE51: 0 | CF51: 0 | CG51: 0 | CH51: 0 | CI51: 0 | CJ51: 0 | CK51: 0 | CL51: 0 | CM51: 0 | CN51: 0 | CO51: 0 | CP51: 0 | CQ51: 0 | CR51: 0 | CS51: 0 | CT51: 0 | CU51: 0 | CV51: 0 | CW51: 0 | CX51: 0 | CY51: 0 | CZ51: 0 | DA51: 0 | DB51: 0 | DC51: 0 | DD51: 0 | DE51: 0 | DF51: 0 | DG51: 0 | DH51: 0 | DI51: 0 | DJ51: 0 | DK51: 0 | DL51: 0 | DM51: 0 | DN51: 0 | DO51: 0 | DP51: 0 | DQ51: 0 | DR51: 0 | DS51: 0 | DT51: 0 | DU51: 0 | DV51: 0 | DW51: 0 | DX51: 0 | DY51: 0 | DZ51: 0 | EA51: 0 | EB51: 0 | EC51: 0 | ED51: 0 | EE51: 0 | EF51: 0 | EG51: 0 | EH51: 0 | EI51: 0 | EJ51: 0 | EK51: 0 | EL51: 0 | EM51: 0 | EN51: 0 | EO51: 0 | EP51: 0 | EQ51: 0 | ER51: 0 | ES51: 0 | ET51: 0 | EU51: 0 | EV51: 0
C52: Возврат кредита Банку | E52: 128000000 | G52: 0 | H52: 0 | I52: 0 | J52: 0 | K52: 0 | L52: 0 | M52: 0 | N52: 0 | O52: 0 | P52: 0 | Q52: 0 | R52: 0 | S52: 0 | T52: 0 | U52: 0 | V52: 0 | W52: 0 | X52: 0 | Y52: 2370370.37 | Z52: 2370370.37 | AA52: 2370370.37 | AB52: 2370370.37 | AC52: 2370370.37 | AD52: 2370370.37 | AE52: 2370370.37 | AF52: 2370370.37 | AG52: 2370370.37 | AH52: 2370370.37 | AI52: 2370370.37 | AJ52: 2370370.37 | AK52: 2370370.37 | AL52: 2370370.37 | AM52: 2370370.37 | AN52: 2370370.37 | AO52: 2370370.37 | AP52: 2370370.37 | AQ52: 2370370.37 | AR52: 2370370.37 | AS52: 2370370.37 | AT52: 2370370.37 | AU52: 2370370.37 | AV52: 2370370.37 | AW52: 2370370.37 | AX52: 2370370.37 | AY52: 2370370.37 | AZ52: 2370370.37 | BA52: 2370370.37 | BB52: 2370370.37 | BC52: 2370370.37 | BD52: 2370370.37 | BE52: 2370370.37 | BF52: 2370370.37 | BG52: 2370370.37 | BH52: 2370370.37 | BI52: 2370370.37 | BJ52: 2370370.37 | BK52: 2370370.37 | BL52: 2370370.37 | BM52: 2370370.37 | BN52: 2370370.37 | BO52: 2370370.37 | BP52: 2370370.37 | BQ52: 2370370.37 | BR52: 2370370.37 | BS52: 2370370.37 | BT52: 2370370.37 | BU52: 2370370.37 | BV52: 2370370.37 | BW52: 2370370.37 | BX52: 2370370.37 | BY52: 2370370.37 | BZ52: 2370370.37 | CA52: 0 | CB52: 0 | CC52: 0 | CD52: 0 | CE52: 0 | CF52: 0 | CG52: 0 | CH52: 0 | CI52: 0 | CJ52: 0 | CK52: 0 | CL52: 0 | CM52: 0 | CN52: 0 | CO52: 0 | CP52: 0 | CQ52: 0 | CR52: 0 | CS52: 0 | CT52: 0 | CU52: 0 | CV52: 0 | CW52: 0 | CX52: 0 | CY52: 0 | CZ52: 0 | DA52: 0 | DB52: 0 | DC52: 0 | DD52: 0 | DE52: 0 | DF52: 0 | DG52: 0 | DH52: 0 | DI52: 0 | DJ52: 0 | DK52: 0 | DL52: 0 | DM52: 0 | DN52: 0 | DO52: 0 | DP52: 0 | DQ52: 0 | DR52: 0 | DS52: 0 | DT52: 0 | DU52: 0 | DV52: 0 | DW52: 0 | DX52: 0 | DY52: 0 | DZ52: 0 | EA52: 0 | EB52: 0 | EC52: 0 | ED52: 0 | EE52: 0 | EF52: 0 | EG52: 0 | EH52: 0 | EI52: 0 | EJ52: 0 | EK52: 0 | EL52: 0 | EM52: 0 | EN52: 0 | EO52: 0 | EP52: 0 | EQ52: 0 | ER52: 0 | ES52: 0 | ET52: 0 | EU52: 0 | EV52: 0
C53: Оплата %% по кредиту Банка | E53: 33973333.33 | G53: 746666.6667 | H53: 746666.6667 | I53: 746666.6667 | J53: 746666.6667 | K53: 746666.6667 | L53: 746666.6667 | M53: 746666.6667 | N53: 746666.6667 | O53: 746666.6667 | P53: 746666.6667 | Q53: 746666.6667 | R53: 746666.6667 | S53: 746666.6667 | T53: 746666.6667 | U53: 746666.6667 | V53: 746666.6667 | W53: 746666.6667 | X53: 746666.6667 | Y53: 746666.6667 | Z53: 732839.5062 | AA53: 719012.3457 | AB53: 705185.1852 | AC53: 691358.0247 | AD53: 677530.8642 | AE53: 663703.7037 | AF53: 649876.5432 | AG53: 636049.3827 | AH53: 622222.2222 | AI53: 608395.0617 | AJ53: 594567.9012 | AK53: 580740.7407 | AL53: 566913.5802 | AM53: 553086.4198 | AN53: 539259.2593 | AO53: 525432.0988 | AP53: 511604.9383 | AQ53: 497777.7778 | AR53: 483950.6173 | AS53: 470123.4568 | AT53: 456296.2963 | AU53: 442469.1358 | AV53: 428641.9753 | AW53: 414814.8148 | AX53: 400987.6543 | AY53: 387160.4938 | AZ53: 373333.3333 | BA53: 359506.1728 | BB53: 345679.0123 | BC53: 331851.8519 | BD53: 318024.6914 | BE53: 304197.5309 | BF53: 290370.3704 | BG53: 276543.2099 | BH53: 262716.0494 | BI53: 248888.8889 | BJ53: 235061.7284 | BK53: 221234.5679 | BL53: 207407.4074 | BM53: 193580.2469 | BN53: 179753.0864 | BO53: 165925.9259 | BP53: 152098.7654 | BQ53: 138271.6049 | BR53: 124444.4444 | BS53: 110617.284 | BT53: 96790.12346 | BU53: 82962.96296 | BV53: 69135.80247 | BW53: 55308.64198 | BX53: 41481.48148 | BY53: 27654.32099 | BZ53: 13827.16049 | CA53: 0 | CB53: 0 | CC53: 0 | CD53: 0 | CE53: 0 | CF53: 0 | CG53: 0 | CH53: 0 | CI53: 0 | CJ53: 0 | CK53: 0 | CL53: 0 | CM53: 0 | CN53: 0 | CO53: 0 | CP53: 0 | CQ53: 0 | CR53: 0 | CS53: 0 | CT53: 0 | CU53: 0 | CV53: 0 | CW53: 0 | CX53: 0 | CY53: 0 | CZ53: 0 | DA53: 0 | DB53: 0 | DC53: 0 | DD53: 0 | DE53: 0 | DF53: 0 | DG53: 0 | DH53: 0 | DI53: 0 | DJ53: 0 | DK53: 0 | DL53: 0 | DM53: 0 | DN53: 0 | DO53: 0 | DP53: 0 | DQ53: 0 | DR53: 0 | DS53: 0 | DT53: 0 | DU53: 0 | DV53: 0 | DW53: 0 | DX53: 0 | DY53: 0 | DZ53: 0 | EA53: 0 | EB53: 0 | EC53: 0 | ED53: 0 | EE53: 0 | EF53: 0 | EG53: 0 | EH53: 0 | EI53: 0 | EJ53: 0 | EK53: 0 | EL53: 0 | EM53: 0 | EN53: 0 | EO53: 0 | EP53: 0 | EQ53: 0 | ER53: 0 | ES53: 0 | ET53: 0 | EU53: 0 | EV53: 0
C54: Возврат инвестиций Учредителю | E54: 32000000 | G54: 0 | H54: 0 | I54: 0 | J54: 0 | K54: 0 | L54: 0 | M54: 0 | N54: 0 | O54: 0 | P54: 0 | Q54: 0 | R54: 0 | S54: 0 | T54: 0 | U54: 0 | V54: 0 | W54: 0 | X54: 0 | Y54: 0 | Z54: 0 | AA54: 0 | AB54: 0 | AC54: 0 | AD54: 0 | AE54: 0 | AF54: 0 | AG54: 0 | AH54: 0 | AI54: 0 | AJ54: 0 | AK54: 0 | AL54: 0 | AM54: 0 | AN54: 0 | AO54: 0 | AP54: 0 | AQ54: 0 | AR54: 0 | AS54: 0 | AT54: 0 | AU54: 0 | AV54: 0 | AW54: 0 | AX54: 0 | AY54: 0 | AZ54: 0 | BA54: 0 | BB54: 0 | BC54: 0 | BD54: 0 | BE54: 0 | BF54: 0 | BG54: 0 | BH54: 0 | BI54: 0 | BJ54: 0 | BK54: 0 | BL54: 0 | BM54: 0 | BN54: 0 | BO54: 0 | BP54: 2466197.845 | BQ54: 8590422.604 | BR54: 12491069.86 | BS54: 8452309.691 | BT54: 0 | BU54: 0 | BV54: 0 | BW54: 0 | BX54: 0 | BY54: 0 | BZ54: 0 | CA54: 0 | CB54: 0 | CC54: 0 | CD54: 0 | CE54: 0 | CF54: 0 | CG54: 0 | CH54: 0 | CI54: 0 | CJ54: 0 | CK54: 0 | CL54: 0 | CM54: 0 | CN54: 0 | CO54: 0 | CP54: 0 | CQ54: 0 | CR54: 0 | CS54: 0 | CT54: 0 | CU54: 0 | CV54: 0 | CW54: 0 | CX54: 0 | CY54: 0 | CZ54: 0 | DA54: 0 | DB54: 0 | DC54: 0 | DD54: 0 | DE54: 0 | DF54: 0 | DG54: 0 | DH54: 0 | DI54: 0 | DJ54: 0 | DK54: 0 | DL54: 0 | DM54: 0 | DN54: 0 | DO54: 0 | DP54: 0 | DQ54: 0 | DR54: 0 | DS54: 0 | DT54: 0 | DU54: 0 | DV54: 0 | DW54: 0 | DX54: 0 | DY54: 0 | DZ54: 0 | EA54: 0 | EB54: 0 | EC54: 0 | ED54: 0 | EE54: 0 | EF54: 0 | EG54: 0 | EH54: 0 | EI54: 0 | EJ54: 0 | EK54: 0 | EL54: 0 | EM54: 0 | EN54: 0 | EO54: 0 | EP54: 0 | EQ54: 0 | ER54: 0 | ES54: 0 | ET54: 0 | EU54: 0 | EV54: 0
C55: Финпоток по инвестиционной деятельности | E55: -33973333.33 | G55: 159253333.3 | H55: -746666.6667 | I55: -746666.6667 | J55: -746666.6667 | K55: -746666.6667 | L55: -746666.6667 | M55: -746666.6667 | N55: -746666.6667 | O55: -746666.6667 | P55: -746666.6667 | Q55: -746666.6667 | R55: -746666.6667 | S55: -746666.6667 | T55: -746666.6667 | U55: -746666.6667 | V55: -746666.6667 | W55: -746666.6667 | X55: -746666.6667 | Y55: -3117037.037 | Z55: -3103209.877 | AA55: -3089382.716 | AB55: -3075555.556 | AC55: -3061728.395 | AD55: -3047901.235 | AE55: -3034074.074 | AF55: -3020246.914 | AG55: -3006419.753 | AH55: -2992592.593 | AI55: -2978765.432 | AJ55: -2964938.272 | AK55: -2951111.111 | AL55: -2937283.951 | AM55: -2923456.79 | AN55: -2909629.63 | AO55: -2895802.469 | AP55: -2881975.309 | AQ55: -2868148.148 | AR55: -2854320.988 | AS55: -2840493.827 | AT55: -2826666.667 | AU55: -2812839.506 | AV55: -2799012.346 | AW55: -2785185.185 | AX55: -2771358.025 | AY55: -2757530.864 | AZ55: -2743703.704 | BA55: -2729876.543 | BB55: -2716049.383 | BC55: -2702222.222 | BD55: -2688395.062 | BE55: -2674567.901 | BF55: -2660740.741 | BG55: -2646913.58 | BH55: -2633086.42 | BI55: -2619259.259 | BJ55: -2605432.099 | BK55: -2591604.938 | BL55: -2577777.778 | BM55: -2563950.617 | BN55: -2550123.457 | BO55: -2536296.296 | BP55: -4988666.981 | BQ55: -11099064.58 | BR55: -14985884.68 | BS55: -10933297.35 | BT55: -2467160.494 | BU55: -2453333.333 | BV55: -2439506.173 | BW55: -2425679.012 | BX55: -2411851.852 | BY55: -2398024.691 | BZ55: -2384197.531 | CA55: 0 | CB55: 0 | CC55: 0 | CD55: 0 | CE55: 0 | CF55: 0 | CG55: 0 | CH55: 0 | CI55: 0 | CJ55: 0 | CK55: 0 | CL55: 0 | CM55: 0 | CN55: 0 | CO55: 0 | CP55: 0 | CQ55: 0 | CR55: 0 | CS55: 0 | CT55: 0 | CU55: 0 | CV55: 0 | CW55: 0 | CX55: 0 | CY55: 0 | CZ55: 0 | DA55: 0 | DB55: 0 | DC55: 0 | DD55: 0 | DE55: 0 | DF55: 0 | DG55: 0 | DH55: 0 | DI55: 0 | DJ55: 0 | DK55: 0 | DL55: 0 | DM55: 0 | DN55: 0 | DO55: 0 | DP55: 0 | DQ55: 0 | DR55: 0 | DS55: 0 | DT55: 0 | DU55: 0 | DV55: 0 | DW55: 0 | DX55: 0 | DY55: 0 | DZ55: 0 | EA55: 0 | EB55: 0 | EC55: 0 | ED55: 0 | EE55: 0 | EF55: 0 | EG55: 0 | EH55: 0 | EI55: 0 | EJ55: 0 | EK55: 0 | EL55: 0 | EM55: 0 | EN55: 0 | EO55: 0 | EP55: 0 | EQ55: 0 | ER55: 0 | ES55: 0 | ET55: 0 | EU55: 0 | EV55: 0
A57: 0 | C57: Финпоток | E57: 394234170.6 | G57: 148209971.6 | H57: -17606818.65 | I57: -21056794.43 | J57: -24159276.49 | K57: -20465976 | L57: -16720775.41 | M57: -12575730.81 | N57: -7331112.869 | O57: -446561.7819 | P57: -149366.2707 | Q57: -1390218.566 | R57: -1741121.206 | S57: -1455193.678 | T57: -2848536.462 | U57: -2738501.35 | V57: -1362392.612 | W57: -1877428.811 | X57: -1539717.406 | Y57: -3118925.897 | Z57: -3073055.954 | AA57: -3662230.423 | AB57: -2890236.533 | AC57: 0 | AD57: 0 | AE57: 0 | AF57: 0 | AG57: 0 | AH57: 0 | AI57: 0 | AJ57: 0 | AK57: 0 | AL57: 0 | AM57: 0 | AN57: 0 | AO57: 0 | AP57: 0 | AQ57: 0 | AR57: 0 | AS57: -2.328306437e-10 | AT57: 736580.677 | AU57: 4666014.207 | AV57: 6953932.774 | AW57: 8448631.139 | AX57: 8438298.7 | AY57: 6497456.103 | AZ57: 7193807.82 | BA57: 6403695.943 | BB57: 4428549.719 | BC57: 2535081.301 | BD57: 7405492.558 | BE57: 9060483.729 | BF57: 15660818.84 | BG57: 11362429.66 | BH57: 15175423.25 | BI57: 16985100.32 | BJ57: 16951113.94 | BK57: 14017715.66 | BL57: 14747053.41 | BM57: 13495411.19 | BN57: 10560450.09 | BO57: 7113845.245 | BP57: 11944439.34 | BQ57: 7684035.83 | BR57: 11475717.76 | BS57: 8161704.587 | BT57: 22889977.96 | BU57: 24197275.85 | BV57: 23970254.54 | BW57: 19650779.56 | BX57: 20708812.24 | BY57: 19106002.18 | BZ57: 15607784.51 | CA57: 0 | CB57: 0 | CC57: 0 | CD57: 0 | CE57: 0 | CF57: 0 | CG57: 0 | CH57: 0 | CI57: 0 | CJ57: 0 | CK57: 0 | CL57: 0 | CM57: 0 | CN57: 0 | CO57: 0 | CP57: 0 | CQ57: 0 | CR57: 0 | CS57: 0 | CT57: 0 | CU57: 0 | CV57: 0 | CW57: 0 | CX57: 0 | CY57: 0 | CZ57: 0 | DA57: 0 | DB57: 0 | DC57: 0 | DD57: 0 | DE57: 0 | DF57: 0 | DG57: 0 | DH57: 0 | DI57: 0 | DJ57: 0 | DK57: 0 | DL57: 0 | DM57: 0 | DN57: 0 | DO57: 0 | DP57: 0 | DQ57: 0 | DR57: 0 | DS57: 0 | DT57: 0 | DU57: 0 | DV57: 0 | DW57: 0 | DX57: 0 | DY57: 0 | DZ57: 0 | EA57: 0 | EB57: 0 | EC57: 0 | ED57: 0 | EE57: 0 | EF57: 0 | EG57: 0 | EH57: 0 | EI57: 0 | EJ57: 0 | EK57: 0 | EL57: 0 | EM57: 0 | EN57: 0 | EO57: 0 | EP57: 0 | EQ57: 0 | ER57: 0 | ES57: 0 | ET57: 0 | EU57: 0 | EV57: 0
C58: Финпоток накопительным итогом | E58: 394234170.6 | G58: 148209971.6 | H58: 130603153 | I58: 109546358.5 | J58: 85387082.04 | K58: 64921106.04 | L58: 48200330.63 | M58: 35624599.82 | N58: 28293486.95 | O58: 27846925.17 | P58: 27697558.9 | Q58: 26307340.33 | R58: 24566219.12 | S58: 23111025.45 | T58: 20262488.99 | U58: 17523987.64 | V58: 16161595.02 | W58: 14284166.21 | X58: 12744448.81 | Y58: 9625522.91 | Z58: 6552466.956 | AA58: 2890236.533 | AB58: 0 | AC58: 0 | AD58: 0 | AE58: 0 | AF58: 0 | AG58: 0 | AH58: 0 | AI58: 0 | AJ58: 0 | AK58: 0 | AL58: 0 | AM58: 0 | AN58: 0 | AO58: 0 | AP58: 0 | AQ58: 0 | AR58: 0 | AS58: -2.328306437e-10 | AT58: 736580.677 | AU58: 5402594.884 | AV58: 12356527.66 | AW58: 20805158.8 | AX58: 29243457.5 | AY58: 35740913.6 | AZ58: 42934721.42 | BA58: 49338417.36 | BB58: 53766967.08 | BC58: 56302048.38 | BD58: 63707540.94 | BE58: 72768024.67 | BF58: 88428843.51 | BG58: 99791273.17 | BH58: 114966696.4 | BI58: 131951796.7 | BJ58: 148902910.7 | BK58: 162920626.3 | BL58: 177667679.7 | BM58: 191163090.9 | BN58: 201723541 | BO58: 208837386.3 | BP58: 220781825.6 | BQ58: 228465861.4 | BR58: 239941579.2 | BS58: 248103283.8 | BT58: 270993261.8 | BU58: 295190537.6 | BV58: 319160792.1 | BW58: 338811571.7 | BX58: 359520384 | BY58: 378626386.1 | BZ58: 394234170.6 | CA58: 0 | CB58: 0 | CC58: 0 | CD58: 0 | CE58: 0 | CF58: 0 | CG58: 0 | CH58: 0 | CI58: 0 | CJ58: 0 | CK58: 0 | CL58: 0 | CM58: 0 | CN58: 0 | CO58: 0 | CP58: 0 | CQ58: 0 | CR58: 0 | CS58: 0 | CT58: 0 | CU58: 0 | CV58: 0 | CW58: 0 | CX58: 0 | CY58: 0 | CZ58: 0 | DA58: 0 | DB58: 0 | DC58: 0 | DD58: 0 | DE58: 0 | DF58: 0 | DG58: 0 | DH58: 0 | DI58: 0 | DJ58: 0 | DK58: 0 | DL58: 0 | DM58: 0 | DN58: 0 | DO58: 0 | DP58: 0 | DQ58: 0 | DR58: 0 | DS58: 0 | DT58: 0 | DU58: 0 | DV58: 0 | DW58: 0 | DX58: 0 | DY58: 0 | DZ58: 0 | EA58: 0 | EB58: 0 | EC58: 0 | ED58: 0 | EE58: 0 | EF58: 0 | EG58: 0 | EH58: 0 | EI58: 0 | EJ58: 0 | EK58: 0 | EL58: 0 | EM58: 0 | EN58: 0 | EO58: 0 | EP58: 0 | EQ58: 0 | ER58: 0 | ES58: 0 | ET58: 0 | EU58: 0 | EV58: 0
B60: BS | C60: Баланс на конец периода | E60: 0 | G60: 0 | H60: 0 | I60: 0 | J60: 0 | K60: 0 | L60: 0 | M60: 0 | N60: 0 | O60: 0 | P60: 0 | Q60: 0 | R60: 0 | S60: 0 | T60: 0 | U60: 0 | V60: 0 | W60: 0 | X60: 0 | Y60: 0 | Z60: 0 | AA60: 0 | AB60: 0 | AC60: 0 | AD60: 0 | AE60: 0 | AF60: 0 | AG60: 0 | AH60: 7.450580597e-08 | AI60: 0 | AJ60: 0 | AK60: 5.960464478e-08 | AL60: 0 | AM60: 0 | AN60: 0 | AO60: 0 | AP60: 0 | AQ60: 0 | AR60: 0 | AS60: 0 | AT60: 0 | AU60: 6.705522537e-08 | AV60: 0 | AW60: 0 | AX60: 0 | AY60: 0 | AZ60: 0 | BA60: 0 | BB60: 0 | BC60: 0 | BD60: 0 | BE60: 0 | BF60: 0 | BG60: 0 | BH60: 0 | BI60: 0 | BJ60: 0 | BK60: 0 | BL60: 0 | BM60: 0 | BN60: 0 | BO60: 0 | BP60: 0 | BQ60: 0 | BR60: 0 | BS60: 0 | BT60: 0 | BU60: 0 | BV60: 0 | BW60: 0 | BX60: 0 | BY60: 0 | BZ60: 0 | CA60: 0 | CB60: 0 | CC60: 0 | CD60: 0 | CE60: 0 | CF60: 0 | CG60: 0 | CH60: 0 | CI60: 0 | CJ60: 0 | CK60: 0 | CL60: 0 | CM60: 0 | CN60: 0 | CO60: 0 | CP60: 0 | CQ60: 0 | CR60: 0 | CS60: 0 | CT60: 0 | CU60: 0 | CV60: 0 | CW60: 0 | CX60: 0 | CY60: 0 | CZ60: 0 | DA60: 0 | DB60: 0 | DC60: 0 | DD60: 0 | DE60: 0 | DF60: 0 | DG60: 0 | DH60: 0 | DI60: 0 | DJ60: 0 | DK60: 0 | DL60: 0 | DM60: 0 | DN60: 0 | DO60: 0 | DP60: 0 | DQ60: 0 | DR60: 0 | DS60: 0 | DT60: 0 | DU60: 0 | DV60: 0 | DW60: 0 | DX60: 0 | DY60: 0 | DZ60: 0 | EA60: 0 | EB60: 0 | EC60: 0 | ED60: 0 | EE60: 0 | EF60: 0 | EG60: 0 | EH60: 0 | EI60: 0 | EJ60: 0 | EK60: 0 | EL60: 0 | EM60: 0 | EN60: 0 | EO60: 0 | EP60: 0 | EQ60: 0 | ER60: 0 | ES60: 0 | ET60: 0 | EU60: 0 | EV60: 0
B61: BS | C61: АКТИВЫ | E61: 430903620.6 | G61: 160690934.8 | H61: 155434179.6 | I61: 153604402 | J61: 148549191 | K61: 139552244.1 | L61: 134260251.7 | M61: 130947141.1 | N61: 120832695.4 | O61: 116440665.8 | P61: 112367427.5 | Q61: 108263698.2 | R61: 103822832.8 | S61: 99724247.42 | T61: 96270526.19 | U61: 92925170.84 | V61: 90958699.41 | W61: 88368291.9 | X61: 86217125.11 | Y61: 82453033.91 | Z61: 78665558.62 | AA61: 74279155.82 | AB61: 70701877.38 | AC61: 69958173.66 | AD61: 69227794.29 | AE61: 68605178.64 | AF61: 68093970.62 | AG61: 67559155.92 | AH61: 67011564.48 | AI61: 66276358.77 | AJ61: 65724127.64 | AK61: 65087804.85 | AL61: 64352759.92 | AM61: 63586481.79 | AN61: 62877924.42 | AO61: 62083871.02 | AP61: 61263854.78 | AQ61: 60571772.85 | AR61: 60146349.85 | AS61: 59673517.92 | AT61: 59906835.92 | AU61: 63816847.04 | AV61: 70267333.85 | AW61: 78079658.08 | AX61: 85764159.94 | AY61: 91454879.72 | AZ61: 97915004.43 | BA61: 103485440.4 | BB61: 107039247.3 | BC61: 108868860.5 | BD61: 115942835.5 | BE61: 124598269.3 | BF61: 139804220 | BG61: 150387871.3 | BH61: 165113156.8 | BI61: 181461822.3 | BJ61: 197638613.8 | BK61: 210805268.7 | BL61: 224791036 | BM61: 237410309 | BN61: 247036131 | BO61: 253429777.5 | BP61: 265145322.7 | BQ61: 272498314.7 | BR61: 283571920.3 | BS61: 290929947.7 | BT61: 313427949.4 | BU61: 336988504.5 | BV61: 360162006.8 | BW61: 378913249.5 | BX61: 398830510.4 | BY61: 416906211.8 | BZ61: 430903620.6 | CA61: 0 | CB61: 0 | CC61: 0 | CD61: 0 | CE61: 0 | CF61: 0 | CG61: 0 | CH61: 0 | CI61: 0 | CJ61: 0 | CK61: 0 | CL61: 0 | CM61: 0 | CN61: 0 | CO61: 0 | CP61: 0 | CQ61: 0 | CR61: 0 | CS61: 0 | CT61: 0 | CU61: 0 | CV61: 0 | CW61: 0 | CX61: 0 | CY61: 0 | CZ61: 0 | DA61: 0 | DB61: 0 | DC61: 0 | DD61: 0 | DE61: 0 | DF61: 0 | DG61: 0 | DH61: 0 | DI61: 0 | DJ61: 0 | DK61: 0 | DL61: 0 | DM61: 0 | DN61: 0 | DO61: 0 | DP61: 0 | DQ61: 0 | DR61: 0 | DS61: 0 | DT61: 0 | DU61: 0 | DV61: 0 | DW61: 0 | DX61: 0 | DY61: 0 | DZ61: 0 | EA61: 0 | EB61: 0 | EC61: 0 | ED61: 0 | EE61: 0 | EF61: 0 | EG61: 0 | EH61: 0 | EI61: 0 | EJ61: 0 | EK61: 0 | EL61: 0 | EM61: 0 | EN61: 0 | EO61: 0 | EP61: 0 | EQ61: 0 | ER61: 0 | ES61: 0 | ET61: 0 | EU61: 0 | EV61: 0
A62: 0 | C62: в т.ч.
C63: Капитальные затраты на балансе | E63: 35347222.22 | G63: 10329861.11 | H63: 20572916.67 | I63: 36513888.89 | J63: 52319444.44 | K63: 61791666.67 | L63: 71180555.56 | M63: 80486111.11 | N63: 79791666.67 | O63: 79097222.22 | P63: 78402777.78 | Q63: 77708333.33 | R63: 77013888.89 | S63: 76319444.44 | T63: 75625000 | U63: 74930555.56 | V63: 74236111.11 | W63: 73541666.67 | X63: 72847222.22 | Y63: 72152777.78 | Z63: 71458333.33 | AA63: 70763888.89 | AB63: 70069444.44 | AC63: 69375000 | AD63: 68680555.56 | AE63: 67986111.11 | AF63: 67291666.67 | AG63: 66597222.22 | AH63: 65902777.78 | AI63: 65208333.33 | AJ63: 64513888.89 | AK63: 63819444.44 | AL63: 63125000 | AM63: 62430555.56 | AN63: 61736111.11 | AO63: 61041666.67 | AP63: 60347222.22 | AQ63: 59652777.78 | AR63: 58958333.33 | AS63: 58263888.89 | AT63: 57569444.44 | AU63: 56875000 | AV63: 56180555.56 | AW63: 55486111.11 | AX63: 54791666.67 | AY63: 54097222.22 | AZ63: 53402777.78 | BA63: 52708333.33 | BB63: 52013888.89 | BC63: 51319444.44 | BD63: 50625000 | BE63: 49930555.56 | BF63: 49236111.11 | BG63: 48541666.67 | BH63: 47847222.22 | BI63: 47152777.78 | BJ63: 46458333.33 | BK63: 45763888.89 | BL63: 45069444.44 | BM63: 44375000 | BN63: 43680555.56 | BO63: 42986111.11 | BP63: 42291666.67 | BQ63: 41597222.22 | BR63: 40902777.78 | BS63: 40208333.33 | BT63: 39513888.89 | BU63: 38819444.44 | BV63: 38125000 | BW63: 37430555.56 | BX63: 36736111.11 | BY63: 36041666.67 | BZ63: 35347222.22 | CA63: 0 | CB63: 0 | CC63: 0 | CD63: 0 | CE63: 0 | CF63: 0 | CG63: 0 | CH63: 0 | CI63: 0 | CJ63: 0 | CK63: 0 | CL63: 0 | CM63: 0 | CN63: 0 | CO63: 0 | CP63: 0 | CQ63: 0 | CR63: 0 | CS63: 0 | CT63: 0 | CU63: 0 | CV63: 0 | CW63: 0 | CX63: 0 | CY63: 0 | CZ63: 0 | DA63: 0 | DB63: 0 | DC63: 0 | DD63: 0 | DE63: 0 | DF63: 0 | DG63: 0 | DH63: 0 | DI63: 0 | DJ63: 0 | DK63: 0 | DL63: 0 | DM63: 0 | DN63: 0 | DO63: 0 | DP63: 0 | DQ63: 0 | DR63: 0 | DS63: 0 | DT63: 0 | DU63: 0 | DV63: 0 | DW63: 0 | DX63: 0 | DY63: 0 | DZ63: 0 | EA63: 0 | EB63: 0 | EC63: 0 | ED63: 0 | EE63: 0 | EF63: 0 | EG63: 0 | EH63: 0 | EI63: 0 | EJ63: 0 | EK63: 0 | EL63: 0 | EM63: 0 | EN63: 0 | EO63: 0 | EP63: 0 | EQ63: 0 | ER63: 0 | ES63: 0 | ET63: 0 | EU63: 0 | EV63: 0
C64: Остаток ДС на конец периода | E64: 394234170.6 | G64: 148209971.6 | H64: 130603153 | I64: 109546358.5 | J64: 85387082.04 | K64: 64921106.04 | L64: 48200330.63 | M64: 35624599.82 | N64: 28293486.95 | O64: 27846925.17 | P64: 27697558.9 | Q64: 26307340.33 | R64: 24566219.12 | S64: 23111025.45 | T64: 20262488.99 | U64: 17523987.64 | V64: 16161595.02 | W64: 14284166.21 | X64: 12744448.81 | Y64: 9625522.91 | Z64: 6552466.956 | AA64: 2890236.533 | AB64: 0 | AC64: 0 | AD64: 0 | AE64: 0 | AF64: 0 | AG64: 0 | AH64: 0 | AI64: 0 | AJ64: 0 | AK64: 0 | AL64: 0 | AM64: 0 | AN64: 0 | AO64: 0 | AP64: 0 | AQ64: 0 | AR64: 0 | AS64: -2.328306437e-10 | AT64: 736580.677 | AU64: 5402594.884 | AV64: 12356527.66 | AW64: 20805158.8 | AX64: 29243457.5 | AY64: 35740913.6 | AZ64: 42934721.42 | BA64: 49338417.36 | BB64: 53766967.08 | BC64: 56302048.38 | BD64: 63707540.94 | BE64: 72768024.67 | BF64: 88428843.51 | BG64: 99791273.17 | BH64: 114966696.4 | BI64: 131951796.7 | BJ64: 148902910.7 | BK64: 162920626.3 | BL64: 177667679.7 | BM64: 191163090.9 | BN64: 201723541 | BO64: 208837386.3 | BP64: 220781825.6 | BQ64: 228465861.4 | BR64: 239941579.2 | BS64: 248103283.8 | BT64: 270993261.8 | BU64: 295190537.6 | BV64: 319160792.1 | BW64: 338811571.7 | BX64: 359520384 | BY64: 378626386.1 | BZ64: 394234170.6 | CA64: 0 | CB64: 0 | CC64: 0 | CD64: 0 | CE64: 0 | CF64: 0 | CG64: 0 | CH64: 0 | CI64: 0 | CJ64: 0 | CK64: 0 | CL64: 0 | CM64: 0 | CN64: 0 | CO64: 0 | CP64: 0 | CQ64: 0 | CR64: 0 | CS64: 0 | CT64: 0 | CU64: 0 | CV64: 0 | CW64: 0 | CX64: 0 | CY64: 0 | CZ64: 0 | DA64: 0 | DB64: 0 | DC64: 0 | DD64: 0 | DE64: 0 | DF64: 0 | DG64: 0 | DH64: 0 | DI64: 0 | DJ64: 0 | DK64: 0 | DL64: 0 | DM64: 0 | DN64: 0 | DO64: 0 | DP64: 0 | DQ64: 0 | DR64: 0 | DS64: 0 | DT64: 0 | DU64: 0 | DV64: 0 | DW64: 0 | DX64: 0 | DY64: 0 | DZ64: 0 | EA64: 0 | EB64: 0 | EC64: 0 | ED64: 0 | EE64: 0 | EF64: 0 | EG64: 0 | EH64: 0 | EI64: 0 | EJ64: 0 | EK64: 0 | EL64: 0 | EM64: 0 | EN64: 0 | EO64: 0 | EP64: 0 | EQ64: 0 | ER64: 0 | ES64: 0 | ET64: 0 | EU64: 0 | EV64: 0
C65: Дебиторская задолженность | E65: 1322227.699 | G65: 35000 | H65: 49000 | I65: 56000 | J65: 112000 | K65: 95200 | L65: 112000 | M65: 154000 | N65: 154000 | O65: 138600 | P65: 166600 | Q65: 156800 | R65: 137200 | S65: 151725 | T65: 212415 | U65: 242760 | V65: 357000 | W65: 303450 | X65: 357000 | Y65: 410550 | Z65: 410550 | AA65: 369495 | AB65: 394485 | AC65: 371280 | AD65: 324870 | AE65: 319725 | AF65: 447615 | AG65: 511560 | AH65: 705600 | AI65: 599760 | AJ65: 705600 | AK65: 771750 | AL65: 771750 | AM65: 694575 | AN65: 712215 | AO65: 670320 | AP65: 586530 | AQ65: 474626.25 | AR65: 664476.75 | AS65: 759402 | AT65: 1018710 | AU65: 865903.5 | AV65: 1018710 | AW65: 1088167.5 | AX65: 1088167.5 | AY65: 979350.75 | AZ65: 983981.25 | BA65: 926100 | BB65: 810337.5 | BC65: 644218.3125 | BD65: 901905.6375 | BE65: 1030749.3 | BF65: 1361367 | BG65: 1157161.95 | BH65: 1361367 | BI65: 1434297.375 | BJ65: 1434297.375 | BK65: 1290867.637 | BL65: 1281143.587 | BM65: 1205782.2 | BN65: 1055059.425 | BO65: 829583.0156 | BP65: 1161416.222 | BQ65: 1327332.825 | BR65: 1735742.925 | BS65: 1475381.486 | BT65: 1735742.925 | BU65: 1812319.819 | BV65: 1812319.819 | BW65: 1631087.837 | BX65: 1605562.206 | BY65: 1511117.37 | BZ65: 1322227.699 | CA65: 0 | CB65: 0 | CC65: 0 | CD65: 0 | CE65: 0 | CF65: 0 | CG65: 0 | CH65: 0 | CI65: 0 | CJ65: 0 | CK65: 0 | CL65: 0 | CM65: 0 | CN65: 0 | CO65: 0 | CP65: 0 | CQ65: 0 | CR65: 0 | CS65: 0 | CT65: 0 | CU65: 0 | CV65: 0 | CW65: 0 | CX65: 0 | CY65: 0 | CZ65: 0 | DA65: 0 | DB65: 0 | DC65: 0 | DD65: 0 | DE65: 0 | DF65: 0 | DG65: 0 | DH65: 0 | DI65: 0 | DJ65: 0 | DK65: 0 | DL65: 0 | DM65: 0 | DN65: 0 | DO65: 0 | DP65: 0 | DQ65: 0 | DR65: 0 | DS65: 0 | DT65: 0 | DU65: 0 | DV65: 0 | DW65: 0 | DX65: 0 | DY65: 0 | DZ65: 0 | EA65: 0 | EB65: 0 | EC65: 0 | ED65: 0 | EE65: 0 | EF65: 0 | EG65: 0 | EH65: 0 | EI65: 0 | EJ65: 0 | EK65: 0 | EL65: 0 | EM65: 0 | EN65: 0 | EO65: 0 | EP65: 0 | EQ65: 0 | ER65: 0 | ES65: 0 | ET65: 0 | EU65: 0 | EV65: 0
C66: Авансы выданные | E66: 0 | G66: 0 | H66: 0 | I66: 0 | J66: 0 | K66: 0 | L66: 0 | M66: 0 | N66: 0 | O66: 0 | P66: 0 | Q66: 0 | R66: 0 | S66: 0 | T66: 0 | U66: 0 | V66: 0 | W66: 0 | X66: 0 | Y66: 0 | Z66: 0 | AA66: 0 | AB66: 0 | AC66: 0 | AD66: 0 | AE66: 0 | AF66: 0 | AG66: 0 | AH66: 0 | AI66: 0 | AJ66: 0 | AK66: 0 | AL66: 0 | AM66: 0 | AN66: 0 | AO66: 0 | AP66: 0 | AQ66: 0 | AR66: 0 | AS66: 0 | AT66: 0 | AU66: 0 | AV66: 0 | AW66: 0 | AX66: 0 | AY66: 0 | AZ66: 0 | BA66: 0 | BB66: 0 | BC66: 0 | BD66: 0 | BE66: 0 | BF66: 0 | BG66: 0 | BH66: 0 | BI66: 0 | BJ66: 0 | BK66: 0 | BL66: 0 | BM66: 0 | BN66: 0 | BO66: 0 | BP66: 0 | BQ66: 0 | BR66: 0 | BS66: 0 | BT66: 0 | BU66: 0 | BV66: 0 | BW66: 0 | BX66: 0 | BY66: 0 | BZ66: 0 | CA66: 0 | CB66: 0 | CC66: 0 | CD66: 0 | CE66: 0 | CF66: 0 | CG66: 0 | CH66: 0 | CI66: 0 | CJ66: 0 | CK66: 0 | CL66: 0 | CM66: 0 | CN66: 0 | CO66: 0 | CP66: 0 | CQ66: 0 | CR66: 0 | CS66: 0 | CT66: 0 | CU66: 0 | CV66: 0 | CW66: 0 | CX66: 0 | CY66: 0 | CZ66: 0 | DA66: 0 | DB66: 0 | DC66: 0 | DD66: 0 | DE66: 0 | DF66: 0 | DG66: 0 | DH66: 0 | DI66: 0 | DJ66: 0 | DK66: 0 | DL66: 0 | DM66: 0 | DN66: 0 | DO66: 0 | DP66: 0 | DQ66: 0 | DR66: 0 | DS66: 0 | DT66: 0 | DU66: 0 | DV66: 0 | DW66: 0 | DX66: 0 | DY66: 0 | DZ66: 0 | EA66: 0 | EB66: 0 | EC66: 0 | ED66: 0 | EE66: 0 | EF66: 0 | EG66: 0 | EH66: 0 | EI66: 0 | EJ66: 0 | EK66: 0 | EL66: 0 | EM66: 0 | EN66: 0 | EO66: 0 | EP66: 0 | EQ66: 0 | ER66: 0 | ES66: 0 | ET66: 0 | EU66: 0 | EV66: 0
C67: Запасы готовой продукции | E67: -1.490116119e-08 | G67: 10194.72222 | H67: 11651.11111 | I67: 23302.22222 | J67: 19806.88889 | K67: 23302.22222 | L67: 32040.55556 | M67: 32040.55556 | N67: 28836.5 | O67: 34662.05556 | P67: 32623.11111 | Q67: 28545.22222 | R67: 31567.22917 | S67: 44194.12083 | T67: 50507.56667 | U67: 74275.83333 | V67: 63134.45833 | W67: 74275.83333 | X67: 85417.20833 | Y67: 85417.20833 | Z67: 76875.4875 | AA67: 82074.79583 | AB67: 77246.86667 | AC67: 67591.00833 | AD67: 66520.5625 | AE67: 93128.7875 | AF67: 106432.9 | AG67: 146804 | AH67: 124783.4 | AI67: 146804 | AJ67: 160566.875 | AK67: 160566.875 | AL67: 144510.1875 | AM67: 148180.2875 | AN67: 139463.8 | AO67: 122030.825 | AP67: 98748.62812 | AQ67: 138248.0794 | AR67: 157997.805 | AS67: 211948.275 | AT67: 180156.0337 | AU67: 211948.275 | AV67: 226399.2937 | AW67: 226399.2937 | AX67: 203759.3644 | AY67: 204722.7656 | AZ67: 192680.25 | BA67: 168595.2188 | BB67: 134033.1989 | BC67: 187646.4785 | BD67: 214453.1182 | BE67: 283239.9675 | BF67: 240753.9724 | BG67: 283239.9675 | BH67: 298413.5372 | BI67: 298413.5372 | BJ67: 268572.1835 | BK67: 266549.0408 | BL67: 250869.6855 | BM67: 219510.9748 | BN67: 172599.3552 | BO67: 241639.0973 | BP67: 276158.9683 | BQ67: 361130.9586 | BR67: 306961.3148 | BS67: 361130.9586 | BT67: 377063.2067 | BU67: 377063.2067 | BV67: 339356.8861 | BW67: 334046.1367 | BX67: 314396.3639 | BY67: 275096.8184 | BZ67: -1.490116119e-08 | CA67: 0 | CB67: 0 | CC67: 0 | CD67: 0 | CE67: 0 | CF67: 0 | CG67: 0 | CH67: 0 | CI67: 0 | CJ67: 0 | CK67: 0 | CL67: 0 | CM67: 0 | CN67: 0 | CO67: 0 | CP67: 0 | CQ67: 0 | CR67: 0 | CS67: 0 | CT67: 0 | CU67: 0 | CV67: 0 | CW67: 0 | CX67: 0 | CY67: 0 | CZ67: 0 | DA67: 0 | DB67: 0 | DC67: 0 | DD67: 0 | DE67: 0 | DF67: 0 | DG67: 0 | DH67: 0 | DI67: 0 | DJ67: 0 | DK67: 0 | DL67: 0 | DM67: 0 | DN67: 0 | DO67: 0 | DP67: 0 | DQ67: 0 | DR67: 0 | DS67: 0 | DT67: 0 | DU67: 0 | DV67: 0 | DW67: 0 | DX67: 0 | DY67: 0 | DZ67: 0 | EA67: 0 | EB67: 0 | EC67: 0 | ED67: 0 | EE67: 0 | EF67: 0 | EG67: 0 | EH67: 0 | EI67: 0 | EJ67: 0 | EK67: 0 | EL67: 0 | EM67: 0 | EN67: 0 | EO67: 0 | EP67: 0 | EQ67: 0 | ER67: 0 | ES67: 0 | ET67: 0 | EU67: 0 | EV67: 0
C68: Запасы комплектующих | E68: 1.490116119e-08 | G68: 22574.02778 | H68: 30792.22222 | I68: 48185.66667 | J68: 44191 | K68: 54302.5 | L68: 68658.33333 | M68: 67056.30556 | N68: 64705.27778 | O68: 73256.36111 | P68: 67867.72222 | Q68: 62679.33681 | R68: 73957.50833 | S68: 97858.41042 | T68: 120114.6333 | U68: 153591.8125 | V68: 140858.8125 | W68: 164733.1875 | X68: 183036.875 | Y68: 178766.0146 | Z68: 167332.8417 | AA68: 173460.5979 | AB68: 160701.0708 | AC68: 144302.6521 | AD68: 155848.175 | AE68: 206213.7438 | AF68: 248256.05 | AG68: 303569.7 | AH68: 278403.3 | AI68: 321461.4375 | AJ68: 344071.875 | AK68: 336043.5312 | AL68: 311499.7375 | AM68: 313170.9438 | AN68: 290134.5125 | AO68: 249853.5266 | AP68: 231353.9288 | AQ68: 306120.7472 | AR68: 365541.96 | AS68: 438278.7544 | AT68: 401944.7644 | AU68: 461400.3844 | AV68: 485141.3438 | AW68: 473821.3791 | AX68: 437108.91 | AY68: 432670.3828 | AZ68: 400843.7344 | BA68: 343994.4588 | BB68: 314020.6374 | BC68: 415502.9166 | BD68: 493935.8209 | BE68: 585699.7899 | BF68: 537144.3669 | BG68: 614529.5723 | BH68: 639457.5797 | BI68: 624536.9028 | BJ68: 574500.2504 | BK68: 563336.8384 | BL68: 521898.5422 | BM68: 446924.8505 | BN68: 404375.6322 | BO68: 535058.0011 | BP68: 634255.2129 | BQ68: 746767.2322 | BR68: 684859.0678 | BS68: 781818.1781 | BT68: 807992.5859 | BU68: 789139.4255 | BV68: 724537.9526 | BW68: 705988.2636 | BX68: 654056.7214 | BY68: 451944.7731 | BZ68: 1.490116119e-08 | CA68: 0 | CB68: 0 | CC68: 0 | CD68: 0 | CE68: 0 | CF68: 0 | CG68: 0 | CH68: 0 | CI68: 0 | CJ68: 0 | CK68: 0 | CL68: 0 | CM68: 0 | CN68: 0 | CO68: 0 | CP68: 0 | CQ68: 0 | CR68: 0 | CS68: 0 | CT68: 0 | CU68: 0 | CV68: 0 | CW68: 0 | CX68: 0 | CY68: 0 | CZ68: 0 | DA68: 0 | DB68: 0 | DC68: 0 | DD68: 0 | DE68: 0 | DF68: 0 | DG68: 0 | DH68: 0 | DI68: 0 | DJ68: 0 | DK68: 0 | DL68: 0 | DM68: 0 | DN68: 0 | DO68: 0 | DP68: 0 | DQ68: 0 | DR68: 0 | DS68: 0 | DT68: 0 | DU68: 0 | DV68: 0 | DW68: 0 | DX68: 0 | DY68: 0 | DZ68: 0 | EA68: 0 | EB68: 0 | EC68: 0 | ED68: 0 | EE68: 0 | EF68: 0 | EG68: 0 | EH68: 0 | EI68: 0 | EJ68: 0 | EK68: 0 | EL68: 0 | EM68: 0 | EN68: 0 | EO68: 0 | EP68: 0 | EQ68: 0 | ER68: 0 | ES68: 0 | ET68: 0 | EU68: 0 | EV68: 0
C69: Дебиторская задолженность по ндс | E69: 0 | G69: 2083333.333 | H69: 4166666.667 | I69: 7416666.667 | J69: 10666666.67 | K69: 12666666.67 | L69: 14666666.67 | M69: 14583333.33 | N69: 12500000 | O69: 9250000 | P69: 6000000 | Q69: 4000000 | R69: 2000000 | S69: 0 | T69: 0 | U69: 0 | V69: 0 | W69: 0 | X69: 0 | Y69: 0 | Z69: 0 | AA69: 0 | AB69: 0 | AC69: 0 | AD69: 0 | AE69: 0 | AF69: 0 | AG69: 0 | AH69: 0 | AI69: 0 | AJ69: 0 | AK69: 0 | AL69: 0 | AM69: 0 | AN69: 0 | AO69: 0 | AP69: 0 | AQ69: 0 | AR69: 0 | AS69: 0 | AT69: 0 | AU69: 0 | AV69: 0 | AW69: 0 | AX69: 0 | AY69: 0 | AZ69: 0 | BA69: 0 | BB69: 0 | BC69: 0 | BD69: 0 | BE69: 0 | BF69: 0 | BG69: 0 | BH69: 0 | BI69: 0 | BJ69: 0 | BK69: 0 | BL69: 0 | BM69: 0 | BN69: 0 | BO69: 0 | BP69: 0 | BQ69: 0 | BR69: 0 | BS69: 0 | BT69: 0 | BU69: 0 | BV69: 0 | BW69: 0 | BX69: 0 | BY69: 0 | BZ69: 0 | CA69: 0 | CB69: 0 | CC69: 0 | CD69: 0 | CE69: 0 | CF69: 0 | CG69: 0 | CH69: 0 | CI69: 0 | CJ69: 0 | CK69: 0 | CL69: 0 | CM69: 0 | CN69: 0 | CO69: 0 | CP69: 0 | CQ69: 0 | CR69: 0 | CS69: 0 | CT69: 0 | CU69: 0 | CV69: 0 | CW69: 0 | CX69: 0 | CY69: 0 | CZ69: 0 | DA69: 0 | DB69: 0 | DC69: 0 | DD69: 0 | DE69: 0 | DF69: 0 | DG69: 0 | DH69: 0 | DI69: 0 | DJ69: 0 | DK69: 0 | DL69: 0 | DM69: 0 | DN69: 0 | DO69: 0 | DP69: 0 | DQ69: 0 | DR69: 0 | DS69: 0 | DT69: 0 | DU69: 0 | DV69: 0 | DW69: 0 | DX69: 0 | DY69: 0 | DZ69: 0 | EA69: 0 | EB69: 0 | EC69: 0 | ED69: 0 | EE69: 0 | EF69: 0 | EG69: 0 | EH69: 0 | EI69: 0 | EJ69: 0 | EK69: 0 | EL69: 0 | EM69: 0 | EN69: 0 | EO69: 0 | EP69: 0 | EQ69: 0 | ER69: 0 | ES69: 0 | ET69: 0 | EU69: 0 | EV69: 0
C71: ПАССИВЫ | E71: 430903620.6 | G71: 160690934.8 | H71: 155434179.6 | I71: 153604402 | J71: 148549191 | K71: 139552244.1 | L71: 134260251.7 | M71: 130947141.1 | N71: 120832695.4 | O71: 116440665.8 | P71: 112367427.5 | Q71: 108263698.2 | R71: 103822832.8 | S71: 99724247.42 | T71: 96270526.19 | U71: 92925170.84 | V71: 90958699.41 | W71: 88368291.9 | X71: 86217125.11 | Y71: 82453033.91 | Z71: 78665558.62 | AA71: 74279155.82 | AB71: 70701877.38 | AC71: 69958173.66 | AD71: 69227794.29 | AE71: 68605178.64 | AF71: 68093970.62 | AG71: 67559155.92 | AH71: 67011564.48 | AI71: 66276358.77 | AJ71: 65724127.64 | AK71: 65087804.85 | AL71: 64352759.92 | AM71: 63586481.79 | AN71: 62877924.42 | AO71: 62083871.02 | AP71: 61263854.78 | AQ71: 60571772.85 | AR71: 60146349.85 | AS71: 59673517.92 | AT71: 59906835.92 | AU71: 63816847.04 | AV71: 70267333.85 | AW71: 78079658.08 | AX71: 85764159.94 | AY71: 91454879.72 | AZ71: 97915004.43 | BA71: 103485440.4 | BB71: 107039247.3 | BC71: 108868860.5 | BD71: 115942835.5 | BE71: 124598269.3 | BF71: 139804220 | BG71: 150387871.3 | BH71: 165113156.8 | BI71: 181461822.3 | BJ71: 197638613.8 | BK71: 210805268.7 | BL71: 224791036 | BM71: 237410309 | BN71: 247036131 | BO71: 253429777.5 | BP71: 265145322.7 | BQ71: 272498314.7 | BR71: 283571920.3 | BS71: 290929947.7 | BT71: 313427949.4 | BU71: 336988504.5 | BV71: 360162006.8 | BW71: 378913249.5 | BX71: 398830510.4 | BY71: 416906211.8 | BZ71: 430903620.6 | CA71: 0 | CB71: 0 | CC71: 0 | CD71: 0 | CE71: 0 | CF71: 0 | CG71: 0 | CH71: 0 | CI71: 0 | CJ71: 0 | CK71: 0 | CL71: 0 | CM71: 0 | CN71: 0 | CO71: 0 | CP71: 0 | CQ71: 0 | CR71: 0 | CS71: 0 | CT71: 0 | CU71: 0 | CV71: 0 | CW71: 0 | CX71: 0 | CY71: 0 | CZ71: 0 | DA71: 0 | DB71: 0 | DC71: 0 | DD71: 0 | DE71: 0 | DF71: 0 | DG71: 0 | DH71: 0 | DI71: 0 | DJ71: 0 | DK71: 0 | DL71: 0 | DM71: 0 | DN71: 0 | DO71: 0 | DP71: 0 | DQ71: 0 | DR71: 0 | DS71: 0 | DT71: 0 | DU71: 0 | DV71: 0 | DW71: 0 | DX71: 0 | DY71: 0 | DZ71: 0 | EA71: 0 | EB71: 0 | EC71: 0 | ED71: 0 | EE71: 0 | EF71: 0 | EG71: 0 | EH71: 0 | EI71: 0 | EJ71: 0 | EK71: 0 | EL71: 0 | EM71: 0 | EN71: 0 | EO71: 0 | EP71: 0 | EQ71: 0 | ER71: 0 | ES71: 0 | ET71: 0 | EU71: 0 | EV71: 0
A72: 0 | C72: в т.ч.
C73: Капитал (чистая прибыль накопит. итогом) | E73: 125689799.1 | G73: -5538797.413 | H73: -11133924.79 | I73: -16849426.32 | J73: -22596531.32 | K73: -28444840.31 | L73: -34314325.09 | M73: -38787438.4 | N73: -43737489.15 | O73: -48691532.98 | P73: -53579919.82 | Q73: -58457842.83 | R73: -63368364.36 | S73: -68403490.69 | T73: -73188996.21 | U73: -77797142.76 | V73: -81977266.41 | W73: -86262116.94 | X73: -90196430.43 | Y73: -93910664.84 | Z73: -97458376.75 | AA73: -101064061.2 | AB73: -104580997.8 | AC73: -108116651.4 | AD73: -111831570.1 | AE73: -115834853.8 | AF73: -119040652.5 | AG73: -121718797 | AH73: -123247038.5 | AI73: -125164444.9 | AJ73: -126106495.5 | AK73: -126617403.5 | AL73: -126769624.3 | AM73: -127169677.9 | AN73: -127507796.9 | AO73: -127898632.3 | AP73: -128737617.7 | AQ73: -130803329.3 | AR73: -131225335.8 | AS73: -130619632.4 | AT73: -127907577.5 | AU73: -126060417.5 | AV73: -122474195 | AW73: -118329436.9 | AX73: -113713544 | AY73: -109720934.5 | AZ73: -105812977.9 | BA73: -102129089.2 | BB73: -99330448.7 | BC73: -98652360.26 | BD73: -95209063.53 | BE73: -90129277.98 | BF73: -81732646.68 | BG73: -75002116.37 | BH73: -65539684.4 | BI73: -55380492.54 | BJ73: -44616311.5 | BK73: -34980737.69 | BL73: -25641656.67 | BM73: -16759257.72 | BN73: -9344549.638 | BO73: -5233674.946 | BP73: 2466197.845 | BQ73: 11056620.45 | BR73: 23547690.31 | BS73: 33921430.37 | BT73: 47473189.16 | BU73: 61699206.17 | BV73: 76522394.01 | BW73: 89913430.05 | BX73: 102837121.3 | BY73: 115147775.1 | BZ73: 125689799.1 | CA73: 0 | CB73: 0 | CC73: 0 | CD73: 0 | CE73: 0 | CF73: 0 | CG73: 0 | CH73: 0 | CI73: 0 | CJ73: 0 | CK73: 0 | CL73: 0 | CM73: 0 | CN73: 0 | CO73: 0 | CP73: 0 | CQ73: 0 | CR73: 0 | CS73: 0 | CT73: 0 | CU73: 0 | CV73: 0 | CW73: 0 | CX73: 0 | CY73: 0 | CZ73: 0 | DA73: 0 | DB73: 0 | DC73: 0 | DD73: 0 | DE73: 0 | DF73: 0 | DG73: 0 | DH73: 0 | DI73: 0 | DJ73: 0 | DK73: 0 | DL73: 0 | DM73: 0 | DN73: 0 | DO73: 0 | DP73: 0 | DQ73: 0 | DR73: 0 | DS73: 0 | DT73: 0 | DU73: 0 | DV73: 0 | DW73: 0 | DX73: 0 | DY73: 0 | DZ73: 0 | EA73: 0 | EB73: 0 | EC73: 0 | ED73: 0 | EE73: 0 | EF73: 0 | EG73: 0 | EH73: 0 | EI73: 0 | EJ73: 0 | EK73: 0 | EL73: 0 | EM73: 0 | EN73: 0 | EO73: 0 | EP73: 0 | EQ73: 0 | ER73: 0 | ES73: 0 | ET73: 0 | EU73: 0 | EV73: 0
C74: Остаток задолженности перед Банком на конец периода | E74: 0 | G74: 128000000 | H74: 128000000 | I74: 128000000 | J74: 128000000 | K74: 128000000 | L74: 128000000 | M74: 128000000 | N74: 128000000 | O74: 128000000 | P74: 128000000 | Q74: 128000000 | R74: 128000000 | S74: 128000000 | T74: 128000000 | U74: 128000000 | V74: 128000000 | W74: 128000000 | X74: 128000000 | Y74: 125629629.6 | Z74: 123259259.3 | AA74: 120888888.9 | AB74: 118518518.5 | AC74: 116148148.1 | AD74: 113777777.8 | AE74: 111407407.4 | AF74: 109037037 | AG74: 106666666.7 | AH74: 104296296.3 | AI74: 101925925.9 | AJ74: 99555555.56 | AK74: 97185185.19 | AL74: 94814814.81 | AM74: 92444444.44 | AN74: 90074074.07 | AO74: 87703703.7 | AP74: 85333333.33 | AQ74: 82962962.96 | AR74: 80592592.59 | AS74: 78222222.22 | AT74: 75851851.85 | AU74: 73481481.48 | AV74: 71111111.11 | AW74: 68740740.74 | AX74: 66370370.37 | AY74: 64000000 | AZ74: 61629629.63 | BA74: 59259259.26 | BB74: 56888888.89 | BC74: 54518518.52 | BD74: 52148148.15 | BE74: 49777777.78 | BF74: 47407407.41 | BG74: 45037037.04 | BH74: 42666666.67 | BI74: 40296296.3 | BJ74: 37925925.93 | BK74: 35555555.56 | BL74: 33185185.19 | BM74: 30814814.81 | BN74: 28444444.44 | BO74: 26074074.07 | BP74: 23703703.7 | BQ74: 21333333.33 | BR74: 18962962.96 | BS74: 16592592.59 | BT74: 14222222.22 | BU74: 11851851.85 | BV74: 9481481.481 | BW74: 7111111.111 | BX74: 4740740.741 | BY74: 2370370.37 | BZ74: 0 | CA74: 0 | CB74: 0 | CC74: 0 | CD74: 0 | CE74: 0 | CF74: 0 | CG74: 0 | CH74: 0 | CI74: 0 | CJ74: 0 | CK74: 0 | CL74: 0 | CM74: 0 | CN74: 0 | CO74: 0 | CP74: 0 | CQ74: 0 | CR74: 0 | CS74: 0 | CT74: 0 | CU74: 0 | CV74: 0 | CW74: 0 | CX74: 0 | CY74: 0 | CZ74: 0 | DA74: 0 | DB74: 0 | DC74: 0 | DD74: 0 | DE74: 0 | DF74: 0 | DG74: 0 | DH74: 0 | DI74: 0 | DJ74: 0 | DK74: 0 | DL74: 0 | DM74: 0 | DN74: 0 | DO74: 0 | DP74: 0 | DQ74: 0 | DR74: 0 | DS74: 0 | DT74: 0 | DU74: 0 | DV74: 0 | DW74: 0 | DX74: 0 | DY74: 0 | DZ74: 0 | EA74: 0 | EB74: 0 | EC74: 0 | ED74: 0 | EE74: 0 | EF74: 0 | EG74: 0 | EH74: 0 | EI74: 0 | EJ74: 0 | EK74: 0 | EL74: 0 | EM74: 0 | EN74: 0 | EO74: 0 | EP74: 0 | EQ74: 0 | ER74: 0 | ES74: 0 | ET74: 0 | EU74: 0 | EV74: 0
C75: Кред. задолж-сть по инвестициям Учредителя | E75: 0 | G75: 32000000 | H75: 32000000 | I75: 32000000 | J75: 32000000 | K75: 32000000 | L75: 32000000 | M75: 32000000 | N75: 32000000 | O75: 32000000 | P75: 32000000 | Q75: 32000000 | R75: 32000000 | S75: 32000000 | T75: 32000000 | U75: 32000000 | V75: 32000000 | W75: 32000000 | X75: 32000000 | Y75: 32000000 | Z75: 32000000 | AA75: 32000000 | AB75: 32000000 | AC75: 32000000 | AD75: 32000000 | AE75: 32000000 | AF75: 32000000 | AG75: 32000000 | AH75: 32000000 | AI75: 32000000 | AJ75: 32000000 | AK75: 32000000 | AL75: 32000000 | AM75: 32000000 | AN75: 32000000 | AO75: 32000000 | AP75: 32000000 | AQ75: 32000000 | AR75: 32000000 | AS75: 32000000 | AT75: 32000000 | AU75: 32000000 | AV75: 32000000 | AW75: 32000000 | AX75: 32000000 | AY75: 32000000 | AZ75: 32000000 | BA75: 32000000 | BB75: 32000000 | BC75: 32000000 | BD75: 32000000 | BE75: 32000000 | BF75: 32000000 | BG75: 32000000 | BH75: 32000000 | BI75: 32000000 | BJ75: 32000000 | BK75: 32000000 | BL75: 32000000 | BM75: 32000000 | BN75: 32000000 | BO75: 32000000 | BP75: 29533802.15 | BQ75: 20943379.55 | BR75: 8452309.691 | BS75: 0 | BT75: 0 | BU75: 0 | BV75: 0 | BW75: 0 | BX75: 0 | BY75: 0 | BZ75: 0 | CA75: 0 | CB75: 0 | CC75: 0 | CD75: 0 | CE75: 0 | CF75: 0 | CG75: 0 | CH75: 0 | CI75: 0 | CJ75: 0 | CK75: 0 | CL75: 0 | CM75: 0 | CN75: 0 | CO75: 0 | CP75: 0 | CQ75: 0 | CR75: 0 | CS75: 0 | CT75: 0 | CU75: 0 | CV75: 0 | CW75: 0 | CX75: 0 | CY75: 0 | CZ75: 0 | DA75: 0 | DB75: 0 | DC75: 0 | DD75: 0 | DE75: 0 | DF75: 0 | DG75: 0 | DH75: 0 | DI75: 0 | DJ75: 0 | DK75: 0 | DL75: 0 | DM75: 0 | DN75: 0 | DO75: 0 | DP75: 0 | DQ75: 0 | DR75: 0 | DS75: 0 | DT75: 0 | DU75: 0 | DV75: 0 | DW75: 0 | DX75: 0 | DY75: 0 | DZ75: 0 | EA75: 0 | EB75: 0 | EC75: 0 | ED75: 0 | EE75: 0 | EF75: 0 | EG75: 0 | EH75: 0 | EI75: 0 | EJ75: 0 | EK75: 0 | EL75: 0 | EM75: 0 | EN75: 0 | EO75: 0 | EP75: 0 | EQ75: 0 | ER75: 0 | ES75: 0 | ET75: 0 | EU75: 0 | EV75: 0
C76: Кредиторская задолженнсоть по с/ст | E76: 126544.5365 | G76: 17913.58333 | H76: 14942.55 | I76: 22113.80889 | J76: 25865.46667 | K76: 27578.18 | L76: 34429.03333 | M76: 38000.09889 | N76: 36893.24333 | O76: 38629.25889 | P76: 39514.74333 | Q76: 36553.17653 | R76: 38258.31664 | S76: 48108.45725 | T76: 61032.45225 | U76: 76637.80483 | V76: 82446.175 | W76: 85565.76 | X76: 97375.6175 | Y76: 101304.8091 | Z76: 96907.67975 | AA76: 95422.16308 | AB76: 93565.26725 | AC76: 85401.04242 | AD76: 84042.23158 | AE76: 101377.3372 | AF76: 127251.5422 | AG76: 154511.21 | AH76: 162952.44 | AI76: 167962.1265 | AJ76: 186349.3275 | AK76: 190432.3137 | AL76: 181312.1152 | AM76: 174907.7908 | AN76: 168925.5278 | AO76: 151196.6509 | AP76: 134738.0875 | AQ76: 150492.9093 | AR76: 188065.558 | AS76: 225069.8 | AT76: 235262.5852 | AU76: 241736.6416 | AV76: 265031.6839 | AW76: 268509.5624 | AX76: 255060.4809 | AY76: 243538.202 | AZ76: 233383.9528 | BA76: 208554.6941 | BB76: 184244.227 | BC76: 204266.5951 | BD76: 254642.8465 | BE76: 302297.971 | BF76: 314396.3639 | BG76: 322468.703 | BH76: 351116.4026 | BI76: 353918.4551 | BJ76: 335730.4029 | BK76: 318594.3849 | BL76: 303865.9066 | BM76: 271270.5499 | BN76: 238364.1351 | BO76: 263041.4173 | BP76: 327407.6999 | BQ76: 386686.2846 | BR76: 400855.364 | BS76: 410669.6289 | BT76: 445147.0139 | BU76: 447196.9632 | BV76: 423829.6659 | BW76: 400547.3405 | BX76: 380812.5958 | BY76: 309680.4185 | BZ76: 126544.5365 | CA76: 0 | CB76: 0 | CC76: 0 | CD76: 0 | CE76: 0 | CF76: 0 | CG76: 0 | CH76: 0 | CI76: 0 | CJ76: 0 | CK76: 0 | CL76: 0 | CM76: 0 | CN76: 0 | CO76: 0 | CP76: 0 | CQ76: 0 | CR76: 0 | CS76: 0 | CT76: 0 | CU76: 0 | CV76: 0 | CW76: 0 | CX76: 0 | CY76: 0 | CZ76: 0 | DA76: 0 | DB76: 0 | DC76: 0 | DD76: 0 | DE76: 0 | DF76: 0 | DG76: 0 | DH76: 0 | DI76: 0 | DJ76: 0 | DK76: 0 | DL76: 0 | DM76: 0 | DN76: 0 | DO76: 0 | DP76: 0 | DQ76: 0 | DR76: 0 | DS76: 0 | DT76: 0 | DU76: 0 | DV76: 0 | DW76: 0 | DX76: 0 | DY76: 0 | DZ76: 0 | EA76: 0 | EB76: 0 | EC76: 0 | ED76: 0 | EE76: 0 | EF76: 0 | EG76: 0 | EH76: 0 | EI76: 0 | EJ76: 0 | EK76: 0 | EL76: 0 | EM76: 0 | EN76: 0 | EO76: 0 | EP76: 0 | EQ76: 0 | ER76: 0 | ES76: 0 | ET76: 0 | EU76: 0 | EV76: 0
C77: Авансы полученные | E77: 297997009.2 | G77: 237854.1667 | H77: 556844.1667 | I77: 903110.8333 | J77: 1584210.833 | K77: 2130103.5 | L77: 2726596.833 | M77: 3554206.833 | N77: 4318933.5 | O77: 4956252 | P77: 5750239.833 | Q77: 6446301.167 | R77: 7016138.5 | S77: 7924518.89 | T77: 9123930.028 | U77: 10400225 | V77: 12492482.88 | W77: 14145446.58 | X77: 15916468.93 | Y77: 18158334.31 | Z77: 20200512.73 | AA77: 21876726.88 | AB77: 23866676.37 | AC77: 25595100.83 | AD77: 26996863.02 | AE77: 28820019.67 | AF77: 31196559.44 | AG77: 33682884.68 | AH77: 37530945.8 | AI77: 40515637.65 | AJ77: 43630970.5 | AK77: 47449326.42 | AL77: 50834481.5 | AM77: 53530228.4 | AN77: 56702186.79 | AO77: 59386546.69 | AP77: 61504898.77 | AQ77: 64313389.28 | AR77: 67989159 | AS77: 71855518.52 | AT77: 77756790.68 | AU77: 82367597.79 | AV77: 87231143.55 | AW77: 93124766.62 | AX77: 98419211.06 | AY77: 102698876.4 | AZ77: 107665111.1 | BA77: 111931263 | BB77: 115351808.1 | BC77: 119352804.4 | BD77: 124613188.7 | BE77: 130179655.1 | BF77: 138553253.1 | BG77: 145139533.7 | BH77: 152152766.7 | BI77: 160542121.8 | BJ77: 168156751.6 | BK77: 174382391 | BL77: 181502181.6 | BM77: 187682125.3 | BN77: 192690658.3 | BO77: 198107366.4 | BP77: 205259990.9 | BQ77: 212871784.4 | BR77: 224169103.5 | BS77: 233107348.1 | BT77: 242703239.3 | BU77: 254041132.9 | BV77: 264418761.2 | BW77: 272980811.8 | BX77: 282641013.6 | BY77: 291092430.8 | BZ77: 297997009.2 | CA77: 0 | CB77: 0 | CC77: 0 | CD77: 0 | CE77: 0 | CF77: 0 | CG77: 0 | CH77: 0 | CI77: 0 | CJ77: 0 | CK77: 0 | CL77: 0 | CM77: 0 | CN77: 0 | CO77: 0 | CP77: 0 | CQ77: 0 | CR77: 0 | CS77: 0 | CT77: 0 | CU77: 0 | CV77: 0 | CW77: 0 | CX77: 0 | CY77: 0 | CZ77: 0 | DA77: 0 | DB77: 0 | DC77: 0 | DD77: 0 | DE77: 0 | DF77: 0 | DG77: 0 | DH77: 0 | DI77: 0 | DJ77: 0 | DK77: 0 | DL77: 0 | DM77: 0 | DN77: 0 | DO77: 0 | DP77: 0 | DQ77: 0 | DR77: 0 | DS77: 0 | DT77: 0 | DU77: 0 | DV77: 0 | DW77: 0 | DX77: 0 | DY77: 0 | DZ77: 0 | EA77: 0 | EB77: 0 | EC77: 0 | ED77: 0 | EE77: 0 | EF77: 0 | EG77: 0 | EH77: 0 | EI77: 0 | EJ77: 0 | EK77: 0 | EL77: 0 | EM77: 0 | EN77: 0 | EO77: 0 | EP77: 0 | EQ77: 0 | ER77: 0 | ES77: 0 | ET77: 0 | EU77: 0 | EV77: 0
C78: Кредиторская задолженнсоть по прямым расходам | E78: 43633.51406 | G78: 1155 | H78: 1617 | I78: 1848 | J78: 3696 | K78: 3141.6 | L78: 3696 | M78: 5082 | N78: 5082 | O78: 4573.8 | P78: 5497.8 | Q78: 5174.4 | R78: 4527.6 | S78: 5006.925 | T78: 7009.695 | U78: 8011.08 | V78: 11781 | W78: 10013.85 | X78: 11781 | Y78: 13548.15 | Z78: 13548.15 | AA78: 12193.335 | AB78: 13018.005 | AC78: 12252.24 | AD78: 10720.71 | AE78: 10550.925 | AF78: 14771.295 | AG78: 16881.48 | AH78: 23284.8 | AI78: 19792.08 | AJ78: 23284.8 | AK78: 25467.75 | AL78: 25467.75 | AM78: 22920.975 | AN78: 23503.095 | AO78: 22120.56 | AP78: 19355.49 | AQ78: 15662.66625 | AR78: 21927.73275 | AS78: 25060.266 | AT78: 33617.43 | AU78: 28574.8155 | AV78: 33617.43 | AW78: 35909.5275 | AX78: 35909.5275 | AY78: 32318.57475 | AZ78: 32471.38125 | BA78: 30561.3 | BB78: 26741.1375 | BC78: 21259.20431 | BD78: 29762.88604 | BE78: 34014.7269 | BF78: 44925.111 | BG78: 38186.34435 | BH78: 44925.111 | BI78: 47331.81337 | BJ78: 47331.81337 | BK78: 42598.63204 | BL78: 42277.73839 | BM78: 39790.8126 | BN78: 34816.96102 | BO78: 27376.23952 | BP78: 38326.73532 | BQ78: 43801.98322 | BR78: 57279.51652 | BS78: 48687.58905 | BT78: 57279.51652 | BU78: 59806.55402 | BV78: 59806.55402 | BW78: 53825.89862 | BX78: 52983.55279 | BY78: 49866.87321 | BZ78: 43633.51406 | CA78: 0 | CB78: 0 | CC78: 0 | CD78: 0 | CE78: 0 | CF78: 0 | CG78: 0 | CH78: 0 | CI78: 0 | CJ78: 0 | CK78: 0 | CL78: 0 | CM78: 0 | CN78: 0 | CO78: 0 | CP78: 0 | CQ78: 0 | CR78: 0 | CS78: 0 | CT78: 0 | CU78: 0 | CV78: 0 | CW78: 0 | CX78: 0 | CY78: 0 | CZ78: 0 | DA78: 0 | DB78: 0 | DC78: 0 | DD78: 0 | DE78: 0 | DF78: 0 | DG78: 0 | DH78: 0 | DI78: 0 | DJ78: 0 | DK78: 0 | DL78: 0 | DM78: 0 | DN78: 0 | DO78: 0 | DP78: 0 | DQ78: 0 | DR78: 0 | DS78: 0 | DT78: 0 | DU78: 0 | DV78: 0 | DW78: 0 | DX78: 0 | DY78: 0 | DZ78: 0 | EA78: 0 | EB78: 0 | EC78: 0 | ED78: 0 | EE78: 0 | EF78: 0 | EG78: 0 | EH78: 0 | EI78: 0 | EJ78: 0 | EK78: 0 | EL78: 0 | EM78: 0 | EN78: 0 | EO78: 0 | EP78: 0 | EQ78: 0 | ER78: 0 | ES78: 0 | ET78: 0 | EU78: 0 | EV78: 0
C79: Кредиторская задолженнсоть по переменным расходам | E79: 522692.2353 | G79: 2242.916667 | H79: 3420.2 | I79: 4274.666667 | J79: 8778 | K79: 8122.146667 | L79: 10470.13333 | M79: 14247.8 | N79: 15505.46667 | O79: 14973.63 | P79: 17440.24333 | Q79: 17438.77333 | R79: 16043.25333 | S79: 16819.79221 | T79: 24994.13723 | U79: 30453.94053 | V79: 44753.24233 | W79: 40549.36603 | X79: 51177.95317 | Y79: 58384.69233 | Z79: 62378.4315 | AA79: 59375.51708 | AB79: 62069.77029 | AC79: 61307.9908 | AD79: 55856.67617 | AE79: 52453.324 | AF79: 76952.24437 | AG79: 92539.8264 | AH79: 127565.1697 | AI79: 114153.5961 | AJ79: 142219.735 | AK79: 154852.7517 | AL79: 163516.7683 | AM79: 154182.945 | AN79: 155787.1781 | AO79: 152643.4803 | AP79: 138172.3021 | AQ79: 106855.2403 | AR79: 154719.6763 | AS79: 183512.8904 | AT79: 244777.2269 | AU79: 216166.1275 | AV79: 265531.755 | AW79: 281682.7778 | AX79: 293666.3506 | AY79: 274006.4095 | AZ79: 271536.9417 | BA79: 263723.2087 | BB79: 237004.5636 | BC79: 180729.8275 | BD79: 259841.9668 | BE79: 305870.2748 | BF79: 401420.3144 | BG79: 351832.8208 | BH79: 428627.6141 | BI79: 448497.9412 | BJ79: 463992.4458 | BK79: 430143.75 | BL79: 421730.3298 | BM79: 407343.3742 | BN79: 364403.8092 | BO79: 275694.3125 | BP79: 394587.376 | BQ79: 462209.6882 | BR79: 600750.5392 | BS79: 523927.4899 | BT79: 634779.0975 | BU79: 658579.0183 | BV79: 677784.3255 | BW79: 625562.1917 | BX79: 609176.2955 | BY79: 586153.1471 | BZ79: 522692.2353 | CA79: 0 | CB79: 0 | CC79: 0 | CD79: 0 | CE79: 0 | CF79: 0 | CG79: 0 | CH79: 0 | CI79: 0 | CJ79: 0 | CK79: 0 | CL79: 0 | CM79: 0 | CN79: 0 | CO79: 0 | CP79: 0 | CQ79: 0 | CR79: 0 | CS79: 0 | CT79: 0 | CU79: 0 | CV79: 0 | CW79: 0 | CX79: 0 | CY79: 0 | CZ79: 0 | DA79: 0 | DB79: 0 | DC79: 0 | DD79: 0 | DE79: 0 | DF79: 0 | DG79: 0 | DH79: 0 | DI79: 0 | DJ79: 0 | DK79: 0 | DL79: 0 | DM79: 0 | DN79: 0 | DO79: 0 | DP79: 0 | DQ79: 0 | DR79: 0 | DS79: 0 | DT79: 0 | DU79: 0 | DV79: 0 | DW79: 0 | DX79: 0 | DY79: 0 | DZ79: 0 | EA79: 0 | EB79: 0 | EC79: 0 | ED79: 0 | EE79: 0 | EF79: 0 | EG79: 0 | EH79: 0 | EI79: 0 | EJ79: 0 | EK79: 0 | EL79: 0 | EM79: 0 | EN79: 0 | EO79: 0 | EP79: 0 | EQ79: 0 | ER79: 0 | ES79: 0 | ET79: 0 | EU79: 0 | EV79: 0
C80: Кредиторская задолженность по оплате НДС | E80: 3817718.506 | G80: -307766.7882 | H80: -297052.8361 | I80: -295852.3556 | J80: -265734.1944 | K80: -271496.4428 | L80: -258948.5111 | M80: 43928.21389 | N80: 54308.53333 | O80: 49436.76764 | P80: 66842.20542 | Q80: 69215.90153 | R80: 57896.10431 | S80: 54990.29434 | T80: 106419.2752 | U80: 136069.1074 | V80: 237810.8478 | W80: 205000.6409 | X80: 276135.3804 | Y80: 326807.5761 | Z80: 360400.6439 | AA80: 339693.5173 | AB80: 360876.3272 | AC80: 361537.4853 | AD80: 322218.0654 | AE80: 282563.0243 | AF80: 447368.742 | AG80: 544994.3763 | AH80: 800697.0687 | AI80: 697766.0726 | AJ80: 895726.0669 | AK80: 987317.2752 | AL80: 1059894.83 | AM80: 995421.2569 | AN80: 1011441.479 | AO80: 1001286.379 | AP80: 905003.9874 | AQ80: 656494.9326 | AR80: 989402.7625 | AS80: 1179908.974 | AT80: 1632638.009 | AU80: 1414056.229 | AV80: 1769627.644 | AW80: 1888384.912 | AX80: 1989366.142 | AY80: 1850681.75 | AZ80: 1838977.755 | BA80: 1798724.96 | BB80: 1615543.379 | BC80: 1175093.244 | BD80: 1735253.867 | BE80: 2048637.141 | BF80: 2759472.497 | BG80: 2381217.54 | BH80: 2940699.558 | BI80: 3088203.751 | BJ80: 3219340.814 | BK80: 2977428.839 | BL80: 2924064.263 | BM80: 2839718.563 | BN80: 2539953.838 | BO80: 1850409.302 | BP80: 2701867.582 | BQ80: 3170583.16 | BR80: 4205605.1 | BS80: 3619979.099 | BT80: 4433435.964 | BU80: 4611340.246 | BV80: 4774471.64 | BW80: 4397891.982 | BX80: 4287747.724 | BY80: 4165602.149 | BZ80: 3817718.506 | CA80: 0 | CB80: 0 | CC80: 0 | CD80: 0 | CE80: 0 | CF80: 0 | CG80: 0 | CH80: 0 | CI80: 0 | CJ80: 0 | CK80: 0 | CL80: 0 | CM80: 0 | CN80: 0 | CO80: 0 | CP80: 0 | CQ80: 0 | CR80: 0 | CS80: 0 | CT80: 0 | CU80: 0 | CV80: 0 | CW80: 0 | CX80: 0 | CY80: 0 | CZ80: 0 | DA80: 0 | DB80: 0 | DC80: 0 | DD80: 0 | DE80: 0 | DF80: 0 | DG80: 0 | DH80: 0 | DI80: 0 | DJ80: 0 | DK80: 0 | DL80: 0 | DM80: 0 | DN80: 0 | DO80: 0 | DP80: 0 | DQ80: 0 | DR80: 0 | DS80: 0 | DT80: 0 | DU80: 0 | DV80: 0 | DW80: 0 | DX80: 0 | DY80: 0 | DZ80: 0 | EA80: 0 | EB80: 0 | EC80: 0 | ED80: 0 | EE80: 0 | EF80: 0 | EG80: 0 | EH80: 0 | EI80: 0 | EJ80: 0 | EK80: 0 | EL80: 0 | EM80: 0 | EN80: 0 | EO80: 0 | EP80: 0 | EQ80: 0 | ER80: 0 | ES80: 0 | ET80: 0 | EU80: 0 | EV80: 0
C81: Кредиторская задолженность по постоянным расходам | E81: 70717.41977 | G81: 28333.33333 | H81: 38333.33333 | I81: 68333.33333 | J81: 18333.33333 | K81: 48333.33333 | L81: 58333.33333 | M81: 28333.33333 | N81: 38333.33333 | O81: 68333.33333 | P81: 18333.33333 | Q81: 48333.33333 | R81: 58333.33333 | S81: 30116.66667 | T81: 40216.66667 | U81: 70916.66667 | V81: 19816.66667 | W81: 50516.66667 | X81: 60616.66667 | Y81: 30116.66667 | Z81: 40216.66667 | AA81: 70916.66667 | AB81: 19816.66667 | AC81: 50516.66667 | AD81: 60616.66667 | AE81: 31985.83333 | AF81: 42184.83333 | AG81: 73601.83333 | AH81: 21376.83333 | AI81: 52793.83333 | AJ81: 62992.83333 | AK81: 31985.83333 | AL81: 42184.83333 | AM81: 73601.83333 | AN81: 21376.83333 | AO81: 52793.83333 | AP81: 62992.83333 | AQ81: 33944.61167 | AR81: 44241.50167 | AS81: 76392.93167 | AT81: 23017.34167 | AU81: 55168.77167 | AV81: 65465.66167 | AW81: 33944.61167 | AX81: 44241.50167 | AY81: 76392.93167 | AZ81: 23017.34167 | BA81: 55168.77167 | BB81: 65465.66167 | BC81: 35996.94098 | BD81: 46390.49608 | BE81: 79294.22738 | BF81: 24741.85288 | BG81: 57645.58418 | BH81: 68039.13928 | BI81: 35996.94098 | BJ81: 46390.49608 | BK81: 79294.22738 | BL81: 24741.85288 | BM81: 57645.58418 | BN81: 68039.13928 | BO81: 38146.92838 | BP81: 48635.8037 | BQ81: 82310.16051 | BR81: 26554.18764 | BS81: 60228.54445 | BT81: 70717.41977 | BU81: 38146.92838 | BV81: 48635.8037 | BW81: 82310.16051 | BX81: 26554.18764 | BY81: 60228.54445 | BZ81: 70717.41977 | CA81: 0 | CB81: 0 | CC81: 0 | CD81: 0 | CE81: 0 | CF81: 0 | CG81: 0 | CH81: 0 | CI81: 0 | CJ81: 0 | CK81: 0 | CL81: 0 | CM81: 0 | CN81: 0 | CO81: 0 | CP81: 0 | CQ81: 0 | CR81: 0 | CS81: 0 | CT81: 0 | CU81: 0 | CV81: 0 | CW81: 0 | CX81: 0 | CY81: 0 | CZ81: 0 | DA81: 0 | DB81: 0 | DC81: 0 | DD81: 0 | DE81: 0 | DF81: 0 | DG81: 0 | DH81: 0 | DI81: 0 | DJ81: 0 | DK81: 0 | DL81: 0 | DM81: 0 | DN81: 0 | DO81: 0 | DP81: 0 | DQ81: 0 | DR81: 0 | DS81: 0 | DT81: 0 | DU81: 0 | DV81: 0 | DW81: 0 | DX81: 0 | DY81: 0 | DZ81: 0 | EA81: 0 | EB81: 0 | EC81: 0 | ED81: 0 | EE81: 0 | EF81: 0 | EG81: 0 | EH81: 0 | EI81: 0 | EJ81: 0 | EK81: 0 | EL81: 0 | EM81: 0 | EN81: 0 | EO81: 0 | EP81: 0 | EQ81: 0 | ER81: 0 | ES81: 0 | ET81: 0 | EU81: 0 | EV81: 0
C82: Кредиторская задолженность по капзатратам | E82: 0 | G82: 6250000 | H82: 6250000 | I82: 9750000 | J82: 9750000 | K82: 6000000 | L82: 6000000 | M82: 6000000 | N82: 0 | O82: 0 | P82: 0 | Q82: 0 | R82: 0 | S82: 0 | T82: 0 | U82: 0 | V82: 0 | W82: 0 | X82: 0 | Y82: 0 | Z82: 0 | AA82: 0 | AB82: 0 | AC82: 0 | AD82: 0 | AE82: 0 | AF82: 0 | AG82: 0 | AH82: 0 | AI82: 0 | AJ82: 0 | AK82: 0 | AL82: 0 | AM82: 0 | AN82: 0 | AO82: 0 | AP82: 0 | AQ82: 0 | AR82: 0 | AS82: 0 | AT82: 0 | AU82: 0 | AV82: 0 | AW82: 0 | AX82: 0 | AY82: 0 | AZ82: 0 | BA82: 0 | BB82: 0 | BC82: 0 | BD82: 0 | BE82: 0 | BF82: 0 | BG82: 0 | BH82: 0 | BI82: 0 | BJ82: 0 | BK82: 0 | BL82: 0 | BM82: 0 | BN82: 0 | BO82: 0 | BP82: 0 | BQ82: 0 | BR82: 0 | BS82: 0 | BT82: 0 | BU82: 0 | BV82: 0 | BW82: 0 | BX82: 0 | BY82: 0 | BZ82: 0 | CA82: 0 | CB82: 0 | CC82: 0 | CD82: 0 | CE82: 0 | CF82: 0 | CG82: 0 | CH82: 0 | CI82: 0 | CJ82: 0 | CK82: 0 | CL82: 0 | CM82: 0 | CN82: 0 | CO82: 0 | CP82: 0 | CQ82: 0 | CR82: 0 | CS82: 0 | CT82: 0 | CU82: 0 | CV82: 0 | CW82: 0 | CX82: 0 | CY82: 0 | CZ82: 0 | DA82: 0 | DB82: 0 | DC82: 0 | DD82: 0 | DE82: 0 | DF82: 0 | DG82: 0 | DH82: 0 | DI82: 0 | DJ82: 0 | DK82: 0 | DL82: 0 | DM82: 0 | DN82: 0 | DO82: 0 | DP82: 0 | DQ82: 0 | DR82: 0 | DS82: 0 | DT82: 0 | DU82: 0 | DV82: 0 | DW82: 0 | DX82: 0 | DY82: 0 | DZ82: 0 | EA82: 0 | EB82: 0 | EC82: 0 | ED82: 0 | EE82: 0 | EF82: 0 | EG82: 0 | EH82: 0 | EI82: 0 | EJ82: 0 | EK82: 0 | EL82: 0 | EM82: 0 | EN82: 0 | EO82: 0 | EP82: 0 | EQ82: 0 | ER82: 0 | ES82: 0 | ET82: 0 | EU82: 0 | EV82: 0
C83: Кредиторская задолженность по налогу на имущество | E83: 4.656612873e-10 | G83: 0 | H83: 0 | I83: 0 | J83: 20572.91667 | K83: 51302.08333 | L83: 0 | M83: 50781.25 | N83: 101128.4722 | O83: 0 | P83: 49479.16667 | Q83: 98524.30556 | R83: 0 | S83: 48177.08333 | T83: 95920.13889 | U83: 0 | V83: 46875 | W83: 93315.97222 | X83: 1.164153218e-10 | Y83: 45572.91667 | Z83: 90711.80556 | AA83: 0 | AB83: 44270.83333 | AC83: 88107.63889 | AD83: 0 | AE83: 42968.75 | AF83: 85503.47222 | AG83: 0 | AH83: 41666.66667 | AI83: 82899.30556 | AJ83: 0 | AK83: 40364.58333 | AL83: 80295.13889 | AM83: -2.328306437e-10 | AN83: 39062.5 | AO83: 77690.97222 | AP83: -2.328306437e-10 | AQ83: 37760.41667 | AR83: 75086.80556 | AS83: -2.328306437e-10 | AT83: 36458.33333 | AU83: 72482.63889 | AV83: -4.656612873e-10 | AW83: 35156.25 | AX83: 69878.47222 | AY83: -4.656612873e-10 | AZ83: 33854.16667 | BA83: 67274.30556 | BB83: -4.656612873e-10 | BC83: 32552.08333 | BD83: 64670.13889 | BE83: -6.98491931e-10 | BF83: 31250 | BG83: 62065.97222 | BH83: -6.98491931e-10 | BI83: 29947.91667 | BJ83: 59461.80556 | BK83: -4.656612873e-10 | BL83: 28645.83333 | BM83: 56857.63889 | BN83: 0 | BO83: 27343.75 | BP83: 54253.47222 | BQ83: 0 | BR83: 26041.66667 | BS83: 51649.30556 | BT83: 0 | BU83: 24739.58333 | BV83: 49045.13889 | BW83: 4.656612873e-10 | BX83: 23437.5 | BY83: 46440.97222 | BZ83: 4.656612873e-10 | CA83: 0 | CB83: 0 | CC83: 0 | CD83: 0 | CE83: 0 | CF83: 0 | CG83: 0 | CH83: 0 | CI83: 0 | CJ83: 0 | CK83: 0 | CL83: 0 | CM83: 0 | CN83: 0 | CO83: 0 | CP83: 0 | CQ83: 0 | CR83: 0 | CS83: 0 | CT83: 0 | CU83: 0 | CV83: 0 | CW83: 0 | CX83: 0 | CY83: 0 | CZ83: 0 | DA83: 0 | DB83: 0 | DC83: 0 | DD83: 0 | DE83: 0 | DF83: 0 | DG83: 0 | DH83: 0 | DI83: 0 | DJ83: 0 | DK83: 0 | DL83: 0 | DM83: 0 | DN83: 0 | DO83: 0 | DP83: 0 | DQ83: 0 | DR83: 0 | DS83: 0 | DT83: 0 | DU83: 0 | DV83: 0 | DW83: 0 | DX83: 0 | DY83: 0 | DZ83: 0 | EA83: 0 | EB83: 0 | EC83: 0 | ED83: 0 | EE83: 0 | EF83: 0 | EG83: 0 | EH83: 0 | EI83: 0 | EJ83: 0 | EK83: 0 | EL83: 0 | EM83: 0 | EN83: 0 | EO83: 0 | EP83: 0 | EQ83: 0 | ER83: 0 | ES83: 0 | ET83: 0 | EU83: 0 | EV83: 0
C84: Кредиторская задолженность по налогу на прибыль | E84: 2635506.016 | G84: 0 | H84: 0 | I84: 0 | J84: 0 | K84: 0 | L84: 0 | M84: 0 | N84: 0 | O84: 0 | P84: 0 | Q84: 0 | R84: 0 | S84: 0 | T84: 0 | U84: 0 | V84: 0 | W84: 0 | X84: 0 | Y84: 0 | Z84: 0 | AA84: 0 | AB84: 0 | AC84: 0 | AD84: 0 | AE84: 0 | AF84: 0 | AG84: 0 | AH84: 0 | AI84: 0 | AJ84: 0 | AK84: 0 | AL84: 0 | AM84: 0 | AN84: 0 | AO84: 0 | AP84: 0 | AQ84: 0 | AR84: 0 | AS84: 0 | AT84: 0 | AU84: 0 | AV84: 0 | AW84: 0 | AX84: 0 | AY84: 0 | AZ84: 0 | BA84: 0 | BB84: 0 | BC84: 0 | BD84: 0 | BE84: 0 | BF84: 0 | BG84: 0 | BH84: 0 | BI84: 0 | BJ84: 0 | BK84: 0 | BL84: 0 | BM84: 0 | BN84: 0 | BO84: 0 | BP84: 616549.4613 | BQ84: 2147605.651 | BR84: 3122767.465 | BS84: 2593435.015 | BT84: 3387939.698 | BU84: 3556504.254 | BV84: 3705796.959 | BW84: 3347759.01 | BX84: 3230922.814 | BY84: 3077663.441 | BZ84: 2635506.016 | CA84: 0 | CB84: 0 | CC84: 0 | CD84: 0 | CE84: 0 | CF84: 0 | CG84: 0 | CH84: 0 | CI84: 0 | CJ84: 0 | CK84: 0 | CL84: 0 | CM84: 0 | CN84: 0 | CO84: 0 | CP84: 0 | CQ84: 0 | CR84: 0 | CS84: 0 | CT84: 0 | CU84: 0 | CV84: 0 | CW84: 0 | CX84: 0 | CY84: 0 | CZ84: 0 | DA84: 0 | DB84: 0 | DC84: 0 | DD84: 0 | DE84: 0 | DF84: 0 | DG84: 0 | DH84: 0 | DI84: 0 | DJ84: 0 | DK84: 0 | DL84: 0 | DM84: 0 | DN84: 0 | DO84: 0 | DP84: 0 | DQ84: 0 | DR84: 0 | DS84: 0 | DT84: 0 | DU84: 0 | DV84: 0 | DW84: 0 | DX84: 0 | DY84: 0 | DZ84: 0 | EA84: 0 | EB84: 0 | EC84: 0 | ED84: 0 | EE84: 0 | EF84: 0 | EG84: 0 | EH84: 0 | EI84: 0 | EJ84: 0 | EK84: 0 | EL84: 0 | EM84: 0 | EN84: 0 | EO84: 0 | EP84: 0 | EQ84: 0 | ER84: 0 | ES84: 0 | ET84: 0 | EU84: 0 | EV84: 0
C85: Кредитный портфель на конец периода | E85: 0 | G85: 0 | H85: 0 | I85: 0 | J85: 0 | K85: 0 | L85: 0 | M85: 0 | N85: 0 | O85: 0 | P85: 0 | Q85: 0 | R85: 0 | S85: 0 | T85: 0 | U85: 0 | V85: 0 | W85: 0 | X85: 0 | Y85: 0 | Z85: 0 | AA85: 0 | AB85: 301550.4635 | AC85: 3639609.983 | AD85: 7654637.592 | AE85: 11498255.72 | AF85: 13799547.86 | AG85: 15608356.51 | AH85: 15253817.94 | AI85: 15732766.68 | AJ85: 15333524.33 | AK85: 13640276.27 | AL85: 11920416.51 | AM85: 11360452.01 | AN85: 10189363.9 | AO85: 9434521.06 | AP85: 9821134.899 | AQ85: 10924657.49 | AR85: 9316490.023 | AS85: 6525464.692 | AT85: 0 | AU85: 0 | AV85: 0 | AW85: 0 | AX85: 0 | AY85: 0 | AZ85: 0 | BA85: 0 | BB85: 0 | BC85: 0 | BD85: 0 | BE85: 0 | BF85: 0 | BG85: 0 | BH85: 0 | BI85: 0 | BJ85: 0 | BK85: 0 | BL85: 0 | BM85: 0 | BN85: 0 | BO85: 0 | BP85: 0 | BQ85: 0 | BR85: 0 | BS85: 0 | BT85: 0 | BU85: 0 | BV85: 0 | BW85: 0 | BX85: 0 | BY85: 0 | BZ85: 0 | CA85: 0 | CB85: 0 | CC85: 0 | CD85: 0 | CE85: 0 | CF85: 0 | CG85: 0 | CH85: 0 | CI85: 0 | CJ85: 0 | CK85: 0 | CL85: 0 | CM85: 0 | CN85: 0 | CO85: 0 | CP85: 0 | CQ85: 0 | CR85: 0 | CS85: 0 | CT85: 0 | CU85: 0 | CV85: 0 | CW85: 0 | CX85: 0 | CY85: 0 | CZ85: 0 | DA85: 0 | DB85: 0 | DC85: 0 | DD85: 0 | DE85: 0 | DF85: 0 | DG85: 0 | DH85: 0 | DI85: 0 | DJ85: 0 | DK85: 0 | DL85: 0 | DM85: 0 | DN85: 0 | DO85: 0 | DP85: 0 | DQ85: 0 | DR85: 0 | DS85: 0 | DT85: 0 | DU85: 0 | DV85: 0 | DW85: 0 | DX85: 0 | DY85: 0 | DZ85: 0 | EA85: 0 | EB85: 0 | EC85: 0 | ED85: 0 | EE85: 0 | EF85: 0 | EG85: 0 | EH85: 0 | EI85: 0 | EJ85: 0 | EK85: 0 | EL85: 0 | EM85: 0 | EN85: 0 | EO85: 0 | EP85: 0 | EQ85: 0 | ER85: 0 | ES85: 0 | ET85: 0 | EU85: 0 | EV85: 0
